Workbook

Sheet Instruction&Content
A2: Content
E3: Note:
B4: Input | E4: 1. Make sure to enable macro before hand
A5: Simulation | E5: 2. ALWAYS set the variable values only on "Input" Sheet
B6: By Energy Price criteria | E6: 3. Click on "Go to Sheet" on the simulation part to start simulation
B7: Sheet No. | C7: Description | E7: 4. Unless modification for a project is needed, do not change the model equations
B8: 01 | C8: NPV Simulation Exponential Electricity Price Model
B9: 02 | C9: Execution year Simulation Exponential Electricity Price Model
B10: 03 | C10: NPV Simulation Linear Electricity Price Model
B11: 04 | C11: Execution year Simulation Linear Electricity Price Model
B14: By Investment Cost (Solar Panel) criteria
B15: Sheet No. | C15: Description
B16: 07 | C16: NPV Simulation Exponential Electricity Price Model
B17: 08 | C17: NPV Simulation Linear Electricity Price Model
B18: 09 | C18: Execution year Simulation Exponential Electricity Price Model
B20: By Year of Investment (Execution year) Criteria
B21: Sheet No. | C21: Description
B22: 05 | C22: NPV Simulation by Year of Investment (Exponential Electricity Price Model)
B23: 06 | C23: NPV Simulation by Year of Investment (Linear Electricity Price Model)
B24: Simulation by Both Energy Price and Investment Cost criteria
A26: Raw Data &Calculation Sheet
B27: Sheet No. | C27: Description
B28: 1 | C28: Historical Electricity Price Trend
B29: 2 | C29: Electricity Price Forecast Model - Exponential
B30: 3 | C30: Electricity Price Forecast Model - Linear
B31: 4 | C31: Solar Energy Price Forecast Model
B32: 5 | C32: Flexible Option Calculation by Criteria - Exponential model
B33: 6 | C33: Flexible Option Calculation by Criteria - Linear model
B34: 7 | C34: Flexible Option Calculation by Year- Exponential model
B35: 8 | C35: Flexible Option Calculation by Year - Linear model
B36: 9 | C36: Investment at startup Calculation - Exponential model
B37: 10 | C37: Investment at startup Calculation - Linear model
C39: Sensitivity Analysis

Sheet Input
B2: = Input
B3: = Calculation - Do not make changes
B5: Sustainability Investment Analysis - Energy
B6: Information and Assumptions | D6: Source | F6: Solar System Sizing Calculation
A7: Input | B7: Interest Rate (Real Risk free rate) | C7: 0.03 | D7: treasury.gov | F7: Percentage of Solar per total consumption | G7: 100 | H7: %
A8: Input | B8: Infaltion | C8: 0.02 | D8: treasury.gov | F8: Electricity need to be generated/day | G8: =C21*(G7%) -> 258.9041096 | H8: kWh
A9: Input | B9: Type of Facility: | C9: Office Low Rise | D9: Assumption | F9: The amount of useful sunshine available* | G9: 5 | H9: hours | I9: (5 Hours average for Texas)
A10: Input | B10: Facility Size (Square feet) | C10: 5000 | D10: Assumption | F10: Inefficiency | G10: 0.2
A11: Input | B11: Energy Consumption Rate (kwh/sq.ft.) per year | C11: 18.9 | D11: DOE | F11: Solar system size | G11: =G8/(G9) -> 51.78082192 | H11: kWh
A12: Input | B12: One time Incentive/ Rebate after installation (Bryan) | C12: 20250 | D12: BTU | F12: Solar system size need | G12: =G11/(1-G10) -> 64.7260274 | H12: kWh | I12: Ideal production | J12: =G12*5*365 -> 118125 | K12: kWh/year
A13: Input | B13: Current Energy Price | C13: 0.1026 | D13: EIA
A14: Input | B14: O&M cost ($/kWh/year) | C14: 35 | D14: Assumption
A15: Input | B15: Solar System Operating life (years) | C15: 30 | D15: Assumption
A16: Input | B16: Solar System cost - Modules ($/kWh) | C16: =2.84*1000 -> 2840 | D16: EIA
A17: Input | B17: Inverter cost (October 2010) ($/kWh) | C17: 714 | D17: Solarbuzz
A18: Input | B18: Battery backup cost (October 2010) ($/kWh) | C18: 213 | D18: Solarbuzz
A19: CAL | B19: Total Solar System cost per kWh | C19: =SUM(C16:C18) -> 3767
A20: CAL | B20: Energy Consumption per year (kwh) | C20: =C11*C10 -> 94500
A21: CAL | B21: Energy demand per day (kwh) | C21: =C20/365 -> 258.9041096
A22: CAL | B22: Solar System Size (kWh) | C22: =G12 -> 64.7260274
A23: CAL | B23: O&M cost ($/year) | C23: =C14*C22 -> 2265.410959
A24: CAL | B24: Energy Cost per year | C24: =C20*C13 -> 9695.7
A25: CAL | B25: Initial Investment | C25: =C19*C22 -> 243822.9452
B27: Real Option Analysis
B28: By Criteria: **Input "1" if it is not consider in the decision rule**
B29: 1. Invest when energy price gets higher by
B30: 1.1 For Linear model | C30: 1.1 | D30: times
B31: 1.2 For Exponential model | C31: 2.5 | D31: times
B32: 2. Invest when green technology price gets lower to | C32: 1 | D32: times
B33: By Year | C33: .
B34: Invest at year (input 0-30) | C34: 5

Sheet MC sim
A1: Iterations | B1: 500
A2: (Maximum 5000 iretations) | D2: Option 2: Invest at year 0 | H2: Option 3: Flexible
D3: EXP Elec Price Forecast | F3: LIN Elec Price Forecast | H3: EXP Elec Price Forecast | J3: LIN Elec Price Forecast | M3: Execute time | R3: Payback
D4: NPV | E4: Dicounted BCR | F4: NPV | G4: Dicounted BCR | H4: NPV | I4: Dicounted BCR | J4: NPV | K4: Dicounted BCR | M4: EXP | N4: LIN | Q4: Never | R4: EXP year0 | S4: LIN year0 | T4: EXP Flex | U4: LIN Flex
C5: Av | D5: =AVERAGE(D11:D5010) -> 63671.83807 | E5: 1.211709688 | F5: -66171.72438 | G5: 0.7812358101 | H5: 38616.21273 | I5: 1.24352674 | J5: -38899.65339 | K5: 0.7556833998 | L5: Av | M5: =AVERAGE(M11:M5010) -> 19.464 | N5: =AVERAGE(N11:N5010) -> 7.134 | O5: EXP | P5: Counts | Q5: =COUNTIF(M11:M5510,"Never") -> 0 | R5: =AVERAGE(R11:R5010) -> 23.51 | S5: =AVERAGE(S11:S5010) ->  | T5: =AVERAGE(T11:T5010) -> 8.544871795 | U5: =AVERAGE(U11:U5010) -> 22.74285714
C6: SD | D6: =STDEV(D11:D5010) -> 7556.279581 | E6: 0.02740608478 | F6: 994.9606555 | G6: 0.002967291109 | H6: 26034.18218 | I6: 0.2540109607 | J6: =STDEV(J11:J5010) -> 26182.77411 | K6: =STDEV(K11:K5010) -> 0.09798729199 | L6: SD | M6: =STDEV(M11:M5010) -> 2.063302798 | N6: =STDEV(N11:N5010) -> 0.3903187126 | P6: Percent | Q6: =(Q5/B1) -> 0 | R6: =STDEV(R11:R5010) -> 0.8528509304 | S6: =STDEV(S11:S5010) ->  | T6: =STDEV(T11:T5010) -> 2.036107516 | U6: =STDEV(U11:U5010) -> 2.800660186
C7: MAX | D7: =MAX(D11:D5010) -> 92393.1644 | E7: 1.289107211 | F7: -62841.0079 | G7: 0.7898252639 | H7: 126210.2136 | I7: 2.585314146 | J7: =MAX(J11:J5010) -> 56115.9309 | K7: =MAX(K11:K5010) -> 1.282992834 | L7: MAX | M7: =MAX(M11:M5010) -> 24 | N7: =MAX(N11:N5010) -> 10 | O7: LLIN | P7: Counts | Q7: =COUNTIF(N11:N5510,"Never") -> 0 | R7: =MAX(R11:R5010) -> 26 | S7: =MAX(S11:S5010) -> 0 | T7: =MAX(T11:T5010) -> 15 | U7: =MAX(U11:U5010) -> 24
C8: MIN | D8: =MIN(D11:D5010) -> 41997.5673 | E8: 1.129214424 | F8: -68976.0184 | G8: 0.7728426246 | H8: -39442.9154 | I8: 0.7199520252 | J8: =MIN(J11:J5010) -> -83950.5454 | K8: =MIN(K11:K5010) -> 0.611560699 | L8: MIN | M8: =MIN(M11:M5010) -> 12 | N8: =MIN(N11:N5010) -> 7 | P8: Percent | Q8: =(Q7/B1) -> 0 | R8: =MIN(R11:R5010) -> 21 | S8: =MIN(S11:S5010) -> 0 | T8: =MIN(T11:T5010) -> 3 | U8: =MIN(U11:U5010) -> 12
C9: 90th | D9: =PERCENTILE(D11:D5010,0.9) -> 73035.92774 | E9: 1.248022704 | F9: -64906.8509 | G9: 0.7848164008 | H9: 72925.30158 | I9: 1.563173814 | J9: =PERCENTILE(J11:J5010,0.9) -> -1950.98283 | K9: =PERCENTILE(K11:K5010,0.9) -> 0.8813954758 | L9: 90th | M9: =PERCENTILE(M11:M5010,0.9) -> 22 | N9: =PERCENTILE(N11:N5010,0.9) -> 8 | R9: =PERCENTILE(R11:R5010,0.9) -> 25 | S9: =PERCENTILE(S11:S5010,0.9) ->  | T9: =PERCENTILE(T11:T5010,0.9) -> 11 | U9: =PERCENTILE(U11:U5010,0.9) -> 24
C10: 10th | D10: =PERCENTILE(D11:D5010,0.1) -> 53761.91227 | E10: 1.177323878 | F10: -67620.12266 | G10: 0.7773000682 | H10: 5175.73232 | I10: 0.9665602164 | J10: =PERCENTILE(J11:J5010,0.1) -> -70663.48237 | K10: =PERCENTILE(K11:K5010,0.1) -> 0.6452705704 | L10: 10th | M10: =PERCENTILE(M11:M5010,0.1) -> 17 | N10: =PERCENTILE(N11:N5010,0.1) -> 7 | R10: =PERCENTILE(R11:R5010,0.1) -> 22 | S10: =PERCENTILE(S11:S5010,0.1) ->  | T10: =PERCENTILE(T11:T5010,0.1) -> 6 | U10: =PERCENTILE(U11:U5010,0.1) -> 19.8
C11: 1 | D11: 58278.184 | E11: 1.254902812 | F11: -66391.9268 | G11: 0.7850114267 | H11: 52843.4893 | I11: 1.229385551 | J11: -3300.2481 | K11: 0.7760397084 | M11: 23 | N11: 8 | R11: 23 | S11: Out of range | T11: 5 | U11: Out of range
C12: 2 | D12: 58260.147 | E12: 1.231028119 | F12: -65133.8086 | G12: 0.7828044012 | H12: 28552.3319 | I12: 0.9348741559 | J12: -52383.1141 | K12: 0.6201190554 | M12: 16 | N12: 10 | R12: 23 | S12: Out of range | T12: 6 | U12: Out of range
C13: 3 | D13: 67829.9 | E13: 1.196537347 | F13: -65752.6852 | G13: 0.7879141347 | H13: 5270.7752 | I13: 1.228605651 | J13: -26889.8313 | K13: 0.8177381779 | M13: 19 | N13: 7 | R13: 25 | S13: Out of range | T13: 12 | U13: Out of range
C14: 4 | D14: 71381.7078 | E14: 1.258139909 | F14: -64688.4875 | G14: 0.7758073634 | H14: 55947.3858 | I14: 0.8646958974 | J14: -41286.17 | K14: 0.7400818653 | M14: 22 | N14: 7 | R14: 25 | S14: Out of range | T14: 8 | U14: Out of range
C15: 5 | D15: 63876.6671 | E15: 1.179481246 | F15: -65730.7534 | G15: 0.7785219839 | H15: 63237.852 | I15: 1.482504225 | J15: 15713.0708 | K15: 0.6939603348 | M15: 18 | N15: 7 | R15: 24 | S15: Out of range | T15: 11 | U15: Out of range
C16: 6 | D16: 71715.0411 | E16: 1.245983018 | F16: -65122.5657 | G16: 0.7816255643 | H16: 30428.1414 | I16: 1.31216617 | J16: 10278.7998 | K16: 0.6848494955 | M16: 20 | N16: 7 | R16: 22 | S16: Out of range | T16: 6 | U16: Out of range
C17: 7 | D17: 65010.2532 | E17: 1.220881876 | F17: -65715.7054 | G17: 0.7814540779 | H17: 38923.645 | I17: 2.291158847 | J17: -48890.7825 | K17: 0.7901879556 | M17: 18 | N17: 7 | R17: 24 | S17: Out of range | T17: 6 | U17: Out of range
C18: 8 | D18: 65330.817 | E18: 1.174681428 | F18: -65293.7246 | G18: 0.7801773834 | H18: 15313.8679 | I18: 1.436242196 | J18: -32015.412 | K18: 0.8813611905 | M18: 21 | N18: 7 | R18: 25 | S18: Out of range | T18: 9 | U18: 23
C19: 9 | D19: 68531.5927 | E19: 1.235414774 | F19: -66183.3483 | G19: 0.788776327 | H19: 12760.1245 | I19: 1.231213647 | J19: -28998.877 | K19: 0.8029916662 | M19: 22 | N19: 7 | R19: 23 | S19: Out of range | T19: 10 | U19: Out of range
C20: 10 | D20: 64291.0934 | E20: 1.189510451 | F20: -66035.388 | G20: 0.7842598664 | H20: 22989.4437 | I20: 1.126776131 | J20: -2552.5376 | K20: 0.8353833072 | M20: 17 | N20: 7 | R20: 24 | S20: Out of range | T20: 10 | U20: Out of range
C21: 11 | D21: 53454.5357 | E21: 1.235491952 | F21: -66826.5364 | G21: 0.781695053 | H21: 120489.9701 | I21: 1.144338215 | J21: -46940.5274 | K21: 0.8042313118 | M21: 16 | N21: 7 | R21: 23 | S21: Out of range | T21: 8 | U21: Out of range
C22: 12 | D22: 60765.155 | E22: 1.191062477 | F22: -67729.0936 | G22: 0.7802518927 | H22: 51580.5272 | I22: 1.614117419 | J22: -58454.5126 | K22: 0.6194435995 | M22: 19 | N22: 7 | R22: 23 | S22: Out of range | T22: 8 | U22: Out of range
C23: 13 | D23: 59163.7317 | E23: 1.196399449 | F23: -66705.5631 | G23: 0.780110547 | H23: 20655.6899 | I23: 1.073264948 | J23: -58905.4849 | K23: 0.7458541678 | M23: 20 | N23: 7 | R23: 23 | S23: Out of range | T23: 8 | U23: Out of range
C24: 14 | D24: 73062.3197 | E24: 1.170915215 | F24: -64750.1882 | G24: 0.7772671434 | H24: 94271.2368 | I24: 1.527674201 | J24: -16885.538 | K24: 0.7253951979 | M24: 20 | N24: 8 | R24: 25 | S24: Out of range | T24: 8 | U24: Out of range
C25: 15 | D25: 74365.5122 | E25: 1.176541402 | F25: -66318.5669 | G25: 0.7779205906 | H25: 50338.132 | I25: 1.399854864 | J25: -20918.3145 | K25: 0.9261506744 | M25: 18 | N25: 7 | R25: 23 | S25: Out of range | T25: 4 | U25: Out of range
C26: 16 | D26: 56087.5101 | E26: 1.265875394 | F26: -66603.8172 | G26: 0.7817033581 | H26: 21464.8267 | I26: 1.01722749 | J26: -37394.2975 | K26: 0.8007571274 | M26: 16 | N26: 7 | R26: 23 | S26: Out of range | T26: 11 | U26: Out of range
C27: 17 | D27: 67129.0365 | E27: 1.187762119 | F27: -66713.8435 | G27: 0.7810895418 | H27: 76900.8048 | I27: 1.084647029 | J27: -36169.6993 | K27: 0.6782210377 | M27: 14 | N27: 8 | R27: 24 | S27: Out of range | T27: 9 | U27: Out of range
C28: 18 | D28: 66967.6747 | E28: 1.26042284 | F28: -64436.0361 | G28: 0.7751283511 | H28: 66898.5551 | I28: 1.530761249 | J28: -34738.6737 | K28: 0.7719832191 | M28: 20 | N28: 7 | R28: 24 | S28: Out of range | T28: 12 | U28: Out of range
C29: 19 | D29: 56761.6985 | E29: 1.203685464 | F29: -65719.1231 | G29: 0.7763596638 | H29: 43218.8908 | I29: 1.030839228 | J29: -64078.9319 | K29: 0.7928906412 | M29: 18 | N29: 7 | R29: 25 | S29: Out of range | T29: 9 | U29: Out of range
C30: 20 | D30: 47084.1833 | E30: 1.19316028 | F30: -65705.8704 | G30: 0.7840981384 | H30: 88091.1976 | I30: 1.569424291 | J30: -27764.3146 | K30: 0.7111221333 | M30: 21 | N30: 7 | R30: 23 | S30: Out of range | T30: 7 | U30: Out of range
C31: 21 | D31: 72835.2764 | E31: 1.230993437 | F31: -66333.2087 | G31: 0.7850657087 | H31: 41750.835 | I31: 1.167424928 | J31: -57872.4581 | K31: 0.6981508561 | M31: 22 | N31: 7 | R31: 24 | S31: Out of range | T31: 5 | U31: Out of range
C32: 22 | D32: 69102.312 | E32: 1.156924895 | F32: -65643.4953 | G32: 0.7834685983 | H32: 2645.281 | I32: 1.338778648 | J32: -79256.9767 | K32: 0.7575535968 | M32: 21 | N32: 7 | R32: 23 | S32: Out of range | T32: 11 | U32: Out of range
C33: 23 | D33: 68873.941 | E33: 1.252551759 | F33: -65237.3301 | G33: 0.782724236 | H33: 58956.7469 | I33: 1.382790784 | J33: -66189.8343 | K33: 0.7654469388 | M33: 15 | N33: 7 | R33: 24 | S33: Out of range | T33: 8 | U33: Out of range
C34: 24 | D34: 67806.1143 | E34: 1.228747075 | F34: -66056.6739 | G34: 0.7788774621 | H34: 42685.8635 | I34: 1.015340592 | J34: -76265.556 | K34: 0.8244960105 | M34: 18 | N34: 7 | R34: 24 | S34: Out of range | T34: 9 | U34: Out of range
C35: 25 | D35: 63674.1204 | E35: 1.207966979 | F35: -67069.6845 | G35: 0.7768090462 | H35: 79305.9288 | I35: 1.145151889 | J35: -50995.0431 | K35: 0.6930888324 | M35: 19 | N35: 7 | R35: 23 | S35: Out of range | T35: 7 | U35: Out of range
C36: 26 | D36: 77697.1576 | E36: 1.244790997 | F36: -65788.7681 | G36: 0.7778665841 | H36: 38057.2345 | I36: 0.7199520252 | J36: -6881.8506 | K36: 0.67007896 | M36: 21 | N36: 7 | R36: 24 | S36: Out of range | T36: 6 | U36: Out of range
C37: 27 | D37: 67968.4868 | E37: 1.246783955 | F37: -67436.3433 | G37: 0.7807817632 | H37: 40440.0551 | I37: 1.385111913 | J37: -45658.4635 | K37: 1.115709633 | M37: 22 | N37: 7 | R37: 24 | S37: Out of range | T37: 12 | U37: Out of range
C38: 28 | D38: 72027.4232 | E38: 1.243377528 | F38: -67121.7482 | G38: 0.7729482183 | H38: 33961.4682 | I38: 1.604266393 | J38: -79096.9109 | K38: 0.6532966979 | M38: 18 | N38: 7 | R38: 24 | S38: Out of range | T38: 6 | U38: Out of range
C39: 29 | D39: 56780.7567 | E39: 1.248420075 | F39: -64406.3278 | G39: 0.7740519282 | H39: 32681.4786 | I39: 1.395068967 | J39: -67071.6054 | K39: 0.6409585382 | M39: 18 | N39: 7 | R39: 23 | S39: Out of range | T39: 10 | U39: Out of range
C40: 30 | D40: 50927.6457 | E40: 1.22252147 | F40: -65154.3143 | G40: 0.7844314156 | H40: 34903.9847 | I40: 1.328599933 | J40: -60568.6517 | K40: 0.6341776322 | M40: 18 | N40: 7 | R40: 24 | S40: Out of range | T40: 10 | U40: Out of range
C41: 31 | D41: 62713.861 | E41: 1.157953333 | F41: -65246.0225 | G41: 0.7783269475 | H41: -9262.3634 | I41: 1.348848728 | J41: -27189.2782 | K41: 0.6891599649 | M41: 19 | N41: 7 | R41: 23 | S41: Out of range | T41: 5 | U41: Out of range
C42: 32 | D42: 72120.7803 | E42: 1.175319597 | F42: -66673.528 | G42: 0.7802869976 | H42: 16005.9772 | I42: 1.129535097 | J42: -77472.2051 | K42: 0.8694484461 | M42: 21 | N42: 7 | R42: 24 | S42: Out of range | T42: 8 | U42: Out of range
C43: 33 | D43: 65411.2759 | E43: 1.21981844 | F43: -65274.632 | G43: 0.7788939329 | H43: 33720.356 | I43: 1.115220007 | J43: 1303.1894 | K43: 0.6590834681 | M43: 21 | N43: 7 | R43: 23 | S43: Out of range | T43: 10 | U43: Out of range
C44: 34 | D44: 66069.1446 | E44: 1.250863136 | F44: -63886.4507 | G44: 0.7836163183 | H44: 14529.4175 | I44: 1.424873138 | J44: -7326.8731 | K44: 0.6817783741 | M44: 17 | N44: 8 | R44: 23 | S44: Out of range | T44: 11 | U44: Out of range
C45: 35 | D45: 66008.7903 | E45: 1.199356431 | F45: -67285.2749 | G45: 0.7793202192 | H45: 49744.2056 | I45: 0.9202356659 | J45: -45832.4029 | K45: 0.74896895 | M45: 16 | N45: 7 | R45: 24 | S45: Out of range | T45: 10 | U45: Out of range
C46: 36 | D46: 59327.5005 | E46: 1.216586868 | F46: -65049.3947 | G46: 0.7831391481 | H46: 75013.043 | I46: 1.096440723 | J46: -55303.0744 | K46: 0.6845886535 | M46: 22 | N46: 7 | R46: 23 | S46: Out of range | T46: 7 | U46: Out of range
C47: 37 | D47: 68748.7535 | E47: 1.176510484 | F47: -65151.6652 | G47: 0.7805696777 | H47: -35009.1752 | I47: 1.113055753 | J47: -8004.2322 | K47: 0.8222245932 | M47: 18 | N47: 7 | R47: 25 | S47: Out of range | T47: 6 | U47: 24
C48: 38 | D48: 76174.4658 | E48: 1.196271381 | F48: -66538.0158 | G48: 0.7858061619 | H48: -4056.9426 | I48: 1.560481865 | J48: -27513.9723 | K48: 0.7798430143 | M48: 18 | N48: 7 | R48: 23 | S48: Out of range | T48: 5 | U48: Out of range
C49: 39 | D49: 60810.0638 | E49: 1.199120024 | F49: -66702.3018 | G49: 0.7788474917 | H49: 33081.6205 | I49: 1.117698321 | J49: 17243.36 | K49: 0.7177158853 | M49: 20 | N49: 7 | R49: 25 | S49: Out of range | T49: 9 | U49: Out of range
C50: 40 | D50: 69415.0639 | E50: 1.205028976 | F50: -64473.825 | G50: 0.7810459402 | H50: 5736.6763 | I50: 1.111371464 | J50: -44653.2611 | K50: 0.6666501152 | M50: 21 | N50: 7 | R50: 24 | S50: Out of range | T50: 9 | U50: 24
C51: 41 | D51: 63922.0571 | E51: 1.216358054 | F51: -67230.4105 | G51: 0.7763805894 | H51: 16844.7348 | I51: 1.034440127 | J51: -81874.4661 | K51: 0.9090753492 | M51: 17 | N51: 8 | R51: 24 | S51: Out of range | T51: 9 | U51: Out of range
C52: 42 | D52: 54777.4324 | E52: 1.244605533 | F52: -66735.5271 | G52: 0.7821138443 | H52: 35602.4562 | I52: 1.665392496 | J52: -10799.6711 | K52: 0.8770259299 | M52: 22 | N52: 7 | R52: 23 | S52: Out of range | T52: Out of range | U52: Out of range
C53: 43 | D53: 60003.8386 | E53: 1.237903366 | F53: -66699.8651 | G53: 0.7798404701 | H53: 36715.2029 | I53: 1.03843699 | J53: -61589.9032 | K53: 0.6315673014 | M53: 17 | N53: 7 | R53: 24 | S53: Out of range | T53: 7 | U53: Out of range
C54: 44 | D54: 66764.8816 | E54: 1.197181757 | F54: -66004.0416 | G54: 0.7789487996 | H54: 32567.3215 | I54: 1.357910941 | J54: -40851.9802 | K54: 0.8607198852 | M54: 23 | N54: 7 | R54: 24 | S54: Out of range | T54: 6 | U54: Out of range
C55: 45 | D55: 63016.2071 | E55: 1.207826274 | F55: -66361.1551 | G55: 0.7809399999 | H55: 54390.5596 | I55: 1.18811899 | J55: 9621.2141 | K55: 0.7839927493 | M55: 20 | N55: 8 | R55: 24 | S55: Out of range | T55: 10 | U55: 23
C56: 46 | D56: 62844.5848 | E56: 1.20657335 | F56: -66411.9166 | G56: 0.7760682812 | H56: 52450.2726 | I56: 0.8226214955 | J56: -63096.0526 | K56: 0.7657270918 | M56: 20 | N56: 7 | R56: 24 | S56: Out of range | T56: 4 | U56: Out of range
C57: 47 | D57: 53764.8657 | E57: 1.207809165 | F57: -64695.1323 | G57: 0.7793381794 | H57: 53595.8942 | I57: 1.093879196 | J57: -10704.6266 | K57: 0.8705757842 | M57: 20 | N57: 7 | R57: 24 | S57: Out of range | T57: 5 | U57: Out of range
C58: 48 | D58: 53907.787 | E58: 1.249505 | F58: -65703.0628 | G58: 0.7796679567 | H58: 5937.7196 | I58: 1.402799717 | J58: -60500.2548 | K58: 0.7100624511 | M58: 19 | N58: 7 | R58: 22 | S58: Out of range | T58: 11 | U58: Out of range
C59: 49 | D59: 62887.9284 | E59: 1.202765395 | F59: -65549.7092 | G59: 0.7820841328 | H59: 21625.2689 | I59: 1.535067628 | J59: -54730.0637 | K59: 0.6712989616 | M59: 18 | N59: 7 | R59: 24 | S59: Out of range | T59: 9 | U59: Out of range
C60: 50 | D60: 64438.3652 | E60: 1.177798391 | F60: -66665.6264 | G60: 0.780093297 | H60: -13117.6915 | I60: 1.043232747 | J60: -22684.9617 | K60: 0.6573536724 | M60: 21 | N60: 7 | R60: 24 | S60: Out of range | T60: Out of range | U60: Out of range
C61: 51 | D61: 67099.0112 | E61: 1.231052749 | F61: -64764.6718 | G61: 0.7775957388 | H61: 114206.1583 | I61: 1.563921104 | J61: -52874.6707 | K61: 0.7018057057 | M61: 22 | N61: 7 | R61: 24 | S61: Out of range | T61: 5 | U61: Out of range
C62: 52 | D62: 52402.745 | E62: 1.186122378 | F62: -66423.5355 | G62: 0.7811634016 | H62: 47148.3247 | I62: 1.083559927 | J62: -23491.0299 | K62: 0.675540519 | M62: 19 | N62: 7 | R62: 24 | S62: Out of range | T62: 7 | U62: Out of range
C63: 53 | D63: 58219.6542 | E63: 1.21033364 | F63: -65933.3181 | G63: 0.7811206276 | H63: 18932.651 | I63: 0.9656528778 | J63: -25953.2215 | K63: 0.7870001378 | M63: 23 | N63: 7 | R63: 23 | S63: Out of range | T63: 12 | U63: Out of range
C64: 54 | D64: 60119.592 | E64: 1.20556078 | F64: -67393.1808 | G64: 0.7846845424 | H64: 68781.8685 | I64: 0.871278587 | J64: 1225.0254 | K64: 0.9054150751 | M64: 22 | N64: 8 | R64: 22 | S64: Out of range | T64: 7 | U64: Out of range
C65: 55 | D65: 80189.2184 | E65: 1.285463416 | F65: -66621.3198 | G65: 0.7856344368 | H65: -3018.6946 | I65: 1.430096417 | J65: -13232.121 | K65: 0.6406730159 | M65: 20 | N65: 7 | R65: 24 | S65: Out of range | T65: 11 | U65: Out of range
C66: 56 | D66: 66623.9316 | E66: 1.233242573 | F66: -66407.1023 | G66: 0.775674238 | H66: 2225.007 | I66: 1.202765896 | J66: -66023.0634 | K66: 0.7761495213 | M66: 20 | N66: 7 | R66: 24 | S66: Out of range | T66: 9 | U66: Out of range
C67: 57 | D67: 68565.5735 | E67: 1.17756171 | F67: -66565.7985 | G67: 0.7778849024 | H67: 60660.5137 | I67: 1.143370598 | J67: 15066.6853 | K67: 0.7006797064 | M67: 19 | N67: 7 | R67: 22 | S67: Out of range | T67: 10 | U67: Out of range
C68: 58 | D68: 61728.4243 | E68: 1.200346969 | F68: -66451.8731 | G68: 0.780575065 | H68: -2685.908 | I68: 1.131912977 | J68: -42446.5992 | K68: 0.6927516917 | M68: 21 | N68: 8 | R68: 24 | S68: Out of range | T68: 6 | U68: Out of range
C69: 59 | D69: 55678.083 | E69: 1.242957959 | F69: -65172.9922 | G69: 0.7843821022 | H69: 74763.1638 | I69: 1.300336295 | J69: -42738.7289 | K69: 0.7155779909 | M69: 20 | N69: 7 | R69: 25 | S69: Out of range | T69: 7 | U69: Out of range
C70: 60 | D70: 62157.7688 | E70: 1.232979144 | F70: -65979.7764 | G70: 0.7819394302 | H70: 15967.6517 | I70: 1.954375495 | J70: -41464.5286 | K70: 0.8759481923 | M70: 19 | N70: 7 | R70: 24 | S70: Out of range | T70: 9 | U70: Out of range
C71: 61 | D71: 63280.8337 | E71: 1.20406688 | F71: -65832.3762 | G71: 0.7827310689 | H71: 38148.376 | I71: 1.102426537 | J71: -78474.7277 | K71: 0.6538342765 | M71: 18 | N71: 7 | R71: 22 | S71: Out of range | T71: Out of range | U71: Out of range
C72: 62 | D72: 65848.7038 | E72: 1.200596439 | F72: -64433.0969 | G72: 0.7769684633 | H72: 24219.6017 | I72: 1.217586426 | J72: -58311 | K72: 0.6403438225 | M72: 20 | N72: 7 | R72: 25 | S72: Out of range | T72: 9 | U72: Out of range
C73: 63 | D73: 67503.0901 | E73: 1.228817612 | F73: -66023.9383 | G73: 0.7804089038 | H73: 2250.7496 | I73: 1.466137215 | J73: -79629.521 | K73: 0.7876859634 | M73: 22 | N73: 7 | R73: 25 | S73: Out of range | T73: 7 | U73: Out of range
C74: 64 | D74: 63921.9195 | E74: 1.227081615 | F74: -65571.2708 | G74: 0.781981938 | H74: 29272.8483 | I74: 1.311527631 | J74: -370.5736 | K74: 0.728861332 | M74: 21 | N74: 7 | R74: 23 | S74: Out of range | T74: 6 | U74: Out of range
C75: 65 | D75: 59556.644 | E75: 1.178096205 | F75: -65884.2944 | G75: 0.7885517159 | H75: 29654.2293 | I75: 0.9990498626 | J75: -70534.5199 | K75: 0.7453576068 | M75: 20 | N75: 8 | R75: 24 | S75: Out of range | T75: 9 | U75: Out of range
C76: 66 | D76: 58979.6623 | E76: 1.182472809 | F76: -66057.8713 | G76: 0.7828580202 | H76: 47457.9066 | I76: 1.337090524 | J76: -30867.5227 | K76: 0.7301397002 | M76: 19 | N76: 7 | R76: 24 | S76: Out of range | T76: 8 | U76: Out of range
C77: 67 | D77: 56131.5905 | E77: 1.218211495 | F77: -65855.9605 | G77: 0.7829716056 | H77: 3476.7152 | I77: 0.9979450511 | J77: -44328.2403 | K77: 0.7187498194 | M77: 21 | N77: 7 | R77: 22 | S77: Out of range | T77: 10 | U77: Out of range
C78: 68 | D78: 84265.7913 | E78: 1.26689445 | F78: -65842.5617 | G78: 0.7848917599 | H78: 40747.4867 | I78: 1.179610534 | J78: 30380.4315 | K78: 0.8197460117 | M78: 20 | N78: 7 | R78: 24 | S78: Out of range | T78: 6 | U78: Out of range
C79: 69 | D79: 76862.2893 | E79: 1.237037944 | F79: -67792.5618 | G79: 0.7825117485 | H79: 59791.4208 | I79: 1.307433349 | J79: -56151.1719 | K79: 0.6883858802 | M79: 20 | N79: 7 | R79: 25 | S79: Out of range | T79: 7 | U79: 24
C80: 70 | D80: 67596.8485 | E80: 1.232311232 | F80: -66459.9546 | G80: 0.7772375419 | H80: 39831.6626 | I80: 1.031941598 | J80: -22661.7294 | K80: 0.7440449954 | M80: 21 | N80: 7 | R80: 23 | S80: Out of range | T80: 9 | U80: Out of range
C81: 71 | D81: 75233.4722 | E81: 1.163744375 | F81: -66002.4611 | G81: 0.7797815919 | H81: 49462.1693 | I81: 0.9724297034 | J81: -21170.097 | K81: 0.7587035102 | M81: 18 | N81: 7 | R81: 24 | S81: Out of range | T81: 9 | U81: Out of range
C82: 72 | D82: 67349.071 | E82: 1.198698126 | F82: -65185.8346 | G82: 0.7796347587 | H82: 32354.8477 | I82: 1.449508866 | J82: -68994.5331 | K82: 0.7989814503 | M82: 21 | N82: 7 | R82: 24 | S82: Out of range | T82: 10 | U82: Out of range
C83: 73 | D83: 51882.8487 | E83: 1.179092185 | F83: -67392.8887 | G83: 0.7808164243 | H83: 61706.7558 | I83: 1.436489664 | J83: -39408.2734 | K83: 0.6306546358 | M83: 21 | N83: 7 | R83: 23 | S83: Out of range | T83: 8 | U83: Out of range
C84: 74 | D84: 61167.7083 | E84: 1.198393781 | F84: -65576.4344 | G84: 0.7795741477 | H84: 32463.3918 | I84: 1.290399374 | J84: -49338.1636 | K84: 0.7936538368 | M84: 22 | N84: 8 | R84: 24 | S84: Out of range | T84: 6 | U84: Out of range
C85: 75 | D85: 66021.807 | E85: 1.210518768 | F85: -67473.7348 | G85: 0.7756231917 | H85: 20994.3035 | I85: 1.062767966 | J85: -58262.1972 | K85: 0.8567839869 | M85: 21 | N85: 7 | R85: 24 | S85: Out of range | T85: Out of range | U85: 23
C86: 76 | D86: 86952.5135 | E86: 1.218101695 | F86: -67959.5309 | G86: 0.7795536695 | H86: -12209.0412 | I86: 1.3627321 | J86: -37898.34 | K86: 0.9312131871 | M86: 16 | N86: 7 | R86: 23 | S86: Out of range | T86: 9 | U86: Out of range
C87: 77 | D87: 59213.1988 | E87: 1.206266899 | F87: -66774.681 | G87: 0.7840940526 | H87: 25548.0686 | I87: 1.115329912 | J87: -58918.6013 | K87: 0.7360281027 | M87: 18 | N87: 7 | R87: 24 | S87: Out of range | T87: 8 | U87: Out of range
C88: 78 | D88: 58449.6772 | E88: 1.159762337 | F88: -66030.2623 | G88: 0.7841497336 | H88: 24718.0565 | I88: 1.190583068 | J88: -50353.0432 | K88: 0.9340486751 | M88: 18 | N88: 7 | R88: 23 | S88: Out of range | T88: 7 | U88: Out of range
C89: 79 | D89: 69114.9592 | E89: 1.210411162 | F89: -64923.8852 | G89: 0.784296798 | H89: 46566.3196 | I89: 1.11123413 | J89: -20128.8289 | K89: 0.6423785052 | M89: 19 | N89: 7 | R89: 24 | S89: Out of range | T89: 8 | U89: Out of range
C90: 80 | D90: 68480.8966 | E90: 1.210719764 | F90: -67966.7671 | G90: 0.7790536822 | H90: 45896.4336 | I90: 1.484511607 | J90: -68685.099 | K90: 0.6292879511 | M90: 18 | N90: 7 | R90: 23 | S90: Out of range | T90: 8 | U90: Out of range
C91: 81 | D91: 84060.5676 | E91: 1.184436123 | F91: -66237.9323 | G91: 0.7812404203 | H91: 13686.9003 | I91: 1.855116697 | J91: -34584.3625 | K91: 0.8375723496 | M91: 22 | N91: 7 | R91: 22 | S91: Out of range | T91: 6 | U91: Out of range
C92: 82 | D92: 62328.9508 | E92: 1.222731204 | F92: -64965.0796 | G92: 0.7855647011 | H92: 5180.1097 | I92: 1.549213336 | J92: -58513.2529 | K92: 0.7647921842 | M92: 19 | N92: 7 | R92: 24 | S92: Out of range | T92: 6 | U92: Out of range
C93: 83 | D93: 59571.7869 | E93: 1.188689836 | F93: -67532.3202 | G93: 0.7808416587 | H93: 41215.4545 | I93: 1.153566502 | J93: -14944.3099 | K93: 0.7416767074 | M93: 20 | N93: 7 | R93: 24 | S93: Out of range | T93: 9 | U93: Out of range
C94: 84 | D94: 67901.3066 | E94: 1.217375412 | F94: -67671.0208 | G94: 0.7776393509 | H94: 50481.7959 | I94: 0.7363437533 | J94: -47874.4942 | K94: 0.7276882523 | M94: 21 | N94: 7 | R94: 23 | S94: Out of range | T94: 12 | U94: Out of range
C95: 85 | D95: 71400.1944 | E95: 1.233983718 | F95: -64953.7304 | G95: 0.7808906313 | H95: 43410.3482 | I95: 1.456049408 | J95: -62257.482 | K95: 0.7007619018 | M95: 20 | N95: 7 | R95: 24 | S95: Out of range | T95: 11 | U95: Out of range
C96: 86 | D96: 71235.7244 | E96: 1.229362607 | F96: -65904.0523 | G96: 0.7838825548 | H96: 71755.4037 | I96: 1.57204909 | J96: 2326.4307 | K96: 0.686655472 | M96: 19 | N96: 8 | R96: 23 | S96: Out of range | T96: 10 | U96: Out of range
C97: 87 | D97: 63509.9703 | E97: 1.229727665 | F97: -66594.0572 | G97: 0.7802961204 | H97: 20421.5123 | I97: 0.9939508418 | J97: -58564.2375 | K97: 0.6226608777 | M97: 18 | N97: 7 | R97: 22 | S97: Out of range | T97: 8 | U97: Out of range
C98: 88 | D98: 75813.1442 | E98: 1.210379012 | F98: -66734.4467 | G98: 0.7766056296 | H98: 53522.239 | I98: 1.477162214 | J98: -11943.3904 | K98: 0.7294026118 | M98: 23 | N98: 8 | R98: 23 | S98: Out of range | T98: 10 | U98: 24
C99: 89 | D99: 49980.4127 | E99: 1.241964175 | F99: -66026.3355 | G99: 0.7829930982 | H99: 11903.4979 | I99: 1.422811627 | J99: -62883.0162 | K99: 0.8064454688 | M99: 20 | N99: 7 | R99: 22 | S99: Out of range | T99: 7 | U99: Out of range
C100: 90 | D100: 58624.5097 | E100: 1.199762363 | F100: -65868.4483 | G100: 0.7827284964 | H100: 35492.0015 | I100: 1.115823702 | J100: 8892.7495 | K100: 0.6671906588 | M100: 20 | N100: 7 | R100: 23 | S100: Out of range | T100: 8 | U100: Out of range
C101: 91 | D101: 60403.3801 | E101: 1.197852034 | F101: -66433.1473 | G101: 0.7814392255 | H101: 65811.153 | I101: 1.389485835 | J101: -57474.5872 | K101: 0.6143237896 | M101: 23 | N101: 8 | R101: 24 | S101: Out of range | T101: 7 | U101: Out of range
C102: 92 | D102: 51771.7012 | E102: 1.201396338 | F102: -64541.1948 | G102: 0.7789746041 | H102: 24176.6853 | I102: 1.837679272 | J102: -51194.1433 | K102: 0.9632400447 | M102: 22 | N102: 7 | R102: 22 | S102: Out of range | T102: 11 | U102: Out of range
C103: 93 | D103: 76220.356 | E103: 1.23726528 | F103: -65575.0331 | G103: 0.78085808 | H103: 88616.0287 | I103: 1.070560103 | J103: 11806.5217 | K103: 0.6532954209 | M103: 19 | N103: 7 | R103: 24 | S103: Out of range | T103: 9 | U103: Out of range
C104: 94 | D104: 56929.0537 | E104: 1.179675049 | F104: -66513.5624 | G104: 0.7789422492 | H104: 38809.5353 | I104: 1.288421261 | J104: -41302.8007 | K104: 0.7777766338 | M104: 18 | N104: 7 | R104: 24 | S104: Out of range | T104: 9 | U104: Out of range
C105: 95 | D105: 68888.5724 | E105: 1.202547195 | F105: -65924.7663 | G105: 0.7826179497 | H105: 113313.9388 | I105: 1.336501468 | J105: -24698.756 | K105: 0.8049778734 | M105: 18 | N105: 7 | R105: 23 | S105: Out of range | T105: 10 | U105: Out of range
C106: 96 | D106: 80181.7178 | E106: 1.222898412 | F106: -66389.9855 | G106: 0.7800245578 | H106: 22488.353 | I106: 1.436882229 | J106: -4996.4216 | K106: 0.7256051915 | M106: 23 | N106: 8 | R106: 24 | S106: Out of range | T106: Out of range | U106: Out of range
C107: 97 | D107: 61637.4273 | E107: 1.213214566 | F107: -66587.4947 | G107: 0.7767272925 | H107: 35077.8261 | I107: 1.166579978 | J107: -66842.4152 | K107: 0.7087276408 | M107: 19 | N107: 7 | R107: 23 | S107: Out of range | T107: 6 | U107: Out of range
C108: 98 | D108: 71288.8531 | E108: 1.226405933 | F108: -65759.2522 | G108: 0.7841402916 | H108: -27032.9079 | I108: 1.18802865 | J108: -31593.6257 | K108: 0.7343974122 | M108: 19 | N108: 7 | R108: 24 | S108: Out of range | T108: 6 | U108: Out of range
C109: 99 | D109: 62812.565 | E109: 1.220906425 | F109: -64341.4693 | G109: 0.7847716055 | H109: 45676.7394 | I109: 1.955388803 | J109: -32732.3455 | K109: 0.644675613 | M109: 20 | N109: 8 | R109: 24 | S109: Out of range | T109: 9 | U109: Out of range
C110: 100 | D110: 66848.795 | E110: 1.245024871 | F110: -66179.2038 | G110: 0.7862101618 | H110: 24919.4739 | I110: 1.669354834 | J110: 9885.8631 | K110: 0.7414971595 | M110: 21 | N110: 7 | R110: 25 | S110: Out of range | T110: 10 | U110: Out of range
C111: 101 | D111: 65914.833 | E111: 1.234502569 | F111: -66720.5708 | G111: 0.7836866527 | H111: 5035.6908 | I111: 1.457979193 | J111: -19987.5224 | K111: 0.9209082178 | M111: 19 | N111: 7 | R111: 23 | S111: Out of range | T111: 7 | U111: Out of range
C112: 102 | D112: 69486.6585 | E112: 1.184659944 | F112: -66930.2081 | G112: 0.7856651572 | H112: 53339.0635 | I112: 1.108207895 | J112: -35808.8157 | K112: 0.9146350643 | M112: 17 | N112: 7 | R112: 25 | S112: Out of range | T112: 9 | U112: Out of range
C113: 103 | D113: 65527.8351 | E113: 1.19089004 | F113: -64905.1616 | G113: 0.7785888482 | H113: 54982.4672 | I113: 1.451914771 | J113: 34918.7199 | K113: 0.6767382338 | M113: 19 | N113: 8 | R113: 24 | S113: Out of range | T113: 10 | U113: Out of range
C114: 104 | D114: 79343.7733 | E114: 1.226716181 | F114: -67784.9452 | G114: 0.7825427902 | H114: 31852.1615 | I114: 1.067193341 | J114: -34968.8034 | K114: 0.7674009784 | M114: 18 | N114: 7 | R114: 22 | S114: Out of range | T114: Out of range | U114: Out of range
C115: 105 | D115: 56085.449 | E115: 1.175001693 | F115: -67370.2707 | G115: 0.781534263 | H115: 3944.4302 | I115: 1.204545582 | J115: 10862.7012 | K115: 0.7725711791 | M115: 20 | N115: 7 | R115: 23 | S115: Out of range | T115: 7 | U115: Out of range
C116: 106 | D116: 54246.9416 | E116: 1.214700888 | F116: -66052.63 | G116: 0.7809927033 | H116: -3593.5959 | I116: 1.386918534 | J116: -25108.0742 | K116: 0.8498672019 | M116: 21 | N116: 7 | R116: 25 | S116: Out of range | T116: 9 | U116: Out of range
C117: 107 | D117: 59749.8053 | E117: 1.141729845 | F117: -67010.3113 | G117: 0.7832087024 | H117: 51213.6648 | I117: 2.07166908 | J117: -48941.6217 | K117: 0.7385673539 | M117: 19 | N117: 7 | R117: 23 | S117: Out of range | T117: 7 | U117: Out of range
C118: 108 | D118: 60794.0642 | E118: 1.178827395 | F118: -65396.189 | G118: 0.7798725003 | H118: 27484.5722 | I118: 1.406928247 | J118: -31809.0829 | K118: 0.7788407496 | M118: 19 | N118: 7 | R118: 24 | S118: Out of range | T118: 9 | U118: Out of range
C119: 109 | D119: 61562.7405 | E119: 1.17866727 | F119: -64907.0386 | G119: 0.7833106711 | H119: 45656.3577 | I119: 1.276544937 | J119: -43596.0665 | K119: 0.7019496188 | M119: 21 | N119: 8 | R119: 24 | S119: Out of range | T119: 11 | U119: Out of range
C120: 110 | D120: 59719.5565 | E120: 1.256927403 | F120: -65813.6492 | G120: 0.7834605385 | H120: 73064.327 | I120: 0.9074466105 | J120: -46575.9256 | K120: 0.6742708253 | M120: 20 | N120: 7 | R120: 25 | S120: Out of range | T120: Out of range | U120: Out of range
C121: 111 | D121: 63026.072 | E121: 1.243673405 | F121: -66239.208 | G121: 0.7814516935 | H121: 24292.9419 | I121: 1.059315084 | J121: -71103.532 | K121: 0.7472602149 | M121: 16 | N121: 7 | R121: 24 | S121: Out of range | T121: 10 | U121: Out of range
C122: 112 | D122: 59158.2926 | E122: 1.232983337 | F122: -64785.8143 | G122: 0.7865728548 | H122: 4742.7227 | I122: 1.381391249 | J122: -61797.8684 | K122: 0.8817040442 | M122: 21 | N122: 7 | R122: 24 | S122: Out of range | T122: 7 | U122: Out of range
C123: 113 | D123: 60409.986 | E123: 1.175222818 | F123: -66447.6127 | G123: 0.7741171531 | H123: 23529.4686 | I123: 1.169939236 | J123: -39205.9015 | K123: 0.7534383066 | M123: 21 | N123: 7 | R123: 23 | S123: Out of range | T123: 8 | U123: Out of range
C124: 114 | D124: 59533.8391 | E124: 1.200650764 | F124: -65205.6858 | G124: 0.7831280483 | H124: 32790.9657 | I124: 1.009055132 | J124: -10794.9966 | K124: 0.6866355461 | M124: 20 | N124: 7 | R124: 24 | S124: Out of range | T124: 5 | U124: Out of range
C125: 115 | D125: 55352.0437 | E125: 1.214078789 | F125: -66726.0925 | G125: 0.7850393695 | H125: 23606.3027 | I125: 1.69213396 | J125: -57598.6288 | K125: 0.6497189459 | M125: 21 | N125: 8 | R125: 24 | S125: Out of range | T125: 9 | U125: Out of range
C126: 116 | D126: 68404.0183 | E126: 1.208495321 | F126: -66270.1059 | G126: 0.7798131717 | H126: 31535.0229 | I126: 0.8767490864 | J126: -5388.0413 | K126: 0.6644848194 | M126: 20 | N126: 7 | R126: 24 | S126: Out of range | T126: 5 | U126: Out of range
C127: 117 | D127: 53867.6619 | E127: 1.228295712 | F127: -66134.8156 | G127: 0.7782137332 | H127: 71694.9515 | I127: 1.271556311 | J127: -1171.4108 | K127: 0.7081057865 | M127: 22 | N127: 7 | R127: 24 | S127: Out of range | T127: 6 | U127: Out of range
C128: 118 | D128: 43511.8665 | E128: 1.198238563 | F128: -66905.7346 | G128: 0.7808608321 | H128: 16875.5133 | I128: 0.9710080718 | J128: -47851.6036 | K128: 0.7188470075 | M128: 18 | N128: 8 | R128: 22 | S128: Out of range | T128: Out of range | U128: Out of range
C129: 119 | D129: 92393.1644 | E129: 1.196528556 | F129: -68878.3486 | G129: 0.7825918007 | H129: 32860.5207 | I129: 0.7892243646 | J129: -22696.7455 | K129: 0.7634023576 | M129: 20 | N129: 7 | R129: 22 | S129: Out of range | T129: 8 | U129: Out of range
C130: 120 | D130: 74506.9715 | E130: 1.201961187 | F130: -66886.4147 | G130: 0.7825639485 | H130: 101003.8984 | I130: 1.385807655 | J130: -43053.4914 | K130: 0.7179771045 | M130: 23 | N130: 7 | R130: 25 | S130: Out of range | T130: 9 | U130: Out of range
C131: 121 | D131: 50013.5626 | E131: 1.189014845 | F131: -66652.4044 | G131: 0.7780220031 | H131: 37753.4364 | I131: 1.098013937 | J131: -78999.9925 | K131: 0.7647486764 | M131: 21 | N131: 7 | R131: 23 | S131: Out of range | T131: 9 | U131: Out of range
C132: 122 | D132: 62133.5847 | E132: 1.1802046 | F132: -68121.1205 | G132: 0.7827047641 | H132: 2957.0302 | I132: 1.094468117 | J132: -31972.306 | K132: 0.7612589264 | M132: 20 | N132: 7 | R132: 24 | S132: Out of range | T132: 8 | U132: Out of range
C133: 123 | D133: 70851.4958 | E133: 1.209790911 | F133: -66944.9115 | G133: 0.7827938266 | H133: 7261.0209 | I133: 1.281979113 | J133: -47813.3488 | K133: 0.8532526058 | M133: 21 | N133: 7 | R133: 23 | S133: Out of range | T133: 7 | U133: Out of range
C134: 124 | D134: 62439.9576 | E134: 1.188221733 | F134: -65001.5218 | G134: 0.7751749501 | H134: 52249.4367 | I134: 1.479175696 | J134: -51083.7754 | K134: 0.671284566 | M134: 20 | N134: 7 | R134: 23 | S134: Out of range | T134: 7 | U134: Out of range
C135: 125 | D135: 73842.0399 | E135: 1.180003229 | F135: -66320.5839 | G135: 0.7845083527 | H135: 38464.3588 | I135: 1.455160628 | J135: -41856.2305 | K135: 0.7829102208 | M135: 18 | N135: 7 | R135: 23 | S135: Out of range | T135: 5 | U135: Out of range
C136: 126 | D136: 60931.1114 | E136: 1.194357431 | F136: -66069.7789 | G136: 0.7809877487 | H136: 29914.8458 | I136: 1.104399425 | J136: -21982.5984 | K136: 0.7600391142 | M136: 15 | N136: 7 | R136: 24 | S136: Out of range | T136: 8 | U136: Out of range
C137: 127 | D137: 72320.7401 | E137: 1.265885539 | F137: -66281.8265 | G137: 0.7810190533 | H137: 792.3382 | I137: 1.253729161 | J137: -35200.7591 | K137: 0.6763626563 | M137: 20 | N137: 7 | R137: 23 | S137: Out of range | T137: 9 | U137: Out of range
C138: 128 | D138: 62136.6911 | E138: 1.167930913 | F138: -64687.2079 | G138: 0.7876354605 | H138: 90558.748 | I138: 1.464547656 | J138: -16671.4391 | K138: 0.6362746561 | M138: 15 | N138: 7 | R138: 23 | S138: Out of range | T138: 10 | U138: Out of range
C139: 129 | D139: 57462.4523 | E139: 1.251277522 | F139: -65654.725 | G139: 0.78047682 | H139: 50681.0109 | I139: 1.132118914 | J139: -26187.818 | K139: 0.685630714 | M139: 17 | N139: 8 | R139: 23 | S139: Out of range | T139: 8 | U139: Out of range
C140: 130 | D140: 63876.6172 | E140: 1.249574922 | F140: -65583.2238 | G140: 0.7834018303 | H140: 74299.1743 | I140: 1.188719415 | J140: -55228.3893 | K140: 0.8495012543 | M140: 18 | N140: 7 | R140: 23 | S140: Out of range | T140: 10 | U140: Out of range
C141: 131 | D141: 67506.1646 | E141: 1.182269272 | F141: -67283.177 | G141: 0.7742179869 | H141: 35736.5989 | I141: 1.122152773 | J141: 26069.1618 | K141: 0.8445481504 | M141: 14 | N141: 7 | R141: 23 | S141: Out of range | T141: 9 | U141: Out of range
C142: 132 | D142: 64101.7759 | E142: 1.19947716 | F142: -66050.9858 | G142: 0.7816325874 | H142: 100143.3171 | I142: 1.34168562 | J142: -12016.1431 | K142: 0.9586993691 | M142: 22 | N142: 7 | R142: 24 | S142: Out of range | T142: 12 | U142: Out of range
C143: 133 | D143: 61190.0865 | E143: 1.205274061 | F143: -67150.7728 | G143: 0.781440731 | H143: -3480.1724 | I143: 1.701372127 | J143: -17341.4191 | K143: 0.7038561866 | M143: 22 | N143: 8 | R143: 24 | S143: Out of range | T143: 7 | U143: Out of range
C144: 134 | D144: 64542.1908 | E144: 1.200268225 | F144: -67254.8873 | G144: 0.7823300238 | H144: 11619.5568 | I144: 0.9362199592 | J144: 1406.8765 | K144: 0.7619962297 | M144: 21 | N144: 8 | R144: 24 | S144: Out of range | T144: 8 | U144: 24
C145: 135 | D145: 66289.1515 | E145: 1.164326145 | F145: -66668.5325 | G145: 0.7789687482 | H145: -3181.2621 | I145: 0.9816394657 | J145: -16272.8153 | K145: 0.6814903098 | M145: 17 | N145: 7 | R145: 23 | S145: Out of range | T145: 8 | U145: Out of range
C146: 136 | D146: 62549.8021 | E146: 1.185709825 | F146: -66434.8129 | G146: 0.7798177958 | H146: 87970.4622 | I146: 1.145963636 | J146: -6393.2876 | K146: 0.7186292147 | M146: 21 | N146: 7 | R146: 24 | S146: Out of range | T146: 8 | U146: Out of range
C147: 137 | D147: 63442.9838 | E147: 1.194415239 | F147: -66405.2863 | G147: 0.783725513 | H147: 18177.3454 | I147: 1.805150322 | J147: -42678.668 | K147: 0.6926074813 | M147: 18 | N147: 7 | R147: 22 | S147: Out of range | T147: 11 | U147: Out of range
C148: 138 | D148: 69660.1066 | E148: 1.223667133 | F148: -66141.2127 | G148: 0.780474951 | H148: 26214.8654 | I148: 1.473404636 | J148: -31179.2581 | K148: 0.6237534084 | M148: 20 | N148: 7 | R148: 22 | S148: Out of range | T148: 9 | U148: Out of range
C149: 139 | D149: 73963.0908 | E149: 1.205110245 | F149: -66075.151 | G149: 0.7830920507 | H149: 259.3256 | I149: 1.104690687 | J149: 14287.5793 | K149: 0.7228637116 | M149: 20 | N149: 7 | R149: 25 | S149: Out of range | T149: 9 | U149: Out of range
C150: 140 | D150: 69450.3158 | E150: 1.179802457 | F150: -66612.5298 | G150: 0.782357407 | H150: 25697.3361 | I150: 1.048535241 | J150: -31698.7043 | K150: 0.6458290478 | M150: 23 | N150: 7 | R150: 25 | S150: Out of range | T150: 8 | U150: 23
C151: 141 | D151: 69997.1037 | E151: 1.180790528 | F151: -66674.1182 | G151: 0.7805018406 | H151: 1272.3395 | I151: 1.384842005 | J151: -82893.4302 | K151: 0.6668241838 | M151: 19 | N151: 8 | R151: 23 | S151: Out of range | T151: Out of range | U151: Out of range
C152: 142 | D152: 76844.1198 | E152: 1.19661795 | F152: -66123.4727 | G152: 0.7791712441 | H152: 15238.6653 | I152: 0.8803781815 | J152: -51495.1991 | K152: 0.8898275094 | M152: 18 | N152: 7 | R152: 21 | S152: Out of range | T152: 10 | U152: Out of range
C153: 143 | D153: 66548.2573 | E153: 1.183243357 | F153: -65325.531 | G153: 0.7793875371 | H153: 67279.6099 | I153: 1.022405344 | J153: -42.4053 | K153: 0.746882354 | M153: 20 | N153: 7 | R153: 23 | S153: Out of range | T153: 11 | U153: Out of range
C154: 144 | D154: 75314.7078 | E154: 1.221416015 | F154: -65797.0672 | G154: 0.7861967361 | H154: 11734.9577 | I154: 1.150605221 | J154: -57520.9062 | K154: 0.7913612581 | M154: 15 | N154: 7 | R154: 24 | S154: Out of range | T154: 10 | U154: Out of range
C155: 145 | D155: 74963.6317 | E155: 1.209256685 | F155: -65767.402 | G155: 0.7829497211 | H155: 29043.8859 | I155: 1.23320252 | J155: -51180.4557 | K155: 1.005535452 | M155: 19 | N155: 7 | R155: 25 | S155: Out of range | T155: 7 | U155: Out of range
C156: 146 | D156: 53631.9585 | E156: 1.226331175 | F156: -65151.8685 | G156: 0.7809597861 | H156: 1730.2204 | I156: 1.018825217 | J156: -77494.9356 | K156: 0.8649846357 | M156: 17 | N156: 7 | R156: 23 | S156: Out of range | T156: 8 | U156: Out of range
C157: 147 | D157: 60161.9463 | E157: 1.219677796 | F157: -64268.1916 | G157: 0.7813169241 | H157: 21239.8753 | I157: 1.0287138 | J157: -31869.1352 | K157: 0.8478376794 | M157: 22 | N157: 8 | R157: 25 | S157: Out of range | T157: 9 | U157: Out of range
C158: 148 | D158: 62799.5469 | E158: 1.167991275 | F158: -66153.1179 | G158: 0.7810172924 | H158: 126210.2136 | I158: 1.71104885 | J158: -38073.6525 | K158: 0.6219826323 | M158: 18 | N158: 7 | R158: 23 | S158: Out of range | T158: 7 | U158: Out of range
C159: 149 | D159: 53833.1721 | E159: 1.208204051 | F159: -65691.6471 | G159: 0.784129872 | H159: 16570.4086 | I159: 1.414565025 | J159: -53006.956 | K159: 1.104767022 | M159: 19 | N159: 8 | R159: 24 | S159: Out of range | T159: 7 | U159: Out of range
C160: 150 | D160: 68239.5093 | E160: 1.210292055 | F160: -64501.6749 | G160: 0.783618765 | H160: 32630.7464 | I160: 1.370385412 | J160: -65917.9224 | K160: 0.7313998911 | M160: 22 | N160: 7 | R160: 23 | S160: Out of range | T160: 10 | U160: Out of range
C161: 151 | D161: 67128.12 | E161: 1.19791038 | F161: -66382.0161 | G161: 0.7800466848 | H161: 25430.4952 | I161: 1.003967826 | J161: -34555.8959 | K161: 0.6946749039 | M161: 19 | N161: 7 | R161: 24 | S161: Out of range | T161: 10 | U161: Out of range
C162: 152 | D162: 74204.4656 | E162: 1.246762541 | F162: -65025.5561 | G162: 0.7771733124 | H162: 22883.7993 | I162: 1.056482439 | J162: -44082.6468 | K162: 0.8384238864 | M162: 20 | N162: 7 | R162: 23 | S162: Out of range | T162: 10 | U162: Out of range
C163: 153 | D163: 77663.7013 | E163: 1.194914965 | F163: -65665.7052 | G163: 0.7818616173 | H163: 37258.8486 | I163: 1.028150211 | J163: 8720.2394 | K163: 0.8466626589 | M163: 20 | N163: 7 | R163: 23 | S163: Out of range | T163: 8 | U163: Out of range
C164: 154 | D164: 51037.6331 | E164: 1.198053292 | F164: -66134.2888 | G164: 0.7814762171 | H164: 38931.8761 | I164: 1.283068276 | J164: -30666.6961 | K164: 0.8430767384 | M164: 20 | N164: 7 | R164: 24 | S164: Out of range | T164: 9 | U164: Out of range
C165: 155 | D165: 63153.7204 | E165: 1.233907473 | F165: -67735.1913 | G165: 0.7778850678 | H165: 32464.5644 | I165: 1.128643234 | J165: -80597.5931 | K165: 0.6546707461 | M165: 19 | N165: 7 | R165: 23 | S165: Out of range | T165: 9 | U165: Out of range
C166: 156 | D166: 62431.2088 | E166: 1.221379159 | F166: -64904.5759 | G166: 0.7871270563 | H166: -5689.2082 | I166: 0.9108732425 | J166: -39468.0697 | K166: 0.7023264915 | M166: 21 | N166: 7 | R166: 23 | S166: Out of range | T166: 9 | U166: Out of range
C167: 157 | D167: 54288.409 | E167: 1.162288522 | F167: -65845.7983 | G167: 0.7853222204 | H167: 66395.22 | I167: 1.023069773 | J167: -36604.1063 | K167: 0.6490465676 | M167: 20 | N167: 7 | R167: 23 | S167: Out of range | T167: 10 | U167: Out of range
C168: 158 | D168: 66983.1586 | E168: 1.142964611 | F168: -66272.085 | G168: 0.7753274682 | H168: 36795.4781 | I168: 1.206027393 | J168: -66155.0917 | K168: 0.6205842799 | M168: 22 | N168: 7 | R168: 23 | S168: Out of range | T168: 10 | U168: Out of range
C169: 159 | D169: 65201.3472 | E169: 1.222519277 | F169: -66893.6556 | G169: 0.7854659664 | H169: 27062.4632 | I169: 1.166265017 | J169: -76909.2423 | K169: 0.6737197174 | M169: 15 | N169: 7 | R169: 24 | S169: Out of range | T169: 6 | U169: Out of range
C170: 160 | D170: 68444.7092 | E170: 1.195691835 | F170: -64306.827 | G170: 0.7785152629 | H170: 39530.6212 | I170: 1.293895439 | J170: -35499.6947 | K170: 0.8894705673 | M170: 22 | N170: 7 | R170: 23 | S170: Out of range | T170: 9 | U170: Out of range
C171: 161 | D171: 56482.0046 | E171: 1.21049099 | F171: -64279.1869 | G171: 0.7784829517 | H171: 70226.6075 | I171: 1.271658961 | J171: -45095.7275 | K171: 0.6800795345 | M171: 22 | N171: 7 | R171: 24 | S171: Out of range | T171: 8 | U171: Out of range
C172: 162 | D172: 61774.6744 | E172: 1.247993023 | F172: -65202.6446 | G172: 0.7785782707 | H172: 53441.6103 | I172: 1.661242089 | J172: -41963.7227 | K172: 0.6313635256 | M172: 23 | N172: 7 | R172: 22 | S172: Out of range | T172: 8 | U172: Out of range
C173: 163 | D173: 70371.7011 | E173: 1.234529094 | F173: -65994.185 | G173: 0.7836407804 | H173: 15979.9585 | I173: 1.173037552 | J173: -60268.2532 | K173: 0.6638731795 | M173: 22 | N173: 8 | R173: 23 | S173: Out of range | T173: 6 | U173: 24
C174: 164 | D174: 68804.6884 | E174: 1.196941371 | F174: -67792.6652 | G174: 0.7816975411 | H174: 14064.2388 | I174: 1.022524853 | J174: -72941.2837 | K174: 0.7373902876 | M174: 22 | N174: 7 | R174: 25 | S174: Out of range | T174: 8 | U174: Out of range
C175: 165 | D175: 64831.1005 | E175: 1.211298355 | F175: -66094.8514 | G175: 0.7883685573 | H175: 18106.6855 | I175: 1.238032572 | J175: -9628.8463 | K175: 0.8216232391 | M175: 21 | N175: 7 | R175: 24 | S175: Out of range | T175: Out of range | U175: Out of range
C176: 166 | D176: 62678.1868 | E176: 1.186031705 | F176: -67712.2375 | G176: 0.7794931609 | H176: 31340.5994 | I176: 1.166587696 | J176: 4558.2663 | K176: 0.7347823045 | M176: 20 | N176: 7 | R176: 24 | S176: Out of range | T176: 8 | U176: Out of range
C177: 167 | D177: 65964.7362 | E177: 1.228296816 | F177: -65416.5896 | G177: 0.7822371644 | H177: 14034.8652 | I177: 1.009570103 | J177: -43621.6031 | K177: 0.8330322193 | M177: 15 | N177: 7 | R177: 23 | S177: Out of range | T177: 9 | U177: 23
C178: 168 | D178: 82707.7554 | E178: 1.150849381 | F178: -66008.0439 | G178: 0.7891711525 | H178: 34697.1665 | I178: 1.117348016 | J178: -68185.7129 | K178: 0.6823213635 | M178: 21 | N178: 7 | R178: 23 | S178: Out of range | T178: 13 | U178: Out of range
C179: 169 | D179: 54916.7104 | E179: 1.186622511 | F179: -66648.3117 | G179: 0.7811194825 | H179: 31986.6446 | I179: 1.145027963 | J179: -34223.5942 | K179: 0.6948599603 | M179: 19 | N179: 7 | R179: 23 | S179: Out of range | T179: 10 | U179: Out of range
C180: 170 | D180: 62123.0938 | E180: 1.241766383 | F180: -65051.072 | G180: 0.780295291 | H180: -39442.9154 | I180: 1.085626741 | J180: -45016.144 | K180: 0.7355593122 | M180: 16 | N180: 7 | R180: 23 | S180: Out of range | T180: 7 | U180: Out of range
C181: 171 | D181: 73966.298 | E181: 1.184525167 | F181: -67253.3356 | G181: 0.7792124711 | H181: 21523.5307 | I181: 1.17642045 | J181: -39485.001 | K181: 0.8223950218 | M181: 17 | N181: 7 | R181: 23 | S181: Out of range | T181: 10 | U181: Out of range
C182: 172 | D182: 52798.3268 | E182: 1.220401597 | F182: -66444.166 | G182: 0.7759705232 | H182: 31302.3088 | I182: 1.307314852 | J182: -74513.331 | K182: 0.8400733523 | M182: 17 | N182: 7 | R182: 23 | S182: Out of range | T182: 8 | U182: Out of range
C183: 173 | D183: 51848.4454 | E183: 1.201191617 | F183: -66401.5802 | G183: 0.7792794713 | H183: 56829.6802 | I183: 1.070697519 | J183: -48430.903 | K183: 0.8065069463 | M183: 23 | N183: 7 | R183: 23 | S183: Out of range | T183: 10 | U183: 24
C184: 174 | D184: 69218.0187 | E184: 1.189588624 | F184: -62841.0079 | G184: 0.7845554729 | H184: 47683.3361 | I184: 1.001485525 | J184: -15591.6548 | K184: 0.7834877027 | M184: 21 | N184: 7 | R184: 24 | S184: Out of range | T184: 6 | U184: Out of range
C185: 175 | D185: 63805.3555 | E185: 1.221465975 | F185: -66110.4489 | G185: 0.7834290045 | H185: 35409.24 | I185: 1.247368524 | J185: -29957.7866 | K185: 0.7538768925 | M185: 19 | N185: 7 | R185: 23 | S185: Out of range | T185: 8 | U185: Out of range
C186: 176 | D186: 65383.2542 | E186: 1.218026302 | F186: -66630.8612 | G186: 0.7856793709 | H186: 38083.5991 | I186: 1.214247028 | J186: -20856.9418 | K186: 0.7033904927 | M186: 17 | N186: 7 | R186: 24 | S186: Out of range | T186: Out of range | U186: Out of range
C187: 177 | D187: 74423.7648 | E187: 1.207737381 | F187: -66753.4439 | G187: 0.7779890562 | H187: 82635.4453 | I187: 1.077552062 | J187: -47624.8648 | K187: 0.7775994197 | M187: 19 | N187: 7 | R187: 24 | S187: Out of range | T187: 8 | U187: 24
C188: 178 | D188: 68569.4457 | E188: 1.25321274 | F188: -64938.3597 | G188: 0.7803862891 | H188: 33153.355 | I188: 1.304590474 | J188: -25901.8445 | K188: 0.7125533347 | M188: 17 | N188: 8 | R188: 24 | S188: Out of range | T188: 9 | U188: Out of range
C189: 179 | D189: 53735.3314 | E189: 1.213812205 | F189: -66574.5676 | G189: 0.7795568275 | H189: 30162.1621 | I189: 1.303080904 | J189: -59830.0594 | K189: 0.6846698247 | M189: 19 | N189: 7 | R189: 23 | S189: Out of range | T189: 9 | U189: Out of range
C190: 180 | D190: 66359.6267 | E190: 1.238562078 | F190: -66032.5353 | G190: 0.7809990571 | H190: 14210.4864 | I190: 1.65836727 | J190: -41804.975 | K190: 0.8303381641 | M190: 21 | N190: 7 | R190: 23 | S190: Out of range | T190: Out of range | U190: Out of range
C191: 181 | D191: 56932.1944 | E191: 1.223037667 | F191: -65655.7474 | G191: 0.779849006 | H191: 59998.3617 | I191: 0.9356203796 | J191: -30222.2503 | K191: 0.9867771785 | M191: 17 | N191: 7 | R191: 25 | S191: Out of range | T191: 13 | U191: Out of range
C192: 182 | D192: 69297.0095 | E192: 1.28468864 | F192: -65828.7753 | G192: 0.7830935634 | H192: 51056.9271 | I192: 1.200693225 | J192: -30911.4595 | K192: 0.8227491499 | M192: 16 | N192: 7 | R192: 24 | S192: Out of range | T192: Out of range | U192: Out of range
C193: 183 | D193: 71557.0492 | E193: 1.193100344 | F193: -65019.5444 | G193: 0.7780003834 | H193: 58356.1768 | I193: 0.8115718289 | J193: -16535.2936 | K193: 0.7186961991 | M193: 21 | N193: 7 | R193: 23 | S193: Out of range | T193: 6 | U193: Out of range
C194: 184 | D194: 58860.593 | E194: 1.227844401 | F194: -65841.5237 | G194: 0.7833138415 | H194: 81569.9305 | I194: 1.161884189 | J194: -79951.2471 | K194: 0.7723802356 | M194: 19 | N194: 7 | R194: 23 | S194: Out of range | T194: 10 | U194: Out of range
C195: 185 | D195: 63841.5907 | E195: 1.208295375 | F195: -65268.1075 | G195: 0.7818964648 | H195: 43210.1857 | I195: 1.027666933 | J195: -11969.2925 | K195: 0.8634776534 | M195: 17 | N195: 7 | R195: 21 | S195: Out of range | T195: 8 | U195: Out of range
C196: 186 | D196: 71543.6223 | E196: 1.203003015 | F196: -66451.545 | G196: 0.7845565276 | H196: 27875.6085 | I196: 1.194869092 | J196: -32538.4862 | K196: 0.7387301131 | M196: 20 | N196: 7 | R196: 25 | S196: Out of range | T196: 7 | U196: Out of range
C197: 187 | D197: 67120.5152 | E197: 1.212546033 | F197: -65074.1821 | G197: 0.7844823728 | H197: 35894.5883 | I197: 1.361792007 | J197: -83950.5454 | K197: 0.7368361884 | M197: 20 | N197: 7 | R197: 24 | S197: Out of range | T197: 12 | U197: Out of range
C198: 188 | D198: 53841.9469 | E198: 1.230501823 | F198: -65072.032 | G198: 0.7819897869 | H198: 63940.53 | I198: 1.488130244 | J198: -33460.2836 | K198: 0.7101741869 | M198: 22 | N198: 7 | R198: 22 | S198: Out of range | T198: 8 | U198: Out of range
C199: 189 | D199: 62878.6306 | E199: 1.138919579 | F199: -67439.664 | G199: 0.7770886865 | H199: 33463.7109 | I199: 1.370828937 | J199: -42089.1299 | K199: 0.7481204119 | M199: 21 | N199: 8 | R199: 24 | S199: Out of range | T199: 8 | U199: Out of range
C200: 190 | D200: 57172.0167 | E200: 1.251266472 | F200: -65852.3894 | G200: 0.7806274543 | H200: 24622.2534 | I200: 1.217918694 | J200: -56338.4113 | K200: 0.8495716435 | M200: 21 | N200: 7 | R200: 23 | S200: Out of range | T200: 13 | U200: Out of range
... 310 more rows

Sheet 01 NPV EXP Sim(E)
A42: Iterations | B42: 500 | D42: EXP Elec Price Forecast | K42: EXP Elec Price Forecast | R42: EXP Elec Price Forecast | Y42: EXP Elec Price Forecast | AF42: EXP Elec Price Forecast | AM42: EXP Elec Price Forecast | AT42: EXP Elec Price Forecast | BA42: EXP Elec Price Forecast | BH42: EXP Elec Price Forecast | BO42: EXP Elec Price Forecast | BV42: EXP Elec Price Forecast | CC42: EXP Elec Price Forecast | CJ42: EXP Elec Price Forecast | CQ42: EXP Elec Price Forecast | CX42: EXP Elec Price Forecast
D43: Option 2: Invest when future pice/baseline Ratio = 1.1 | K43: Option 2: Invest when future pice/baseline Ratio = 1.2 | R43: Option 2: Invest when future pice/baseline Ratio = 1.3 | Y43: Option 2: Invest when future pice/baseline Ratio = 1.4 | AF43: Option 2: Invest when future pice/baseline Ratio = 1.5 | AM43: Option 2: Invest when future pice/baseline Ratio = 1.6 | AT43: Option 2: Invest when future pice/baseline Ratio = 1.7 | BA43: Option 2: Invest when future pice/baseline Ratio = 1.8 | BH43: Option 2: Invest when future pice/baseline Ratio = 1.9 | BO43: Option 2: Invest when future pice/baseline Ratio = 2.0 | BV43: Option 2: Invest when future pice/baseline Ratio = 2.1 | CC43: Option 2: Invest when future pice/baseline Ratio = 2.2 | CJ43: Option 2: Invest when future pice/baseline Ratio = 2.3 | CQ43: Option 2: Invest when future pice/baseline Ratio = 2.4 | CX43: Option 2: Invest when future pice/baseline Ratio = 2.5
D45: NPV | E45: f(x) | F45: F(x) | G45: BIN Limits | H45: Frequency | K45: NPV | L45: f(x) | M45: F(x) | N45: BIN Limits | O45: Frequency | R45: NPV | S45: f(x) | T45: F(x) | U45: BIN Limits | V45: Frequency | Y45: NPV | Z45: f(x) | AA45: F(x) | AB45: BIN Limits | AC45: Frequency | AF45: NPV | AG45: f(x) | AH45: F(x) | AI45: BIN Limits | AJ45: Frequency | AM45: NPV | AN45: f(x) | AO45: F(x) | AP45: BIN Limits | AQ45: Frequency | AT45: NPV | AU45: f(x) | AV45: F(x) | AW45: BIN Limits | AX45: Frequency | BA45: NPV | BB45: f(x) | BC45: F(x) | BD45: BIN Limits | BE45: Frequency | BH45: NPV | BI45: f(x) | BJ45: F(x) | BK45: BIN Limits | BL45: Frequency | BO45: NPV | BP45: f(x) | BQ45: F(x) | BR45: BIN Limits | BS45: Frequency | BV45: NPV | BW45: f(x) | BX45: F(x) | BY45: BIN Limits | BZ45: Frequency | CC45: NPV | CD45: f(x) | CE45: F(x) | CF45: BIN Limits | CG45: Frequency | CJ45: NPV | CK45: f(x) | CL45: F(x) | CM45: BIN Limits | CN45: Frequency | CQ45: NPV | CR45: f(x) | CS45: F(x) | CT45: BIN Limits | CU45: Frequency | CX45: NPV | CY45: f(x) | CZ45: F(x) | DA45: BIN Limits | DB45: Frequency
C46: Av | D46: =AVERAGE(D52:D5051) -> 80535.62911 | G46: =D49+H58 -> 52498.52057 | H46: =FREQUENCY(D52:D551, G46:G55) -> 49 | J46: Av | K46: =AVERAGE(K52:K5051) -> 82833.99282 | N46: =K49+O58 -> 54188.31138 | O46: =FREQUENCY(K52:K551, N46:N55) -> 60 | Q46: Av | R46: =AVERAGE(R52:R5051) -> 83758.40747 | U46: =R49+V58 -> 52690.36158 | V46: =FREQUENCY(R52:R551, U46:U55) -> 50 | X46: Av | Y46: =AVERAGE(Y52:Y5051) -> 85877.09609 | AB46: =Y49+AC58 -> 49689.34157 | AC46: =FREQUENCY(Y52:Y551, AB46:AB55) -> 31 | AE46: Av | AF46: =AVERAGE(AF52:AF5051) -> 84603.48855 | AI46: =AF49+AJ58 -> 43689.11396 | AJ46: =FREQUENCY(AF52:AF551, AI46:AI55) -> 19 | AL46: Av | AM46: =AVERAGE(AM52:AM5051) -> 85528.95901 | AP46: =AM49+AQ58 -> 50047.29501 | AQ46: =FREQUENCY(AM52:AM551, AP46:AP55) -> 27 | AS46: Av | AT46: =AVERAGE(AT52:AT5051) -> 82145.49149 | AW46: =AT49+AX58 -> 41181.61014 | AX46: =FREQUENCY(AT52:AT551, AW46:AW55) -> 17 | AZ46: Av | BA46: =AVERAGE(BA52:BA5051) -> 79240.14203 | BD46: =BA49+BE58 -> 35720.00078 | BE46: =FREQUENCY(BA52:BA551, BD46:BD55) -> 22 | BG46: Av | BH46: =AVERAGE(BH52:BH5051) -> 72584.50837 | BK46: =BH49+BL58 -> 29682.12738 | BL46: =FREQUENCY(BH52:BH551, BK46:BK55) -> 18 | BN46: Av | BO46: =AVERAGE(BO52:BO5051) -> 70484.92625 | BR46: =BO49+BS58 -> 18806.94322 | BS46: =FREQUENCY(BO52:BO551, BR46:BR55) -> 7 | BU46: Av | BV46: =AVERAGE(BV52:BV5051) -> 65886.55071 | BY46: =BV49+BZ58 -> 20607.89048 | BZ46: =FREQUENCY(BV52:BV551, BY46:BY55) -> 9 | CB46: Av | CC46: =AVERAGE(CC52:CC5051) -> 60642.94144 | CF46: =CC49+CG58 -> 15439.69427 | CG46: =FREQUENCY(CC52:CC551, CF46:CF55) -> 21 | CI46: Av | CJ46: =AVERAGE(CJ52:CJ5051) -> 53722.86001 | CM46: =CJ49+CN58 -> 8546.80224 | CN46: =FREQUENCY(CJ52:CJ551, CM46:CM55) -> 13 | CP46: Av | CQ46: =AVERAGE(CQ52:CQ5051) -> 47843.86405 | CT46: =CQ49+CU58 -> -6779.51889 | CU46: =FREQUENCY(CQ52:CQ551, CT46:CT55) -> 4 | CW46: Av | CX46: =AVERAGE(CX52:CX5051) -> 37326.42642 | DA46: =CX49+DB58 -> -6143.68173 | DB46: =FREQUENCY(CX52:CX551, DA46:DA55) -> 13 | DL46: ratio | DM46: Av. NPV
C47: SD | D47: =STDEV(D52:D5051) -> 25266.47435 | G47: =G46+$H$58 -> 67575.54404 | H47: 125 | J47: SD | K47: =STDEV(K52:K5051) -> 26572.53849 | N47: =N46+$O$58 -> 71002.53146 | O47: 134 | Q47: SD | R47: =STDEV(R52:R5051) -> 26221.16802 | U47: =U46+$V$58 -> 67356.94286 | V47: 99 | X47: SD | Y47: =STDEV(Y52:Y5051) -> 27343.71377 | AB47: =AB46+$AC$58 -> 65051.36174 | AC47: 87 | AE47: SD | AF47: =STDEV(AF52:AF5051) -> 26912.66575 | AI47: =AI46+$AJ$58 -> 60121.91182 | AJ47: 71 | AL47: SD | AM47: =STDEV(AM52:AM5051) -> 24637.96618 | AP47: =AP46+$AQ$58 -> 63494.44952 | AQ47: 68 | AS47: SD | AT47: =STDEV(AT52:AT5051) -> 26090.1876 | AW47: =AW46+$AX$58 -> 56010.81168 | AX47: 66 | AZ47: SD | BA47: =STDEV(BA52:BA5051) -> 27591.09049 | BD47: =BD46+$BE$58 -> 49996.33226 | BE47: 49 | BG47: SD | BH47: =STDEV(BH52:BH5051) -> 26509.99763 | BK47: =BK46+$BL$58 -> 45483.14456 | BL47: 63 | BN47: SD | BO47: =STDEV(BO52:BO5051) -> 26894.44651 | BR47: =BR46+$BS$58 -> 33925.73164 | BS47: 31 | BU47: SD | BV47: =STDEV(BV52:BV5051) -> 25084.58071 | BY47: =BY46+$AQ$58 -> 34055.04499 | BZ47: 43 | CB47: SD | CC47: =STDEV(CC52:CC5051) -> 27212.67731 | CF47: =CF46+$AX$58 -> 30268.89581 | CG47: 41 | CI47: SD | CJ47: =STDEV(CJ52:CJ5051) -> 26213.33772 | CM47: =CM46+$BE$58 -> 22823.13372 | CN47: 45 | CP47: SD | CQ47: =STDEV(CQ52:CQ5051) -> 24585.1976 | CT47: =CT46+$BL$58 -> 9021.49829 | CU47: 21 | CW47: SD | CX47: =STDEV(CX52:CX5051) -> 24672.05042 | DA47: =DA46+$BS$58 -> 8975.10669 | DB47: 50 | DL47: 1 | DM47: 64310.57708
C48: MAX | D48: =MAX(D52:D5051) -> 188191.7318 | G48: 82652.56751 | H48: 132 | J48: MAX | K48: =MAX(K52:K5051) -> 205516.2921 | N48: 87816.75154 | O48: 116 | Q48: MAX | R48: =MAX(R52:R5051) -> 184689.5931 | U48: 82023.52414 | V48: 113 | X48: MAX | Y48: =MAX(Y52:Y5051) -> 187947.5231 | AB48: 80413.38191 | AC48: 121 | AE48: MAX | AF48: =MAX(AF52:AF5051) -> 191584.2947 | AI48: 76554.70968 | AJ48: 125 | AL48: MAX | AM48: =MAX(AM52:AM5051) -> 171071.6856 | AP48: 76941.60403 | AQ48: 106 | AS48: MAX | AT48: =MAX(AT52:AT5051) -> 174644.424 | AW48: 70840.01322 | AX48: 88 | AZ48: MAX | BA48: =MAX(BA52:BA5051) -> 164206.9841 | BD48: 64272.66374 | BE48: 87 | BG48: MAX | BH48: =MAX(BH52:BH5051) -> 171891.282 | BK48: 61284.16174 | BL48: 107 | BN48: MAX | BO48: =MAX(BO52:BO5051) -> 154876.039 | BR48: 49044.52006 | BS48: 74 | BU48: MAX | BV48: =MAX(BV52:BV5051) -> 148423.526 | BY48: 47502.1995 | BZ48: 74 | CB48: MAX | CC48: =MAX(CC52:CC5051) -> 146055.7589 | CF48: 45098.09735 | CG48: 80 | CI48: MAX | CJ48: =MAX(CJ52:CJ5051) -> 158104.7067 | CM48: 37099.4652 | CN48: 76 | CP48: MAX | CQ48: =MAX(CQ52:CQ5051) -> 131496.447 | CT48: 24822.51547 | CU48: 60 | CW48: MAX | CX48: =MAX(CX52:CX5051) -> 117263.4513 | DA48: 24093.89511 | DB48: 93 | DL48: 1.1 | DM48: =D46 -> 80535.62911
C49: MIN | D49: =MIN(D52:D5051) -> 37421.4971 | G49: 97729.59098 | H49: 85 | J49: MIN | K49: =MIN(K52:K5051) -> 37374.0913 | N49: 104630.9716 | O49: 95 | Q49: MIN | R49: =MIN(R52:R5051) -> 38023.7803 | U49: 96690.10542 | V49: 100 | X49: MIN | Y49: =MIN(Y52:Y5051) -> 34327.3214 | AB49: 95775.40208 | AC49: 106 | AE49: MIN | AF49: =MIN(AF52:AF5051) -> 27256.3161 | AI49: 92987.50754 | AJ49: 123 | AL49: MIN | AM49: =MIN(AM52:AM5051) -> 36600.1405 | AP49: 90388.75854 | AQ49: 110 | AS49: MIN | AT49: =MIN(AT52:AT5051) -> 26352.4086 | AW49: 85669.21476 | AX49: 130 | AZ49: MIN | BA49: =MIN(BA52:BA5051) -> 21443.6693 | BD49: 78548.99522 | BE49: 115 | BG49: MIN | BH49: =MIN(BH52:BH5051) -> 13881.1102 | BK49: 77085.17892 | BL49: 113 | BN49: MIN | BO49: =MIN(BO52:BO5051) -> 3688.1548 | BR49: 64163.30848 | BS49: 108 | BU49: MIN | BV49: =MIN(BV52:BV5051) -> 6406.1532 | BY49: 60949.35401 | BZ49: 90 | CB49: MIN | CC49: =MIN(CC52:CC5051) -> 926.7982 | CF49: 59927.29889 | CG49: 115 | CI49: MIN | CJ49: =MIN(CJ52:CJ5051) -> -8070.7427 | CM49: 51375.79668 | CN49: 120 | CP49: MIN | CQ49: =MIN(CQ52:CQ5051) -> -22143.5151 | CT49: 40623.53265 | CU49: 124 | CW49: MIN | CX49: =MIN(CX52:CX5051) -> -19855.5854 | DA49: 39212.68353 | DB49: 121 | DL49: 1.2 | DM49: =K46 -> 82833.99282
C50: 90th | D50: =PERCENTILE(D52:D5051,0.9) -> 114620.1935 | G50: 112806.6145 | H50: 52 | J50: 90th | K50: =PERCENTILE(K52:K5051,0.9) -> 120120.2375 | N50: 121445.1917 | O50: 49 | Q50: 90th | R50: =PERCENTILE(R52:R5051,0.9) -> 120043.7323 | U50: 111356.6867 | V50: 62 | X50: 90th | Y50: =PERCENTILE(Y52:Y5051,0.9) -> 124751.5132 | AB50: 111137.4223 | AC50: 69 | AE50: 90th | AF50: =PERCENTILE(AF52:AF5051,0.9) -> 120034.1576 | AI50: 109420.3054 | AJ50: 69 | AL50: 90th | AM50: =PERCENTILE(AM52:AM5051,0.9) -> 119201.2011 | AP50: 103835.913 | AQ50: 80 | AS50: 90th | AT50: =PERCENTILE(AT52:AT5051,0.9) -> 118383.474 | AW50: 100498.4163 | AX50: 93 | AZ50: 90th | BA50: =PERCENTILE(BA52:BA5051,0.9) -> 115882.6829 | BD50: 92825.3267 | BE50: 81 | BG50: 90th | BH50: =PERCENTILE(BH52:BH5051,0.9) -> 108919.8862 | BK50: 92886.1961 | BL50: 85 | BN50: 90th | BO50: =PERCENTILE(BO52:BO5051,0.9) -> 103943.0062 | BR50: 79282.0969 | BS50: 103 | BU50: 90th | BV50: =PERCENTILE(BV52:BV5051,0.9) -> 101327.3222 | BY50: 74396.50852 | BZ50: 111 | CB50: 90th | CC50: =PERCENTILE(CC52:CC5051,0.9) -> 99650.61346 | CF50: 74756.50043 | CG50: 108 | CI50: 90th | CJ50: =PERCENTILE(CJ52:CJ5051,0.9) -> 88595.03623 | CM50: 65652.12816 | CN50: 89 | CP50: 90th | CQ50: =PERCENTILE(CQ52:CQ5051,0.9) -> 80053.09554 | CT50: 56424.54983 | CU50: 116 | CW50: 90th | CX50: =PERCENTILE(CX52:CX5051,0.9) -> 70408.51685 | DA50: 54331.47195 | DB50: 101 | DL50: 1.3 | DM50: =R46 -> 83758.40747
C51: 10th | D51: =PERCENTILE(D52:D5051,0.1) -> 52650.89912 | G51: 127883.6379 | H51: 28 | J51: 10th | K51: =PERCENTILE(K52:K5051,0.1) -> 52039.49924 | N51: 138259.4118 | O51: 31 | Q51: 10th | R51: =PERCENTILE(R52:R5051,0.1) -> 52871.26536 | U51: 126023.268 | V51: 42 | X51: 10th | Y51: =PERCENTILE(Y52:Y5051,0.1) -> 55110.37091 | AB51: 126499.4424 | AC51: 38 | AE51: 10th | AF51: =PERCENTILE(AF52:AF5051,0.1) -> 53331.40677 | AI51: 125853.1033 | AJ51: 57 | AL51: 10th | AM51: =PERCENTILE(AM52:AM5051,0.1) -> 55434.83089 | AP51: 117283.0676 | AQ51: 55 | AS51: 10th | AT51: =PERCENTILE(AT52:AT5051,0.1) -> 50268.04806 | AW51: 115327.6178 | AX51: 49 | AZ51: 10th | BA51: =PERCENTILE(BA52:BA5051,0.1) -> 44795.41101 | BD51: 107101.6582 | BE51: 64 | BG51: 10th | BH51: =PERCENTILE(BH52:BH5051,0.1) -> 39679.02662 | BK51: 108687.2133 | BL51: 63 | BN51: 10th | BO51: =PERCENTILE(BO52:BO5051,0.1) -> 37533.67333 | BR51: 94400.88532 | BS51: 81 | BU51: 10th | BV51: =PERCENTILE(BV52:BV5051,0.1) -> 33644.92497 | BY51: 87843.66303 | BZ51: 85 | CB51: 10th | CC51: =PERCENTILE(CC52:CC5051,0.1) -> 26710.75646 | CF51: 89585.70197 | CG51: 57 | CI51: 10th | CJ51: =PERCENTILE(CJ52:CJ5051,0.1) -> 21654.85894 | CM51: 79928.45964 | CN51: 74 | CP51: 10th | CQ51: =PERCENTILE(CQ52:CQ5051,0.1) -> 19705.20918 | CT51: 72225.56701 | CU51: 94 | CW51: 10th | CX51: =PERCENTILE(CX52:CX5051,0.1) -> 6328.39364 | DA51: 69450.26037 | DB51: 70 | DL51: 1.4 | DM51: =Y46 -> 85877.09609
C52: 1 | D52: 37421.4971 | E52: =NORMDIST(D52,$D$46,$D$47,FALSE) -> 3.682077135e-06 | F52: =NORMDIST(D52,$D$46,$D$47,TRUE) -> 0.04396895021 | G52: 142960.6614 | H52: 17 | J52: 1 | K52: 37374.0913 | L52: =NORMDIST(K52,$K$46,$K$47,FALSE) -> 3.474830538e-06 | M52: =NORMDIST(K52,$K$46,$K$47,TRUE) -> 0.04356040042 | N52: 155073.6319 | O52: 10 | Q52: 1 | R52: 38023.7803 | S52: =NORMDIST(R52,$R$46,$R$47,FALSE) -> 3.323954287e-06 | T52: =NORMDIST(R52,$R$46,$R$47,TRUE) -> 0.04056322114 | U52: 140689.8493 | V52: 20 | X52: 1 | Y52: 34327.3214 | Z52: =NORMDIST(Y52,$Y$46,$Y$47,FALSE) -> 2.467594194e-06 | AA52: =NORMDIST(Y52,$Y$46,$Y$47,TRUE) -> 0.02969795209 | AB52: 141861.4626 | AC52: 31 | AE52: 1 | AF52: 27256.3161 | AG52: =NORMDIST(AF52,$AF$46,$AF$47,FALSE) -> 1.531019165e-06 | AH52: =NORMDIST(AF52,$AF$46,$AF$47,TRUE) -> 0.01655026299 | AI52: 142285.9011 | AJ52: 22 | AL52: 1 | AM52: 36600.1405 | AN52: =NORMDIST(AM52,$AM$46,$AM$47,FALSE) -> 2.253773809e-06 | AO52: =NORMDIST(AM52,$AM$46,$AM$47,TRUE) -> 0.02352158 | AP52: 130730.2221 | AQ52: 27 | AS52: 1 | AT52: 26352.4086 | AU52: =NORMDIST(AT52,$AT$46,$AT$47,FALSE) -> 1.553841938e-06 | AV52: =NORMDIST(AT52,$AT$46,$AT$47,TRUE) -> 0.01623930914 | AW52: 130156.8194 | AX52: 34 | AZ52: 1 | BA52: 21443.6693 | BB52: =NORMDIST(BA52,$BA$46,$BA$47,FALSE) -> 1.611768985e-06 | BC52: =NORMDIST(BA52,$BA$46,$BA$47,TRUE) -> 0.01809655305 | BD52: 121377.9897 | BE52: 42 | BG52: 1 | BH52: 13881.1102 | BI52: =NORMDIST(BH52,$BH$46,$BH$47,FALSE) -> 1.296333096e-06 | BJ52: =NORMDIST(BH52,$BH$46,$BH$47,TRUE) -> 0.01340107895 | BK52: 124488.2305 | BL52: 35 | BN52: 1 | BO52: 3688.1548 | BP52: =NORMDIST(BO52,$BO$46,$BO$47,FALSE) -> 6.788217082e-07 | BQ52: =NORMDIST(BO52,$BO$46,$BO$47,TRUE) -> 0.006501920103 | BR52: 109519.6737 | BS52: 56 | BU52: 1 | BV52: 6406.1532 | BW52: =NORMDIST(BV52,$BV$46,$BV$47,FALSE) -> 9.562688638e-07 | BX52: =NORMDIST(BV52,$BV$46,$BV$47,TRUE) -> 0.008865370219 | BY52: 101290.8175 | BZ52: 37 | CB52: 1 | CC52: 926.7982 | CD52: =NORMDIST(CC52,$CC$46,$CC$47,FALSE) -> 1.319675904e-06 | CE52: =NORMDIST(CC52,$CC$46,$CC$47,TRUE) -> 0.01410248286 | CF52: 104414.9035 | CG52: 40 | CI52: 1 | CJ52: -8070.7427 | CK52: =NORMDIST(CJ52,$CJ$46,$CJ$47,FALSE) -> 9.455728523e-07 | CL52: =NORMDIST(CJ52,$CJ$46,$CJ$47,TRUE) -> 0.009203331551 | CM52: 94204.79112 | CN52: 46 | CP52: 1 | CQ52: -22143.5151 | CR52: =NORMDIST(CQ52,$CQ$46,$CQ$47,FALSE) -> 2.821662169e-07 | CS52: =NORMDIST(CQ52,$CQ$46,$CQ$47,TRUE) -> 0.002208551812 | CT52: 88026.58419 | CU52: 53 | CW52: 1 | CX52: -19855.5854 | CY52: =NORMDIST(CX52,$CX$46,$CX$47,FALSE) -> 1.10220926e-06 | CZ52: =NORMDIST(CX52,$CX$46,$CX$47,TRUE) -> 0.01023325579 | DA52: 84569.04879 | DB52: 37 | DL52: 1.5 | DM52: =AF46 -> 84603.48855
C53: 2 | D53: 37430.8991 | E53: =NORMDIST(D53,$D$46,$D$47,FALSE) -> 3.684415617e-06 | F53: =NORMDIST(D53,$D$46,$D$47,TRUE) -> 0.0440035801 | G53: 158037.6849 | H53: 10 | J53: 2 | K53: 39203.8736 | L53: =NORMDIST(K53,$K$46,$K$47,FALSE) -> 3.900010921e-06 | M53: =NORMDIST(K53,$K$46,$K$47,TRUE) -> 0.05030275861 | N53: 171887.8519 | O53: 2 | Q53: 2 | R53: 38637.1982 | S53: =NORMDIST(R53,$R$46,$R$47,FALSE) -> 3.461441064e-06 | T53: =NORMDIST(R53,$R$46,$R$47,TRUE) -> 0.04264417269 | U53: 155356.4305 | V53: 6 | X53: 2 | Y53: 37653.1842 | Z53: =NORMDIST(Y53,$Y$46,$Y$47,FALSE) -> 3.080687818e-06 | AA53: =NORMDIST(Y53,$Y$46,$Y$47,TRUE) -> 0.03889801557 | AB53: 157223.4828 | AC53: 11 | AE53: 2 | AF53: 30233.954 | AG53: =NORMDIST(AF53,$AF$46,$AF$47,FALSE) -> 1.926246185e-06 | AH53: =NORMDIST(AF53,$AF$46,$AF$47,TRUE) -> 0.02168023056 | AI53: 158718.699 | AJ53: 8 | AL53: 2 | AM53: 36812.9114 | AN53: =NORMDIST(AM53,$AM$46,$AM$47,FALSE) -> 2.292674165e-06 | AO53: =NORMDIST(AM53,$AM$46,$AM$47,TRUE) -> 0.02400524712 | AP53: 144177.3766 | AQ53: 18 | AS53: 2 | AT53: 26891.6151 | AU53: =NORMDIST(AT53,$AT$46,$AT$47,FALSE) -> 1.623708578e-06 | AV53: =NORMDIST(AT53,$AT$46,$AT$47,TRUE) -> 0.0170958795 | AW53: 144986.0209 | AX53: 13 | AZ53: 2 | BA53: 23414.6848 | BB53: =NORMDIST(BA53,$BA$46,$BA$47,FALSE) -> 1.867167867e-06 | BC53: =NORMDIST(BA53,$BA$46,$BA$47,TRUE) -> 0.02152035938 | BD53: 135654.3211 | BE53: 19 | BG53: 2 | BH53: 15249.6559 | BI53: =NORMDIST(BH53,$BH$46,$BH$47,FALSE) -> 1.451390502e-06 | BJ53: =NORMDIST(BH53,$BH$46,$BH$47,TRUE) -> 0.01527969118 | BK53: 140289.2476 | BL53: 12 | BN53: 2 | BO53: 6619.9242 | BP53: =NORMDIST(BO53,$BO$46,$BO$47,FALSE) -> 8.846230818e-07 | BQ53: =NORMDIST(BO53,$BO$46,$BO$47,TRUE) -> 0.008782706149 | BR53: 124638.4622 | BS53: 24 | BU53: 2 | BV53: 14961.583 | BW53: =NORMDIST(BV53,$BV$46,$BV$47,FALSE) -> 2.025565371e-06 | BX53: =NORMDIST(BV53,$BV$46,$BV$47,TRUE) -> 0.02117164746 | BY53: 114737.972 | BZ53: 33 | CB53: 2 | CC53: 1399.5833 | CD53: =NORMDIST(CC53,$CC$46,$CC$47,FALSE) -> 1.370753422e-06 | CE53: =NORMDIST(CC53,$CC$46,$CC$47,TRUE) -> 0.01473841989 | CF53: 119244.105 | CG53: 27 | CI53: 2 | CJ53: -3687.6903 | CK53: =NORMDIST(CJ53,$CJ$46,$CJ$47,FALSE) -> 1.382950532e-06 | CL53: =NORMDIST(CJ53,$CJ$46,$CJ$47,TRUE) -> 0.01425749774 | CM53: 108481.1226 | CN53: 28 | CP53: 2 | CQ53: -16293.1351 | CR53: =NORMDIST(CQ53,$CQ$46,$CQ$47,FALSE) -> 5.400169261e-07 | CS53: =NORMDIST(CQ53,$CQ$46,$CQ$47,TRUE) -> 0.004543483205 | CT53: 103827.6014 | CU53: 18 | CW53: 2 | CX53: -15722.7321 | CY53: =NORMDIST(CX53,$CX$46,$CX$47,FALSE) -> 1.602436562e-06 | CZ53: =NORMDIST(CX53,$CX$46,$CX$47,TRUE) -> 0.01577079561 | DA53: 99687.83721 | DB53: 10 | DL53: 1.6 | DM53: =AM46 -> 85528.95901
C54: 3 | D54: 38432.2503 | E54: 3.93904508e-06 | F54: 0.04781954045 | G54: 173114.7083 | H54: 0 | J54: 3 | K54: 40956.1858 | L54: 4.336557863e-06 | M54: 0.057515129 | N54: 188702.072 | O54: 2 | Q54: 3 | R54: 38854.1323 | S54: 3.510952305e-06 | T54: 0.04340043923 | U54: 170023.0118 | V54: 6 | X54: 3 | Y54: 38649.878 | Z54: 3.283052076e-06 | AA54: 0.04206864738 | AB54: 172585.5029 | AC54: 2 | AE54: 3 | AF54: 34279.3657 | AG54: 2.580408565e-06 | AH54: 0.03074851962 | AI54: 175151.4968 | AJ54: 3 | AL54: 3 | AM54: 38175.0494 | AN54: 2.553606166e-06 | AO54: 0.02730354637 | AP54: 157624.5311 | AQ54: 6 | AS54: 3 | AT54: 26971.254 | AU54: 1.634231397e-06 | AV54: 0.01722560853 | AW54: 159815.2225 | AX54: 7 | AZ54: 3 | BA54: 25100.2633 | BB54: 2.108894399e-06 | BC54: 0.02486825018 | BD54: 149930.6526 | BE54: 16 | BG54: 3 | BH54: 15559.7816 | BI54: 1.488478715e-06 | BJ54: 0.01573553669 | BK54: 156090.2648 | BL54: 3 | BN54: 3 | BO54: 10484.6019 | BP54: 1.231600813e-06 | BQ54: 0.01284202489 | BR54: 139757.2506 | BS54: 12 | BU54: 3 | BV54: 16049.3656 | BW54: 2.209893635e-06 | BX54: 0.02347418242 | BY54: 128185.1266 | BZ54: 13 | CB54: 3 | CC54: 3110.5866 | CD54: 1.568730037e-06 | CE54: 0.01725017295 | CF54: 134073.3066 | CG54: 9 | CI54: 3 | CJ54: -3148.1769 | CK54: 1.446408937e-06 | CL54: 0.01502063535 | CM54: 122757.4541 | CN54: 5 | CP54: 3 | CQ54: -10420.8981 | CR54: 9.786610238e-07 | CS54: 0.008896152558 | CT54: 119628.6185 | CU54: 9 | CW54: 3 | CX54: -14644.626 | CY54: 1.758616937e-06 | CZ54: 0.01758156504 | DA54: 114806.6256 | DB54: 4 | DL54: 1.7 | DM54: =AT46 -> 82145.49149
C55: 4 | D55: 39029.1045 | E55: 4.096049694e-06 | F55: 0.05021723676 | G55: 188191.7318 | H55: 2 | J55: 4 | K55: 41388.8407 | L55: 4.448684918e-06 | M55: 0.05941555695 | N55: 205516.2921 | O55: 1 | Q55: 4 | R55: 39583.9816 | S55: 3.680935115e-06 | T55: 0.04602461686 | U55: 184689.5931 | V55: 2 | X55: 4 | Y55: 39325.9088 | Z55: 3.425232822e-06 | AA55: 0.04433592689 | AB55: 187947.5231 | AC55: 4 | AE55: 4 | AF55: 34309.2834 | AG55: 2.585776431e-06 | AH55: 0.03082579979 | AI55: 191584.2947 | AJ55: 2 | AL55: 4 | AM55: 38924.0439 | AN55: 2.706003886e-06 | AO55: 0.02927285617 | AP55: 171071.6856 | AQ55: 2 | AS55: 4 | AT55: 27386.5733 | AU55: 1.689968297e-06 | AV55: 0.01791586056 | AW55: 174644.424 | AX55: 3 | AZ55: 4 | BA55: 25149.7305 | BB55: 2.116323171e-06 | BC55: 0.02497275494 | BD55: 164206.9841 | BE55: 4 | BG55: 4 | BH55: 21061.3601 | BI55: 2.276473949e-06 | BJ55: 0.02597568426 | BK55: 171891.282 | BL55: 0 | BN55: 4 | BO55: 17467.118 | BP55: 2.125118327e-06 | BQ55: 0.02434311563 | BR55: 154876.039 | BS55: 4 | BU55: 4 | BV55: 17728.0524 | BW55: 2.518495362e-06 | BX55: 0.02743876195 | BY55: 141632.2811 | BZ55: 2 | CB55: 4 | CC55: 5723.1938 | CD55: 1.912924604e-06 | CE55: 0.021786897 | CF55: 148902.5081 | CG55: 2 | CI55: 4 | CJ55: -851.7321 | CK55: 1.742483936e-06 | CL55: 0.01867398263 | CM55: 137033.7856 | CN55: 2 | CP55: 4 | CQ55: -7420.911 | CR55: 1.297152628e-06 | CS55: 0.01229166058 | CT55: 135429.6357 | CU55: 1 | CW55: 4 | CX55: -14187.3106 | CY55: 1.828326394e-06 | CZ55: 0.01840166746 | DA55: 129925.414 | DB55: 1 | DL55: 1.8 | DM55: =BA46 -> 79240.14203
C56: 5 | D56: 41229.0393 | E56: 4.708011811e-06 | F56: 0.05989190937 | H56: 0 | J56: 5 | K56: 41699.8734 | L56: 4.530337155e-06 | M56: 0.06081191914 | O56: 0 | Q56: 5 | R56: 41145.3428 | S56: 4.062140209e-06 | T56: 0.05206638331 | V56: 0 | X56: 5 | Y56: 40006.9756 | Z56: 3.57249103e-06 | AA56: 0.04671865696 | AC56: 0 | AE56: 5 | AF56: 35312.3081 | AG56: 2.770368967e-06 | AH56: 0.03351121982 | AJ56: 1 | AL56: 5 | AM56: 41174.4748 | AN56: 3.202972144e-06 | AO56: 0.03591063218 | AQ56: 1 | AS56: 5 | AT56: 33227.6275 | AU56: 2.636715221e-06 | AV56: 0.03039962525 | AX56: 0 | AZ56: 5 | BA56: 25324.6116 | BB56: 2.142741263e-06 | BC56: 0.02534516635 | BE56: 1 | BG56: 5 | BH56: 22341.8608 | BI56: 2.497621674e-06 | BJ56: 0.02903070699 | BL56: 1 | BN56: 5 | BO56: 17786.5169 | BP56: 2.17530417e-06 | BQ56: 0.02502986763 | BS56: 0 | BU56: 5 | BV56: 17993.8731 | BW56: 2.570113457e-06 | BX56: 0.02811507386 | BZ56: 3 | CB56: 5 | CC56: 6067.1532 | CD56: 1.962192324e-06 | CE56: 0.02245331141 | CG56: 0 | CI56: 5 | CJ56: 1806.418 | CK56: 2.141032638e-06 | CL56: 0.0238217026 | CN56: 2 | CP56: 5 | CQ56: -6425.0224 | CR56: 1.419646377e-06 | CS56: 0.0136437428 | CU56: 0 | CW56: 5 | CX56: -11947.2104 | CY56: 2.200872075e-06 | CZ56: 0.02290477261 | DB56: 0 | DL56: 1.9 | DM56: =BH46 -> 72584.50837
C57: 6 | D57: 41254.3292 | E57: 4.715346118e-06 | F57: 0.06001106724 | G57: BIN no. | H57: 10 | J57: 6 | K57: 41798.3353 | L57: 4.55636627e-06 | M57: 0.06125926547 | N57: BIN no. | O57: 10 | Q57: 6 | R57: 41335.5998 | S57: 4.110215398e-06 | T57: 0.05284380168 | U57: BIN no. | V57: 10 | X57: 6 | Y57: 40339.2431 | Z57: 3.645793059e-06 | AA57: 0.0479178311 | AB57: BIN no. | AC57: 10 | AE57: 6 | AF57: 35607.8512 | AG57: 2.82648306e-06 | AH57: 0.03433825592 | AI57: BIN no. | AJ57: 10 | AL57: 6 | AM57: 41350.9543 | AN57: 3.244458753e-06 | AO57: 0.03647954645 | AP57: BIN no. | AQ57: 10 | AS57: 6 | AT57: 34599.9396 | AU57: 2.90598038e-06 | AV57: 0.03420066174 | AW57: BIN no. | AX57: 10 | AZ57: 6 | BA57: 26115.5229 | BB57: 2.265261186e-06 | BC57: 0.02708800617 | BD57: BIN no. | BE57: 10 | BG57: 6 | BH57: 22956.7772 | BI57: 2.609167219e-06 | BJ57: 0.03060065177 | BK57: BIN no. | BL57: 10 | BN57: 6 | BO57: 18189.827 | BP57: 2.239919873e-06 | BQ57: 0.02592017297 | BR57: BIN no. | BS57: 10 | BU57: 6 | BV57: 18394.329 | BW57: 2.649318075e-06 | BX57: 0.0291600919 | BY57: BIN no. | BZ57: 10 | CB57: 6 | CC57: 7512.3571 | CD57: 2.179643293e-06 | CE57: 0.0254441608 | CF57: BIN no. | CG57: 10 | CI57: 6 | CJ57: 1887.0498 | CK57: 2.154105632e-06 | CL57: 0.02399486457 | CM57: BIN no. | CN57: 10 | CP57: 6 | CQ57: -6359.1571 | CR57: 1.428061505e-06 | CS57: 0.01373752515 | CT57: BIN no. | CU57: 10 | CW57: 6 | CX57: -11743.9647 | CY57: 2.237304975e-06 | CZ57: 0.02335578523 | DA57: BIN no. | DB57: 10 | DL57: 2 | DM57: =BO46 -> 70484.92625
C58: 7 | D58: 41850.9092 | E58: 4.890291689e-06 | F58: 0.06287614921 | G58: Bin Interval | H58: =(D48-D49)/H57 -> 15077.02347 | J58: 7 | K58: 41894.0301 | L58: 4.581746899e-06 | M58: 0.06169649978 | N58: Bin Interval | O58: =(K48-K49)/O57 -> 16814.22008 | Q58: 7 | R58: 41559.7194 | S58: 4.167296111e-06 | T58: 0.05377136891 | U58: Bin Interval | V58: =(R48-R49)/V57 -> 14666.58128 | X58: 7 | Y58: 41389.446 | Z58: 3.883743993e-06 | AA58: 0.05187077122 | AB58: Bin Interval | AC58: =(Y48-Y49)/AC57 -> 15362.02017 | AE58: 7 | AF58: 35936.2336 | AG58: 2.88975757e-06 | AH58: 0.03527678564 | AI58: Bin Interval | AJ58: =(AF48-AF49)/AJ57 -> 16432.79786 | AL58: 7 | AM58: 41617.9951 | AN58: 3.307935679e-06 | AO58: 0.03735440597 | AP58: Bin Interval | AQ58: =(AM48-AM49)/AQ57 -> 13447.15451 | AS58: 7 | AT58: 34794.661 | AU58: 2.945692431e-06 | AV58: 0.0347703786 | AW58: Bin Interval | AX58: =(AT48-AT49)/AX57 -> 14829.20154 | AZ58: 7 | BA58: 29610.2272 | BB58: 2.867797501e-06 | BC58: 0.03602785369 | BD58: Bin Interval | BE58: =(BA48-BA49)/BE57 -> 14276.33148 | BG58: 7 | BH58: 23889.8854 | BI58: 2.785157143e-06 | BJ58: 0.03311676247 | BK58: Bin Interval | BL58: =(BH48-BH49)/BL57 -> 15801.01718 | BN58: 7 | BO58: 18257.9777 | BP58: 2.250976564e-06 | BQ58: 0.02607320161 | BR58: Bin Interval | BS58: =(BO48-BO49)/BS57 -> 15118.78842 | BU58: 7 | BV58: 18434.9687 | BW58: 2.657453373e-06 | BX58: 0.02926792464 | BY58: Bin Interval | BZ58: =(BV48-BV49)/BZ57 -> 14201.73728 | CB58: 7 | CC58: 8189.3688 | CD58: 2.287421347e-06 | CE58: 0.02695607283 | CF58: Bin Interval | CG58: =(CC48-CC49)/CG57 -> 14512.89607 | CI58: 7 | CJ58: 1913.8496 | CK58: 2.158463865e-06 | CL58: 0.02405265256 | CM58: Bin Interval | CN58: =(CJ48-CJ49)/CN57 -> 16617.54494 | CP58: 7 | CQ58: -5965.913 | CR58: 1.479130711e-06 | CS58: 0.01430909663 | CT58: Bin Interval | CU58: =(CQ48-CQ49)/CU57 -> 15363.99621 | CW58: 7 | CX58: -11527.6886 | CY58: 2.276566547e-06 | CZ58: 0.02384389731 | DA58: Bin Interval | DB58: =(CX48-CX49)/DB57 -> 13711.90367 | DL58: 2.1 | DM58: =BV46 -> 65886.55071
C59: 8 | D59: 42000.7531 | E59: 4.934811309e-06 | F59: 0.0636122622 | J59: 8 | K59: 42238.0837 | L59: 4.673671236e-06 | M59: 0.06328864963 | Q59: 8 | R59: 41942.6336 | S59: 4.265939019e-06 | T59: 0.0553859267 | X59: 8 | Y59: 41547.62 | Z59: 3.920402863e-06 | AA59: 0.05248797497 | AE59: 8 | AF59: 36475.6977 | AG59: 2.995825657e-06 | AH59: 0.03686419734 | AL59: 8 | AM59: 42129.3781 | AN59: 3.431855501e-06 | AO59: 0.03907758094 | AS59: 8 | AT59: 35156.4871 | AU59: 3.020484227e-06 | AV59: 0.03584969857 | AZ59: 8 | BA59: 30199.697 | BB59: 2.97947117e-06 | BC59: 0.03775110382 | BG59: 8 | BH59: 25095.9238 | BI59: 3.024767229e-06 | BJ59: 0.0366188751 | BN59: 8 | BO59: 18924.4218 | BP59: 2.361218884e-06 | BQ59: 0.02760987273 | BU59: 8 | BV59: 18607.0442 | BW59: 2.692099067e-06 | BX59: 0.02972818347 | CB59: 8 | CC59: 8514.9546 | CD59: 2.340619443e-06 | CE59: 0.02770946082 | CI59: 8 | CJ59: 3077.4485 | CK59: 2.354067716e-06 | CL59: 0.02667682662 | CP59: 8 | CQ59: -5302.5535 | CR59: 1.568541751e-06 | CS59: 0.0153197191 | CW59: 8 | CX59: -11421.898 | CY59: 2.295957119e-06 | CZ59: 0.02408576124 | DL59: 2.2 | DM59: =CC46 -> 60642.94144
C60: 9 | D60: 42089.5338 | E60: 4.961297291e-06 | F60: 0.06405155333 | J60: 9 | K60: 43032.9518 | L60: 4.890022848e-06 | M60: 0.0670892222 | Q60: 9 | R60: 41984.4479 | S60: 4.276796033e-06 | T60: 0.05556453089 | X60: 9 | Y60: 42087.3589 | Z60: 4.047099454e-06 | AA60: 0.054638049 | AE60: 9 | AF60: 38198.2566 | AG60: 3.352251687e-06 | AH60: 0.04232778025 | AL60: 9 | AM60: 42371.7767 | AN60: 3.491679924e-06 | AO60: 0.03991669447 | AS60: 9 | AT60: 36126.4642 | AU60: 3.227423668e-06 | AV60: 0.03887910288 | AZ60: 9 | BA60: 30578.7325 | BB60: 3.052829005e-06 | BC60: 0.0388942934 | BG60: 9 | BH60: 25183.6611 | BI60: 3.042736544e-06 | BJ60: 0.03688504777 | BN60: 9 | BO60: 20519.8503 | BP60: 2.640971687e-06 | BQ60: 0.03159719668 | BU60: 9 | BV60: 20436.3222 | BW60: 3.080556908e-06 | BX60: 0.03500243667 | CB60: 9 | CC60: 8560.4916 | CD60: 2.348130997e-06 | CE60: 0.02781621657 | CI60: 9 | CJ60: 4368.9191 | CK60: 2.586016435e-06 | CL60: 0.02986511259 | CP60: 9 | CQ60: -4183.548 | CR60: 1.728929305e-06 | CS60: 0.01716352562 | CW60: 9 | CX60: -10539.7685 | CY60: 2.46244717e-06 | CZ60: 0.02618389241 | DL60: 2.3 | DM60: =CJ46 -> 53722.86001
C61: 10 | D61: 43192.7336 | E61: 5.297060975e-06 | F61: 0.06970894015 | J61: 10 | K61: 43838.5486 | L61: 5.11484375e-06 | M61: 0.07111879667 | Q61: 10 | R61: 42983.89 | S61: 4.541246656e-06 | T61: 0.0599703044 | X61: 10 | Y61: 42146.8521 | Z61: 4.061216042e-06 | AA61: 0.05487924367 | AE61: 10 | AF61: 38941.5007 | AG61: 3.514405701e-06 | AH61: 0.04487926929 | AL61: 10 | AM61: 42454.7616 | AN61: 3.512321349e-06 | AO61: 0.04020730707 | AS61: 10 | AT61: 36772.9591 | AU61: 3.370576843e-06 | AV61: 0.04101166413 | AZ61: 10 | BA61: 30612.4425 | BB61: 3.059412031e-06 | BC61: 0.0389973152 | BG61: 10 | BH61: 26434.0325 | BI61: 3.306795409e-06 | BJ61: 0.0408531303 | BN61: 10 | BO61: 20681.508 | BP61: 2.670580539e-06 | BQ61: 0.03202652018 | BU61: 10 | BV61: 20920.0409 | BW61: 3.189499006e-06 | BX61: 0.03651880269 | CB61: 10 | CC61: 8958.3147 | CD61: 2.414500089e-06 | CE61: 0.02876351444 | CI61: 10 | CJ61: 5536.7498 | CK61: 2.809498451e-06 | CL61: 0.03301435482 | CP61: 10 | CQ61: -2254.1119 | CR61: 2.035012549e-06 | CS61: 0.02078850928 | CW61: 10 | CX61: -9334.5888 | CY61: 2.704000748e-06 | CZ61: 0.02929549026 | DL61: 2.4 | DM61: =CQ46 -> 47843.86405
C62: 11 | D62: 43822.0447 | E62: 5.493983059e-06 | F62: 0.07310420062 | J62: 11 | K62: 44074.1917 | L62: 5.181638313e-06 | M62: 0.07233193508 | Q62: 11 | R62: 43083.408 | S62: 4.568094648e-06 | T62: 0.06042357535 | X62: 11 | Y62: 42277.3483 | Z62: 4.092285117e-06 | AA62: 0.05541124256 | AE62: 11 | AF62: 40132.4361 | AG62: 3.784721265e-06 | AH62: 0.04922438481 | AL62: 11 | AM62: 42712.3273 | AN62: 3.576909406e-06 | AO62: 0.04112026147 | AS62: 11 | AT62: 37554.4578 | AU62: 3.549216191e-06 | AV62: 0.0437151701 | AZ62: 11 | BA62: 31410.4653 | BB62: 3.218064048e-06 | BC62: 0.0415017409 | BG62: 11 | BH62: 26615.7548 | BI62: 3.346414568e-06 | BJ62: 0.04145764383 | BN62: 11 | BO62: 21118.4804 | BP62: 2.751789734e-06 | BQ62: 0.03321117073 | BU62: 11 | BV62: 21185.9493 | BW62: 3.250503892e-06 | BX62: 0.03737501053 | CB62: 11 | CC62: 9753.3999 | CD62: 2.551184359e-06 | CE62: 0.03073722728 | CI62: 11 | CJ62: 5579.4386 | CK62: 2.817917779e-06 | CL62: 0.03313446858 | CP62: 11 | CQ62: -1757.6608 | CR62: 2.12006374e-06 | CS62: 0.02181979635 | CW62: 11 | CX62: -7931.5829 | CY62: 3.006160742e-06 | CZ62: 0.0332985222 | DL62: 2.5 | DM62: =CX46 -> 37326.42642
C63: 12 | D63: 43909.8623 | E63: 5.521766272e-06 | F63: 0.07358788841 | J63: 12 | K63: 44966.3431 | L63: 5.438647267e-06 | M63: 0.07706890639 | Q63: 12 | R63: 43089.4994 | S63: 4.569740995e-06 | T63: 0.06045140645 | X63: 12 | Y63: 42328.0762 | Z63: 4.104401449e-06 | AA63: 0.05561914282 | AE63: 12 | AF63: 40633.0305 | AG63: 3.902180244e-06 | AH63: 0.05114830045 | AL63: 12 | AM63: 43955.8304 | AN63: 3.899840219e-06 | AO63: 0.0457670362 | AS63: 12 | AT63: 39460.7277 | AU63: 4.010569095e-06 | AV63: 0.05091491315 | AZ63: 12 | BA63: 32302.052 | BB63: 3.401699941e-06 | BC63: 0.04445228726 | BG63: 12 | BH63: 27160.6291 | BI63: 3.467099734e-06 | BJ63: 0.04331376944 | BN63: 12 | BO63: 21638.0557 | BP63: 2.850590709e-06 | BQ63: 0.03466649435 | BU63: 12 | BV63: 21665.9758 | BW63: 3.362644621e-06 | BX63: 0.03896215008 | CB63: 12 | CC63: 10863.8038 | CD63: 2.751187541e-06 | CE63: 0.03368012608 | CI63: 12 | CJ63: 7318.7831 | CK63: 3.176123873e-06 | CL63: 0.03834301907 | CP63: 12 | CQ63: 619.8596 | CR63: 2.564790379e-06 | CS63: 0.02737652189 | CW63: 12 | CX63: -7552.5448 | CY63: 3.091719762e-06 | CZ63: 0.03445413361
C64: 13 | D64: 43975.4388 | E64: 5.542560903e-06 | F64: 0.07395066811 | J64: 13 | K64: 44968.7604 | L64: 5.439352346e-06 | M64: 0.07708205409 | Q64: 13 | R64: 43588.8036 | S64: 4.705863685e-06 | T64: 0.06276698436 | X64: 13 | Y64: 42399.0082 | Z64: 4.12137991e-06 | AA64: 0.05591087813 | AE64: 13 | AF64: 41277.4501 | AG64: 4.056701999e-06 | AH64: 0.05371253057 | AL64: 13 | AM64: 44821.825 | AN64: 4.135575655e-06 | AO64: 0.04924570928 | AS64: 13 | AT64: 39479.1243 | AU64: 4.015197367e-06 | AV64: 0.05098873655 | AZ64: 13 | BA64: 32436.3892 | BB64: 3.42995234e-06 | BC64: 0.04491115807 | BG64: 13 | BH64: 27454.7765 | BI64: 3.533429628e-06 | BJ64: 0.04434334295 | BN64: 13 | BO64: 21691.3856 | BP64: 2.860869969e-06 | BQ64: 0.03481879005 | BU64: 13 | BV64: 23047.6565 | BW64: 3.699917837e-06 | BX64: 0.04383877456 | CB64: 13 | CC64: 10953.3725 | CD64: 2.767787128e-06 | CE64: 0.03392728925 | CI64: 13 | CJ64: 7428.5678 | CK64: 3.199731141e-06 | CL64: 0.03869300364 | CP64: 13 | CQ64: 689.1016 | CR64: 2.578692874e-06 | CS64: 0.0275545941 | CW64: 13 | CX64: -7315.2936 | CY64: 3.146130586e-06 | CZ64: 0.03519408929
C65: 14 | D65: 43988.6935 | E65: 5.546768998e-06 | F65: 0.07402416098 | J65: 14 | K65: 45195.3611 | L65: 5.50565257e-06 | M65: 0.07832211932 | Q65: 14 | R65: 43786.2345 | S65: 4.760324026e-06 | T65: 0.06370143744 | X65: 14 | Y65: 42762.8425 | Z65: 4.209133284e-06 | AA65: 0.05742630765 | AE65: 14 | AF65: 41286.6297 | AG65: 4.05892995e-06 | AH65: 0.0537497797 | AL65: 14 | AM65: 45716.2164 | AN65: 4.388314225e-06 | AO65: 0.05305685733 | AS65: 14 | AT65: 40041.001 | AU65: 4.158162298e-06 | AV65: 0.05328480127 | AZ65: 14 | BA65: 33430.1135 | BB65: 3.643676625e-06 | BC65: 0.04842508661 | BG65: 14 | BH65: 27464.0295 | BI65: 3.535529568e-06 | BJ65: 0.04437604749 | BN65: 14 | BO65: 23301.214 | BP65: 3.183340234e-06 | BQ65: 0.03968069232 | BU65: 14 | BV65: 24003.0936 | BW65: 3.945722773e-06 | BX65: 0.04749042157 | CB65: 14 | CC65: 12149.868 | CD65: 2.99626467e-06 | CE65: 0.03737436874 | CI65: 14 | CJ65: 8570.8044 | CK65: 3.452410813e-06 | CL65: 0.0424909366 | CP65: 14 | CQ65: 1695.175 | CR65: 2.78691195e-06 | CS65: 0.03025271129 | CW65: 14 | CX65: -5429.7384 | CY65: 3.602169218e-06 | CZ65: 0.04154963029
C66: 15 | D66: 45408.5982 | E66: 6.006988207e-06 | F66: 0.08222459569 | J66: 15 | K66: 45341.3864 | L66: 5.548591323e-06 | M66: 0.07912921694 | Q66: 15 | R66: 44795.0294 | S66: 5.044124621e-06 | T66: 0.06864600466 | X66: 15 | Y66: 42977.254 | Z66: 4.261366437e-06 | AA66: 0.05833438707 | AE66: 15 | AF66: 41881.081 | AG66: 4.204801513e-06 | AH66: 0.05620581737 | AL66: 15 | AM66: 46144.4012 | AN66: 4.51261651e-06 | AO66: 0.05496240303 | AS66: 15 | AT66: 40252.3422 | AU66: 4.212738448e-06 | AV66: 0.05416935168 | AZ66: 15 | BA66: 33549.8274 | BB66: 3.66998552e-06 | BC66: 0.04886285892 | BG66: 15 | BH66: 27627.0953 | BI66: 3.572670897e-06 | BJ66: 0.04495559624 | BN66: 15 | BO66: 23403.613 | BP66: 3.204652218e-06 | BQ66: 0.04000775352 | BU66: 15 | BV66: 24720.796 | BW66: 4.137099032e-06 | BX66: 0.05039060762 | CB66: 15 | CC66: 12246.7571 | CD66: 3.015316437e-06 | CE66: 0.03766559642 | CI66: 15 | CJ66: 8772.7667 | CK66: 3.49842924e-06 | CL66: 0.04319283364 | CP66: 15 | CQ66: 1856.6297 | CR66: 2.821418409e-06 | CS66: 0.03070545285 | CW66: 15 | CX66: -4321.7227 | CY66: 3.889791187e-06 | CZ66: 0.04569889251
C67: 16 | D67: 46093.6697 | E67: 6.235453342e-06 | F67: 0.08641783961 | J67: 16 | K67: 45710.3443 | L67: 5.65782008e-06 | M67: 0.08119653169 | Q67: 16 | R67: 44806.9796 | S67: 5.04754122e-06 | T67: 0.06870630337 | X67: 16 | Y67: 43352.6623 | Z67: 4.353741396e-06 | AA67: 0.05995144198 | AE67: 16 | AF67: 42022.855 | AG67: 4.240052991e-06 | AH67: 0.05680444568 | AL67: 16 | AM67: 46414.5829 | AN67: 4.592142188e-06 | AO67: 0.05619235366 | AS67: 16 | AT67: 40541.552 | AU67: 4.288129854e-06 | AV67: 0.05539859925 | AZ67: 16 | BA67: 33741.1033 | BB67: 3.712270979e-06 | BC67: 0.0495688779 | BG67: 16 | BH67: 28652.2032 | BI67: 3.811957463e-06 | BJ67: 0.04873976305 | BN67: 16 | BO67: 23593.4052 | BP67: 3.24440672e-06 | BQ67: 0.04061973885 | BU67: 16 | BV67: 25287.5796 | BW67: 4.292286417e-06 | BX67: 0.05277925804 | CB67: 16 | CC67: 12279.7425 | CD67: 3.021821376e-06 | CE67: 0.0377651651 | CI67: 16 | CJ67: 9077.1309 | CK67: 3.568541789e-06 | CL67: 0.04426827693 | CP67: 16 | CQ67: 2489.6152 | CR67: 2.959641016e-06 | CS67: 0.03253486859 | CW67: 16 | CX67: -3819.5952 | CY67: 4.024916264e-06 | CZ67: 0.04768586415
C68: 17 | D68: 46734.7132 | E68: 6.452800981e-06 | F68: 0.09048452142 | J68: 17 | K68: 46021.2351 | L68: 5.75066508e-06 | M68: 0.0829699093 | Q68: 17 | R68: 44941.2896 | S68: 5.086027736e-06 | T68: 0.06938682141 | X68: 17 | Y68: 43755.523 | Z68: 4.454166042e-06 | AA68: 0.06172557707 | AE68: 17 | AF68: 42736.8231 | AG68: 4.420255916e-06 | AH68: 0.05989577288 | AL68: 17 | AM68: 46427.906 | AN68: 4.596085488e-06 | AO68: 0.0562535615 | AS68: 17 | AT68: 41110.2097 | AU68: 4.438734317e-06 | AV68: 0.05787975037 | AZ68: 17 | BA68: 34148.6962 | BB68: 3.803400263e-06 | BC68: 0.05110049781 | BG68: 17 | BH68: 28879.6018 | BI68: 3.866389858e-06 | BJ68: 0.04961277649 | BN68: 17 | BO68: 24170.1409 | BP68: 3.367234393e-06 | BQ68: 0.04252617729 | BU68: 17 | BV68: 25353.8141 | BW68: 4.310653807e-06 | BX68: 0.05306416349 | CB68: 17 | CC68: 13665.0404 | CD68: 3.303677793e-06 | CE68: 0.04214455976 | CI68: 17 | CJ68: 10360.7548 | CK68: 3.874278485e-06 | CL68: 0.04904343387 | CP68: 17 | CQ68: 3356.8005 | CR68: 3.156665197e-06 | CS68: 0.03518621132 | CW68: 17 | CX68: -3316.8632 | CY68: 4.163178695e-06 | CZ68: 0.0497439484
C69: 18 | D69: 46756.9085 | E69: 6.460386076e-06 | F69: 0.09062782744 | J69: 18 | K69: 46117.2725 | L69: 5.77949279e-06 | M69: 0.08352357194 | Q69: 18 | R69: 45172.5025 | S69: 5.15265375e-06 | T69: 0.07057046999 | X69: 18 | Y69: 43822.353 | Z69: 4.47095408e-06 | AA69: 0.06202380976 | AE69: 18 | AF69: 43439.1235 | AG69: 4.601823333e-06 | AH69: 0.06306362983 | AL69: 18 | AM69: 46633.3285 | AN69: 4.657143329e-06 | AO69: 0.05720396391 | AS69: 18 | AT69: 41498.9888 | AU69: 4.543490084e-06 | AV69: 0.05962575407 | AZ69: 18 | BA69: 34396.354 | BB69: 3.859449112e-06 | BC69: 0.05204936947 | BG69: 18 | BH69: 29368.2888 | BI69: 3.985018976e-06 | BJ69: 0.05153112554 | BN69: 18 | BO69: 24225.7442 | BP69: 3.379237134e-06 | BQ69: 0.0427137402 | BU69: 18 | BV69: 25436.0469 | BW69: 4.333525024e-06 | BX69: 0.0534195805 | CB69: 18 | CC69: 13985.8537 | CD69: 3.371368238e-06 | CE69: 0.04321525723 | CI69: 18 | CJ69: 10676.2571 | CK69: 3.951901587e-06 | CL69: 0.05027799719 | CP69: 18 | CQ69: 3681.7617 | CR69: 3.232792814e-06 | CS69: 0.03622434028 | CW69: 18 | CX69: -3042.6069 | CY69: 4.239855017e-06 | CZ69: 0.05089622075
C70: 19 | D70: 47232.9767 | E70: 6.624012316e-06 | F70: 0.09374229021 | J70: 19 | K70: 46332.6383 | L70: 5.844388444e-06 | M70: 0.08477525903 | Q70: 19 | R70: 45343.2012 | S70: 5.202141918e-06 | T70: 0.07145424146 | X70: 19 | Y70: 43896.2933 | Z70: 4.489570753e-06 | AA70: 0.06235508143 | AE70: 19 | AF70: 43499.0941 | AG70: 4.617523332e-06 | AH70: 0.06334007455 | AL70: 19 | AM70: 47388.5127 | AN70: 4.885742142e-06 | AO70: 0.06080687479 | AS70: 19 | AT70: 41754.5413 | AU70: 4.613133249e-06 | AV70: 0.06079573986 | AZ70: 19 | BA70: 34765.2146 | BB70: 3.943873836e-06 | BC70: 0.05348850394 | BG70: 19 | BH70: 30093.874 | BI70: 4.165290811e-06 | BJ70: 0.05448769992 | BN70: 19 | BO70: 24231.5844 | BP70: 3.380499464e-06 | BQ70: 0.0427334793 | BU70: 19 | BV70: 25623.0282 | BW70: 4.385806942e-06 | BX70: 0.05423475051 | CB70: 19 | CC70: 14407.9316 | CD70: 3.461809413e-06 | CE70: 0.04465726856 | CI70: 19 | CJ70: 10696.5237 | CK70: 3.956921021e-06 | CL70: 0.05035813966 | CP70: 19 | CQ70: 3898.5345 | CR70: 3.284274541e-06 | CS70: 0.03693069163 | CW70: 19 | CX70: -1964.3567 | CY70: 4.549796663e-06 | CZ70: 0.05563373181
C71: 20 | D71: 47338.9356 | E71: 6.660669203e-06 | F71: 0.09444610458 | J71: 20 | K71: 46413.2245 | L71: 5.868759081e-06 | M71: 0.08524721774 | Q71: 20 | R71: 45404.2106 | S71: 5.219890876e-06 | T71: 0.07177216228 | X71: 20 | Y71: 44341.0622 | Z71: 4.602491444e-06 | AA71: 0.06437695529 | AE71: 20 | AF71: 43880.5874 | AG71: 4.718109589e-06 | AH71: 0.06512077617 | AL71: 20 | AM71: 48275.1161 | AN71: 5.162289453e-06 | AO71: 0.06526053991 | AS71: 20 | AT71: 42089.1275 | AU71: 4.705248497e-06 | AV71: 0.06235461141 | AZ71: 20 | BA71: 35000.4099 | BB71: 3.998293839e-06 | BC71: 0.05442247523 | BG71: 20 | BH71: 30589.5694 | BI71: 4.291264381e-06 | BJ71: 0.05658354369 | BN71: 20 | BO71: 25164.6568 | BP71: 3.586183354e-06 | BQ71: 0.04598307037 | BU71: 20 | BV71: 25778.3894 | BW71: 4.429539793e-06 | BX71: 0.05491952851 | CB71: 20 | CC71: 14735.6424 | CD71: 3.533113629e-06 | CE71: 0.04580339863 | CI71: 20 | CJ71: 10761.384 | CK71: 3.973011913e-06 | CL71: 0.05061530835 | CP71: 20 | CQ71: 4295.8785 | CR71: 3.380096126e-06 | CS71: 0.03825465305 | CW71: 20 | CX71: -1643.6425 | CY71: 4.644572766e-06 | CZ71: 0.05710808277
C72: 21 | D72: 47465.6789 | E72: 6.704628199e-06 | F72: 0.09529308425 | J72: 21 | K72: 46547.3702 | L72: 5.909432072e-06 | M72: 0.08603721312 | Q72: 21 | R72: 45942.8903 | S72: 5.377992301e-06 | T72: 0.07462648316 | X72: 21 | Y72: 45349.666 | Z72: 4.86442624e-06 | AA72: 0.06915046252 | AE72: 21 | AF72: 43940.4009 | AG72: 4.733991523e-06 | AH72: 0.06540345764 | AL72: 21 | AM72: 48275.1335 | AN72: 5.162294966e-06 | AO72: 0.06526062973 | AS72: 21 | AT72: 42660.7785 | AU72: 4.865054601e-06 | AV72: 0.06508990325 | AZ72: 21 | BA72: 35379.0867 | BB72: 4.086871106e-06 | BC72: 0.05595327021 | BG72: 21 | BH72: 30647.8232 | BI72: 4.306217829e-06 | BJ72: 0.05683396155 | BN72: 21 | BO72: 25723.6957 | BP72: 3.713222058e-06 | BQ72: 0.04802326359 | BU72: 21 | BV72: 25993.477 | BW72: 4.490521482e-06 | BX72: 0.05587881673 | CB72: 21 | CC72: 15157.3597 | CD72: 3.62626344e-06 | CE72: 0.04731296023 | CI72: 21 | CJ72: 11812.2504 | CK72: 4.239407147e-06 | CL72: 0.05492944978 | CP72: 21 | CQ72: 4480.1761 | CR72: 3.425180895e-06 | CS72: 0.03888174493 | CW72: 21 | CX72: -1449.6333 | CY72: 4.702475564e-06 | CZ72: 0.05801478252
C73: 22 | D73: 47815.7536 | E73: 6.826666955e-06 | F73: 0.09766153996 | J73: 22 | K73: 46569.5561 | L73: 5.916171422e-06 | M73: 0.08616839394 | Q73: 22 | R73: 45947.3848 | S73: 5.379321822e-06 | T73: 0.07465065754 | X73: 22 | Y73: 47327.6794 | Z73: 5.400811546e-06 | AA73: 0.07929802846 | AE73: 22 | AF73: 44293.8078 | AG73: 4.828439965e-06 | AH73: 0.06709314161 | AL73: 22 | AM73: 48483.5372 | AN73: 5.228557099e-06 | AO73: 0.06634336752 | AS73: 22 | AT73: 42833.2648 | AU73: 4.913867764e-06 | AV73: 0.06593326439 | AZ73: 22 | BA73: 35515.5249 | BB73: 4.119074209e-06 | BC73: 0.05651307068 | BG73: 22 | BH73: 30930.8371 | BI73: 4.379309945e-06 | BJ73: 0.05806300675 | BN73: 22 | BO73: 26143.0326 | BP73: 3.810378677e-06 | BQ73: 0.04960066956 | BU73: 22 | BV73: 26952.1191 | BW73: 4.768423457e-06 | BX73: 0.06031603092 | CB73: 22 | CC73: 15621.4341 | CD73: 3.730574354e-06 | CE73: 0.04901994724 | CI73: 22 | CJ73: 12262.033 | CK73: 4.35667772e-06 | CL73: 0.05686256197 | CP73: 22 | CQ73: 5920.814 | CR73: 3.791618406e-06 | CS73: 0.0440771579 | CW73: 22 | CX73: -1404.808 | CY73: 4.71591471e-06 | CZ73: 0.05822587352
C74: 23 | D74: 47843.2348 | E74: 6.836285073e-06 | F74: 0.09784927711 | J74: 23 | K74: 46675.3143 | L74: 5.948346098e-06 | M74: 0.08679577824 | Q74: 23 | R74: 46868.3942 | S74: 5.655312225e-06 | T74: 0.07973162094 | X74: 23 | Y74: 47405.598 | Z74: 5.422530335e-06 | AA74: 0.079719698 | AE74: 23 | AF74: 45085.0119 | AG74: 5.043624165e-06 | AH74: 0.07099821307 | AL74: 23 | AM74: 48516.8947 | AN74: 5.239207024e-06 | AO74: 0.0665179567 | AS74: 23 | AT74: 43013.2416 | AU74: 4.965091566e-06 | AV74: 0.06682225169 | AZ74: 23 | BA74: 35990.8705 | BB74: 4.232455127e-06 | BC74: 0.05849792918 | BG74: 23 | BH74: 31170.3617 | BI74: 4.441743311e-06 | BJ74: 0.05911942592 | BN74: 23 | BO74: 27423.3446 | BP74: 4.116831181e-06 | BQ74: 0.05467374945 | BU74: 23 | BV74: 27036.7019 | BW74: 4.793417744e-06 | BX74: 0.06072041403 | CB74: 23 | CC74: 16739.8829 | CD74: 3.989696604e-06 | CE74: 0.05333629696 | CI74: 23 | CJ74: 12949.2574 | CK74: 4.539569105e-06 | CL74: 0.05991916527 | CP74: 23 | CQ74: 6499.2534 | CR74: 3.945739496e-06 | CS74: 0.04631476146 | CW74: 23 | CX74: -1203.9316 | CY74: 4.776419427e-06 | CZ74: 0.05917925883
C75: 24 | D75: 48003.0193 | E75: 6.892315423e-06 | F75: 0.09894608346 | J75: 24 | K75: 46826.7764 | L75: 5.994564819e-06 | M75: 0.08770022536 | Q75: 24 | R75: 46954.238 | S75: 5.68138961e-06 | T75: 0.0802182133 | X75: 24 | Y75: 47431.2767 | Z75: 5.429697395e-06 | AA75: 0.07985903354 | AE75: 24 | AF75: 45311.7607 | AG75: 5.106229059e-06 | AH75: 0.0721489388 | AL75: 24 | AM75: 48524.9861 | AN75: 5.241792154e-06 | AO75: 0.06656035968 | AS75: 24 | AT75: 43034.6103 | AU75: 4.971193028e-06 | AV75: 0.06692841442 | AZ75: 24 | BA75: 36277.0617 | BB75: 4.301602248e-06 | BC75: 0.05971909947 | BG75: 24 | BH75: 31422.1376 | BI75: 4.507933065e-06 | BJ75: 0.06024607026 | BN75: 24 | BO75: 27725.0002 | BP75: 4.191168553e-06 | BQ75: 0.05592680646 | BU75: 24 | BV75: 27469.6916 | BW75: 4.922556642e-06 | BX75: 0.0628238008 | CB75: 24 | CC75: 16893.949 | CD75: 4.026240761e-06 | CE75: 0.05395378644 | CI75: 24 | CJ75: 13131.7398 | CK75: 4.588880272e-06 | CL75: 0.06075205121 | CP75: 24 | CQ75: 6622.4602 | CR75: 3.979083335e-06 | CS75: 0.04680295563 | CW75: 24 | CX75: -862.4205 | CY75: 4.880328282e-06 | CZ75: 0.06082816479
C76: 25 | D76: 48075.2118 | E76: 6.917690241e-06 | F76: 0.09944457265 | J76: 25 | K76: 46943.2207 | L76: 6.030208662e-06 | M76: 0.08840033259 | Q76: 25 | R76: 47134.6485 | S76: 5.736386381e-06 | T76: 0.08124815273 | X76: 25 | Y76: 47795.5468 | Z76: 5.531867846e-06 | AA76: 0.08185549048 | AE76: 25 | AF76: 45562.5174 | AG76: 5.175939895e-06 | AH76: 0.07343808975 | AL76: 25 | AM76: 49270.3092 | AN76: 5.482932734e-06 | AO76: 0.07055668342 | AS76: 25 | AT76: 43152.2178 | AU76: 5.004848163e-06 | AV76: 0.06751504182 | AZ76: 25 | BA76: 37328.4444 | BB76: 4.561253943e-06 | BC76: 0.06437745666 | BG76: 25 | BH76: 31889.8028 | BI76: 4.632397994e-06 | BJ76: 0.06238330095 | BN76: 25 | BO76: 28886.0054 | BP76: 4.484750419e-06 | BQ76: 0.06096205893 | BU76: 25 | BV76: 27533.9024 | BW76: 4.94187609e-06 | BX76: 0.06314050213 | CB76: 25 | CC76: 17673.2825 | CD76: 4.214219816e-06 | CE76: 0.0571644823 | CI76: 25 | CJ76: 13509.5326 | CK76: 4.691955316e-06 | CL76: 0.0625051259 | CP76: 25 | CQ76: 7245.0339 | CR76: 4.150336815e-06 | CS76: 0.04933329805 | CW76: 25 | CX76: -752.5498 | CY76: 4.91403584e-06 | CZ76: 0.06136622037
C77: 26 | D77: 48119.9618 | E77: 6.933437803e-06 | F77: 0.09975449159 | J77: 26 | K77: 46960.3383 | L77: 6.035456462e-06 | M77: 0.08850360021 | Q77: 26 | R77: 47608.1083 | S77: 5.88193779e-06 | T77: 0.08399848828 | X77: 26 | Y77: 48104.4797 | Z77: 5.619240952e-06 | AA77: 0.08357794574 | AE77: 26 | AF77: 45865.5544 | AG77: 5.260846459e-06 | AH77: 0.07501943779 | AL77: 26 | AM77: 49395.6392 | AN77: 5.524061193e-06 | AO77: 0.07124643497 | AS77: 26 | AT77: 43632.8682 | AU77: 5.143691848e-06 | AV77: 0.06995390853 | AZ77: 26 | BA77: 38406.1918 | BB77: 4.836397676e-06 | BC77: 0.06944080037 | BG77: 26 | BH77: 32506.2444 | BI77: 4.799441504e-06 | BJ77: 0.06529021707 | BN77: 26 | BO77: 29686.242 | BP77: 4.693897258e-06 | BQ77: 0.06463423904 | BU77: 26 | BV77: 27675.1242 | BW77: 4.984518522e-06 | BX77: 0.06384141132 | CB77: 26 | CC77: 17938.9514 | CD77: 4.279483864e-06 | CE77: 0.05829272551 | CI77: 26 | CJ77: 13938.9703 | CK77: 4.810721764e-06 | CL77: 0.06454546918 | CP77: 26 | CQ77: 9049.7559 | CR77: 4.672600678e-06 | CS77: 0.05728903629 | CW77: 26 | CX77: -643.8444 | CY77: 4.947518447e-06 | CZ77: 0.06190222128
C78: 27 | D78: 48266.4128 | E78: 6.985071903e-06 | F78: 0.1007736796 | J78: 27 | K78: 47363.447 | L78: 6.159628724e-06 | M78: 0.09096153486 | Q78: 27 | R78: 47851.555 | S78: 5.957454042e-06 | T78: 0.08543960953 | X78: 27 | Y78: 48388.008 | Z78: 5.700002663e-06 | AA78: 0.08518259584 | AE78: 27 | AF78: 45867.0543 | AG78: 5.261268496e-06 | AH78: 0.07502732885 | AL78: 27 | AM78: 49880.3729 | AN78: 5.684672202e-06 | AO78: 0.07396296206 | AS78: 27 | AT78: 43862.6402 | AU78: 5.210794676e-06 | AV78: 0.0711434851 | AZ78: 27 | BA78: 38687.085 | BB78: 4.909564659e-06 | BC78: 0.07080957375 | BG78: 27 | BH78: 32597.8783 | BI78: 4.82455884e-06 | BJ78: 0.06573115885 | BN78: 27 | BO78: 30180.4712 | BP78: 4.825776097e-06 | BQ78: 0.06698660502 | BU78: 27 | BV78: 27782.249 | BW78: 5.017004429e-06 | BX78: 0.06437711583 | CB78: 27 | CC78: 18788.3818 | CD78: 4.492139882e-06 | CE78: 0.06201773988 | CI78: 27 | CJ78: 14571.7244 | CK78: 4.988777583e-06 | CL78: 0.06764561518 | CP78: 27 | CQ78: 10259.6385 | CR78: 5.04379364e-06 | CS78: 0.06316520962 | CW78: 27 | CX78: -297.8342 | CY78: 5.054966863e-06 | CZ78: 0.06363266405
C79: 28 | D79: 48333.0837 | E79: 7.008627206e-06 | F79: 0.1012401657 | J79: 28 | K79: 47722.7638 | L79: 6.271246678e-06 | M79: 0.09319482006 | Q79: 28 | R79: 47919.7214 | S79: 5.978679859e-06 | T79: 0.08584643097 | X79: 28 | Y79: 48441.01 | Z79: 5.715160138e-06 | AA79: 0.08548510899 | AE79: 28 | AF79: 46226.2401 | AG79: 5.362836354e-06 | AH79: 0.07693531284 | AL79: 28 | AM79: 50095.0838 | AN79: 5.756586449e-06 | AO79: 0.07519123513 | AS79: 28 | AT79: 44055.0999 | AU79: 5.2673596e-06 | AV79: 0.0721517911 | AZ79: 28 | BA79: 38949.9925 | BB79: 4.978581745e-06 | BC79: 0.0721093964 | BG79: 28 | BH79: 32643.4832 | BI79: 4.837086792e-06 | BJ79: 0.06595146797 | BN79: 28 | BO79: 30727.7355 | BP79: 4.974173765e-06 | BQ79: 0.06966807392 | BU79: 28 | BV79: 27830.2064 | BW79: 5.03158644e-06 | BX79: 0.06461806788 | CB79: 28 | CC79: 18877.1646 | CD79: 4.514713981e-06 | CE79: 0.06241756625 | CI79: 28 | CJ79: 14587.4274 | CK79: 4.993242194e-06 | CL79: 0.06772398901 | CP79: 28 | CQ79: 10679.0361 | CR79: 5.176305581e-06 | CS79: 0.06530828403 | CW79: 28 | CX79: 6.1418 | CY79: 5.150450054e-06 | CZ79: 0.06518373932
C80: 29 | D80: 48385.9964 | E80: 7.027343337e-06 | F80: 0.1016115062 | J80: 29 | K80: 47845.2581 | L80: 6.30949501e-06 | M80: 0.09396535362 | Q80: 29 | R80: 48468.6922 | S80: 6.150884261e-06 | T80: 0.08917571713 | X80: 29 | Y80: 48938.0794 | Z80: 5.858216636e-06 | AA80: 0.08836142742 | AE80: 29 | AF80: 47324.6968 | AG80: 5.679497593e-06 | AH80: 0.08299925457 | AL80: 29 | AM80: 51198.4665 | AN80: 6.133399569e-06 | AO80: 0.0817497369 | AS80: 29 | AT80: 44077.4097 | AU80: 5.273937595e-06 | AV80: 0.0722693782 | AZ80: 29 | BA80: 39240.5785 | BB80: 5.055460136e-06 | BC80: 0.07356725739 | BG80: 29 | BH80: 32664.4217 | BI80: 4.84284482e-06 | BJ80: 0.06605280959 | BN80: 29 | BO80: 30780.2052 | BP80: 4.98853062e-06 | BQ80: 0.06992944387 | BU80: 29 | BV80: 27929.3268 | BW80: 5.06180099e-06 | BX80: 0.06511829733 | CB80: 29 | CC80: 19136.6727 | CD80: 4.581069958e-06 | CE80: 0.06359776907 | CI80: 29 | CJ80: 14811.837 | CK80: 5.057285385e-06 | CL80: 0.06885169807 | CP80: 29 | CQ80: 11318.8378 | CR80: 5.382175111e-06 | CS80: 0.0686857135 | CW80: 29 | CX80: 105.0643 | CY80: 5.18174071e-06 | CZ80: 0.06569478151
C81: 30 | D81: 48420.8398 | E81: 7.039678472e-06 | F81: 0.1018565776 | J81: 30 | K81: 48076.4386 | L81: 6.381947362e-06 | M81: 0.09543235393 | Q81: 30 | R81: 48506.9809 | S81: 6.162977515e-06 | T81: 0.08941145798 | X81: 30 | Y81: 49049.2593 | Z81: 5.890434703e-06 | AA81: 0.08901453362 | AE81: 30 | AF81: 47411.0524 | AG81: 5.704767864e-06 | AH81: 0.08349080172 | AL81: 30 | AM81: 51257.8867 | AN81: 6.154027658e-06 | AO81: 0.08211479743 | AS81: 30 | AT81: 44237.1511 | AU81: 5.321163923e-06 | AV81: 0.07311561342 | AZ81: 30 | BA81: 39495.6249 | BB81: 5.123445363e-06 | BC81: 0.07486529394 | BG81: 30 | BH81: 32823.2818 | BI81: 4.886655455e-06 | BJ81: 0.06682562137 | BN81: 30 | BO81: 30921.4215 | BP81: 5.027281606e-06 | BQ81: 0.07063663994 | BU81: 30 | BV81: 28124.5053 | BW81: 5.121594262e-06 | BX81: 0.06611208083 | CB81: 30 | CC81: 19232.1728 | CD81: 4.605628551e-06 | CE81: 0.06403643378 | CI81: 30 | CJ81: 15083.9027 | CK81: 5.135526735e-06 | CL81: 0.07023824057 | CP81: 30 | CQ81: 11706.9318 | CR81: 5.509203205e-06 | CS81: 0.07079910084 | CW81: 30 | CX81: 199.6714 | CY81: 5.211765786e-06 | CZ81: 0.0661864305
C82: 31 | D82: 49186.6435 | E82: 7.312808088e-06 | F82: 0.1073519284 | J82: 31 | K82: 48203.8022 | L82: 6.422010488e-06 | M82: 0.09624773192 | Q82: 31 | R82: 48646.3552 | S82: 6.207087416e-06 | T82: 0.09027349092 | X82: 31 | Y82: 49460.0804 | Z82: 6.01016639e-06 | AA82: 0.09145900614 | AE82: 31 | AF82: 47689.5353 | AG82: 5.786623014e-06 | AH82: 0.08509086686 | AL82: 31 | AM82: 51417.9576 | AN82: 6.209763384e-06 | AO82: 0.08310433579 | AS82: 31 | AT82: 44569.1867 | AU82: 5.420035023e-06 | AV82: 0.07489881734 | AZ82: 31 | BA82: 39665.9463 | BB82: 5.169108681e-06 | BC82: 0.07574181208 | BG82: 31 | BH82: 33943.699 | BI82: 5.201800974e-06 | BJ82: 0.07247626362 | BN82: 31 | BO82: 31217.8757 | BP82: 5.10915501e-06 | BQ82: 0.07213911708 | BU82: 31 | BV82: 28128.3052 | BW82: 5.122762272e-06 | BX82: 0.0661315446 | CB82: 31 | CC82: 19444.0546 | CD82: 4.66038177e-06 | CE82: 0.06501807679 | CI82: 31 | CJ82: 15247.9498 | CK82: 5.183017786e-06 | CL82: 0.071084601 | CP82: 31 | CQ82: 11960.9441 | CR82: 5.593208881e-06 | CS82: 0.07220916109 | CW82: 31 | CX82: 524.4974 | CY82: 5.315589963e-06 | CZ82: 0.06789617919
C83: 32 | D83: 49247.2778 | E83: 7.334593342e-06 | F83: 0.1077959958 | J83: 32 | K83: 48306.0602 | L83: 6.454251102e-06 | M83: 0.09690608173 | Q83: 32 | R83: 48715.7085 | S83: 6.229088626e-06 | T83: 0.09070473565 | X83: 32 | Y83: 49963.394 | Z83: 6.158281784e-06 | AA83: 0.09452121408 | AE83: 32 | AF83: 47776.5023 | AG83: 5.812297787e-06 | AH83: 0.08559522815 | AL83: 32 | AM83: 51447.8308 | AN83: 6.220191738e-06 | AO83: 0.08328999703 | AS83: 32 | AT83: 45696.8339 | AU83: 5.762764577e-06 | AV83: 0.0812029503 | AZ83: 32 | BA83: 39885.4611 | BB83: 5.228267716e-06 | BC83: 0.07688299478 | BG83: 32 | BH83: 33976.6972 | BI83: 5.211243304e-06 | BJ83: 0.07264806945 | BN83: 32 | BO83: 31414.5574 | BP83: 5.163861884e-06 | BQ83: 0.07314936925 | BU83: 32 | BV83: 28171.8607 | BW83: 5.136160955e-06 | BX83: 0.06635496079 | CB83: 32 | CC83: 19616.7608 | CD83: 4.705281616e-06 | CE83: 0.06582682738 | CI83: 32 | CJ83: 15689.1092 | CK83: 5.311889702e-06 | CL83: 0.07339950283 | CP83: 32 | CQ83: 12610.384 | CR83: 5.811037583e-06 | CS83: 0.07591211235 | CW83: 32 | CX83: 1191.8889 | CY83: 5.532434107e-06 | CZ83: 0.07151585723
C84: 33 | D84: 49297.585 | E84: 7.352685292e-06 | F84: 0.1081654336 | J84: 33 | K84: 48380.8035 | L84: 6.477858348e-06 | M84: 0.09738937578 | Q84: 33 | R84: 48733.6671 | S84: 6.234791292e-06 | T84: 0.09081665256 | X84: 33 | Y84: 50064.0908 | Z84: 6.188098539e-06 | AA84: 0.09514283407 | AE84: 33 | AF84: 47805.7195 | AG84: 5.820935313e-06 | AH84: 0.08576517339 | AL84: 33 | AM84: 51802.3738 | AN84: 6.344591377e-06 | AO84: 0.08551734064 | AS84: 33 | AT84: 45731.6185 | AU84: 5.773503039e-06 | AV84: 0.0814035925 | AZ84: 33 | BA84: 40201.4367 | BB84: 5.314022954e-06 | BC84: 0.07854852956 | BG84: 33 | BH84: 34898.3346 | BI84: 5.478575208e-06 | BJ84: 0.07757360669 | BN84: 33 | BO84: 31916.5387 | BP84: 5.304871512e-06 | BQ84: 0.07577684081 | BU84: 33 | BV84: 28570.0513 | BW84: 5.2595547e-06 | BX84: 0.06842464517 | CB84: 33 | CC84: 19679.0826 | CD84: 4.721543227e-06 | CE84: 0.06612057556 | CI84: 33 | CJ84: 15855.2727 | CK84: 5.360862374e-06 | CL84: 0.07428621049 | CP84: 33 | CQ84: 12689.8664 | CR84: 5.83799312e-06 | CS84: 0.07637505839 | CW84: 33 | CX84: 2407.4698 | CY84: 5.939197547e-06 | CZ84: 0.07848669224
C85: 34 | D85: 49505.6075 | E85: 7.427658694e-06 | F85: 0.1097027512 | J85: 34 | K85: 48451.1293 | L85: 6.50010223e-06 | M85: 0.09784571833 | Q85: 34 | R85: 48764.6279 | S85: 6.244628126e-06 | T85: 0.09100983895 | X85: 34 | Y85: 50409.9425 | Z85: 6.290960689e-06 | AA85: 0.09730076589 | AE85: 34 | AF85: 48174.9996 | AG85: 5.930616445e-06 | AH85: 0.08793495153 | AL85: 34 | AM85: 52527.0384 | AN85: 6.602395613e-06 | AO85: 0.09020817029 | AS85: 34 | AT85: 46162.3028 | AU85: 5.907260443e-06 | AV85: 0.08391890039 | AZ85: 34 | BA85: 40466.7936 | BB85: 5.38658026e-06 | BC85: 0.07996825819 | BG85: 34 | BH85: 35063.0029 | BI85: 5.527059954e-06 | BJ85: 0.07847974335 | BN85: 34 | BO85: 32186.7348 | BP85: 5.381582501e-06 | BQ85: 0.07722054726 | BU85: 34 | BV85: 28783.6512 | BW85: 5.326410363e-06 | BX85: 0.06955521751 | CB85: 34 | CC85: 20155.6989 | CD85: 4.846938593e-06 | CE85: 0.0684007505 | CI85: 34 | CJ85: 16949.8569 | CK85: 5.689227894e-06 | CL85: 0.08033293557 | CP85: 34 | CQ85: 13875.6637 | CR85: 6.247556061e-06 | CS85: 0.08353920893 | CW85: 34 | CX85: 2690.0076 | CY85: 6.035848141e-06 | CZ85: 0.08017837553
C86: 35 | D86: 49582.6258 | E86: 7.455482178e-06 | F86: 0.1102758881 | J86: 35 | K86: 49183.0772 | L86: 6.733398849e-06 | M86: 0.1026886394 | Q86: 35 | R86: 49331.3798 | S86: 6.425880205e-06 | T86: 0.09460025113 | X86: 35 | Y86: 50717.743 | Z86: 6.383084022e-06 | AA86: 0.09925129079 | AE86: 35 | AF86: 48864.7089 | AG86: 6.137938483e-06 | AH86: 0.09209666715 | AL86: 35 | AM86: 52660.1725 | AN86: 6.65026005e-06 | AO86: 0.09109035879 | AS86: 35 | AT86: 46254.228 | AU86: 5.935999011e-06 | AV86: 0.08446324688 | AZ86: 35 | BA86: 40659.5956 | BB86: 5.439603703e-06 | BC86: 0.08101190905 | BG86: 35 | BH86: 35449.2618 | BI86: 5.641625772e-06 | BJ86: 0.08063670799 | BN86: 35 | BO86: 32579.0359 | BP86: 5.493951806e-06 | BQ86: 0.0793537512 | BU86: 35 | BV86: 28848.0769 | BW86: 5.346665499e-06 | BX86: 0.06989902748 | CB86: 35 | CC86: 20283.7607 | CD86: 4.880939793e-06 | CE86: 0.06902363392 | CI86: 35 | CJ86: 17160.3626 | CK86: 5.753496422e-06 | CL86: 0.08153730872 | CP86: 35 | CQ86: 14549.8627 | CR86: 6.486371968e-06 | CS86: 0.08783157537 | CW86: 35 | CX86: 2846.5374 | CY86: 6.089725528e-06 | CZ86: 0.08112737928
C87: 36 | D87: 49689.1399 | E87: 7.494018339e-06 | F87: 0.1110720538 | J87: 36 | K87: 49344.6497 | L87: 6.785321615e-06 | M87: 0.1037807641 | Q87: 36 | R87: 50185.0567 | S87: 6.702958576e-06 | T87: 0.1002038072 | X87: 36 | Y87: 50898.8202 | Z87: 6.437527516e-06 | AA87: 0.1004120483 | AE87: 36 | AF87: 48924.0931 | AG87: 6.155935257e-06 | AH87: 0.09246169796 | AL87: 36 | AM87: 52731.7434 | AN87: 6.67605394e-06 | AO87: 0.09156724667 | AS87: 36 | AT87: 46980.4704 | AU87: 6.165323557e-06 | AV87: 0.08885725129 | AZ87: 36 | BA87: 41222.4044 | BB87: 5.595825786e-06 | BC87: 0.08411722768 | BG87: 36 | BH87: 35878.9799 | BI87: 5.770434753e-06 | BJ87: 0.08308864203 | BN87: 36 | BO87: 32831.4358 | BP87: 5.566859447e-06 | BQ87: 0.08074961506 | BU87: 36 | BV87: 29488.5298 | BW87: 5.550266136e-06 | BX87: 0.07338829665 | CB87: 36 | CC87: 20332.4446 | CD87: 4.893899719e-06 | CE87: 0.0692615725 | CI87: 36 | CJ87: 17470.9974 | CK87: 5.848974394e-06 | CL87: 0.08333935474 | CP87: 36 | CQ87: 14677.6737 | CR87: 6.532110371e-06 | CS87: 0.08866352644 | CW87: 36 | CX87: 2853.5499 | CY87: 6.092144707e-06 | CZ87: 0.08117009196
C88: 37 | D88: 49844.8969 | E88: 7.550487595e-06 | F88: 0.1122436955 | J88: 37 | K88: 49551.737 | L88: 6.852086411e-06 | M88: 0.105192827 | Q88: 37 | R88: 50237.6077 | S88: 6.720167552e-06 | T88: 0.1005565064 | X88: 37 | Y88: 50906.0163 | Z88: 6.439694861e-06 | AA88: 0.1004583812 | AE88: 37 | AF88: 49147.0481 | AG88: 6.223705012e-06 | AH88: 0.09384174342 | AL88: 37 | AM88: 52920.6421 | AN88: 6.744340508e-06 | AO88: 0.09283478948 | AS88: 37 | AT88: 47180.9111 | AU88: 6.229312185e-06 | AV88: 0.0900994411 | AZ88: 37 | BA88: 41432.4868 | BB88: 5.65467961e-06 | BC88: 0.0852989892 | BG88: 37 | BH88: 35952.9142 | BI88: 5.792737941e-06 | BJ88: 0.08351609931 | BN88: 37 | BO88: 33302.3511 | BP88: 5.704140149e-06 | BQ88: 0.08340339469 | BU88: 37 | BV88: 29955.7054 | BW88: 5.701310815e-06 | BX88: 0.07601644583 | CB88: 37 | CC88: 20771.7001 | CD88: 5.011673684e-06 | CE88: 0.07143705602 | CI88: 37 | CJ88: 17829.9957 | CK88: 5.960250233e-06 | CL88: 0.08545907091 | CP88: 37 | CQ88: 14862.4324 | CR88: 6.598483518e-06 | CS88: 0.08987651755 | CW88: 37 | CX88: 2959.4953 | CY88: 6.128750768e-06 | CZ88: 0.08181746485
C89: 38 | D89: 50025.3972 | E89: 7.616097894e-06 | F89: 0.1136124794 | J89: 38 | K89: 49750.7339 | L89: 6.916465943e-06 | M89: 0.106562773 | Q89: 38 | R89: 50461.3201 | S89: 6.793617496e-06 | T89: 0.1020681014 | X89: 38 | Y89: 51358.8679 | Z89: 6.576647957e-06 | AA89: 0.1034055756 | AE89: 38 | AF89: 49291.8494 | AG89: 6.267887733e-06 | AH89: 0.09474614126 | AL89: 38 | AM89: 53382.4748 | AN89: 6.912536794e-06 | AO89: 0.09598831862 | AS89: 38 | AT89: 47319.4993 | AU89: 6.273726438e-06 | AV89: 0.0909658263 | AZ89: 38 | BA89: 41526.4675 | BB89: 5.68110134e-06 | BC89: 0.08583166106 | BG89: 38 | BH89: 36170.1854 | BI89: 5.858516874e-06 | BJ89: 0.08478183401 | BN89: 38 | BO89: 33795.5304 | BP89: 5.849618934e-06 | BQ89: 0.08625236136 | BU89: 38 | BV89: 30116.1661 | BW89: 5.753672431e-06 | BX89: 0.07693547988 | CB89: 38 | CC89: 21105.8024 | CD89: 5.102257718e-06 | CE89: 0.07312657593 | CI89: 38 | CJ89: 18063.5463 | CK89: 6.033168588e-06 | CL89: 0.086859598 | CP89: 38 | CQ89: 15032.4821 | CR89: 6.659836025e-06 | CS89: 0.09100380062 | CW89: 38 | CX89: 2978.4795 | CY89: 6.135321402e-06 | CZ89: 0.08193387664
C90: 39 | D90: 50227.1385 | E90: 7.689639607e-06 | F90: 0.1151563755 | J90: 39 | K90: 49773.7572 | L90: 6.923928318e-06 | M90: 0.1067220988 | Q90: 39 | R90: 50833.0456 | S90: 6.916329689e-06 | T90: 0.1046162445 | X90: 39 | Y90: 51517.7291 | Z90: 6.624947755e-06 | AA90: 0.1044541845 | AE90: 39 | AF90: 50024.2085 | AG90: 6.493321017e-06 | AH90: 0.09941883715 | AL90: 39 | AM90: 53412.1405 | AN90: 6.92339996e-06 | AO90: 0.09619354497 | AS90: 39 | AT90: 47535.6391 | AU90: 6.343269795e-06 | AV90: 0.09232933781 | AZ90: 39 | BA90: 41790.3046 | BB90: 5.755581248e-06 | BC90: 0.08734036181 | BG90: 39 | BH90: 36229.2229 | BI90: 5.876450999e-06 | BJ90: 0.08512823547 | BN90: 39 | BO90: 34027.6867 | BP90: 5.918690405e-06 | BQ90: 0.08761839774 | BU90: 39 | BV90: 30448.0018 | BW90: 5.8627267e-06 | BX90: 0.07886281933 | CB90: 39 | CC90: 21354.0164 | CD90: 5.170108956e-06 | CE90: 0.07440143884 | CI90: 39 | CJ90: 18796.8564 | CK90: 6.26473586e-06 | CL90: 0.09136844783 | CP90: 39 | CQ90: 15142.5413 | CR90: 6.699677356e-06 | CS90: 0.09173896835 | CW90: 39 | CX90: 3198.5872 | CY90: 6.211750762e-06 | CZ90: 0.08329271113
C91: 40 | D91: 50262.2511 | E91: 7.70246156e-06 | F91: 0.1154266038 | J91: 40 | K91: 49968.772 | L91: 6.987250455e-06 | M91: 0.1080785384 | Q91: 40 | R91: 50998.2028 | S91: 6.971109854e-06 | T91: 0.1057630476 | X91: 40 | Y91: 51961.2882 | Z91: 6.760484447e-06 | AA91: 0.1074227633 | AE91: 40 | AF91: 50185.2446 | AG91: 6.543318351e-06 | AH91: 0.1004685199 | AL91: 40 | AM91: 53449.3606 | AN91: 6.937039367e-06 | AO91: 0.09645148841 | AS91: 40 | AT91: 47539.7781 | AU91: 6.344604771e-06 | AV91: 0.09235559537 | AZ91: 40 | BA91: 41877.3894 | BB91: 5.780262548e-06 | BC91: 0.08784265979 | BG91: 40 | BH91: 36597.6088 | BI91: 5.988933263e-06 | BJ91: 0.08731372529 | BN91: 40 | BO91: 34937.6862 | BP91: 6.192938598e-06 | BQ91: 0.09312876963 | BU91: 40 | BV91: 30600.3035 | BW91: 5.913122268e-06 | BX91: 0.07975955752 | CB91: 40 | CC91: 21383.5115 | CD91: 5.178202782e-06 | CE91: 0.07455405107 | CI91: 40 | CJ91: 18946.5993 | CK91: 6.312496648e-06 | CL91: 0.0923101215 | CP91: 40 | CQ91: 15399.3233 | CR91: 6.793032072e-06 | CS91: 0.09347129891 | CW91: 40 | CX91: 3292.0657 | CY91: 6.244346879e-06 | CZ91: 0.08387489916
C92: 41 | D92: 50725.7016 | E92: 7.872290548e-06 | F92: 0.1190356252 | J92: 41 | K92: 50552.2899 | L92: 7.17789164e-06 | M92: 0.1122112619 | Q92: 41 | R92: 51358.2516 | S92: 7.091066076e-06 | T92: 0.1082945608 | X92: 41 | Y92: 51973.6774 | Z92: 6.764284161e-06 | AA92: 0.1075065438 | AE92: 41 | AF92: 50669.1531 | AG92: 6.694444797e-06 | AH92: 0.1036714001 | AL92: 41 | AM92: 53758.0686 | AN92: 7.050586686e-06 | AO92: 0.09861051526 | AS92: 41 | AT92: 48179.1989 | AU92: 6.552271156e-06 | AV92: 0.09647871072 | AZ92: 41 | BA92: 41936.865 | BB92: 5.797146544e-06 | BC92: 0.08818694635 | BG92: 41 | BH92: 36698.8704 | BI92: 6.020024123e-06 | BJ92: 0.08792174779 | BN92: 41 | BO92: 34993.168 | BP92: 6.209834473e-06 | BQ92: 0.09347283362 | BU92: 41 | BV92: 30684.9843 | BW92: 5.941234965e-06 | BX92: 0.08026147529 | CB92: 41 | CC92: 22133.0461 | CD92: 5.386067573e-06 | CE92: 0.07851293344 | CI92: 41 | CJ92: 19260.6825 | CK92: 6.413180348e-06 | CL92: 0.09430856439 | CP92: 41 | CQ92: 16117.0473 | CR92: 7.056837948e-06 | CS92: 0.09844124278 | CW92: 41 | CX92: 3888.9711 | CY92: 6.454375191e-06 | CZ92: 0.08766470629
C93: 42 | D93: 50907.449 | E93: 7.939179371e-06 | F93: 0.1204724696 | J93: 42 | K93: 50630.9247 | L93: 7.203711429e-06 | M93: 0.112776709 | Q93: 42 | R93: 51474.8683 | S93: 7.130071478e-06 | T93: 0.1091237711 | X93: 42 | Y93: 52300.978 | Z93: 6.864932569e-06 | AA93: 0.1097369553 | AE93: 42 | AF93: 50776.677 | AG93: 6.728200685e-06 | AH93: 0.1043930271 | AL93: 42 | AM93: 53992.0623 | AN93: 7.137143072e-06 | AO93: 0.1002704268 | AS93: 42 | AT93: 48247.8248 | AU93: 6.574724331e-06 | AV93: 0.09692913648 | AZ93: 42 | BA93: 42412.1925 | BB93: 5.932876556e-06 | BC93: 0.09097469215 | BG93: 42 | BH93: 37453.0514 | BI93: 6.253847622e-06 | BJ93: 0.09254986039 | BN93: 42 | BO93: 35040.7352 | BP93: 6.224335721e-06 | BQ93: 0.0937685629 | BU93: 42 | BV93: 30905.1747 | BW93: 6.014641075e-06 | BX93: 0.08157775176 | CB93: 42 | CC93: 23028.9462 | CD93: 5.639882595e-06 | CE93: 0.08345158186 | CI93: 42 | CJ93: 19502.4229 | CK93: 6.49113122e-06 | CL93: 0.09586830319 | CP93: 42 | CQ93: 16319.0822 | CR93: 7.13183223e-06 | CS93: 0.09987454078 | CW93: 42 | CX93: 4100.4657 | CY93: 6.529557867e-06 | CZ93: 0.08903771522
C94: 43 | D94: 51389.4011 | E94: 8.117283889e-06 | F94: 0.1243416514 | J94: 43 | K94: 50824.7635 | L94: 7.267484076e-06 | M94: 0.1141792457 | Q94: 43 | R94: 51780.6954 | S94: 7.232705682e-06 | T94: 0.1113200219 | X94: 43 | Y94: 52419.884 | Z94: 6.901622239e-06 | AA94: 0.1105554177 | AE94: 43 | AF94: 51310.8141 | AG94: 6.896794693e-06 | AH94: 0.1080317686 | AL94: 43 | AM94: 54093.7711 | AN94: 7.174894846e-06 | AO94: 0.1009982563 | AS94: 43 | AT94: 48346.1483 | AU94: 6.606948527e-06 | AV94: 0.09757717006 | AZ94: 43 | BA94: 42546.4627 | BB94: 5.971468889e-06 | BC94: 0.09177389035 | BG94: 43 | BH94: 37825.0288 | BI94: 6.370597914e-06 | BJ94: 0.09489783619 | BN94: 43 | BO94: 35591.8299 | BP94: 6.39337247e-06 | BQ94: 0.09724525259 | BU94: 43 | BV94: 31406.7911 | BW94: 6.18349283e-06 | BX94: 0.0846370503 | CB94: 43 | CC94: 23391.3733 | CD94: 5.744158637e-06 | CE94: 0.08551449718 | CI94: 43 | CJ94: 19550.0682 | CK94: 6.506540911e-06 | CL94: 0.09617794212 | CP94: 43 | CQ94: 16332.0701 | CR94: 7.136663957e-06 | CS94: 0.09996719968 | CW94: 43 | CX94: 4181.2107 | CY94: 6.558364645e-06 | CZ94: 0.08956610699
C95: 44 | D95: 51457.0567 | E95: 8.142366534e-06 | F95: 0.1248916794 | J95: 44 | K95: 50926.2369 | L95: 7.300938548e-06 | M95: 0.114918399 | Q95: 44 | R95: 52086.5763 | S95: 7.33583745e-06 | T95: 0.1135481295 | X95: 44 | Y95: 52461.976 | Z95: 6.914625762e-06 | AA95: 0.1108461944 | AE95: 44 | AF95: 51876.4464 | AG95: 7.076897951e-06 | AH95: 0.1119836812 | AL95: 44 | AM95: 54126.0557 | AN95: 7.18689418e-06 | AO95: 0.1012300886 | AS95: 44 | AT95: 48395.5162 | AU95: 6.623152226e-06 | AV95: 0.09790374114 | AZ95: 44 | BA95: 42759.0551 | BB95: 6.032794672e-06 | BC95: 0.09304989316 | BG95: 44 | BH95: 38054.4344 | BI95: 6.443051623e-06 | BJ95: 0.09636759117 | BN95: 44 | BO95: 35695.5839 | BP95: 6.425404811e-06 | BQ95: 0.09791025174 | BU95: 44 | BV95: 31926.6362 | BW95: 6.360799654e-06 | BX95: 0.08789749433 | CB95: 44 | CC95: 23484.426 | CD95: 5.771075859e-06 | CE95: 0.08605025855 | CI95: 44 | CJ95: 20205.0577 | CK95: 6.719876137e-06 | CL95: 0.100509374 | CP95: 44 | CQ95: 16427.0563 | CR95: 7.172039294e-06 | CS95: 0.1006467638 | CW95: 44 | CX95: 4442.491 | CY95: 6.651965172e-06 | CZ95: 0.0912918937
C96: 45 | D96: 51845.0944 | E96: 8.286584369e-06 | F96: 0.1280791864 | J96: 45 | K96: 50986.4736 | L96: 7.320820112e-06 | M96: 0.1153587821 | Q96: 45 | R96: 52142.509 | S96: 7.354746079e-06 | T96: 0.1139589714 | X96: 45 | Y96: 53073.5697 | Z96: 7.104454203e-06 | AA96: 0.1151331016 | AE96: 45 | AF96: 51996.8929 | AG96: 7.115446734e-06 | AH96: 0.1128383896 | AL96: 45 | AM96: 54187.2673 | AN96: 7.209666052e-06 | AO96: 0.1016707067 | AS96: 45 | AT96: 48561.3283 | AU96: 6.677692072e-06 | AV96: 0.09900645914 | AZ96: 45 | BA96: 42938.2888 | BB96: 6.084705976e-06 | BC96: 0.09413582258 | BG96: 45 | BH96: 38314.4519 | BI96: 6.525579514e-06 | BJ96: 0.09805361745 | BN96: 45 | BO96: 36434.3216 | BP96: 6.655301141e-06 | BQ96: 0.1027416633 | BU96: 45 | BV96: 32027.6948 | BW96: 6.395535218e-06 | BX96: 0.08854206228 | CB96: 45 | CC96: 24206.9089 | CD96: 5.982024377e-06 | CE96: 0.09029575895 | CI96: 45 | CJ96: 20744.6714 | CK96: 6.897641468e-06 | CL96: 0.1041833945 | CP96: 45 | CQ96: 17130.9273 | CR96: 7.436241842e-06 | CS96: 0.1057877271 | CW96: 45 | CX96: 4611.7188 | CY96: 6.712898882e-06 | CZ96: 0.09242274357
C97: 46 | D97: 51915.0385 | E97: 8.312641597e-06 | F97: 0.1286596952 | J97: 46 | K97: 51300.1574 | L97: 7.424615477e-06 | M97: 0.1176714729 | Q97: 46 | R97: 52234.7567 | S97: 7.385964486e-06 | T97: 0.1146388694 | X97: 46 | Y97: 53500.8617 | Z97: 7.238013418e-06 | AA97: 0.1181972862 | AE97: 46 | AF97: 52129.1687 | AG97: 7.15785826e-06 | AH97: 0.1137823952 | AL97: 46 | AM97: 54204.6979 | AN97: 7.216155605e-06 | AO97: 0.101796432 | AS97: 46 | AT97: 49086.7242 | AU97: 6.851664155e-06 | AV97: 0.1025605175 | AZ97: 46 | BA97: 43085.9956 | BB97: 6.127627386e-06 | BC97: 0.09503774336 | BG97: 46 | BH97: 38523.5905 | BI97: 6.592264978e-06 | BJ97: 0.09942533657 | BN97: 46 | BO97: 36471.7564 | BP97: 6.667033533e-06 | BQ97: 0.1029910227 | BU97: 46 | BV97: 32261.4394 | BW97: 6.476202982e-06 | BX97: 0.09004640312 | CB97: 46 | CC97: 25315.4277 | CD97: 6.312118882e-06 | CE97: 0.09710920771 | CI97: 46 | CJ97: 20957.0191 | CK97: 6.968068213e-06 | CL97: 0.1056555657 | CP97: 46 | CQ97: 17457.802 | CR97: 7.560116922e-06 | CS97: 0.1082386726 | CW97: 46 | CX97: 5050.703 | CY97: 6.872070866e-06 | CZ97: 0.09540447932
C98: 47 | D98: 51925.4684 | E98: 8.316528744e-06 | F98: 0.1287464155 | J98: 47 | K98: 51396.0068 | L98: 7.456416564e-06 | M98: 0.1183846416 | Q98: 47 | R98: 52469.706 | S98: 7.465658352e-06 | T98: 0.1163835535 | X98: 47 | Y98: 54416.5562 | Z98: 7.526557439e-06 | AA98: 0.1249569754 | AE98: 47 | AF98: 52350.9258 | AG98: 7.22913623e-06 | AH98: 0.1153776002 | AL98: 47 | AM98: 54229.3262 | AN98: 7.225328715e-06 | AO98: 0.1019742666 | AS98: 47 | AT98: 49197.1531 | AU98: 6.888447249e-06 | AV98: 0.1033191695 | AZ98: 47 | BA98: 43976.3718 | BB98: 6.388967497e-06 | BC98: 0.1006096561 | BG98: 47 | BH98: 38924.5999 | BI98: 6.720871893e-06 | BJ98: 0.1020946509 | BN98: 47 | BO98: 37119.0513 | BP98: 6.871098127e-06 | BQ98: 0.1073724842 | BU98: 47 | BV98: 32871.7685 | BW98: 6.688924766e-06 | BX98: 0.09406378192 | CB98: 47 | CC98: 25418.3381 | CD98: 6.343138532e-06 | CE98: 0.09776038599 | CI98: 47 | CJ98: 21481.7642 | CK98: 7.143192742e-06 | CL98: 0.1093579068 | CP98: 47 | CQ98: 18559.4155 | CR98: 7.982592233e-06 | CS98: 0.116799025 | CW98: 47 | CX98: 5656.8052 | CY98: 7.094367717e-06 | CZ98: 0.0996368793
C99: 48 | D99: 52106.9575 | E99: 8.384231407e-06 | F99: 0.1302619167 | J99: 48 | K99: 51445.4784 | L99: 7.472845556e-06 | M99: 0.1187539288 | Q99: 48 | R99: 52510.5506 | S99: 7.479538884e-06 | T99: 0.1166887688 | X99: 48 | Y99: 54506.1327 | Z99: 7.554939274e-06 | AA99: 0.125632449 | AE99: 48 | AF99: 52392.158 | AG99: 7.242413063e-06 | AH99: 0.1156759471 | AL99: 48 | AM99: 54415.842 | AN99: 7.294941758e-06 | AO99: 0.1033283926 | AS99: 48 | AT99: 49261.3043 | AU99: 6.909849331e-06 | AV99: 0.103761758 | AZ99: 48 | BA99: 44146.4655 | BB99: 6.439383589e-06 | BC99: 0.1017006648 | BG99: 48 | BH99: 39326.5205 | BI99: 6.8507155e-06 | BJ99: 0.1048219702 | BN99: 48 | BO99: 37247.2607 | BP99: 6.911777153e-06 | BQ99: 0.1082560304 | BU99: 48 | BV99: 33130.3755 | BW99: 6.779942331e-06 | BX99: 0.0958053425 | CB99: 48 | CC99: 25443.4353 | CD99: 6.350712744e-06 | CE99: 0.09791967604 | CI99: 48 | CJ99: 21523.6664 | CK99: 7.157241527e-06 | CL99: 0.1096575166 | CP99: 48 | CQ99: 18865.2352 | CR99: 8.101122697e-06 | CS99: 0.1192583706 | CW99: 48 | CX99: 5755.2681 | CY99: 7.130747004e-06 | CZ99: 0.1003372017
C100: 49 | D100: 52108.0764 | E100: 8.384649164e-06 | F100: 0.1302712981 | J100: 49 | K100: 51777.0276 | L100: 7.583209273e-06 | M100: 0.121249828 | Q100: 49 | R100: 52605.4982 | S100: 7.511835024e-06 | T100: 0.117400466 | X100: 49 | Y100: 54653.1544 | Z100: 7.601577656e-06 | AA100: 0.1267466166 | AE100: 49 | AF100: 52696.8627 | AG100: 7.340753162e-06 | AH100: 0.1178977168 | AL100: 49 | AM100: 55002.9631 | AN100: 7.51566861e-06 | AO100: 0.1076760874 | AS100: 49 | AT100: 49262.4317 | AU100: 6.910225674e-06 | AV100: 0.1037695484 | AZ100: 49 | BA100: 44166.415 | BB100: 6.445306615e-06 | BC100: 0.1018291864 | BG100: 49 | BH100: 39585.101 | BI100: 6.934732325e-06 | BJ100: 0.1066042863 | BN100: 49 | BO100: 37311.3056 | BP100: 6.932128799e-06 | BQ100: 0.108699346 | BU100: 49 | BV100: 33408.7197 | BW100: 6.878473889e-06 | BX100: 0.09770619949 | CB100: 49 | CC100: 25500.1937 | CD100: 6.367855547e-06 | CE100: 0.09828061875 | CI100: 49 | CJ100: 21597.3999 | CK100: 7.181985132e-06 | CL100: 0.1101861571 | CP100: 49 | CQ100: 18894.7241 | CR100: 8.112578355e-06 | CS100: 0.1194974327 | CW100: 49 | CX100: 6165.114 | CY100: 7.282942404e-06 | CZ100: 0.1032908556
C101: 50 | D101: 52583.2517 | E101: 8.562439552e-06 | F101: 0.134297688 | J101: 50 | K101: 51835.3949 | L101: 7.602683684e-06 | M101: 0.1216930077 | Q101: 50 | R101: 52690.2858 | S101: 7.54070955e-06 | T101: 0.1180386003 | X101: 50 | Y101: 54763.0214 | Z101: 7.636473518e-06 | AA101: 0.1275836958 | AE101: 50 | AF101: 52830.6708 | AG101: 7.384060031e-06 | AH101: 0.1188828657 | AL101: 50 | AM101: 55430.9446 | AN101: 7.678016462e-06 | AO101: 0.1109273535 | AS101: 50 | AT101: 50244.357 | AU101: 7.240778884e-06 | AV101: 0.1107167192 | AZ101: 50 | BA101: 44403.8967 | BB101: 6.51597337e-06 | BC101: 0.103368214 | BG101: 50 | BH101: 39616.1681 | BI101: 6.944851133e-06 | BJ101: 0.1068198855 | BN101: 50 | BO101: 37392.1819 | BP101: 6.957858252e-06 | BQ101: 0.1092610312 | BU101: 50 | BV101: 33559.2411 | BW101: 6.931996875e-06 | BX101: 0.0987455831 | CB101: 50 | CC101: 25645.6079 | CD101: 6.411859329e-06 | CE101: 0.09920979329 | CI101: 50 | CJ101: 21638.6197 | CK101: 7.195830186e-06 | CL101: 0.1104824824 | CP101: 50 | CQ101: 19138.5951 | CR101: 8.207486233e-06 | CS101: 0.1214874218 | CW101: 50 | CX101: 6305.5817 | CY101: 7.335382991e-06 | CZ101: 0.1043175553
C102: 51 | D102: 52658.4155 | E102: 8.590627619e-06 | F102: 0.1349423327 | J102: 51 | K102: 52062.1775 | L102: 7.67847455e-06 | M102: 0.1234257544 | Q102: 51 | R102: 52891.3742 | S102: 7.609316895e-06 | T102: 0.1195618447 | X102: 51 | Y102: 55148.9653 | Z102: 7.759338334e-06 | AA102: 0.1305546419 | AE102: 51 | AF102: 53387.0441 | AG102: 7.564880928e-06 | AH102: 0.1230414067 | AL102: 51 | AM102: 55435.2627 | AN102: 7.679660399e-06 | AO102: 0.1109605115 | AS102: 51 | AT102: 50270.6804 | AU102: 7.249713329e-06 | AV102: 0.1109074387 | AZ102: 51 | BA102: 44838.9126 | BB102: 6.646158295e-06 | BC102: 0.1062310482 | BG102: 51 | BH102: 39686.0109 | BI102: 6.967618506e-06 | BJ102: 0.1073057283 | BN102: 51 | BO102: 37549.3946 | BP102: 7.007965097e-06 | BQ102: 0.110358832 | BU102: 51 | BV102: 33654.4454 | BW102: 6.965935308e-06 | BX102: 0.09940715404 | CB102: 51 | CC102: 26829.1063 | CD102: 6.774296621e-06 | CE102: 0.1070119548 | CI102: 51 | CJ102: 21656.6633 | CK102: 7.201893527e-06 | CL102: 0.1106123757 | CP102: 51 | CQ102: 19768.1663 | CR102: 8.453816367e-06 | CS102: 0.1267320644 | CW102: 51 | CX102: 6330.9283 | CY102: 7.344860377e-06 | CZ102: 0.1045036024
C103: 52 | D103: 52829.4548 | E103: 8.654831962e-06 | F103: 0.1364171572 | J103: 52 | K103: 52137.8201 | L103: 7.703797217e-06 | M103: 0.1240075318 | Q103: 52 | R103: 52951.4697 | S103: 7.629854079e-06 | T103: 0.1200197474 | X103: 52 | Y103: 55272.176 | Z103: 7.798649916e-06 | AA103: 0.1315130967 | AE103: 52 | AF103: 53917.1447 | AG103: 7.738203645e-06 | AH103: 0.1270974516 | AL103: 52 | AM103: 55550.751 | AN103: 7.72367058e-06 | AO103: 0.1118499629 | AS103: 52 | AT103: 50301.8147 | AU103: 7.260285337e-06 | AV103: 0.111133318 | AZ103: 52 | BA103: 45107.7076 | BB103: 6.72706007e-06 | BC103: 0.1080283676 | BG103: 52 | BH103: 39686.9622 | BI103: 6.967928792e-06 | BJ103: 0.1073123567 | BN103: 52 | BO103: 38107.4028 | BP103: 7.186761771e-06 | BQ103: 0.1143191516 | BU103: 52 | BV103: 33896.144 | BW103: 7.052387957e-06 | BX103: 0.1011012502 | CB103: 52 | CC103: 26939.3325 | CD103: 6.80842252e-06 | CE103: 0.10776054 | CI103: 52 | CJ103: 21717.7779 | CK103: 7.222442933e-06 | CL103: 0.1110531444 | CP103: 52 | CQ103: 19822.9433 | CR103: 8.475332411e-06 | CS103: 0.1271957283 | CW103: 52 | CX103: 6597.8072 | CY103: 7.444918813e-06 | CZ103: 0.1064771315
C104: 53 | D104: 52871.2435 | E104: 8.670530916e-06 | F104: 0.1367791594 | J104: 53 | K104: 52474.2277 | L104: 7.816663593e-06 | M104: 0.1266181211 | Q104: 53 | R104: 53043.6561 | S104: 7.661387652e-06 | T104: 0.1207245694 | X104: 53 | Y104: 55466.0897 | Z104: 7.860600501e-06 | AA104: 0.1330313668 | AE104: 53 | AF104: 54276.0719 | AG104: 7.856077592e-06 | AH104: 0.1298960456 | AL104: 53 | AM104: 55614.7635 | AN104: 7.748099624e-06 | AO104: 0.1123451561 | AS104: 53 | AT104: 50597.7832 | AU104: 7.361034405e-06 | AV104: 0.113297032 | AZ104: 53 | BA104: 45282.5469 | BB104: 6.779865569e-06 | BC104: 0.1092091363 | BG104: 53 | BH104: 39742.5402 | BI104: 6.986065076e-06 | BJ104: 0.1077001242 | BN104: 53 | BO104: 38179.095 | BP104: 7.209836614e-06 | BQ104: 0.1148352134 | BU104: 53 | BV104: 34308.8773 | BW104: 7.200959649e-06 | BX104: 0.1040426256 | CB104: 53 | CC104: 27589.3118 | CD104: 7.010840542e-06 | CE104: 0.1122515497 | CI104: 53 | CJ104: 21767.3193 | CK104: 7.239115068e-06 | CL104: 0.1114113673 | CP104: 53 | CQ104: 19850.1732 | CR104: 8.486032829e-06 | CS104: 0.1274266564 | CW104: 53 | CX104: 6695.6338 | CY104: 7.481717196e-06 | CZ104: 0.107207242
C105: 54 | D105: 53197.5978 | E105: 8.793290088e-06 | F105: 0.1396288486 | J105: 54 | K105: 52593.7788 | L105: 7.856867278e-06 | M105: 0.1275550146 | Q105: 54 | R105: 53618.8121 | S105: 7.858897821e-06 | T105: 0.1251878 | X105: 54 | Y105: 55581.8472 | Z105: 7.897627129e-06 | AA105: 0.133943433 | AE105: 54 | AF105: 54567.6382 | AG105: 7.952109012e-06 | AH105: 0.132200607 | AL105: 54 | AM105: 56554.9246 | AN105: 8.1096147e-06 | AO105: 0.119799172 | AS105: 54 | AT105: 50792.0643 | AU105: 7.427407819e-06 | AV105: 0.1147335864 | AZ105: 54 | BA105: 45489.0548 | BB105: 6.842415972e-06 | BC105: 0.1106156874 | BG105: 54 | BH105: 40110.0322 | BI105: 7.106393232e-06 | BJ105: 0.1102895355 | BN105: 54 | BO105: 39226.2272 | BP105: 7.549318042e-06 | BQ105: 0.1225622195 | BU105: 54 | BV105: 34567.7468 | BW105: 7.294730175e-06 | BX105: 0.1059188621 | CB105: 54 | CC105: 28155.8368 | CD105: 7.188825472e-06 | CE105: 0.1162737172 | CI105: 54 | CJ105: 21785.7334 | CK105: 7.245315162e-06 | CL105: 0.1115447262 | CP105: 54 | CQ105: 19885.0884 | CR105: 8.499757819e-06 | CS105: 0.1277231876 | CW105: 54 | CX105: 6877.5817 | CY105: 7.550327296e-06 | CZ105: 0.1085747632
C106: 55 | D106: 53360.421 | E106: 8.854632498e-06 | F106: 0.1410655934 | J106: 55 | K106: 52713.0454 | L106: 7.897022053e-06 | M106: 0.1284944705 | Q106: 55 | R106: 53658.7532 | S106: 7.872660632e-06 | T106: 0.1255019679 | X106: 55 | Y106: 55653.555 | Z106: 7.920580084e-06 | AA106: 0.1345105773 | AE106: 55 | AF106: 54614.8098 | AG106: 7.967667693e-06 | AH106: 0.1325760877 | AL106: 55 | AM106: 56582.1469 | AN106: 8.12015377e-06 | AO106: 0.1200200778 | AS106: 55 | AT106: 50845.5982 | AU106: 7.445729315e-06 | AV106: 0.1151316949 | AZ106: 55 | BA106: 45783.2741 | BB106: 6.931861129e-06 | BC106: 0.1126420072 | BG106: 55 | BH106: 40559.8189 | BI106: 7.254593917e-06 | BJ106: 0.1135191889 | BN106: 55 | BO106: 40028.7644 | BP106: 7.812261991e-06 | BQ106: 0.1287261945 | BU106: 55 | BV106: 34867.007 | BW106: 7.403671518e-06 | BX106: 0.1081181712 | CB106: 55 | CC106: 28357.2286 | CD106: 7.252422078e-06 | CE106: 0.1177278889 | CI106: 55 | CJ106: 22210.011 | CK106: 7.388641099e-06 | CL106: 0.1146491246 | CP106: 55 | CQ106: 20089.3046 | CR106: 8.580133348e-06 | CS106: 0.1294671799 | CW106: 55 | CX106: 7532.9452 | CY106: 7.799196029e-06 | CZ106: 0.1136043768
C107: 56 | D107: 53429.0769 | E107: 8.880515642e-06 | F107: 0.1416744047 | J107: 56 | K107: 52783.4075 | L107: 7.920732968e-06 | M107: 0.1290509557 | Q107: 56 | R107: 54032.3861 | S107: 8.001679966e-06 | T107: 0.1284675407 | X107: 56 | Y107: 55727.8223 | Z107: 7.944365038e-06 | AA107: 0.1350997006 | AE107: 56 | AF107: 54626.0106 | AG107: 7.971362942e-06 | AH107: 0.1326653526 | AL107: 56 | AM107: 57527.8352 | AN107: 8.488468166e-06 | AO107: 0.1278730441 | AS107: 56 | AT107: 51257.2469 | AU107: 7.587063357e-06 | AV107: 0.1182257827 | AZ107: 56 | BA107: 46354.1883 | BB107: 7.106467493e-06 | BC107: 0.1166492841 | BG107: 56 | BH107: 40561.1171 | BI107: 7.255023082e-06 | BJ107: 0.1135286071 | BN107: 56 | BO107: 40200.252 | BP107: 7.86871662e-06 | BQ107: 0.13007074 | BU107: 56 | BV107: 35204.7819 | BW107: 7.527302209e-06 | BX107: 0.1106398058 | CB107: 56 | CC107: 28437.2823 | CD107: 7.277747152e-06 | CE107: 0.1183094856 | CI107: 56 | CJ107: 22503.5466 | CK107: 7.488308653e-06 | CL107: 0.1168325719 | CP107: 56 | CQ107: 20311.445 | CR107: 8.667747652e-06 | CS107: 0.1313829021 | CW107: 56 | CX107: 7554.9918 | CY107: 7.807613386e-06 | CZ107: 0.1137764154
C108: 57 | D108: 53458.6674 | E108: 8.891674277e-06 | F108: 0.1419373486 | J108: 57 | K108: 53095.8092 | L108: 8.026190474e-06 | M108: 0.131541871 | Q108: 57 | R108: 54417.9142 | S108: 8.13529196e-06 | T108: 0.1315781537 | X108: 57 | Y108: 55751.3624 | Z108: 7.951906679e-06 | AA108: 0.1352868005 | AE108: 57 | AF108: 55078.9313 | AG108: 8.121051723e-06 | AH108: 0.1363096274 | AL108: 57 | AM108: 57589.6566 | AN108: 8.512682522e-06 | AO108: 0.1283985615 | AS108: 57 | AT108: 51365.0088 | AU108: 7.62418951e-06 | AV108: 0.119045379 | AZ108: 57 | BA108: 46492.8193 | BB108: 7.149063494e-06 | BC108: 0.1176374125 | BG108: 57 | BH108: 40801.2617 | BI108: 7.334546953e-06 | BJ108: 0.1152804049 | BN108: 57 | BO108: 40206.4004 | BP108: 7.870742322e-06 | BQ108: 0.1301191262 | BU108: 57 | BV108: 35304.7767 | BW108: 7.564033201e-06 | BX108: 0.1113943328 | CB108: 57 | CC108: 28536.0647 | CD108: 7.30903181e-06 | CE108: 0.1190299438 | CI108: 57 | CJ108: 22660.5643 | CK108: 7.541785238e-06 | CL108: 0.1180125659 | CP108: 57 | CQ108: 20654.8803 | CR108: 8.803551227e-06 | CS108: 0.1343830208 | CW108: 57 | CX108: 7594.3291 | CY108: 7.822639362e-06 | CZ108: 0.1140838413
C109: 58 | D109: 53475.432 | E109: 8.897997045e-06 | F109: 0.142086467 | J109: 58 | K109: 53559.3039 | L109: 8.183160779e-06 | M109: 0.135298323 | Q109: 58 | R109: 54549.9153 | S109: 8.181143826e-06 | T109: 0.1326550469 | X109: 58 | Y109: 55810.4639 | Z109: 7.970846806e-06 | AA109: 0.1357573297 | AE109: 58 | AF109: 55342.3486 | AG109: 8.208330401e-06 | AH109: 0.138460345 | AL109: 58 | AM109: 57738.0563 | AN109: 8.570870126e-06 | AO109: 0.1296661575 | AS109: 58 | AT109: 51384.1063 | AU109: 7.630774331e-06 | AV109: 0.1191910448 | AZ109: 58 | BA109: 46794.7089 | BB109: 7.242075474e-06 | BC109: 0.1198096715 | BG109: 58 | BH109: 40853.6333 | BI109: 7.351925123e-06 | BJ109: 0.1156649819 | BN109: 58 | BO109: 40234.4857 | BP109: 7.879996929e-06 | BQ109: 0.1303403083 | BU109: 58 | BV109: 35306.3975 | BW109: 7.564629052e-06 | BX109: 0.1114065931 | CB109: 58 | CC109: 28544.6515 | CD109: 7.311753067e-06 | CE109: 0.1190927167 | CI109: 58 | CJ109: 22689.891 | CK109: 7.551785444e-06 | CL109: 0.1182338882 | CP109: 58 | CQ109: 20771.158 | CR109: 8.849619729e-06 | CS109: 0.1354093555 | CW109: 58 | CX109: 7826.9074 | CY109: 7.9116609e-06 | CZ109: 0.1159135637
C110: 59 | D110: 53487.4183 | E110: 8.902518031e-06 | F110: 0.1421931482 | J110: 59 | K110: 53863.6466 | L110: 8.286526221e-06 | M110: 0.137804532 | Q110: 59 | R110: 54681.8619 | S110: 8.227026663e-06 | T110: 0.1337375475 | X110: 59 | Y110: 56302.6907 | Z110: 8.128876949e-06 | AA110: 0.1397196672 | AE110: 59 | AF110: 55453.6455 | AG110: 8.245250585e-06 | AH110: 0.139375961 | AL110: 59 | AM110: 58183.7154 | AN110: 8.746107509e-06 | AO110: 0.1335248653 | AS110: 59 | AT110: 51632.2594 | AU110: 7.716480504e-06 | AV110: 0.1210952738 | AZ110: 59 | BA110: 46855.1966 | BB110: 7.260752183e-06 | BC110: 0.1202482927 | BG110: 59 | BH110: 41023.2741 | BI110: 7.408300753e-06 | BJ110: 0.1169169483 | BN110: 59 | BO110: 40252.5431 | BP110: 7.885948369e-06 | BQ110: 0.1304826543 | BU110: 59 | BV110: 35676.0863 | BW110: 7.700930463e-06 | BX110: 0.1142283224 | CB110: 59 | CC110: 28724.3442 | CD110: 7.368764457e-06 | CE110: 0.1204117058 | CI110: 59 | CJ110: 22969.5811 | CK110: 7.647345704e-06 | CL110: 0.1203594036 | CP110: 59 | CQ110: 21148.7774 | CR110: 8.999510871e-06 | CS110: 0.1387794315 | CW110: 59 | CX110: 8236.9034 | CY110: 8.069318474e-06 | CZ110: 0.1191896016
C111: 60 | D111: 53570.8552 | E111: 8.933996718e-06 | F111: 0.1429372598 | J111: 60 | K111: 53971.0979 | L111: 8.323070678e-06 | M111: 0.1386968932 | Q111: 60 | R111: 54728.1887 | S111: 8.2431477e-06 | T111: 0.1341190527 | X111: 60 | Y111: 56345.1139 | Z111: 8.142519248e-06 | AA111: 0.1400648096 | AE111: 60 | AF111: 55652.2428 | AG111: 8.311190575e-06 | AH111: 0.141019992 | AL111: 60 | AM111: 58332.3063 | AN111: 8.804687314e-06 | AO111: 0.1348288086 | AS111: 60 | AT111: 51808.9721 | AU111: 7.777670115e-06 | AV111: 0.1224642785 | AZ111: 60 | BA111: 46865.522 | BB111: 7.263941664e-06 | BC111: 0.1203232794 | BG111: 60 | BH111: 41395.8132 | BI111: 7.532543447e-06 | BJ111: 0.1196999543 | BN111: 60 | BO111: 41153.7124 | BP111: 8.184052622e-06 | BQ111: 0.1377233969 | BU111: 60 | BV111: 35813.3321 | BW111: 7.751726139e-06 | BX111: 0.1152887273 | CB111: 60 | CC111: 28948.4752 | CD111: 7.440043598e-06 | CE111: 0.1220712588 | CI111: 60 | CJ111: 23716.5195 | CK111: 7.904105277e-06 | CL111: 0.1261672567 | CP111: 60 | CQ111: 21159.4503 | CR111: 9.003753165e-06 | CS111: 0.138875505 | CW111: 60 | CX111: 8277.952 | CY111: 8.085152105e-06 | CZ111: 0.1195211608
C112: 61 | D112: 53857.6582 | E112: 9.042299687e-06 | F112: 0.1455150842 | J112: 61 | K112: 54578.8245 | L112: 8.530188597e-06 | M112: 0.1438179456 | Q112: 61 | R112: 55112.7398 | S112: 8.377181548e-06 | T112: 0.1373147237 | X112: 61 | Y112: 56724.2168 | Z112: 8.264567528e-06 | AA112: 0.1431747891 | AE112: 61 | AF112: 55823.0917 | AG112: 8.367974486e-06 | AH112: 0.1424447998 | AL112: 61 | AM112: 58487.8629 | AN112: 8.866088146e-06 | AO112: 0.1362032105 | AS112: 61 | AT112: 52171.2451 | AU112: 7.903500515e-06 | AV112: 0.1253046956 | AZ112: 61 | BA112: 47626.4488 | BB112: 7.499995464e-06 | BC112: 0.1259402944 | BG112: 61 | BH112: 41572.54 | BI112: 7.591684501e-06 | BJ112: 0.1210363807 | BN112: 61 | BO112: 41301.5019 | BP112: 8.233123073e-06 | BQ112: 0.1389365394 | BU112: 61 | BV112: 36138.2594 | BW112: 7.872384259e-06 | BX112: 0.1178270623 | CB112: 61 | CC112: 29824.263 | CD112: 7.720215696e-06 | CE112: 0.128709661 | CI112: 61 | CJ112: 23750.211 | CK112: 7.915736273e-06 | CL112: 0.1264337538 | CP112: 61 | CQ112: 21458.2105 | CR112: 9.122622472e-06 | CS112: 0.1415832193 | CW112: 61 | CX112: 8909.773 | CY112: 8.329910908e-06 | CZ112: 0.1247067506
C113: 62 | D113: 53967.1723 | E113: 9.08369129e-06 | F113: 0.1465076098 | J113: 62 | K113: 54760.392 | L113: 8.592190427e-06 | M113: 0.1453723786 | Q113: 62 | R113: 55159.9916 | S113: 8.393676082e-06 | T113: 0.1377109503 | X113: 62 | Y113: 56826.6891 | Z113: 8.297596535e-06 | AA113: 0.1440233705 | AE113: 62 | AF113: 55830.3308 | AG113: 8.370381597e-06 | AH113: 0.1425053851 | AL113: 62 | AM113: 58498.1509 | AN113: 8.870151592e-06 | AO113: 0.1362944457 | AS113: 62 | AT113: 52188.4365 | AU113: 7.90948414e-06 | AV113: 0.1254406192 | AZ113: 62 | BA113: 47751.7871 | BB113: 7.539056974e-06 | BC113: 0.1268827786 | BG113: 62 | BH113: 41710.6785 | BI113: 7.637998886e-06 | BJ113: 0.1220882826 | BN113: 62 | BO113: 41404.9566 | BP113: 8.267499481e-06 | BQ113: 0.1397900727 | BU113: 62 | BV113: 36156.2907 | BW113: 7.879095998e-06 | BX113: 0.1179690722 | CB113: 62 | CC113: 30109.1344 | CD113: 7.81185946e-06 | CE113: 0.1309219775 | CI113: 62 | CJ113: 23782.1973 | CK113: 7.926782319e-06 | CL113: 0.1266871256 | CP113: 62 | CQ113: 21528.7461 | CR113: 9.150717893e-06 | CS113: 0.1422276798 | CW113: 62 | CX113: 8915.111 | CY113: 8.331986752e-06 | CZ113: 0.1247512212
C114: 63 | D114: 54055.9075 | E114: 9.117242663e-06 | F114: 0.1473151415 | J114: 63 | K114: 54892.2556 | L114: 8.637248847e-06 | M114: 0.1465083463 | Q114: 63 | R114: 55171.5569 | S114: 8.397714057e-06 | T114: 0.137808049 | X114: 63 | Y114: 56975.2801 | Z114: 8.345516996e-06 | AA114: 0.1452598786 | AE114: 63 | AF114: 56206.8978 | AG114: 8.495707694e-06 | AH114: 0.1456809848 | AL114: 63 | AM114: 58618.7714 | AN114: 8.917816161e-06 | AO114: 0.1373672421 | AS114: 63 | AT114: 52344.5098 | AU114: 7.963856373e-06 | AV114: 0.1266793204 | AZ114: 63 | BA114: 48235.667 | BB114: 7.69028663e-06 | BC114: 0.1305673385 | BG114: 63 | BH114: 41885.9389 | BI114: 7.696865399e-06 | BJ114: 0.1234320781 | BN114: 63 | BO114: 41512.2767 | BP114: 8.303182153e-06 | BQ114: 0.1406792561 | BU114: 63 | BV114: 36278.4446 | BW114: 7.924608103e-06 | BX114: 0.1189343135 | CB114: 63 | CC114: 30337.292 | CD114: 7.885418985e-06 | CE114: 0.1327127016 | CI114: 63 | CJ114: 24130.4879 | CK114: 8.047286594e-06 | CL114: 0.1294689227 | CP114: 63 | CQ114: 21620.9892 | CR114: 9.187476238e-06 | CS114: 0.1430734656 | CW114: 63 | CX114: 8957.2944 | CY114: 8.348395512e-06 | CZ114: 0.1251030388
C115: 64 | D115: 54132.4091 | E115: 9.146177337e-06 | F115: 0.1480137318 | J115: 64 | K115: 54947.3629 | L115: 8.656086056e-06 | M115: 0.1469848408 | Q115: 64 | R115: 55207.3304 | S115: 8.410206166e-06 | T115: 0.1381086881 | X115: 64 | Y115: 57081.5559 | Z115: 8.379808717e-06 | AA115: 0.1461486271 | AE115: 64 | AF115: 56208.1846 | AG115: 8.496136307e-06 | AH115: 0.1456919174 | AL115: 64 | AM115: 58698.5155 | AN115: 8.949350728e-06 | AO115: 0.1380796425 | AS115: 64 | AT115: 52523.4417 | AU115: 8.026298638e-06 | AV115: 0.1281098931 | AZ115: 64 | BA115: 48625.1175 | BB115: 7.812458813e-06 | BC115: 0.1335861021 | BG115: 64 | BH115: 42208.2634 | BI115: 7.805424153e-06 | BJ115: 0.1259304519 | BN115: 64 | BO115: 41581.4629 | BP115: 8.326197069e-06 | BQ115: 0.1412545178 | BU115: 64 | BV115: 36609.9617 | BW115: 8.048492095e-06 | BX115: 0.1215819768 | CB115: 64 | CC115: 30606.0662 | CD115: 7.972243697e-06 | CE115: 0.1348437629 | CI115: 64 | CJ115: 24264.5484 | CK115: 8.09377579e-06 | CL115: 0.1305508615 | CP115: 64 | CQ115: 21689.8845 | CR115: 9.214942287e-06 | CS115: 0.1437073856 | CW115: 64 | CX115: 9050.9623 | CY115: 8.384859026e-06 | CZ115: 0.1258867229
C116: 65 | D116: 54160.8433 | E116: 9.156933802e-06 | F116: 0.148273949 | J116: 65 | K116: 54998.6253 | L116: 8.673612362e-06 | M116: 0.1474290217 | Q116: 65 | R116: 55412.095 | S116: 8.481764609e-06 | T116: 0.1398381253 | X116: 65 | Y116: 57315.4849 | Z116: 8.455337175e-06 | AA116: 0.1481177404 | AE116: 65 | AF116: 56271.9147 | AG116: 8.517366481e-06 | AH116: 0.1462340535 | AL116: 65 | AM116: 58803.1295 | AN116: 8.990746356e-06 | AO116: 0.1390180349 | AS116: 65 | AT116: 52543.2433 | AU116: 8.033215645e-06 | AV116: 0.1282688952 | AZ116: 65 | BA116: 48879.8345 | BB116: 7.892561877e-06 | BC116: 0.1355862669 | BG116: 65 | BH116: 42302.2152 | BI116: 7.837136247e-06 | BJ116: 0.126665275 | BN116: 65 | BO116: 41594.774 | BP116: 8.330626018e-06 | BQ116: 0.1413653782 | BU116: 65 | BV116: 36827.2674 | BW116: 8.129975061e-06 | BX116: 0.1233398095 | CB116: 65 | CC116: 30648.6062 | CD116: 7.986001754e-06 | CE116: 0.1351831948 | CI116: 65 | CJ116: 24761.7461 | CK116: 8.266662063e-06 | CL116: 0.1346180181 | CP116: 65 | CQ116: 21721.7698 | CR116: 9.227657047e-06 | CS116: 0.1440014095 | CW116: 65 | CX116: 9120.3305 | CY116: 8.411887494e-06 | CZ116: 0.1264693028
C117: 66 | D117: 54197.0996 | E117: =NORMDIST(D117,$D$46,$D$47,FALSE) -> 9.170650819e-06 | F117: =NORMDIST(D117,$D$46,$D$47,TRUE) -> 0.1486061942 | J117: 66 | K117: 55112.9395 | L117: =NORMDIST(K117,$K$46,$K$47,FALSE) -> 8.712706827e-06 | M117: =NORMDIST(K117,$K$46,$K$47,TRUE) -> 0.1484227732 | Q117: 66 | R117: 55978.2603 | S117: =NORMDIST(R117,$R$46,$R$47,FALSE) -> 8.68005e-06 | T117: =NORMDIST(R117,$R$46,$R$47,TRUE) -> 0.1446963098 | X117: 66 | Y117: 57357.2575 | Z117: =NORMDIST(Y117,$Y$46,$Y$47,FALSE) -> 8.468830493e-06 | AA117: =NORMDIST(Y117,$Y$46,$Y$47,TRUE) -> 0.1484712236 | AE117: 66 | AF117: 56445.0807 | AG117: =NORMDIST(AF117,$AF$46,$AF$47,FALSE) -> 8.575078088e-06 | AH117: =NORMDIST(AF117,$AF$46,$AF$47,TRUE) -> 0.1477139681 | AL117: 66 | AM117: 58915.9009 | AN117: =NORMDIST(AM117,$AM$46,$AM$47,FALSE) -> 9.035401888e-06 | AO117: =NORMDIST(AM117,$AM$46,$AM$47,TRUE) -> 0.1400344516 | AS117: 66 | AT117: 52582.7456 | AU117: =NORMDIST(AT117,$AT$46,$AT$47,FALSE) -> 8.047018377e-06 | AV117: =NORMDIST(AT117,$AT$46,$AT$47,TRUE) -> 0.1285864983 | AZ117: 66 | BA117: 48960.3816 | BB117: =NORMDIST(BA117,$BA$46,$BA$47,FALSE) -> 7.91792231e-06 | BC117: =NORMDIST(BA117,$BA$46,$BA$47,TRUE) -> 0.1362230111 | BG117: 66 | BH117: 42316.4185 | BI117: =NORMDIST(BH117,$BH$46,$BH$47,FALSE) -> 7.841932997e-06 | BJ117: =NORMDIST(BH117,$BH$46,$BH$47,TRUE) -> 0.1267766223 | BN117: 66 | BO117: 41911.753 | BP117: =NORMDIST(BO117,$BO$46,$BO$47,FALSE) -> 8.436181471e-06 | BQ117: =NORMDIST(BO117,$BO$46,$BO$47,TRUE) -> 0.1440227368 | BU117: 66 | BV117: 37181.234 | BW117: =NORMDIST(BV117,$BV$46,$BV$47,FALSE) -> 8.263143837e-06 | BX117: =NORMDIST(BV117,$BV$46,$BV$47,TRUE) -> 0.1262411021 | CB117: 66 | CC117: 30829.6007 | CD117: =NORMDIST(CC117,$CC$46,$CC$47,FALSE) -> 8.044584164e-06 | CE117: =NORMDIST(CC117,$CC$46,$CC$47,TRUE) -> 0.1366339176 | CI117: 66 | CJ117: 25163.2744 | CK117: =NORMDIST(CJ117,$CJ$46,$CJ$47,FALSE) -> 8.406766007e-06 | CL117: =NORMDIST(CJ117,$CJ$46,$CJ$47,TRUE) -> 0.1379654314 | CP117: 66 | CQ117: 21745.1304 | CR117: =NORMDIST(CQ117,$CQ$46,$CQ$47,FALSE) -> 9.236973721e-06 | CS117: =NORMDIST(CQ117,$CQ$46,$CQ$47,TRUE) -> 0.1442170819 | CW117: 66 | CX117: 9659.8019 | CY117: =NORMDIST(CX117,$CX$46,$CX$47,FALSE) -> 8.62275448e-06 | CZ117: =NORMDIST(CX117,$CX$46,$CX$47,TRUE) -> 0.1310641023
C118: 67 | D118: 54333.1186 | E118: 9.222125673e-06 | F118: 0.1498570775 | J118: 67 | K118: 55115.4714 | L118: 8.713572881e-06 | M118: 0.1484448339 | Q118: 67 | R118: 56212.6826 | S118: 8.762305519e-06 | T118: 0.1467407468 | X118: 67 | Y118: 57427.1975 | Z118: 8.491426256e-06 | AA118: 0.1490643237 | AE118: 67 | AF118: 56627.3128 | AG118: 8.635847408e-06 | AH118: 0.1492821591 | AL118: 67 | AM118: 59034.7429 | AN118: 9.0824954e-06 | AO118: 0.1411110348 | AS118: 67 | AT118: 53112.1472 | AU118: 8.232483312e-06 | AV118: 0.1328956568 | AZ118: 67 | BA118: 49033.8149 | BB118: 7.941054976e-06 | BC118: 0.1368052995 | BG118: 67 | BH118: 42331.4896 | BI118: 7.847023568e-06 | BJ118: 0.1268948472 | BN118: 67 | BO118: 41937.4774 | BP118: 8.4447548e-06 | BQ118: 0.1442398627 | BU118: 67 | BV118: 37259.8982 | BW118: 8.292809498e-06 | BX118: 0.1268922824 | CB118: 67 | CC118: 31210.2246 | CD118: 8.168007428e-06 | CE118: 0.1397193582 | CI118: 67 | CJ118: 25260.3944 | CK118: 8.440711426e-06 | CL118: 0.1387835447 | CP118: 67 | CQ118: 21803.8695 | CR118: 9.260404692e-06 | CS118: 0.1447603416 | CW118: 67 | CX118: 9690.6442 | CY118: 8.634843764e-06 | CZ118: 0.1313302343
C119: 68 | D119: 54394.7945 | E119: 9.245473039e-06 | F119: 0.1504265803 | J119: 68 | K119: 55232.9824 | L119: 8.753775761e-06 | M119: 0.1494711366 | Q119: 68 | R119: 56232.246 | S119: 8.769173495e-06 | T119: 0.1469122345 | X119: 68 | Y119: 57482.3892 | Z119: 8.509260485e-06 | AA119: 0.1495334721 | AE119: 68 | AF119: 56883.6916 | AG119: 8.721395376e-06 | AH119: 0.1515071724 | AL119: 68 | AM119: 59120.899 | AN119: 9.116657248e-06 | AO119: 0.1418950187 | AS119: 68 | AT119: 53147.0036 | AU119: 8.244724341e-06 | AV119: 0.1331828249 | AZ119: 68 | BA119: 49318.1244 | BB119: 8.030719678e-06 | BC119: 0.1390757594 | BG119: 68 | BH119: 42451.127 | BI119: 7.887460508e-06 | BJ119: 0.1278360631 | BN119: 68 | BO119: 41944.2554 | BP119: 8.447013909e-06 | BQ119: 0.1442971089 | BU119: 68 | BV119: 37609.7696 | BW119: 8.425043971e-06 | BX119: 0.1298168182 | CB119: 68 | CC119: 31437.6202 | CD119: 8.24187631e-06 | CE119: 0.1415851242 | CI119: 68 | CJ119: 25570.5387 | CK119: 8.549247841e-06 | CL119: 0.1414182091 | CP119: 68 | CQ119: 21891.2808 | CR119: 9.295284823e-06 | CS119: 0.1455713299 | CW119: 68 | CX119: 10299.929 | CY119: 8.874327548e-06 | CZ119: 0.1366642087
C120: 69 | D120: 54658.5755 | E120: 9.345367588e-06 | F120: 0.1528785343 | J120: 69 | K120: 55312.9032 | L120: 8.781126085e-06 | M120: 0.1501718383 | Q120: 69 | R120: 56329.2711 | S120: 8.803242586e-06 | T120: 0.1477647171 | X120: 69 | Y120: 57596.5219 | Z120: 8.546148922e-06 | AA120: 0.150506762 | AE120: 69 | AF120: 57082.8233 | AG120: 8.787875259e-06 | AH120: 0.1532504974 | AL120: 69 | AM120: 59344.6583 | AN120: 9.205455868e-06 | AO120: 0.1439448884 | AS120: 69 | AT120: 53242.6714 | AU120: 8.27833908e-06 | AV120: 0.1339731872 | AZ120: 69 | BA120: 49348.7446 | BB120: 8.040385852e-06 | BC120: 0.1393218096 | BG120: 69 | BH120: 42612.298 | BI120: 7.942009542e-06 | BJ120: 0.1291116878 | BN120: 69 | BO120: 42015.1079 | BP120: 8.470633067e-06 | BQ120: 0.1448964377 | BU120: 69 | BV120: 38281.5713 | BW120: 8.680157496e-06 | BX120: 0.1355623873 | CB120: 69 | CC120: 31635.1349 | CD120: 8.306109691e-06 | CE120: 0.1432193584 | CI120: 69 | CJ120: 25931.087 | CK120: 8.675652178e-06 | CL120: 0.1445234066 | CP120: 69 | CQ120: 22024.3158 | CR120: 9.348395893e-06 | CS120: 0.1468114606 | CW120: 69 | CX120: 10350.3645 | CY120: 8.894203665e-06 | CZ120: 0.137112291
C121: 70 | D121: 54860.5195 | E121: 9.421879089e-06 | F121: 0.1547735003 | J121: 70 | K121: 55361.7166 | L121: 8.797833772e-06 | M121: 0.1506008827 | Q121: 70 | R121: 56660.8513 | S121: 8.91975295e-06 | T121: 0.1507030112 | X121: 70 | Y121: 57634.0502 | Z121: 8.558280643e-06 | AA121: 0.1508277121 | AE121: 70 | AF121: 57214.36 | AG121: 8.831801127e-06 | AH121: 0.1544093144 | AL121: 70 | AM121: 59547.1705 | AN121: 9.285907706e-06 | AO121: 0.1458172505 | AS121: 70 | AT121: 53467.9391 | AU121: 8.357589718e-06 | AV121: 0.1358469534 | AZ121: 70 | BA121: 49729.9802 | BB121: 8.160871211e-06 | BC121: 0.1424100498 | BG121: 70 | BH121: 42894.2315 | BI121: 8.037625492e-06 | BJ121: 0.1313642793 | BN121: 70 | BO121: 42257.9394 | BP121: 8.551634468e-06 | BQ121: 0.1469632075 | BU121: 70 | BV121: 38446.1346 | BW121: 8.742862451e-06 | BX121: 0.136995981 | CB121: 70 | CC121: 31640.8846 | CD121: 8.307980464e-06 | CE121: 0.1432671214 | CI121: 70 | CJ121: 26054.4493 | CK121: 8.718950668e-06 | CL121: 0.1455963254 | CP121: 70 | CQ121: 22160.2885 | CR121: 9.402708861e-06 | CS121: 0.1480862795 | CW121: 70 | CX121: 10399.9252 | CY121: 8.913742111e-06 | CZ121: 0.1375535781
C122: 71 | D122: 55340.9367 | E122: 9.603958077e-06 | F122: 0.1593436682 | J122: 71 | K122: 55549.6219 | L122: 8.862167483e-06 | M122: 0.1522600861 | Q122: 71 | R122: 56759.411 | S122: 8.954405081e-06 | T122: 0.1515838469 | X122: 71 | Y122: 57662.0314 | Z122: 8.56732679e-06 | AA122: 0.1510673096 | AE122: 71 | AF122: 57373.7601 | AG122: 8.88504171e-06 | AH122: 0.1558213475 | AL122: 71 | AM122: 59627.9984 | AN122: 9.318038334e-06 | AO122: 0.1465691093 | AS122: 71 | AT122: 53522.1058 | AU122: 8.376665657e-06 | AV122: 0.1363001731 | AZ122: 71 | BA122: 49853.217 | BB122: 8.199868878e-06 | BC122: 0.1434181722 | BG122: 71 | BH122: 43059.1611 | BI122: 8.093668703e-06 | BJ122: 0.1326945422 | BN122: 71 | BO122: 42494.4667 | BP122: 8.630601131e-06 | BQ122: 0.1489952402 | BU122: 71 | BV122: 38724.4458 | BW122: 8.849075556e-06 | BX122: 0.1394439931 | CB122: 71 | CC122: 32139.5793 | CD122: 8.470414802e-06 | CE122: 0.1474507562 | CI122: 71 | CJ122: 26281.9537 | CK122: 8.798858061e-06 | CL122: 0.1475890134 | CP122: 71 | CQ122: 22656.8676 | CR122: 9.601261748e-06 | CS122: 0.1528047555 | CW122: 71 | CX122: 10411.279 | CY122: 8.918219122e-06 | CZ122: 0.1376548084
C123: 72 | D123: 55397.7055 | E123: 9.625474805e-06 | F123: 0.1598894841 | J123: 72 | K123: 55596.6893 | L123: 8.878286105e-06 | M123: 0.1526775847 | Q123: 72 | R123: 56858.678 | S123: 8.989313585e-06 | T123: 0.1524744564 | X123: 72 | Y123: 57869.2118 | Z123: 8.634323769e-06 | AA123: 0.1528492315 | AE123: 72 | AF123: 57405.8445 | AG123: 8.895759102e-06 | AH123: 0.1561065907 | AL123: 72 | AM123: 59810.1468 | AN123: 9.390483439e-06 | AO123: 0.1482729722 | AS123: 72 | AT123: 53810.9656 | AU123: 8.478514212e-06 | AV123: 0.1387345602 | AZ123: 72 | BA123: 50049.5162 | BB123: 8.262031586e-06 | BC123: 0.1450339003 | BG123: 72 | BH123: 43107.2287 | BI123: 8.110016456e-06 | BJ123: 0.1330839783 | BN123: 72 | BO123: 42572.423 | BP123: 8.656640245e-06 | BQ123: 0.1496690648 | BU123: 72 | BV123: 38854.0806 | BW123: 8.898614236e-06 | BX123: 0.1405943518 | CB123: 72 | CC123: 32322.9744 | CD123: 8.530225014e-06 | CE123: 0.1490096727 | CI123: 72 | CJ123: 26549.8034 | CK123: 8.893016656e-06 | CL123: 0.1499583933 | CP123: 72 | CQ123: 22682.2362 | CR123: 9.611411712e-06 | CS123: 0.1530484548 | CW123: 72 | CX123: 10492.0803 | CY123: 8.950090825e-06 | CZ123: 0.1383766996
C124: 73 | D124: 55906.7784 | E124: 9.818377481e-06 | F124: 0.1648386583 | J124: 73 | K124: 55626.222 | L124: 8.88840055e-06 | M124: 0.1529399338 | Q124: 73 | R124: 57003.2109 | S124: 9.040152231e-06 | T124: 0.1537773818 | X124: 73 | Y124: 58117.5868 | Z124: 8.714673516e-06 | AA124: 0.1550037595 | AE124: 73 | AF124: 57983.9991 | AG124: 9.088901073e-06 | AH124: 0.1613055478 | AL124: 73 | AM124: 59868.6226 | AN124: 9.41375089e-06 | AO124: 0.1488227685 | AS124: 73 | AT124: 54260.14 | AU124: 8.637249811e-06 | AV124: 0.1425785265 | AZ124: 73 | BA124: 50097.2474 | BB124: 8.277154547e-06 | BC124: 0.1454286179 | BG124: 73 | BH124: 43290.3733 | BI124: 8.172360732e-06 | BJ124: 0.1345749917 | BN124: 73 | BO124: 42833.4493 | BP124: 8.743867193e-06 | BQ124: 0.1519400587 | BU124: 73 | BV124: 38949.6802 | BW124: 8.935171395e-06 | BX124: 0.141446803 | CB124: 73 | CC124: 32759.8967 | CD124: 8.672837346e-06 | CE124: 0.1527678681 | CI124: 73 | CJ124: 26598.8517 | CK124: 8.910266917e-06 | CL124: 0.1503950037 | CP124: 73 | CQ124: 22987.8472 | CR124: 9.733718537e-06 | CS124: 0.1560044958 | CW124: 73 | CX124: 10939.3616 | CY124: 9.126819496e-06 | CZ124: 0.1424194135
C125: 74 | D125: 56129.7658 | E125: 9.902820808e-06 | F125: 0.1670374485 | J125: 74 | K125: 55639.5047 | L125: 8.892949823e-06 | M125: 0.1530580259 | Q125: 74 | R125: 57113.2979 | S125: 9.078882465e-06 | T125: 0.1547747168 | X125: 74 | Y125: 58387.7444 | Z125: 8.802094542e-06 | AA125: 0.1573699031 | AE125: 74 | AF125: 58166.1099 | AG125: 9.149727802e-06 | AH125: 0.1629662736 | AL125: 74 | AM125: 60140.2557 | AN125: 9.521888263e-06 | AO125: 0.1513945398 | AS125: 74 | AT125: 54266.7724 | AU125: 8.639596606e-06 | AV125: 0.14263582 | AZ125: 74 | BA125: 50200.6995 | BB125: 8.309941613e-06 | BC125: 0.1462866027 | BG125: 74 | BH125: 43302.7662 | BI125: 8.176582574e-06 | BJ125: 0.1346762971 | BN125: 74 | BO125: 43085.8522 | BP125: 8.828257338e-06 | BQ125: 0.1541576855 | BU125: 74 | BV125: 39043.4339 | BW125: 8.971041992e-06 | BX125: 0.1422861897 | CB125: 74 | CC125: 32870.2366 | CD125: 8.708872963e-06 | CE125: 0.1537268161 | CI125: 74 | CJ125: 26774.6672 | CK125: 8.972118424e-06 | CL125: 0.1519670036 | CP125: 74 | CQ125: 23071.4211 | CR125: 9.767172541e-06 | CS125: 0.1568193786 | CW125: 74 | CX125: 10982.3698 | CY125: 9.143837234e-06 | CZ125: 0.1428123075
C126: 75 | D126: 56223.7544 | E126: 9.938398757e-06 | F126: 0.1679698728 | J126: 75 | K126: 55709.7242 | L126: 8.917001421e-06 | M126: 0.1536833289 | Q126: 75 | R126: 57197.7239 | S126: 9.108588384e-06 | T126: 0.1555424645 | X126: 75 | Y126: 58430.7466 | Z126: 8.816011025e-06 | AA126: 0.1577487118 | AE126: 75 | AF126: 58504.1693 | AG126: 9.262599644e-06 | AH126: 0.1660785057 | AL126: 75 | AM126: 60354.5799 | AN126: 9.607262702e-06 | AO126: 0.1534444591 | AS126: 75 | AT126: 54351.9743 | AU126: 8.669751223e-06 | AV126: 0.1433732145 | AZ126: 75 | BA126: 50285.3841 | BB126: 8.336790104e-06 | BC126: 0.1469914636 | BG126: 75 | BH126: 43499.2325 | BI126: 8.243563448e-06 | BJ126: 0.1362892982 | BN126: 75 | BO126: 43321.9707 | BP126: 8.90722978e-06 | BQ126: 0.1562515234 | BU126: 75 | BV126: 39159.0498 | BW126: 9.015302109e-06 | BX126: 0.1433259432 | CB126: 75 | CC126: 32912.0149 | CD126: 8.722518845e-06 | CE126: 0.1540909431 | CI126: 75 | CJ126: 26789.3581 | CK126: 8.977287764e-06 | CL126: 0.15209885 | CP126: 75 | CQ126: 23460.653 | CR126: 9.922989502e-06 | CS126: 0.1606513982 | CW126: 75 | CX126: 11003.8383 | CY126: 9.152333479e-06 | CZ126: 0.1430087032
C127: 76 | D127: 56371.4748 | E127: 9.99429506e-06 | F127: 0.1694421059 | J127: 76 | K127: 55826.5238 | L127: 8.957013271e-06 | M127: 0.1547271677 | Q127: 76 | R127: 57346.2377 | S127: 9.160849674e-06 | T127: 0.1568990962 | X127: 76 | Y127: 58793.9285 | Z127: 8.933544613e-06 | AA127: 0.1609718707 | AE127: 76 | AF127: 58783.7521 | AG127: 9.355883064e-06 | AH127: 0.1686812111 | AL127: 76 | AM127: 60458.803 | AN127: 9.648791537e-06 | AO127: 0.1544479219 | AS127: 76 | AT127: 54510.8417 | AU127: 8.726010331e-06 | AV127: 0.1447550237 | AZ127: 76 | BA127: 51103.9453 | BB127: 8.596645491e-06 | BC127: 0.1539219545 | BG127: 76 | BH127: 43842.0866 | BI127: 8.360669e-06 | BJ127: 0.1391357053 | BN127: 76 | BO127: 43391.0648 | BP127: 8.930342208e-06 | BQ127: 0.1568677589 | BU127: 76 | BV127: 39247.5684 | BW127: 9.049206432e-06 | BX127: 0.1441254655 | CB127: 76 | CC127: 32914.7393 | CD127: 8.723408733e-06 | CE127: 0.1541147079 | CI127: 76 | CJ127: 26924.0245 | CK127: 9.024680232e-06 | CL127: 0.15331098 | CP127: 76 | CQ127: 23549.6365 | CR127: 9.958608412e-06 | CS127: 0.1615359653 | CW127: 76 | CX127: 11210.353 | CY127: 9.234109684e-06 | CZ127: 0.1449072372
C128: 77 | D128: 56461.2689 | E128: 1.002825849e-05 | F128: 0.1703410595 | J128: 77 | K128: 55882.5619 | L128: 8.976212273e-06 | M128: 0.1552296396 | Q128: 77 | R128: 57371.5082 | S128: 9.16974276e-06 | T128: 0.1571307079 | X128: 77 | Y128: 58897.2634 | Z128: 8.966982397e-06 | AA128: 0.1618967453 | AE128: 77 | AF128: 58863.6707 | AG128: 9.38253423e-06 | AH128: 0.1694299852 | AL128: 77 | AM128: 60516.8934 | AN128: 9.671941038e-06 | AO128: 0.1550090964 | AS128: 77 | AT128: 54767.9938 | AU128: 8.817156488e-06 | AV128: 0.1470106528 | AZ128: 77 | BA128: 51333.4165 | BB128: 8.669565329e-06 | BC128: 0.1559030032 | BG128: 77 | BH128: 44359.422 | BI128: 8.537823465e-06 | BJ128: 0.143506778 | BN128: 77 | BO128: 43492.1744 | BP128: 8.964165525e-06 | BQ128: 0.1577724122 | BU128: 77 | BV128: 39400.0559 | BW128: 9.107645389e-06 | BX128: 0.1455098115 | CB128: 77 | CC128: 32925.3098 | CD128: 8.726861475e-06 | CE128: 0.154206937 | CI128: 77 | CJ128: 26970.2242 | CK128: 9.040941662e-06 | CL128: 0.1537282932 | CP128: 77 | CQ128: 24130.8695 | CR128: 1.019114966e-05 | CS128: 0.1673918302 | CW128: 77 | CX128: 11548.5121 | CY128: 9.368178101e-06 | CZ128: 0.1480524984
C129: 78 | D129: 56648.1687 | E129: 1.009891239e-05 | F129: 0.1722219425 | J129: 78 | K129: 56611.2926 | L129: 9.225922579e-06 | M129: 0.1618618664 | Q129: 78 | R129: 57491.2058 | S129: 9.211867417e-06 | T129: 0.1582308251 | X129: 78 | Y129: 59206.6847 | Z129: 9.067082862e-06 | AA129: 0.1646868084 | AE129: 78 | AF129: 58955.7326 | AG129: 9.413226155e-06 | AH129: 0.170295172 | AL129: 78 | AM129: 60635.5389 | AN129: 9.71922708e-06 | AO129: 0.1561594338 | AS129: 78 | AT129: 55028.1859 | AU129: 8.909468226e-06 | AV129: 0.1493168149 | AZ129: 78 | BA129: 51340.3169 | BB129: 8.671758356e-06 | BC129: 0.1559628343 | BG129: 78 | BH129: 44495.279 | BI129: 8.584422951e-06 | BJ129: 0.1446698662 | BN129: 78 | BO129: 43508.2194 | BP129: 8.96953303e-06 | BQ129: 0.1579162853 | BU129: 78 | BV129: 39463.1542 | BW129: 9.131838579e-06 | BX129: 0.1460852517 | CB129: 78 | CC129: 33378.9365 | CD129: 8.87506677e-06 | CE129: 0.1581992874 | CI129: 78 | CJ129: 27058.7564 | CK129: 9.072106517e-06 | CL129: 0.1545300871 | CP129: 78 | CQ129: 24132.0832 | CR129: 1.019163492e-05 | CS129: 0.1674041995 | CW129: 78 | CX129: 12013.1765 | CY129: 9.552654667e-06 | CZ129: 0.1524484077
C130: 79 | D130: 56807.8537 | E130: 1.015923209e-05 | F130: 0.173839404 | J130: 79 | K130: 56649.3993 | L130: 9.238978692e-06 | M130: 0.1622136846 | Q130: 79 | R130: 57522.1037 | S130: 9.222741361e-06 | T130: 0.1585156205 | X130: 79 | Y130: 59236.6351 | Z130: 9.076769496e-06 | AA130: 0.1649585162 | AE130: 79 | AF130: 58998.379 | AG130: 9.427440383e-06 | AH130: 0.1706969153 | AL130: 79 | AM130: 60932.2212 | AN130: 9.837485298e-06 | AO130: 0.1590604987 | AS130: 79 | AT130: 55180.5662 | AU130: 8.963564325e-06 | AV130: 0.1506785636 | AZ130: 79 | BA130: 51688.5833 | BB130: 8.782451472e-06 | BC130: 0.1590021913 | BG130: 79 | BH130: 44552.9949 | BI130: 8.604228237e-06 | BJ130: 0.1451658954 | BN130: 79 | BO130: 44080.4226 | BP130: 9.160934984e-06 | BQ130: 0.1631034441 | BU130: 79 | BV130: 39645.5623 | BW130: 9.201812192e-06 | BX130: 0.1477573541 | CB130: 79 | CC130: 33876.2234 | CD130: 9.037543899e-06 | CE130: 0.1626531425 | CI130: 79 | CJ130: 27136.7707 | CK130: 9.099571888e-06 | CL130: 0.1552389125 | CP130: 79 | CQ130: 24199.4134 | CR130: 1.02185519e-05 | CS130: 0.1680913105 | CW130: 79 | CX130: 12052.0754 | CY130: 9.568107782e-06 | CZ130: 0.152820296
C131: 80 | D131: 56859.0497 | E131: 1.017856106e-05 | F131: 0.1743600108 | J131: 80 | K131: 56703.1298 | L131: 9.257386882e-06 | M131: 0.1627105941 | Q131: 80 | R131: 57630.6565 | S131: 9.260944425e-06 | T131: 0.1595188484 | X131: 80 | Y131: 59478.1913 | Z131: 9.154871942e-06 | AA131: 0.1671605001 | AE131: 80 | AF131: 59080.1364 | AG131: 9.454684136e-06 | AH131: 0.171468792 | AL131: 80 | AM131: 60943.5207 | AN131: 9.841989427e-06 | AO131: 0.1591716828 | AS131: 80 | AT131: 55324.1506 | AU131: 9.014556953e-06 | AV131: 0.1519692523 | AZ131: 80 | BA131: 51963.1738 | BB131: 8.869726323e-06 | BC131: 0.1614257517 | BG131: 80 | BH131: 45020.8772 | BI131: 8.764944883e-06 | BJ131: 0.1492292493 | BN131: 80 | BO131: 44527.6438 | BP131: 9.310435002e-06 | BQ131: 0.1672338432 | BU131: 80 | BV131: 39763.4945 | BW131: 9.247077059e-06 | BX131: 0.148845213 | CB131: 80 | CC131: 33909.3023 | CD131: 9.048349406e-06 | CE131: 0.1629522732 | CI131: 80 | CJ131: 27187.7401 | CK131: 9.117517228e-06 | CL131: 0.1557031696 | CP131: 80 | CQ131: 24263.2462 | CR131: 1.02440654e-05 | CS131: 0.1687444036 | CW131: 80 | CX131: 12231.8243 | CY131: 9.639529556e-06 | CZ131: 0.1545465716
C132: 81 | D132: 56900.686 | E132: 1.019427703e-05 | F132: 0.1747841356 | J132: 81 | K132: 57093.3483 | L132: 9.391029559e-06 | M132: 0.1663490758 | Q132: 81 | R132: 57640.7032 | S132: 9.26448013e-06 | T132: 0.1596119081 | X132: 81 | Y132: 59616.6684 | Z132: 9.199624714e-06 | AA132: 0.168431339 | AE132: 81 | AF132: 59263.5797 | AG132: 9.515779615e-06 | AH132: 0.173208795 | AL132: 81 | AM132: 61737.3145 | AN132: 1.015827339e-05 | AO132: 0.16710975 | AS132: 81 | AT132: 55649.7761 | AU132: 9.130252516e-06 | AV132: 0.1549234569 | AZ132: 81 | BA132: 52407.9958 | BB132: 9.011057007e-06 | BC132: 0.1654026379 | BG132: 81 | BH132: 45229.4242 | BI132: 8.836657364e-06 | BJ132: 0.1510646292 | BN132: 81 | BO132: 45050.1922 | BP132: 9.484886319e-06 | BQ132: 0.1721445892 | BU132: 81 | BV132: 39765.1663 | BW132: 9.24771886e-06 | BX132: 0.1488606728 | CB132: 81 | CC132: 33971.0635 | CD132: 9.068522957e-06 | CE132: 0.1635117331 | CI132: 81 | CJ132: 27572.671 | CK132: 9.253061958e-06 | CL132: 0.1592388707 | CP132: 81 | CQ132: 24537.6112 | CR132: 1.035365964e-05 | CS132: 0.1715700537 | CW132: 81 | CX132: 12357.9103 | CY132: 9.689639798e-06 | CZ132: 0.1557651403
C133: 82 | D133: 57219.162 | E133: 1.031436736e-05 | F133: 0.1780498971 | J133: 82 | K133: 57176.794 | L133: 9.419593994e-06 | M133: 0.1671339086 | Q133: 82 | R133: 57669.8367 | S133: 9.274732932e-06 | T133: 0.1598819642 | X133: 82 | Y133: 59684.6865 | Z133: 9.221600114e-06 | AA133: 0.1690578274 | AE133: 82 | AF133: 59691.5611 | AG133: 9.65811265e-06 | AH133: 0.1773118407 | AL133: 82 | AM133: 61909.1992 | AN133: 1.022668954e-05 | AO133: 0.1688616821 | AS133: 82 | AT133: 55752.6969 | AU133: 9.166831479e-06 | AV133: 0.1558650322 | AZ133: 82 | BA133: 52801.1601 | BB133: 9.135871358e-06 | BC133: 0.1689700042 | BG133: 82 | BH133: 45484.0104 | BI133: 8.924248364e-06 | BJ133: 0.153325469 | BN133: 82 | BO133: 45095.8446 | BP133: 9.500111277e-06 | BQ133: 0.1725779446 | BU133: 82 | BV133: 40072.375 | BW133: 9.365708856e-06 | BX133: 0.1517197737 | CB133: 82 | CC133: 34066.259 | CD133: 9.099613745e-06 | CE133: 0.1643764956 | CI133: 82 | CJ133: 28099.3585 | CK133: 9.438495692e-06 | CL133: 0.1641611797 | CP133: 82 | CQ133: 24548.0566 | CR133: 1.035782962e-05 | CS133: 0.1716782236 | CW133: 82 | CX133: 12520.6716 | CY133: 9.754334545e-06 | CZ133: 0.1573475035
C134: 83 | D134: 57228.9588 | E134: 1.031805788e-05 | F134: 0.1781509629 | J134: 83 | K134: 57321.9429 | L134: 9.469264825e-06 | M134: 0.1685047574 | Q134: 83 | R134: 57677.5267 | S134: 9.277439216e-06 | T134: 0.1599532973 | X134: 83 | Y134: 59703.0112 | Z134: 9.227519695e-06 | AA134: 0.1692268647 | AE134: 83 | AF134: 59748.1491 | AG134: 9.676907515e-06 | AH134: 0.1778589058 | AL134: 83 | AM134: 62069.7291 | AN134: 1.029054983e-05 | AO134: 0.1705084978 | AS134: 83 | AT134: 56004.0547 | AU134: 9.256177975e-06 | AV134: 0.1581804155 | AZ134: 83 | BA134: 53232.6596 | BB134: 9.272679009e-06 | BC134: 0.1729416522 | BG134: 83 | BH134: 45644.1877 | BI134: 8.979377749e-06 | BJ134: 0.1547593461 | BN134: 83 | BO134: 45274.3551 | BP134: 9.559614615e-06 | BQ134: 0.1742791259 | BU134: 83 | BV134: 40676.986 | BW134: 9.598131911e-06 | BX134: 0.1574526375 | CB134: 83 | CC134: 34370.5492 | CD134: 9.198956387e-06 | CE134: 0.167160535 | CI134: 83 | CJ134: 28363.9632 | CK134: 9.531602033e-06 | CL134: 0.1666709694 | CP134: 83 | CQ134: 24574.6872 | CR134: 1.036846014e-05 | CS134: 0.1719542004 | CW134: 83 | CX134: 12560.7437 | CY134: 9.770263421e-06 | CZ134: 0.1577386993
C135: 84 | D135: 57312.1798 | E135: 1.034939828e-05 | F135: 0.1790109463 | J135: 84 | K135: 57342.2979 | L135: 9.476228733e-06 | M135: 0.1686975752 | Q135: 84 | R135: 57700.8753 | S135: 9.285656058e-06 | T135: 0.1601700084 | X135: 84 | Y135: 60210.999 | Z135: 9.391461419e-06 | AA135: 0.1739559861 | AE135: 84 | AF135: 59791.3543 | AG135: 9.691253255e-06 | AH135: 0.1782773084 | AL135: 84 | AM135: 62227.5995 | AN135: 1.035331238e-05 | AO135: 0.1721380258 | AS135: 84 | AT135: 56100.8636 | AU135: 9.290591028e-06 | AV135: 0.1590781616 | AZ135: 84 | BA135: 53713.7486 | BB135: 9.424907685e-06 | BC135: 0.1774392684 | BG135: 84 | BH135: 46068.2107 | BI135: 9.125358067e-06 | BJ135: 0.158597757 | BN135: 84 | BO135: 45360.1509 | BP135: 9.588195302e-06 | BQ135: 0.1751005268 | BU135: 84 | BV135: 40751.3665 | BW135: 9.626734319e-06 | BX135: 0.1581676151 | CB135: 84 | CC135: 34611.49 | CD135: 9.277562977e-06 | CE135: 0.1693864098 | CI135: 84 | CJ135: 28502.1211 | CK135: 9.580192078e-06 | CL135: 0.1679911923 | CP135: 84 | CQ135: 24607.0415 | CR135: 1.038137376e-05 | CS135: 0.1722898736 | CW135: 84 | CX135: 12658.4877 | CY135: 9.809117843e-06 | CZ135: 0.1586955828
C136: 85 | D136: 57505.2765 | E136: 1.042204867e-05 | F136: 0.1810163968 | J136: 85 | K136: 57490.8168 | L136: 9.527026466e-06 | M136: 0.1701087468 | Q136: 85 | R136: 58080.5208 | S136: 9.419238708e-06 | T136: 0.1637206247 | X136: 85 | Y136: 60275.5543 | Z136: 9.412270078e-06 | AA136: 0.1745629264 | AE136: 85 | AF136: 59858.5609 | AG136: 9.713560881e-06 | AH136: 0.1789293743 | AL136: 85 | AM136: 62449.3537 | AN136: 1.04413954e-05 | AO136: 0.1744436844 | AS136: 85 | AT136: 56127.2753 | AU136: 9.299979665e-06 | AV136: 0.1593236659 | AZ136: 85 | BA136: 53725.6491 | BB136: 9.428668478e-06 | BC136: 0.1775514519 | BG136: 85 | BH136: 46723.6134 | BI136: 9.350971623e-06 | BJ136: 0.1646524826 | BN136: 85 | BO136: 45399.1367 | BP136: 9.601178363e-06 | BQ136: 0.1754745834 | BU136: 85 | BV136: 40875.4524 | BW136: 9.67445104e-06 | BX136: 0.1593651176 | CB136: 85 | CC136: 34630.2048 | CD136: 9.283666234e-06 | CE136: 0.1695600946 | CI136: 85 | CJ136: 28618.0146 | CK136: 9.620936614e-06 | CL136: 0.1691038354 | CP136: 85 | CQ136: 24809.6178 | CR136: 1.046218289e-05 | CS136: 0.1744010802 | CW136: 85 | CX136: 12690.6032 | CY136: 9.821884191e-06 | CZ136: 0.1590108125
C137: 86 | D137: 57521.1944 | E137: 1.042803313e-05 | F137: 0.1811823415 | J137: 86 | K137: 57664.2744 | L137: 9.586319659e-06 | M137: 0.1717664249 | Q137: 86 | R137: 58134.8657 | S137: 9.438355294e-06 | T137: 0.1642330317 | X137: 86 | Y137: 60404.3572 | Z137: 9.453768629e-06 | AA137: 0.175777927 | AE137: 86 | AF137: 59875.2201 | AG137: 9.719089067e-06 | AH137: 0.1790912405 | AL137: 86 | AM137: 62459.7767 | AN137: 1.044553309e-05 | AO137: 0.1745525366 | AS137: 86 | AT137: 56185.6695 | AU137: 9.320736991e-06 | AV137: 0.1598673368 | AZ137: 86 | BA137: 53729.3975 | BB137: 9.429852994e-06 | BC137: 0.1775867965 | BG137: 86 | BH137: 46856.4701 | BI137: 9.396681145e-06 | BJ137: 0.1658978584 | BN137: 86 | BO137: 45399.8078 | BP137: 9.60140183e-06 | BQ137: 0.1754810268 | BU137: 86 | BV137: 41039.6749 | BW137: 9.737599605e-06 | BX137: 0.1609590654 | CB137: 86 | CC137: 34669.5746 | CD137: 9.296504239e-06 | CE137: 0.1699258434 | CI137: 86 | CJ137: 28836.6933 | CK137: 9.697773475e-06 | CL137: 0.1712161317 | CP137: 86 | CQ137: 24874.0353 | CR137: 1.048786186e-05 | CS137: 0.175075855 | CW137: 86 | CX137: 12751.9507 | CY137: 9.846270484e-06 | CZ137: 0.1596141086
C138: 87 | D138: 57642.5376 | E138: 1.047362949e-05 | F138: 0.1824504793 | J138: 87 | K138: 57917.4815 | L138: 9.672796852e-06 | M138: 0.1742046995 | Q138: 87 | R138: 58174.6288 | S138: 9.452341377e-06 | T138: 0.164608608 | X138: 87 | Y138: 60569.8344 | Z138: 9.507042179e-06 | AA138: 0.1773467186 | AE138: 87 | AF138: 59877.7836 | AG138: 9.719939687e-06 | AH138: 0.1791161565 | AL138: 87 | AM138: 62579.4087 | AN138: 1.049300732e-05 | AO138: 0.1758049967 | AS138: 87 | AT138: 56415.0729 | AU138: 9.402276297e-06 | AV138: 0.1620148986 | AZ138: 87 | BA138: 54399.0222 | BB138: 9.641008231e-06 | BC138: 0.1839720089 | BG138: 87 | BH138: 46857.3254 | BI138: 9.39697537e-06 | BJ138: 0.1659058955 | BN138: 87 | BO138: 45409.5193 | BP138: 9.604635539e-06 | BQ138: 0.1755742865 | BU138: 87 | BV138: 41633.4241 | BW138: 9.965808623e-06 | BX138: 0.1668085184 | CB138: 87 | CC138: 34911.8295 | CD138: 9.375460328e-06 | CE138: 0.1721875324 | CI138: 87 | CJ138: 29031.6182 | CK138: 9.76620818e-06 | CL138: 0.17311314 | CP138: 87 | CQ138: 24950.7301 | CR138: 1.0518423e-05 | CS138: 0.1758813915 | CW138: 87 | CX138: 12908.684 | CY138: 9.908570765e-06 | CZ138: 0.1611622294
C139: 88 | D139: 57677.7953 | E139: 1.048687004e-05 | F139: 0.1828199888 | J139: 88 | K139: 57923.6515 | L139: 9.67490282e-06 | M139: 0.1742643872 | Q139: 88 | R139: 58755.3822 | S139: 9.65645964e-06 | T139: 0.1701573744 | X139: 88 | Y139: 60675.6873 | Z139: 9.541094423e-06 | AA139: 0.178354869 | AE139: 88 | AF139: 59879.0169 | AG139: 9.720348916e-06 | AH139: 0.1791281443 | AL139: 88 | AM139: 62582.9358 | AN139: 1.049440652e-05 | AO139: 0.1758420091 | AS139: 88 | AT139: 56730.0333 | AU139: 9.514191001e-06 | AV139: 0.164993869 | AZ139: 88 | BA139: 54418.8577 | BB139: 9.647247965e-06 | BC139: 0.184163305 | BG139: 88 | BH139: 47013.3456 | BI139: 9.450636521e-06 | BJ139: 0.1673761998 | BN139: 88 | BO139: 45440.6444 | BP139: 9.614998383e-06 | BQ139: 0.175873393 | BU139: 88 | BV139: 41926.5566 | BW139: 1.007835693e-05 | BX139: 0.1697463191 | CB139: 88 | CC139: 34997.3835 | CD139: 9.403326091e-06 | CE139: 0.1729908326 | CI139: 88 | CJ139: 29621.3286 | CK139: 9.972841344e-06 | CL139: 0.1789333342 | CP139: 88 | CQ139: 24954.9671 | CR139: 1.052011096e-05 | CS139: 0.1759259617 | CW139: 88 | CX139: 13198.7209 | CY139: 1.002383276e-05 | CZ139: 0.1640527967
C140: 89 | D140: 57911.6265 | E140: 1.057458569e-05 | F140: 0.1852824048 | J140: 89 | K140: 57934.838 | L140: 9.678720879e-06 | M140: 0.1743726368 | Q140: 89 | R140: 58809.4606 | S140: 9.67544798e-06 | T140: 0.1706800937 | X140: 89 | Y140: 60793.7506 | Z140: 9.579049235e-06 | AA140: 0.1794835629 | AE140: 89 | AF140: 60029.22 | AG140: 9.770164316e-06 | AH140: 0.1805919127 | AL140: 89 | AM140: 62609.9496 | AN140: 1.050512189e-05 | AO140: 0.1761256476 | AS140: 89 | AT140: 56901.2962 | AU140: 9.575018167e-06 | AV140: 0.166628506 | AZ140: 89 | BA140: 54421.2039 | BB140: 9.647985956e-06 | BC140: 0.1841859402 | BG140: 89 | BH140: 47699.7567 | BI140: 9.686396258e-06 | BJ140: 0.1739441703 | BN140: 89 | BO140: 45499.8704 | BP140: 9.63471244e-06 | BQ140: 0.1764434348 | BU140: 89 | BV140: 42047.1695 | BW140: 1.012463307e-05 | BX140: 0.1709646899 | CB140: 89 | CC140: 35217.013 | CD140: 9.474812541e-06 | CE140: 0.175063932 | CI140: 89 | CJ140: 30024.605 | CK140: 1.011371262e-05 | CL140: 0.1829835643 | CP140: 89 | CQ140: 25063.0231 | CR140: 1.05631445e-05 | CS140: 0.177065048 | CW140: 89 | CX140: 13281.1977 | CY140: 1.005659979e-05 | CZ140: 0.1648808817
C141: 90 | D141: 57942.2827 | E141: 1.05860726e-05 | F141: 0.1856067575 | J141: 90 | K141: 57969.4661 | L141: 9.690538445e-06 | M141: 0.1747079971 | Q141: 90 | R141: 58845.4793 | S141: 9.688092935e-06 | T141: 0.1710288185 | X141: 90 | Y141: 60846.6458 | Z141: 9.596044814e-06 | AA141: 0.1799906981 | AE141: 90 | AF141: 60040.4986 | AG141: 9.773902904e-06 | AH141: 0.1807021275 | AL141: 90 | AM141: 62643.5055 | AN141: 1.051842989e-05 | AO141: 0.1764783797 | AS141: 90 | AT141: 56968.6447 | AU141: 9.598931312e-06 | AV141: 0.1672741744 | AZ141: 90 | BA141: 54479.4842 | BB141: 9.666313568e-06 | BC141: 0.1847487618 | BG141: 90 | BH141: 47925.8399 | BI141: 9.763895728e-06 | BJ141: 0.1761428642 | BN141: 90 | BO141: 46205.4607 | BP141: 9.869026657e-06 | BQ141: 0.1833243229 | BU141: 90 | BV141: 42112.0099 | BW141: 1.014950148e-05 | BX141: 0.1716219815 | CB141: 90 | CC141: 35343.254 | CD141: 9.515867447e-06 | CE141: 0.1762626335 | CI141: 90 | CJ141: 30288.588 | CK141: 1.020569404e-05 | CL141: 0.1856655576 | CP141: 90 | CQ141: 25074.6155 | CR141: 1.056775951e-05 | CS141: 0.177187527 | CW141: 90 | CX141: 13306.4651 | CY141: 1.006663713e-05 | CZ141: 0.1651351126
C142: 91 | D142: 57995.7169 | E142: 1.060608696e-05 | F142: 0.1861729506 | J142: 91 | K142: 58064.2149 | L142: 9.72286287e-06 | M142: 0.1756276955 | Q142: 91 | R142: 58927.7821 | S142: 9.716979927e-06 | T142: 0.1718273645 | X142: 91 | Y142: 60928.8008 | Z142: 9.622430173e-06 | AA142: 0.1807801452 | AE142: 91 | AF142: 60152.7943 | AG142: 9.811110396e-06 | AH142: 0.1818017842 | AL142: 91 | AM142: 62680.6747 | AN142: 1.053316778e-05 | AO142: 0.1768696152 | AS142: 91 | AT142: 57202.2228 | AU142: 9.681830697e-06 | AV142: 0.1695259575 | AZ142: 91 | BA142: 54640.1868 | BB142: 9.716806248e-06 | BC142: 0.1863062216 | BG142: 91 | BH142: 48119.5294 | BI142: 9.830215224e-06 | BJ142: 0.1780404521 | BN142: 91 | BO142: 46370.342 | BP142: 9.923612593e-06 | BQ142: 0.184956042 | BU142: 91 | BV142: 42472.9665 | BW142: 1.028780431e-05 | BX142: 0.175310479 | CB142: 91 | CC142: 35399.5394 | CD142: 9.534163211e-06 | CE142: 0.1767987528 | CI142: 91 | CJ142: 30458.0528 | CK142: 1.026463358e-05 | CL142: 0.1874000588 | CP142: 91 | CQ142: 25223.2788 | CR142: 1.062691303e-05 | CS142: 0.1787629627 | CW142: 91 | CX142: 13402.5761 | CY142: 1.010481148e-05 | CZ142: 0.1661044617
C143: 92 | D143: 58021.0904 | E143: 1.06155875e-05 | F143: 0.1864421847 | J143: 92 | K143: 58208.7969 | L143: 9.772156825e-06 | M143: 0.1770370105 | Q143: 92 | R143: 59046.8961 | S143: 9.758769409e-06 | T143: 0.1729872819 | X143: 92 | Y143: 60997.0852 | Z143: 9.64434972e-06 | AA143: 0.1814379555 | AE143: 92 | AF143: 60184.2511 | AG143: 9.821527847e-06 | AH143: 0.1821105742 | AL143: 92 | AM143: 62820.5689 | AN143: 1.058860627e-05 | AO143: 0.1783470226 | AS143: 92 | AT143: 57246.1302 | AU143: 9.697406874e-06 | AV143: 0.1699514034 | AZ143: 92 | BA143: 54661.3372 | BB143: 9.723446741e-06 | BC143: 0.1865118062 | BG143: 92 | BH143: 48124.9753 | BI143: 9.832078817e-06 | BJ143: 0.1780939916 | BN143: 92 | BO143: 46585.9605 | BP143: 9.994884658e-06 | BQ143: 0.1871034425 | BU143: 92 | BV143: 42559.1333 | BW143: 1.032078138e-05 | BX143: 0.1761983671 | CB143: 92 | CC143: 35473.8287 | CD143: 9.558302467e-06 | CE143: 0.1775079358 | CI143: 92 | CJ143: 30480.3965 | CK143: 1.0272398e-05 | CL143: 0.1876294955 | CP143: 92 | CQ143: 25907.5039 | CR143: 1.089832687e-05 | CS143: 0.1861271024 | CW143: 92 | CX143: 13414.8949 | CY143: 1.010970375e-05 | CZ143: 0.166228971
C144: 93 | D144: 58213.6091 | E144: 1.06875985e-05 | F144: 0.1884928177 | J144: 93 | K144: 58306.8986 | L144: 9.80558066e-06 | M144: 0.1779973153 | Q144: 93 | R144: 59186.3924 | S144: 9.807680973e-06 | T144: 0.174352006 | X144: 93 | Y144: 61073.5445 | Z144: 9.668881144e-06 | AA144: 0.1821762936 | AE144: 93 | AF144: 60304.8683 | AG144: 9.861450023e-06 | AH144: 0.1832976274 | AL144: 93 | AM144: 63019.9603 | AN144: 1.066753309e-05 | AO144: 0.1804661702 | AS144: 93 | AT144: 57609.1874 | AU144: 9.826099174e-06 | AV144: 0.173495484 | AZ144: 93 | BA144: 54957.7836 | BB144: 9.816392585e-06 | BC144: 0.1894080697 | BG144: 93 | BH144: 48233.6548 | BI144: 9.869255928e-06 | BJ144: 0.1791645574 | BN144: 93 | BO144: 46604.5685 | BP144: 1.000102929e-05 | BQ144: 0.1872894845 | BU144: 93 | BV144: 42687.0233 | BW144: 1.036969582e-05 | BX144: 0.17752142 | CB144: 93 | CC144: 36264.4801 | CD144: 9.814498262e-06 | CE144: 0.1851665941 | CI144: 93 | CJ144: 30650.5725 | CK144: 1.033148076e-05 | CL144: 0.1893826397 | CP144: 93 | CQ144: 26138.7584 | CR144: 1.098969318e-05 | CS144: 0.1886579579 | CW144: 93 | CX144: 13821.6568 | CY144: 1.027114355e-05 | CZ144: 0.1703740543
C145: 94 | D145: 58220.3957 | E145: 1.069013458e-05 | F145: 0.1885653587 | J145: 94 | K145: 58343.5243 | L145: 9.818054236e-06 | M145: 0.17835668 | Q145: 94 | R145: 59265.2823 | S145: 9.835327342e-06 | T145: 0.1751268236 | X145: 94 | Y145: 61191.9495 | Z145: 9.706843966e-06 | AA145: 0.1833233853 | AE145: 94 | AF145: 60385.3275 | AG145: 9.888060358e-06 | AH145: 0.1840921424 | AL145: 94 | AM145: 63113.8533 | AN145: 1.070466024e-05 | AO145: 0.18146952 | AS145: 94 | AT145: 57659.5968 | AU145: 9.84395152e-06 | AV145: 0.1739912618 | AZ145: 94 | BA145: 55109.1008 | BB145: 9.863738586e-06 | BC145: 0.1908970417 | BG145: 94 | BH145: 48270.7704 | BI145: 9.881946573e-06 | BJ145: 0.1795310963 | BN145: 94 | BO145: 46615.5302 | BP145: 1.000464853e-05 | BQ145: 0.1873991326 | BU145: 94 | BV145: 43002.5598 | BW145: 1.049020747e-05 | BX145: 0.1808124573 | CB145: 94 | CC145: 36474.5413 | CD145: 9.882309017e-06 | CE145: 0.1872353637 | CI145: 94 | CJ145: 30700.5908 | CK145: 1.034882802e-05 | CL145: 0.1898998366 | CP145: 94 | CQ145: 26271.696 | CR145: 1.104211954e-05 | CS145: 0.1901223869 | CW145: 94 | CX145: 13977.3002 | CY145: 1.033285364e-05 | CZ145: 0.1719774929
C146: 95 | D146: 58335.0061 | E146: 1.073293722e-05 | F146: 0.1897930126 | J146: 95 | K146: 58379.7671 | L146: 9.830394643e-06 | M146: 0.1787127374 | Q146: 95 | R146: 59422.9328 | S146: 9.890540241e-06 | T146: 0.1766817206 | X146: 95 | Y146: 61195.5672 | Z146: 9.708003345e-06 | AA146: 0.1833585038 | AE146: 95 | AF146: 60445.3958 | AG146: 9.907915862e-06 | AH146: 0.1846866978 | AL146: 95 | AM146: 63333.5256 | AN146: 1.079141632e-05 | AO146: 0.1838305692 | AS146: 95 | AT146: 57910.7318 | AU146: 9.932822195e-06 | AV146: 0.1764745843 | AZ146: 95 | BA146: 55460.1987 | BB146: 9.973320397e-06 | BC146: 0.1943794282 | BG146: 95 | BH146: 48277.977 | BI146: 9.884410314e-06 | BJ146: 0.1796023204 | BN146: 95 | BO146: 46773.0697 | BP146: 1.00566239e-05 | BQ146: 0.188979355 | BU146: 95 | BV146: 43099.0696 | BW146: 1.052701338e-05 | BX146: 0.1818266414 | CB146: 95 | CC146: 36667.044 | CD146: 9.944342634e-06 | CE146: 0.1891437074 | CI146: 95 | CJ146: 30929.1965 | CK146: 1.042800084e-05 | CL146: 0.192274691 | CP146: 95 | CQ146: 26791.3481 | CR146: 1.124630921e-05 | CS146: 0.1959135549 | CW146: 95 | CX146: 14097.3638 | CY146: 1.038042785e-05 | CZ146: 0.1732209487
C147: 96 | D147: 58469.0145 | E147: 1.078292031e-05 | F147: 0.1912346662 | J147: 96 | K147: 58430.4008 | L147: 9.847630348e-06 | M147: 0.179210923 | Q147: 96 | R147: 59506.0189 | S147: 9.919619261e-06 | T147: 0.1775046952 | X147: 96 | Y147: 61275.2438 | Z147: 9.733529568e-06 | AA147: 0.1841330216 | AE147: 96 | AF147: 60618.7929 | AG147: 9.96517752e-06 | AH147: 0.1864096674 | AL147: 96 | AM147: 63558.9595 | AN147: 1.088027963e-05 | AO147: 0.18627334 | AS147: 96 | AT147: 58096.5795 | AU147: 9.998508952e-06 | AV147: 0.1783266814 | AZ147: 96 | BA147: 55466.3329 | BB147: 9.975231378e-06 | BC147: 0.1944406124 | BG147: 96 | BH147: 48612.8274 | BI147: 9.998751659e-06 | BJ147: 0.1829312703 | BN147: 96 | BO147: 46848.8092 | BP147: 1.008158474e-05 | BQ147: 0.1897419841 | BU147: 96 | BV147: 43106.7929 | BW147: 1.052995765e-05 | BX147: 0.181907956 | CB147: 96 | CC147: 37155.2158 | CD147: 1.010113998e-05 | CE147: 0.1940365585 | CI147: 96 | CJ147: 31366.9151 | CK147: 1.057904427e-05 | CL147: 0.1968723057 | CP147: 96 | CQ147: 26834.2074 | CR147: 1.126309313e-05 | CS147: 0.1963959235 | CW147: 96 | CX147: 14128.105 | CY147: 1.03926044e-05 | CZ147: 0.1735402427
C148: 97 | D148: 58497.0222 | E148: 1.079335776e-05 | F148: 0.1915368172 | J148: 97 | K148: 58581.8783 | L148: 9.899159304e-06 | M148: 0.1807065208 | Q148: 97 | R148: 59604.3577 | S148: 9.954017872e-06 | T148: 0.1784818702 | X148: 97 | Y148: 61285.8294 | Z148: 9.736919733e-06 | AA148: 0.1842360748 | AE148: 97 | AF148: 60687.2795 | AG148: 9.987770982e-06 | AH148: 0.1870929222 | AL148: 97 | AM148: 63691.4022 | AN148: 1.093240096e-05 | AO148: 0.1877178059 | AS148: 97 | AT148: 58180.8091 | AU148: 1.002825471e-05 | AV148: 0.1791701047 | AZ148: 97 | BA148: 55654.5394 | BB148: 1.003380041e-05 | BC148: 0.1963235292 | BG148: 97 | BH148: 48797.2652 | BI148: 1.006160993e-05 | BJ148: 0.1847812162 | BN148: 97 | BO148: 46987.3376 | BP148: 1.0127191e-05 | BQ148: 0.1911417295 | BU148: 97 | BV148: 43280.9398 | BW148: 1.05962982e-05 | BX148: 0.1837474933 | CB148: 97 | CC148: 37409.5878 | CD148: 1.01825211e-05 | CE148: 0.1966163612 | CI148: 97 | CJ148: 31387.753 | CK148: 1.05862155e-05 | CL148: 0.1970928255 | CP148: 97 | CQ148: 26927.2616 | CR148: 1.129950168e-05 | CS148: 0.197445696 | CW148: 97 | CX148: 14160.7496 | CY148: 1.040553284e-05 | CZ148: 0.1738797162
C149: 98 | D149: 58598.3753 | E149: 1.083110168e-05 | F149: 0.1926326705 | J149: 98 | K149: 58922.1457 | L149: 1.001470858e-05 | M149: 0.1840945491 | Q149: 98 | R149: 59630.0724 | S149: 9.96300934e-06 | T149: 0.1787379503 | X149: 98 | Y149: 61458.7162 | Z149: 9.792248501e-06 | AA149: 0.1859242436 | AE149: 98 | AF149: 60977.4329 | AG149: 1.008333671e-05 | AH149: 0.1900047785 | AL149: 98 | AM149: 63854.156 | AN149: 1.099635779e-05 | AO149: 0.1895023017 | AS149: 98 | AT149: 58369.9551 | AU149: 1.009499124e-05 | AV149: 0.1810732218 | AZ149: 98 | BA149: 56284.694 | BB149: 1.022895131e-05 | BC149: 0.2027079424 | BG149: 98 | BH149: 48952.2936 | BI149: 1.011437204e-05 | BJ149: 0.1863451422 | BN149: 98 | BO149: 47031.9074 | BP149: 1.014185086e-05 | BQ149: 0.1915934231 | BU149: 98 | BV149: 43614.7056 | BW149: 1.072317074e-05 | BX149: 0.1873053586 | CB149: 98 | CC149: 37526.417 | CD149: 1.021981836e-05 | CE149: 0.1978081562 | CI149: 98 | CJ149: 31725.6538 | CK149: 1.070223869e-05 | CL149: 0.2006895326 | CP149: 98 | CQ149: 27146.3263 | CR149: 1.138503469e-05 | CS149: 0.1999303912 | CW149: 98 | CX149: 14343.1786 | CY149: 1.047774026e-05 | CZ149: 0.1757845746
C150: 99 | D150: 58688.8772 | E150: 1.086476838e-05 | F150: 0.1936144295 | J150: 99 | K150: 59118.1464 | L150: 1.008112808e-05 | M150: 0.1860639499 | Q150: 99 | R150: 59758.95 | S150: 1.000805051e-05 | T150: 0.1800248619 | X150: 99 | Y150: 61488.4795 | Z150: 9.801765753e-06 | AA150: 0.1862158348 | AE150: 99 | AF150: 61081.5513 | AG150: 1.011756519e-05 | AH150: 0.1910564216 | AL150: 99 | AM150: 63923.8986 | AN150: 1.102373147e-05 | AO150: 0.190270171 | AS150: 99 | AT150: 58501.8269 | AU150: 1.014146689e-05 | AV150: 0.1824075313 | AZ150: 99 | BA150: 56302.0297 | BB150: 1.023429782e-05 | BC150: 0.2028853148 | BG150: 99 | BH150: 49132.0338 | BI150: 1.017545536e-05 | BJ150: 0.1881685925 | BN150: 99 | BO150: 47177.759 | BP150: 1.018977712e-05 | BQ150: 0.1930761242 | BU150: 99 | BV150: 44050.5001 | BW150: 1.088821429e-05 | BX150: 0.1920144469 | CB150: 99 | CC150: 37722.5059 | CD150: 1.02823003e-05 | CE150: 0.1998182776 | CI150: 99 | CJ150: 31727.2439 | CK150: 1.070278346e-05 | CL150: 0.2007065506 | CP150: 99 | CQ150: 27436.37 | CR150: 1.149787356e-05 | CS150: 0.2032489245 | CW150: 99 | CX150: 14379.26 | CY150: 1.049201298e-05 | CZ150: 0.1761628836
C151: 100 | D151: 58693.6921 | E151: 1.086655855e-05 | F151: 0.1936667466 | J151: 100 | K151: 59133.6295 | L151: 1.008637024e-05 | M151: 0.1862200776 | Q151: 100 | R151: 59987.9538 | S151: 1.008798629e-05 | T151: 0.1823258988 | X151: 100 | Y151: 61614.3264 | Z151: 9.841980604e-06 | AA151: 0.1874518876 | AE151: 100 | AF151: 61176.996 | AG151: 1.014891084e-05 | AH151: 0.1920235857 | AL151: 100 | AM151: 64021.7654 | AN151: 1.106210925e-05 | AO151: 0.1913509066 | AS151: 100 | AT151: 58810.4067 | AU151: 1.025003434e-05 | AV151: 0.185553741 | AZ151: 100 | BA151: 56575.3672 | BB151: 1.031842975e-05 | BC151: 0.2056942377 | BG151: 100 | BH151: 49292.3925 | BI151: 1.022986639e-05 | BJ151: 0.189804679 | BN151: 100 | BO151: 47307.8776 | BP151: 1.023247071e-05 | BQ151: 0.194404782 | BU151: 100 | BV151: 44163.9726 | BW151: 1.093106232e-05 | BX151: 0.1932523913 | CB151: 100 | CC151: 37792.4414 | CD151: 1.030454746e-05 | CE151: 0.2005381534 | CI151: 100 | CJ151: 31785.1996 | CK151: 1.072263135e-05 | CL151: 0.2013274132 | CP151: 100 | CQ151: 27478.2132 | CR151: 1.151411205e-05 | CS151: 0.2037303721 | CW151: 100 | CX151: 14397.6155 | CY151: 1.04992727e-05 | CZ151: 0.1763555364
C152: 101 | D152: 58911.9479 | E152: 1.094759843e-05 | F152: 0.1960472836 | J152: 101 | K152: 59196.6657 | L152: 1.010770535e-05 | M152: 0.1868565566 | Q152: 101 | R152: 60249.0144 | S152: 1.017894376e-05 | T152: 0.1849713513 | X152: 101 | Y152: 61701.4979 | Z152: 9.869810708e-06 | AA152: 0.1883110409 | AE152: 101 | AF152: 61418.8438 | AG152: 1.022819726e-05 | AH152: 0.1944876692 | AL152: 101 | AM152: 64305.5633 | AN152: 1.117315888e-05 | AO152: 0.1945060764 | AS152: 101 | AT152: 59124.3666 | AU152: 1.036020007e-05 | AV152: 0.1887891428 | AZ152: 101 | BA152: 56657.3047 | BB152: 1.034358642e-05 | BC152: 0.2065407348 | BG152: 101 | BH152: 49813.3685 | BI152: 1.040602573e-05 | BJ152: 0.1951801237 | BN152: 101 | BO152: 47471.5686 | BP152: 1.0286092e-05 | BQ152: 0.1960841354 | BU152: 101 | BV152: 44182.1407 | BW152: 1.093791759e-05 | BX152: 0.1934510502 | CB152: 101 | CC152: 37953.7115 | CD152: 1.035577198e-05 | CE152: 0.2022041008 | CI152: 101 | CJ152: 31797.4319 | CK152: 1.07268185e-05 | CL152: 0.2014586012 | CP152: 101 | CQ152: 27672.3637 | CR152: 1.158931923e-05 | CS152: 0.2059731472 | CW152: 101 | CX152: 14462.0726 | CY152: 1.052475958e-05 | CZ152: 0.1770331105
C153: 102 | D153: 59161.1362 | E153: 1.103985574e-05 | F153: 0.1987867979 | J153: 102 | K153: 59283.287 | L153: 1.01370036e-05 | M153: 0.1877333682 | Q153: 102 | R153: 60269.6851 | S153: 1.018613755e-05 | T153: 0.1851818316 | X153: 102 | Y153: 61715.8643 | Z153: 9.874395196e-06 | AA153: 0.1884528675 | AE153: 102 | AF153: 61781.8162 | AG153: 1.034678843e-05 | AH153: 0.1982217605 | AL153: 102 | AM153: 64392.1633 | AN153: 1.120697069e-05 | AO153: 0.1954751363 | AS153: 102 | AT153: 59158.152 | AU153: 1.037203589e-05 | AV153: 0.1891393662 | AZ153: 102 | BA153: 56689.6058 | BB153: 1.035349534e-05 | BC153: 0.2068750041 | BG153: 102 | BH153: 49856.5505 | BI153: 1.042058181e-05 | BJ153: 0.195629791 | BN153: 102 | BO153: 47479.6681 | BP153: 1.02887426e-05 | BQ153: 0.1961674583 | BU153: 102 | BV153: 44622.6993 | BW153: 1.110369023e-05 | BX153: 0.1983063934 | CB153: 102 | CC153: 38077.9956 | CD153: 1.039517315e-05 | CE153: 0.2034936078 | CI153: 102 | CJ153: 31915.883 | CK153: 1.076732806e-05 | CL153: 0.2027316045 | CP153: 102 | CQ153: 27688.2166 | CR153: 1.159544981e-05 | CS153: 0.2061569201 | CW153: 102 | CX153: 14558.3487 | CY153: 1.056280897e-05 | CZ153: 0.1780482251
C154: 103 | D154: 59273.7549 | E154: 1.108145175e-05 | F154: 0.2000324349 | J154: 103 | K154: 59394.5235 | L154: 1.017459356e-05 | M154: 0.1888630641 | Q154: 103 | R154: 60313.0427 | S154: 1.020122273e-05 | T154: 0.1856238051 | X154: 103 | Y154: 62016.3908 | Z154: 9.970155464e-06 | AA154: 0.1914347811 | AE154: 103 | AF154: 62079.1568 | AG154: 1.044354448e-05 | AH154: 0.2013126746 | AL154: 103 | AM154: 64418.2562 | AN154: 1.121715119e-05 | AO154: 0.1957676915 | AS154: 103 | AT154: 59223.514 | AU154: 1.039492266e-05 | AV154: 0.1898180513 | AZ154: 103 | BA154: 56690.3958 | BB154: 1.035373763e-05 | BC154: 0.2068831835 | BG154: 103 | BH154: 50003.7676 | BI154: 1.047015118e-05 | BJ154: 0.1971675287 | BN154: 103 | BO154: 47641.8405 | BP154: 1.034176071e-05 | BQ154: 0.1978403088 | BU154: 103 | BV154: 44854.8496 | BW154: 1.119066293e-05 | BX154: 0.2008942192 | CB154: 103 | CC154: 38281.7564 | CD154: 1.045962296e-05 | CE154: 0.2056183059 | CI154: 103 | CJ154: 32026.4988 | CK154: 1.08050969e-05 | CL154: 0.2039247306 | CP154: 103 | CQ154: 27738.0389 | CR154: 1.161470661e-05 | CS154: 0.2067351119 | CW154: 103 | CX154: 14930.144 | CY154: 1.070951138e-05 | CZ154: 0.1820027116
C155: 104 | D155: 59708.2145 | E155: 1.124130153e-05 | F155: 0.2048816388 | J155: 104 | K155: 59432.3992 | L155: 1.018738388e-05 | M155: 0.1892486762 | Q155: 104 | R155: 60364.876 | S155: 1.021924947e-05 | T155: 0.1861530354 | X155: 104 | Y155: 62456.9736 | Z155: 1.011001692e-05 | AA155: 0.1958582945 | AE155: 104 | AF155: 62197.2409 | AG155: 1.048186519e-05 | AH155: 0.2025481543 | AL155: 104 | AM155: 64818.5128 | AN155: 1.137288207e-05 | AO155: 0.2002886242 | AS155: 104 | AT155: 59347.2108 | AU155: 1.04381946e-05 | AV155: 0.1911065468 | AZ155: 104 | BA155: 56797.4591 | BB155: 1.038654691e-05 | BC155: 0.2079934456 | BG155: 104 | BH155: 50124.6259 | BI155: 1.05107792e-05 | BJ155: 0.1984353891 | BN155: 104 | BO155: 47770.716 | BP155: 1.038381876e-05 | BQ155: 0.1991758193 | BU155: 104 | BV155: 44930.5355 | BW155: 1.121895715e-05 | BX155: 0.2017422655 | CB155: 104 | CC155: 38566.6429 | CD155: 1.054941178e-05 | CE155: 0.2086109102 | CI155: 104 | CJ155: 32180.6509 | CK155: 1.085762944e-05 | CL155: 0.2055944095 | CP155: 104 | CQ155: 28472.303 | CR155: 1.189657658e-05 | CS155: 0.2153670855 | CW155: 104 | CX155: 15051.3876 | CY155: 1.075726246e-05 | CZ155: 0.1833040666
C156: 105 | D156: 59842.5764 | E156: 1.129052643e-05 | F156: 0.2063953495 | J156: 105 | K156: 59546.3985 | L156: 1.022585225e-05 | M156: 0.1904122239 | Q156: 105 | R156: 60382.4092 | S156: 1.022534538e-05 | T156: 0.1863322649 | X156: 105 | Y156: 62476.3061 | Z156: 1.011613853e-05 | AA156: 0.1960538056 | AE156: 105 | AF156: 62375.7381 | AG156: 1.053967308e-05 | AH156: 0.2044242993 | AL156: 105 | AM156: 64930.4882 | AN156: 1.141629558e-05 | AO156: 0.2015645385 | AS156: 105 | AT156: 59354.3003 | AU156: 1.044067301e-05 | AV156: 0.1911805572 | AZ156: 105 | BA156: 56888.0571 | BB156: 1.041426915e-05 | BC156: 0.208935702 | BG156: 105 | BH156: 50283.3561 | BI156: 1.056404437e-05 | BJ156: 0.200107996 | BN156: 105 | BO156: 47779.9079 | BP156: 1.038681592e-05 | BQ156: 0.1992712801 | BU156: 105 | BV156: 44986.2888 | BW156: 1.123978012e-05 | BX156: 0.2023683399 | CB156: 105 | CC156: 38863.7554 | CD156: 1.064263248e-05 | CE156: 0.2117591318 | CI156: 105 | CJ156: 32266.9125 | CK156: 1.088697307e-05 | CL156: 0.2065322719 | CP156: 105 | CQ156: 28519.6038 | CR156: 1.191460285e-05 | CS156: 0.2159302295 | CW156: 105 | CX156: 15077.8739 | CY156: 1.076768763e-05 | CZ156: 0.1835891247
C157: 106 | D157: 60016.0992 | E157: 1.135394232e-05 | F157: 0.2083600179 | J157: 106 | K157: 59642.3606 | L157: 1.025820029e-05 | M157: 0.1913950705 | Q157: 106 | R157: 60430.2465 | S157: 1.024197257e-05 | T157: 0.1868218156 | X157: 106 | Y157: 62524.0362 | Z157: 1.013124642e-05 | AA157: 0.1965370105 | AE157: 106 | AF157: 62496.7977 | AG157: 1.05787958e-05 | AH157: 0.2057025967 | AL157: 106 | AM157: 65144.0146 | AN157: 1.149888252e-05 | AO157: 0.204011041 | AS157: 106 | AT157: 59407.058 | AU157: 1.045911073e-05 | AV157: 0.1917318695 | AZ157: 106 | BA157: 57070.3494 | BB157: 1.046993142e-05 | BC157: 0.2108392189 | BG157: 106 | BH157: 50348.3428 | BI157: 1.05858203e-05 | BJ157: 0.200795226 | BN157: 106 | BO157: 47911.9972 | BP157: 1.042984674e-05 | BQ157: 0.2006461101 | BU157: 106 | BV157: 45048.3259 | BW157: 1.126293003e-05 | BX157: 0.2030663415 | CB157: 106 | CC157: 39150.1382 | CD157: 1.073205533e-05 | CE157: 0.2148198136 | CI157: 106 | CJ157: 32614.9115 | CK157: 1.100494928e-05 | CL157: 0.2103414745 | CP157: 106 | CQ157: 28528.3924 | CR157: 1.191795032e-05 | CS157: 0.2160349569 | CW157: 106 | CX157: 15287.6061 | CY157: 1.085015551e-05 | CZ157: 0.1858561063
C158: 107 | D158: 60270.5748 | E158: 1.144661163e-05 | F158: 0.2112611188 | J158: 107 | K158: 59674.7972 | L158: 1.026912725e-05 | M158: 0.1917279889 | Q158: 107 | R158: 60519.757 | S158: 1.027306527e-05 | T158: 0.1877399714 | X158: 107 | Y158: 62681.5106 | Z158: 1.018103156e-05 | AA158: 0.1981363436 | AE158: 107 | AF158: 62512.9696 | AG158: 1.058401682e-05 | AH158: 0.2058737181 | AL158: 107 | AM158: 65257.1198 | AN158: 1.154251946e-05 | AO158: 0.2053140929 | AS158: 107 | AT158: 59591.9563 | AU158: 1.052364656e-05 | AV158: 0.1936717096 | AZ158: 107 | BA158: 57177.1411 | BB158: 1.0502465e-05 | BC158: 0.2119590584 | BG158: 107 | BH158: 50503.0182 | BI158: 1.063757295e-05 | BJ158: 0.2024365959 | BN158: 107 | BO158: 48108.4972 | BP158: 1.049372238e-05 | BQ158: 0.2027018535 | BU158: 107 | BV158: 45281.7472 | BW158: 1.134984006e-05 | BX158: 0.2057054986 | CB158: 107 | CC158: 39165.8294 | CD158: 1.073694219e-05 | CE158: 0.2149882508 | CI158: 107 | CJ158: 32744.5575 | CK158: 1.104872922e-05 | CL158: 0.2117710612 | CP158: 107 | CQ158: 28534.8679 | CR158: 1.192041639e-05 | CS158: 0.2161121395 | CW158: 107 | CX158: 15502.7164 | CY158: 1.093457338e-05 | CZ158: 0.1881991692
C159: 108 | D159: 60493.4825 | E159: 1.152744568e-05 | F159: 0.213821672 | J159: 108 | K159: 59737.3395 | L159: 1.029018553e-05 | M159: 0.1923709023 | Q159: 108 | R159: 60638.1573 | S159: 1.031415365e-05 | T159: 0.1889587383 | X159: 108 | Y159: 63088.7178 | Z159: 1.030932092e-05 | AA159: 0.2023082757 | AE159: 108 | AF159: 62665.0234 | AG159: 1.063304514e-05 | AH159: 0.207486787 | AL159: 108 | AM159: 65324.3922 | AN159: 1.156843659e-05 | AO159: 0.2060914578 | AS159: 108 | AT159: 59610.7137 | AU159: 1.053018619e-05 | AV159: 0.1938691671 | AZ159: 108 | BA159: 57305.0599 | BB159: 1.054136007e-05 | BC159: 0.2133050097 | BG159: 108 | BH159: 50611.0996 | BI159: 1.067367021e-05 | BJ159: 0.2035882709 | BN159: 108 | BO159: 48350.6441 | BP159: 1.057219835e-05 | BQ159: 0.2052523826 | BU159: 108 | BV159: 45454.0209 | BW159: 1.141377888e-05 | BX159: 0.2076662876 | CB159: 108 | CC159: 39280.1648 | CD159: 1.077250986e-05 | CE159: 0.2162178974 | CI159: 108 | CJ159: 32778.2867 | CK159: 1.106010336e-05 | CL159: 0.2121439178 | CP159: 108 | CQ159: 28689.8998 | CR159: 1.197936172e-05 | CS159: 0.2179647559 | CW159: 108 | CX159: 15720.8376 | CY159: 1.101998811e-05 | CZ159: 0.1905935503
C160: 109 | D160: 60595.0203 | E160: 1.156415741e-05 | F160: 0.2149940079 | J160: 109 | K160: 59860.6664 | L160: 1.033166917e-05 | M160: 0.1936425175 | Q160: 109 | R160: 61463.1625 | S160: 1.059905232e-05 | T160: 0.1975856681 | X160: 109 | Y160: 63122.2229 | Z160: 1.031984639e-05 | AA160: 0.2026538669 | AE160: 109 | AF160: 62766.5522 | AG160: 1.066571897e-05 | AH160: 0.2085680064 | AL160: 109 | AM160: 65587.7018 | AN160: 1.166960248e-05 | AO160: 0.209150867 | AS160: 109 | AT160: 59780.6996 | AU160: 1.05893866e-05 | AV160: 0.1956641836 | AZ160: 109 | BA160: 57426.7513 | BB160: 1.057828428e-05 | BC160: 0.21459005 | BG160: 109 | BH160: 50884.9969 | BI160: 1.076489517e-05 | BJ160: 0.2065242618 | BN160: 109 | BO160: 48517.3843 | BP160: 1.062607632e-05 | BQ160: 0.2070196868 | BU160: 109 | BV160: 45455.0525 | BW160: 1.141416121e-05 | BX160: 0.2076780623 | CB160: 109 | CC160: 39641.1607 | CD160: 1.088432317e-05 | CE160: 0.220126934 | CI160: 109 | CJ160: 32841.4362 | CK160: 1.108138074e-05 | CL160: 0.2128430297 | CP160: 109 | CQ160: 28808.4505 | CR160: 1.202431035e-05 | CS160: 0.2193875831 | CW160: 109 | CX160: 15755.5182 | CY160: 1.103355068e-05 | CZ160: 0.1909759653
C161: 110 | D161: 61047.8109 | E161: 1.172699002e-05 | F161: 0.2202670694 | J161: 110 | K161: 59875.1474 | L161: 1.033653651e-05 | M161: 0.1937921657 | Q161: 110 | R161: 61571.0489 | S161: 1.063610742e-05 | T161: 0.198731161 | X161: 110 | Y161: 63179.5699 | Z161: 1.033785061e-05 | AA161: 0.2032461954 | AE161: 110 | AF161: 62864.0782 | AG161: 1.069705581e-05 | AH161: 0.2096097198 | AL161: 110 | AM161: 65736.4876 | AN161: 1.172656576e-05 | AO161: 0.2108913776 | AS161: 110 | AT161: 59912.3138 | AU161: 1.063514184e-05 | AV161: 0.197060909 | AZ161: 110 | BA161: 57632.9616 | BB161: 1.064067658e-05 | BC161: 0.216777838 | BG161: 110 | BH161: 50945.1515 | BI161: 1.078488043e-05 | BJ161: 0.207172421 | BN161: 110 | BO161: 48913.9214 | BP161: 1.075365249e-05 | BQ161: 0.2112586411 | BU161: 110 | BV161: 45647.2631 | BW161: 1.148528417e-05 | BX161: 0.209878824 | CB161: 110 | CC161: 39694.7004 | CD161: 1.090084151e-05 | CE161: 0.2207101196 | CI161: 110 | CJ161: 32882.0474 | CK161: 1.109505174e-05 | CL161: 0.2132933355 | CP161: 110 | CQ161: 28958.9058 | CR161: 1.208119408e-05 | CS161: 0.2212009858 | CW161: 110 | CX161: 15834.4766 | CY161: 1.106440973e-05 | CZ161: 0.1918483753
C162: 111 | D162: 61107.6616 | E162: 1.174840208e-05 | F162: 0.2209695788 | J162: 111 | K162: 60269.0536 | L162: 1.046862665e-05 | M162: 0.1978898271 | Q162: 111 | R162: 61696.5568 | S162: 1.067915042e-05 | T162: 0.2000687784 | X162: 111 | Y162: 63303.3627 | Z162: 1.037666719e-05 | AA162: 0.2045283502 | AE162: 111 | AF162: 62956.0078 | AG162: 1.072654974e-05 | AH162: 0.2105944519 | AL162: 111 | AM162: 65789.5765 | AN162: 1.174685461e-05 | AO162: 0.2115144668 | AS162: 111 | AT162: 60056.9649 | AU162: 1.068534373e-05 | AV162: 0.198602926 | AZ162: 111 | BA162: 57744.0357 | BB162: 1.067418915e-05 | BC162: 0.2179616034 | BG162: 111 | BH162: 50995.4928 | BI162: 1.080159116e-05 | BJ162: 0.2077157666 | BN162: 111 | BO162: 49011.9417 | BP162: 1.078506212e-05 | BQ162: 0.2123142571 | BU162: 111 | BV162: 45890.0431 | BW162: 1.157478152e-05 | BX162: 0.2126780932 | CB162: 111 | CC162: 39907.324 | CD162: 1.096627001e-05 | CE162: 0.2230348565 | CI162: 111 | CJ162: 33121.5356 | CK162: 1.117546916e-05 | CL162: 0.215960106 | CP162: 111 | CQ162: 29134.1815 | CR162: 1.214722758e-05 | CS162: 0.2233243164 | CW162: 111 | CX162: 15886.4433 | CY162: 1.108470484e-05 | CZ162: 0.1924238835
C163: 112 | D163: 61266.5817 | E163: 1.180512546e-05 | F163: 0.2228411459 | J163: 112 | K163: 60317.8551 | L163: 1.048494813e-05 | M163: 0.19840111 | Q163: 112 | R163: 61765.6977 | S163: 1.070283194e-05 | T163: 0.2008079633 | X163: 112 | Y163: 63392.6285 | Z163: 1.040461553e-05 | AA163: 0.2054558794 | AE163: 112 | AF163: 63154.7229 | AG163: 1.079015182e-05 | AH163: 0.2127323021 | AL163: 112 | AM163: 65801.6323 | AN163: 1.175145923e-05 | AO163: 0.2116561123 | AS163: 112 | AT163: 60239.7796 | AU163: 1.074865696e-05 | AV163: 0.2005621535 | AZ163: 112 | BA163: 57798.1784 | BB163: 1.069050018e-05 | BC163: 0.2185399745 | BG163: 112 | BH163: 51018.5564 | BI163: 1.080924272e-05 | BJ163: 0.2079649784 | BN163: 112 | BO163: 49036.1039 | BP163: 1.079279672e-05 | BQ163: 0.2125749414 | BU163: 112 | BV163: 45947.1703 | BW163: 1.159578392e-05 | BX163: 0.2133399281 | CB163: 112 | CC163: 40163.4517 | CD163: 1.104471189e-05 | CE163: 0.2258536765 | CI163: 112 | CJ163: 33126.618 | CK163: 1.117717196e-05 | CL163: 0.2160169085 | CP163: 112 | CQ163: 29230.384 | CR163: 1.218336105e-05 | CS163: 0.2244946487 | CW163: 112 | CX163: 16230.7631 | CY163: 1.121886193e-05 | CZ163: 0.1962636794
C164: 113 | D164: 61306.8625 | E164: 1.181947207e-05 | F164: 0.2233169547 | J164: 113 | K164: 60366.4803 | L164: 1.050120072e-05 | M164: 0.1989113379 | Q164: 113 | R164: 61877.5633 | S164: 1.074110025e-05 | T164: 0.202007383 | X164: 113 | Y164: 63751.6455 | Z164: 1.051665093e-05 | AA164: 0.2092114426 | AE164: 113 | AF164: 63175.8024 | AG164: 1.079688622e-05 | AH164: 0.2129598241 | AL164: 113 | AM164: 65809.3669 | AN164: 1.175441287e-05 | AO164: 0.2117470165 | AS164: 113 | AT164: 60278.3876 | AU164: 1.076200819e-05 | AV164: 0.2009773954 | AZ164: 113 | BA164: 57972.0324 | BB164: 1.074276443e-05 | BC164: 0.2204031063 | BG164: 113 | BH164: 51135.1364 | BI164: 1.084787658e-05 | BJ164: 0.2092273726 | BN164: 113 | BO164: 49084.0316 | BP164: 1.080812952e-05 | BQ164: 0.2130925828 | BU164: 113 | BV164: 46049.3254 | BW164: 1.163328516e-05 | BX164: 0.2145264126 | CB164: 113 | CC164: 40214.2577 | CD164: 1.106022189e-05 | CE164: 0.2264152082 | CI164: 113 | CJ164: 33392.2248 | CK164: 1.12659333e-05 | CL164: 0.2189974392 | CP164: 113 | CQ164: 29317.0228 | CR164: 1.221583432e-05 | CS164: 0.2255516077 | CW164: 113 | CX164: 16507.7112 | CY164: 1.132634545e-05 | CZ164: 0.1993856147
C165: 114 | D165: 61314.567 | E165: 1.182221471e-05 | F165: 0.2234080284 | J165: 114 | K165: 60914.1301 | L165: 1.068352666e-05 | M165: 0.2047123059 | Q165: 114 | R165: 62025.7179 | S165: 1.079169109e-05 | T165: 0.2036024754 | X165: 114 | Y165: 63935.9891 | Z165: 1.057393711e-05 | AA165: 0.2111554026 | AE165: 114 | AF165: 63396.0876 | AG165: 1.086711518e-05 | AH165: 0.2153459585 | AL165: 114 | AM165: 65898.4225 | AN165: 1.17883907e-05 | AO165: 0.2127953262 | AS165: 114 | AT165: 60645.0631 | AU165: 1.088845107e-05 | AV165: 0.2049467621 | AZ165: 114 | BA165: 57994.6433 | BB165: 1.074954914e-05 | BC165: 0.2206460866 | BG165: 114 | BH165: 51176.1979 | BI165: 1.086146694e-05 | BJ165: 0.2096730817 | BN165: 114 | BO165: 49324.8628 | BP165: 1.088498219e-05 | BQ165: 0.2157047784 | BU165: 114 | BV165: 46053.066 | BW165: 1.163465697e-05 | BX165: 0.2145699306 | CB165: 114 | CC165: 40796.7705 | CD165: 1.123681551e-05 | CE165: 0.2329094752 | CI165: 114 | CJ165: 33450.3523 | CK165: 1.128529782e-05 | CL165: 0.2196528626 | CP165: 114 | CQ165: 29551.6038 | CR165: 1.230342626e-05 | CS165: 0.2284274936 | CW165: 114 | CX165: 16685.5828 | CY165: 1.139516259e-05 | CZ165: 0.2014063728
C166: 115 | D166: 61496.8875 | E166: 1.188698035e-05 | F166: 0.2255693686 | J166: 115 | K166: 61044.3166 | L166: 1.072666228e-05 | M166: 0.2061059656 | Q166: 115 | R166: 62737.9213 | S166: 1.103331786e-05 | T166: 0.2113745584 | X166: 115 | Y166: 64010.9462 | Z166: 1.0597182e-05 | AA166: 0.2119488657 | AE166: 115 | AF166: 63476.3423 | AG166: 1.089263312e-05 | AH166: 0.2162191198 | AL166: 115 | AM166: 65934.9897 | AN166: 1.180232613e-05 | AO166: 0.2132266494 | AS166: 115 | AT166: 60759.6512 | AU166: 1.092782634e-05 | AV166: 0.2061967057 | AZ166: 115 | BA166: 58075.539 | BB166: 1.077379886e-05 | BC166: 0.22151666 | BG166: 115 | BH166: 51186.5464 | BI166: 1.086489061e-05 | BJ166: 0.2097854993 | BN166: 115 | BO166: 49405.2409 | BP166: 1.09105587e-05 | BQ166: 0.2165807207 | BU166: 115 | BV166: 46131.4876 | BW166: 1.16633946e-05 | BX166: 0.2154834662 | CB166: 115 | CC166: 41128.2505 | CD166: 1.133624312e-05 | CE166: 0.236650756 | CI166: 115 | CJ166: 33684.5023 | CK166: 1.136307406e-05 | CL166: 0.222304428 | CP166: 115 | CQ166: 29775.8481 | CR166: 1.23866913e-05 | CS166: 0.2311958114 | CW166: 115 | CX166: 17027.8845 | CY166: 1.15270892e-05 | CZ166: 0.2053295552
C167: 116 | D167: 61512.5397 | E167: 1.189252812e-05 | F167: 0.2257554694 | J167: 116 | K167: 61074.5559 | L167: 1.07366697e-05 | M167: 0.2064304836 | Q167: 116 | R167: 62766.914 | S167: 1.104309532e-05 | T167: 0.2116945858 | X167: 116 | Y167: 64156.244 | Z167: 1.064215806e-05 | AA167: 0.2134918817 | AE167: 116 | AF167: 63636.5077 | AG167: 1.094344797e-05 | AH167: 0.2179678141 | AL167: 116 | AM167: 66024.3641 | AN167: 1.183634556e-05 | AO167: 0.2142829959 | AS167: 116 | AT167: 61061.5304 | AU167: 1.103122368e-05 | AV167: 0.2095112084 | AZ167: 116 | BA167: 58327.1768 | BB167: 1.084898514e-05 | BC167: 0.2242372228 | BG167: 116 | BH167: 51536.7187 | BI167: 1.098039282e-05 | BJ167: 0.2136103259 | BN167: 116 | BO167: 49405.9296 | BP167: 1.091077769e-05 | BQ167: 0.2165882349 | BU167: 116 | BV167: 46162.6052 | BW167: 1.16747857e-05 | BX167: 0.2158465803 | CB167: 116 | CC167: 41205.4492 | CD167: 1.135928295e-05 | CE167: 0.2375267888 | CI167: 116 | CJ167: 33776.4255 | CK167: 1.139350547e-05 | CL167: 0.2233503572 | CP167: 116 | CQ167: 30256.7489 | CR167: 1.256363663e-05 | CS167: 0.2371952184 | CW167: 116 | CX167: 17066.8435 | CY167: 1.154206006e-05 | CZ167: 0.2057789308
C168: 117 | D168: 61568.1261 | E168: 1.191221418e-05 | F168: 0.2264170795 | J168: 117 | K168: 61123.6278 | L168: 1.075289983e-05 | M168: 0.2069577507 | Q168: 117 | R168: 63003.697 | S168: 1.112276373e-05 | T168: 0.2143188417 | X168: 117 | Y168: 64246.1969 | Z168: 1.066994706e-05 | AA168: 0.2144504248 | AE168: 117 | AF168: 63692.2485 | AG168: 1.096109706e-05 | AH168: 0.2185783026 | AL168: 117 | AM168: 66106.6984 | AN168: 1.186763382e-05 | AO168: 0.2152588215 | AS168: 117 | AT168: 61164.2187 | AU168: 1.106628052e-05 | AV168: 0.2106457864 | AZ168: 117 | BA168: 58371.0989 | BB168: 1.08620696e-05 | BC168: 0.2247140204 | BG168: 117 | BH168: 51697.6454 | BI168: 1.103323888e-05 | BJ168: 0.2153816184 | BN168: 117 | BO168: 49551.5763 | BP168: 1.095702611e-05 | BQ168: 0.2181807232 | BU168: 117 | BV168: 46175.9319 | BW168: 1.167966206e-05 | BX168: 0.2160021991 | CB168: 117 | CC168: 41241.9414 | CD168: 1.137015844e-05 | CE168: 0.2379415125 | CI168: 117 | CJ168: 34396.3048 | CK168: 1.159713283e-05 | CL168: 0.2304762133 | CP168: 117 | CQ168: 30360.2755 | CR168: 1.260142749e-05 | CS168: 0.2384978461 | CW168: 117 | CX168: 17422.8626 | CY168: 1.167842314e-05 | CZ168: 0.2099124227
C169: 118 | D169: 61726.697 | E169: 1.196823337e-05 | F169: 0.2283104543 | J169: 118 | K169: 61139.2964 | L169: 1.075807953e-05 | M169: 0.2071262742 | Q169: 118 | R169: 63029.4553 | S169: 1.113141026e-05 | T169: 0.2146054565 | X169: 118 | Y169: 64953.3292 | Z169: 1.08868384e-05 | AA169: 0.2220723421 | AE169: 118 | AF169: 63697.2053 | AG169: 1.096266562e-05 | AH169: 0.2186326385 | AL169: 118 | AM169: 66143.5733 | AN169: 1.188163062e-05 | AO169: 0.2156966974 | AS169: 118 | AT169: 61308.0091 | AU169: 1.111526717e-05 | AV169: 0.2122405347 | AZ169: 118 | BA169: 58592.3683 | BB169: 1.092780527e-05 | BC169: 0.2271247423 | BG169: 118 | BH169: 51838.7756 | BI169: 1.107945731e-05 | BJ169: 0.2169420045 | BN169: 118 | BO169: 49561.9253 | BP169: 1.096030753e-05 | BQ169: 0.2182941344 | BU169: 118 | BV169: 46199.8101 | BW169: 1.168839615e-05 | BX169: 0.2162811927 | CB169: 118 | CC169: 41358.807 | CD169: 1.140491908e-05 | CE169: 0.2392723251 | CI169: 118 | CJ169: 34460.3203 | CK169: 1.161799772e-05 | CL169: 0.2312192776 | CP169: 118 | CQ169: 30371.4574 | CR169: 1.26055027e-05 | CS169: 0.2386387768 | CW169: 118 | CX169: 17438.4374 | CY169: 1.168436972e-05 | CZ169: 0.2100943582
C170: 119 | D170: 61800.4491 | E170: 1.199421689e-05 | F170: 0.2291940951 | J170: 119 | K170: 61218.2349 | L170: 1.078415584e-05 | M170: 0.2079765302 | Q170: 119 | R170: 63365.4445 | S170: 1.124381857e-05 | T170: 0.2183643939 | X170: 119 | Y170: 65090.1413 | Z170: 1.092846375e-05 | AA170: 0.223564642 | AE170: 119 | AF170: 63846.1442 | AG170: 1.100972741e-05 | AH170: 0.2202689122 | AL170: 119 | AM170: 66155.3072 | AN170: 1.188608239e-05 | AO170: 0.2158361414 | AS170: 119 | AT170: 61575.0958 | AU170: 1.12059314e-05 | AV170: 0.215221392 | AZ170: 119 | BA170: 58609.447 | BB170: 1.093286636e-05 | BC170: 0.2273114182 | BG170: 119 | BH170: 52087.6277 | BI170: 1.11606549e-05 | BJ170: 0.2197092618 | BN170: 119 | BO170: 49772.6339 | BP170: 1.10269773e-05 | BQ170: 0.2206105942 | BU170: 119 | BV170: 46222.3368 | BW170: 1.169663216e-05 | BX170: 0.2165445865 | CB170: 119 | CC170: 41517.6466 | CD170: 1.145199633e-05 | CE170: 0.2410876193 | CI170: 119 | CJ170: 34648.657 | CK170: 1.167919726e-05 | CL170: 0.2334131404 | CP170: 119 | CQ170: 30980.5602 | CR170: 1.282548188e-05 | CS170: 0.2463840217 | CW170: 119 | CX170: 17555.1607 | CY170: 1.172888334e-05 | CZ170: 0.2114607951
C171: 120 | D171: 62168.7995 | E171: 1.212329054e-05 | F171: 0.2336359781 | J171: 120 | K171: 61408.4737 | L171: 1.084686543e-05 | M171: 0.210034063 | Q171: 120 | R171: 63381.9076 | S171: 1.124930807e-05 | T171: 0.2185495472 | X171: 120 | Y171: 65232.7101 | Z171: 1.097171769e-05 | AA171: 0.2251257848 | AE171: 120 | AF171: 63882.4627 | AG171: 1.102118277e-05 | AH171: 0.220668977 | AL171: 120 | AM171: 66169.2279 | AN171: 1.189136249e-05 | AO171: 0.2160016408 | AS171: 120 | AT171: 61760.4111 | AU171: 1.126857806e-05 | AV171: 0.2173038306 | AZ171: 120 | BA171: 59120.4093 | BB171: 1.10834093e-05 | BC171: 0.2329362347 | BG171: 120 | BH171: 52187.249 | BI171: 1.119305028e-05 | BJ171: 0.2208227149 | BN171: 120 | BO171: 49864.0769 | BP171: 1.105582543e-05 | BQ171: 0.2216202534 | BU171: 120 | BV171: 46359.8638 | BW171: 1.174683412e-05 | BX171: 0.2181566428 | CB171: 120 | CC171: 41756.5049 | CD171: 1.152241674e-05 | CE171: 0.243831443 | CI171: 120 | CJ171: 34671.1039 | CK171: 1.168647256e-05 | CL171: 0.2336753838 | CP171: 120 | CQ171: 30995.8847 | CR171: 1.283096402e-05 | CS171: 0.2465806078 | CW171: 120 | CX171: 18219.9276 | CY171: 1.198053792e-05 | CZ171: 0.2193415952
C172: 121 | D172: 62187.0502 | E172: 1.212965473e-05 | F172: 0.2338572947 | J172: 121 | K172: 61503.1995 | L172: 1.087801841e-05 | M172: 0.2110630169 | Q172: 121 | R172: 63488.1472 | S172: 1.128469038e-05 | T172: 0.2197465494 | X172: 121 | Y172: 65594.8753 | Z172: 1.108101168e-05 | AA172: 0.2291191761 | AE172: 121 | AF172: 64017.7428 | AG172: 1.106377966e-05 | AH172: 0.2221628063 | AL172: 121 | AM172: 66179.3745 | AN172: 1.189521016e-05 | AO172: 0.2161223172 | AS172: 121 | AT172: 61947.9286 | AU172: 1.133174375e-05 | AV172: 0.2194228121 | AZ172: 121 | BA172: 59323.8132 | BB172: 1.114284922e-05 | BC172: 0.2351966934 | BG172: 121 | BH172: 52859.0182 | BI172: 1.140976109e-05 | BJ172: 0.2284148248 | BN172: 121 | BO172: 49891.8324 | BP172: 1.106457125e-05 | BQ172: 0.2219272348 | BU172: 121 | BV172: 46511.5696 | BW172: 1.180205029e-05 | BX172: 0.2199428962 | CB172: 121 | CC172: 41795.8921 | CD172: 1.153398507e-05 | CE172: 0.2442855066 | CI172: 121 | CJ172: 35010.8231 | CK172: 1.179607827e-05 | CL172: 0.2376641474 | CP172: 121 | CQ172: 31022.172 | CR172: 1.284036182e-05 | CS172: 0.2469180228 | CW172: 121 | CX172: 18345.2439 | CY172: 1.202760091e-05 | CZ172: 0.2208459021
C173: 122 | D173: 62431.3855 | E173: 1.221456538e-05 | F173: 0.236831382 | J173: 122 | K173: 61560.7761 | L173: 1.089692998e-05 | M173: 0.2116898807 | Q173: 122 | R173: 63810.7872 | S173: 1.13916805e-05 | T173: 0.2234047205 | X173: 122 | Y173: 65761.3388 | Z173: 1.113095644e-05 | AA173: 0.2309679196 | AE173: 122 | AF173: 64141.3668 | AG173: 1.110260492e-05 | AH173: 0.2235329559 | AL173: 122 | AM173: 66247.3354 | AN173: 1.192096148e-05 | AO173: 0.2169316016 | AS173: 122 | AT173: 62111.5289 | AU173: 1.138666156e-05 | AV173: 0.2212811835 | AZ173: 122 | BA173: 59669.9607 | BB173: 1.124333146e-05 | BC173: 0.2390711784 | BG173: 122 | BH173: 52869.1854 | BI173: 1.141301673e-05 | BJ173: 0.2285308467 | BN173: 122 | BO173: 50290.0569 | BP173: 1.118950501e-05 | BQ173: 0.2263583284 | BU173: 122 | BV173: 46570.5628 | BW173: 1.182347521e-05 | BX173: 0.220639769 | CB173: 122 | CC173: 41966.6286 | CD173: 1.158398561e-05 | CE173: 0.2462590507 | CI173: 122 | CJ173: 35474.5914 | CK173: 1.19441291e-05 | CL173: 0.2431691974 | CP173: 122 | CQ173: 31173.2268 | CR173: 1.28942122e-05 | CS173: 0.2488616915 | CW173: 122 | CX173: 18582.2076 | CY173: 1.211624499e-05 | CZ173: 0.2237065187
C174: 123 | D174: 62432.2276 | E174: 1.221485708e-05 | F174: 0.236841668 | J174: 123 | K174: 61572.8874 | L174: 1.090090571e-05 | M174: 0.2118218808 | Q174: 123 | R174: 63812.7222 | S174: 1.139232e-05 | T174: 0.2234267641 | X174: 123 | Y174: 65950.1405 | Z174: 1.118737411e-05 | AA174: 0.2330747929 | AE174: 123 | AF174: 64890.6671 | AG174: 1.133574288e-05 | AH174: 0.2319397267 | AL174: 123 | AM174: 66252.0986 | AN174: 1.192276501e-05 | AO174: 0.2169883878 | AS174: 123 | AT174: 62113.3763 | AU174: 1.138728066e-05 | AV174: 0.2213022198 | AZ174: 123 | BA174: 59947.5108 | BB174: 1.132326742e-05 | BC174: 0.2422028726 | BG174: 123 | BH174: 53015.3993 | BI174: 1.145975234e-05 | BJ174: 0.230203007 | BN174: 123 | BO174: 50482.4868 | BP174: 1.124949611e-05 | BQ174: 0.2285172998 | BU174: 123 | BV174: 46587.275 | BW174: 1.182953986e-05 | BX174: 0.220837416 | CB174: 123 | CC174: 42242.4822 | CD174: 1.166425805e-05 | CE174: 0.2494656212 | CI174: 123 | CJ174: 35489.1217 | CK174: 1.194873715e-05 | CL174: 0.2433427827 | CP174: 123 | CQ174: 31227.3121 | CR174: 1.291342972e-05 | CS174: 0.2495595987 | CW174: 123 | CX174: 18600.5032 | CY174: 1.212306966e-05 | CZ174: 0.2239282551
C175: 124 | D175: 62510.6538 | E175: 1.224199401e-05 | F175: 0.2378006973 | J175: 124 | K175: 61653.2616 | L175: 1.092726915e-05 | M175: 0.2126990921 | Q175: 124 | R175: 63835.6611 | S175: 1.139989922e-05 | T175: 0.2236881783 | X175: 124 | Y175: 66323.1831 | Z175: 1.1298105e-05 | AA175: 0.2372688448 | AE175: 124 | AF175: 64992.3267 | AG175: 1.136706938e-05 | AH175: 0.2330937068 | AL175: 124 | AM175: 66282.3476 | AN175: 1.193421439e-05 | AO175: 0.2173492127 | AS175: 124 | AT175: 62147.4488 | AU175: 1.139869483e-05 | AV175: 0.2216904074 | AZ175: 124 | BA175: 60193.9671 | BB175: 1.139375796e-05 | BC175: 0.2450022593 | BG175: 124 | BH175: 53019.8448 | BI175: 1.146117082e-05 | BJ175: 0.2302539545 | BN175: 124 | BO175: 50619.4847 | BP175: 1.129204958e-05 | BQ175: 0.2300613735 | BU175: 124 | BV175: 46751.2111 | BW175: 1.188891559e-05 | BX175: 0.2227815744 | CB175: 124 | CC175: 42441.6052 | CD175: 1.172179905e-05 | CE175: 0.2517939778 | CI175: 124 | CJ175: 35900.6436 | CK175: 1.20784443e-05 | CL175: 0.2482866919 | CP175: 124 | CQ175: 31231.4426 | CR175: 1.291489597e-05 | CS175: 0.2496129407 | CW175: 124 | CX175: 18618.0161 | CY175: 1.212959972e-05 | CZ175: 0.2241406224
C176: 125 | D176: 62520.952 | E176: 1.224555309e-05 | F176: 0.2379267861 | J176: 125 | K176: 61823.9993 | L176: 1.098315091e-05 | M176: 0.2145695618 | Q176: 125 | R176: 63839.0001 | S176: 1.140100215e-05 | T176: 0.2237262444 | X176: 125 | Y176: 66375.1284 | Z176: 1.131344368e-05 | AA176: 0.2378561268 | AE176: 125 | AF176: 65302.0555 | AG176: 1.146203902e-05 | AH176: 0.2366291416 | AL176: 125 | AM176: 66287.8051 | AN176: 1.193627934e-05 | AO176: 0.2174143493 | AS176: 125 | AT176: 62262.3253 | AU176: 1.143711871e-05 | AV176: 0.2230020575 | AZ176: 125 | BA176: 60261.9318 | BB176: 1.141311387e-05 | BC176: 0.2457772906 | BG176: 125 | BH176: 53216.5895 | BI176: 1.152380044e-05 | BJ176: 0.2325150449 | BN176: 125 | BO176: 50641.2055 | BP176: 1.129878421e-05 | BQ176: 0.230306719 | BU176: 125 | BV176: 46936.1376 | BW176: 1.195563867e-05 | BX176: 0.2249863236 | CB176: 125 | CC176: 42494.8057 | CD176: 1.173711412e-05 | CE176: 0.2524179909 | CI176: 125 | CJ176: 35908.6772 | CK176: 1.208096073e-05 | CL176: 0.2483837354 | CP176: 125 | CQ176: 31263.7233 | CR176: 1.292634819e-05 | CS176: 0.2500300274 | CW176: 125 | CX176: 18773.6537 | CY176: 1.218751751e-05 | CZ176: 0.226032954
C177: 126 | D177: 62722.8647 | E177: 1.231513069e-05 | F177: 0.2404063497 | J177: 126 | K177: 62074.0683 | L177: 1.106468917e-05 | M177: 0.2173263103 | Q177: 126 | R177: 63904.9525 | S177: 1.142277126e-05 | T177: 0.2244788859 | X177: 126 | Y177: 66581.4882 | Z177: 1.137417918e-05 | AA177: 0.2401970389 | AE177: 126 | AF177: 65302.806 | AG177: 1.146226826e-05 | AH177: 0.2366377439 | AL177: 126 | AM177: 66330.9245 | AN177: 1.195258629e-05 | AO177: 0.2179293862 | AS177: 126 | AT177: 62585.4486 | AU177: 1.154469269e-05 | AV177: 0.2267150572 | AZ177: 126 | BA177: 60348.4152 | BB177: 1.143769099e-05 | BC177: 0.2467653987 | BG177: 126 | BH177: 53221.647 | BI177: 1.152540653e-05 | BJ177: 0.2325733306 | BN177: 126 | BO177: 50686.9323 | BP177: 1.131295101e-05 | BQ177: 0.2308237002 | BU177: 126 | BV177: 47287.3652 | BW177: 1.208158939e-05 | BX177: 0.2292076229 | CB177: 126 | CC177: 42571.732 | CD177: 1.175921516e-05 | CE177: 0.2533217341 | CI177: 126 | CJ177: 35940.4214 | CK177: 1.209089827e-05 | CL177: 0.2487673935 | CP177: 126 | CQ177: 31336.4822 | CR177: 1.295211623e-05 | CS177: 0.2509714721 | CW177: 126 | CX177: 19122.5211 | CY177: 1.231656829e-05 | CZ177: 0.2303073241
C178: 127 | D178: 62880.1105 | E178: 1.236904299e-05 | F178: 0.2423470942 | J178: 127 | K178: 62226.2292 | L178: 1.111411748e-05 | M178: 0.2190136857 | Q178: 127 | R178: 63990.8765 | S178: 1.145108615e-05 | T178: 0.2254615929 | X178: 127 | Y178: 66748.7152 | Z178: 1.142315902e-05 | AA178: 0.2421032072 | AE178: 127 | AF178: 65358.932 | AG178: 1.14793994e-05 | AH178: 0.2372815561 | AL178: 127 | AM178: 66411.7813 | AN178: 1.198312595e-05 | AO178: 0.2188970691 | AS178: 127 | AT178: 62843.9716 | AU178: 1.163020347e-05 | AV178: 0.2297106899 | AZ178: 127 | BA178: 60537.3514 | BB178: 1.149117497e-05 | BC178: 0.2489314496 | BG178: 127 | BH178: 53590.302 | BI178: 1.164194218e-05 | BJ178: 0.2368437428 | BN178: 127 | BO178: 50956.0884 | BP178: 1.13960324e-05 | BQ178: 0.2338798428 | BU178: 127 | BV178: 47856.4074 | BW178: 1.228335879e-05 | BX178: 0.2361401035 | CB178: 127 | CC178: 42645.1824 | CD178: 1.178026856e-05 | CE178: 0.2541862266 | CI178: 127 | CJ178: 35983.7998 | CK178: 1.210446241e-05 | CL178: 0.2492921716 | CP178: 127 | CQ178: 31514.9959 | CR178: 1.30150729e-05 | CS178: 0.2532892272 | CW178: 127 | CX178: 19690.9545 | CY178: 1.252440779e-05 | CZ178: 0.2373676919
C179: 128 | D179: 62909.3483 | E179: 1.23790404e-05 | F179: 0.242708884 | J179: 128 | K179: 62334.9894 | L179: 1.114935861e-05 | M179: 0.2202243764 | Q179: 128 | R179: 64008.1282 | S179: 1.14567648e-05 | T179: 0.2256591926 | X179: 128 | Y179: 66883.3253 | Z179: 1.146242728e-05 | AA179: 0.2436435243 | AE179: 128 | AF179: 65382.1888 | AG179: 1.148649085e-05 | AH179: 0.2375486126 | AL179: 128 | AM179: 66597.6456 | AN179: 1.205313099e-05 | AO179: 0.2211308144 | AS179: 128 | AT179: 62865.7804 | AU179: 1.163739373e-05 | AV179: 0.2299644091 | AZ179: 128 | BA179: 60608.0499 | BB179: 1.151111374e-05 | BC179: 0.2497445635 | BG179: 128 | BH179: 53650.7404 | BI179: 1.166094434e-05 | BJ179: 0.2375479376 | BN179: 128 | BO179: 51931.9316 | BP179: 1.16925746e-05 | BQ179: 0.2451458893 | BU179: 128 | BV179: 47929.8784 | BW179: 1.230919264e-05 | BX179: 0.2370435235 | CB179: 128 | CC179: 42782.0034 | CD179: 1.18193571e-05 | CE179: 0.2558006907 | CI179: 128 | CJ179: 36157.2438 | CK179: 1.215851671e-05 | CL179: 0.2513963099 | CP179: 128 | CQ179: 31602.1368 | CR179: 1.304566624e-05 | CS179: 0.254424706 | CW179: 128 | CX179: 19798.9815 | CY179: 1.256354696e-05 | CZ179: 0.2387227812
C180: 129 | D180: 62911.419 | E180: 1.237974812e-05 | F180: 0.242734518 | J180: 129 | K180: 62384.1325 | L180: 1.116525753e-05 | M180: 0.2207726812 | Q180: 129 | R180: 64119.2187 | S180: 1.149328021e-05 | T180: 0.2269339594 | X180: 129 | Y180: 67052.1344 | Z180: 1.151146857e-05 | AA180: 0.2455826289 | AE180: 129 | AF180: 65442.762 | AG180: 1.150494104e-05 | AH180: 0.2382449451 | AL180: 129 | AM180: 66610.8647 | AN180: 1.205809932e-05 | AO180: 0.2212901788 | AS180: 129 | AT180: 63153.0526 | AU180: 1.173175693e-05 | AV180: 0.2333210784 | AZ180: 129 | BA180: 60624.2924 | BB180: 1.151568874e-05 | BC180: 0.2499315699 | BG180: 129 | BH180: 53934.8356 | BI180: 1.174986351e-05 | BJ180: 0.2408734025 | BN180: 129 | BO180: 52077.4302 | BP180: 1.173612167e-05 | BQ180: 0.2468503128 | BU180: 129 | BV180: 47937.0557 | BW180: 1.231171357e-05 | BX180: 0.2371318793 | CB180: 129 | CC180: 42915.2223 | CD180: 1.185725316e-05 | CE180: 0.2573777785 | CI180: 129 | CJ180: 36183.4816 | CK180: 1.21666684e-05 | CL180: 0.2517154296 | CP180: 129 | CQ180: 31806.1354 | CR180: 1.311692293e-05 | CS180: 0.2570932805 | CW180: 129 | CX180: 20140.4968 | CY180: 1.268648749e-05 | CZ180: 0.2430344525
C181: 130 | D181: 63037.3798 | E181: =NORMDIST(D181,$D$46,$D$47,FALSE) -> 1.242271814e-05 | F181: =NORMDIST(D181,$D$46,$D$47,TRUE) -> 0.2442965889 | J181: 130 | K181: 62498.4335 | L181: =NORMDIST(K181,$K$46,$K$47,FALSE) -> 1.120217608e-05 | M181: =NORMDIST(K181,$K$46,$K$47,TRUE) -> 0.222050992 | Q181: 130 | R181: 64228.3586 | S181: =NORMDIST(R181,$R$46,$R$47,FALSE) -> 1.152906627e-05 | T181: =NORMDIST(R181,$R$46,$R$47,TRUE) -> 0.2281902885 | X181: 130 | Y181: 67052.2869 | Z181: =NORMDIST(Y181,$Y$46,$Y$47,FALSE) -> 1.151151277e-05 | AA181: =NORMDIST(Y181,$Y$46,$Y$47,TRUE) -> 0.2455843844 | AE181: 130 | AF181: 66146.552 | AG181: =NORMDIST(AF181,$AF$46,$AF$47,FALSE) -> 1.171714359e-05 | AH181: =NORMDIST(AF181,$AF$46,$AF$47,TRUE) -> 0.2464169188 | AL181: 130 | AM181: 66777.9933 | AN181: =NORMDIST(AM181,$AM$46,$AM$47,FALSE) -> 1.212078975e-05 | AO181: =NORMDIST(AM181,$AM$46,$AM$47,TRUE) -> 0.2233106739 | AS181: 130 | AT181: 63494.1121 | AU181: =NORMDIST(AT181,$AT$46,$AT$47,FALSE) -> 1.184291779e-05 | AV181: =NORMDIST(AT181,$AT$46,$AT$47,TRUE) -> 0.2373412893 | AZ181: 130 | BA181: 60663.0323 | BB181: =NORMDIST(BA181,$BA$46,$BA$47,FALSE) -> 1.152659176e-05 | BC181: =NORMDIST(BA181,$BA$46,$BA$47,TRUE) -> 0.2503778978 | BG181: 130 | BH181: 54035.0202 | BI181: =NORMDIST(BH181,$BH$46,$BH$47,FALSE) -> 1.178105911e-05 | BJ181: =NORMDIST(BH181,$BH$46,$BH$47,TRUE) -> 0.2420521212 | BN181: 130 | BO181: 52123.6792 | BP181: =NORMDIST(BO181,$BO$46,$BO$47,FALSE) -> 1.17499257e-05 | BQ181: =NORMDIST(BO181,$BO$46,$BO$47,TRUE) -> 0.247393416 | BU181: 130 | BV181: 48028.6471 | BW181: =NORMDIST(BV181,$BV$46,$BV$47,FALSE) -> 1.234384043e-05 | BX181: =NORMDIST(BV181,$BV$46,$BV$47,TRUE) -> 0.2382609983 | CB181: 130 | CC181: 43064.0119 | CD181: =NORMDIST(CC181,$CC$46,$CC$47,FALSE) -> 1.189938506e-05 | CE181: =NORMDIST(CC181,$CC$46,$CC$47,TRUE) -> 0.2591451514 | CI181: 130 | CJ181: 36491.89 | CK181: =NORMDIST(CJ181,$CJ$46,$CJ$47,FALSE) -> 1.226197606e-05 | CL181: =NORMDIST(CJ181,$CJ$46,$CJ$47,TRUE) -> 0.2554824535 | CP181: 130 | CQ181: 31855.9469 | CR181: =NORMDIST(CQ181,$CQ$46,$CQ$47,FALSE) -> 1.313424376e-05 | CS181: =NORMDIST(CQ181,$CQ$46,$CQ$47,TRUE) -> 0.2577470857 | CW181: 130 | CX181: 20410.2223 | CY181: =NORMDIST(CX181,$CX$46,$CX$47,FALSE) -> 1.278270324e-05 | CZ181: =NORMDIST(CX181,$CX$46,$CX$47,TRUE) -> 0.2464693155
C182: 131 | D182: 63123.1906 | E182: 1.245189961e-05 | F182: 0.2453638448 | J182: 131 | K182: 62901.6216 | L182: 1.133170662e-05 | M182: 0.2265937258 | Q182: 131 | R182: 64324.1138 | S182: 1.15603904e-05 | T182: 0.2292957568 | X182: 131 | Y182: 67437.1481 | Z182: 1.162244918e-05 | AA182: 0.2500361059 | AE182: 131 | AF182: 66401.8548 | AG182: 1.179309103e-05 | AH182: 0.2494180452 | AL182: 131 | AM182: 66863.3134 | AN182: 1.215270352e-05 | AO182: 0.2243461828 | AS182: 131 | AT182: 63991.7557 | AU182: 1.200332565e-05 | AV182: 0.2432748449 | AZ182: 131 | BA182: 60942.6434 | BB182: 1.160491422e-05 | BC182: 0.253611826 | BG182: 131 | BH182: 54149.9323 | BI182: 1.181673478e-05 | BJ182: 0.2434079583 | BN182: 131 | BO182: 52277.7676 | BP182: 1.179578231e-05 | BQ182: 0.2492074789 | BU182: 131 | BV182: 48233.2419 | BW182: 1.241530997e-05 | BX182: 0.240793802 | CB182: 131 | CC182: 43090.5409 | CD182: 1.190687545e-05 | CE182: 0.2594609296 | CI182: 131 | CJ182: 36625.6433 | CK182: 1.230301223e-05 | CL182: 0.2571252797 | CP182: 131 | CQ182: 32513.5726 | CR182: 1.335993162e-05 | CS182: 0.2664590197 | CW182: 131 | CX182: 20475.0064 | CY182: 1.280569336e-05 | CZ182: 0.2472981763
C183: 132 | D183: 63173.0662 | E183: 1.246882609e-05 | F183: 0.245985313 | J183: 132 | K183: 63070.7507 | L183: 1.138570651e-05 | M183: 0.2285148165 | Q183: 132 | R183: 64534.6223 | S183: 1.162900777e-05 | T183: 0.2317365455 | X183: 132 | Y183: 67498.1165 | Z183: 1.16399096e-05 | AA183: 0.2507452405 | AE183: 132 | AF183: 66403.3641 | AG183: 1.179353832e-05 | AH183: 0.2494358449 | AL183: 132 | AM183: 67042.7222 | AN183: 1.221960727e-05 | AO183: 0.2265324905 | AS183: 132 | AT183: 64138.944 | AU183: 1.205034444e-05 | AV183: 0.2450450567 | AZ183: 132 | BA183: 60968.387 | BB183: 1.161209207e-05 | BC183: 0.2539106707 | BG183: 132 | BH183: 54276.3205 | BI183: 1.185584084e-05 | BJ183: 0.2449039269 | BN183: 132 | BO183: 52285.2605 | BP183: 1.179800688e-05 | BQ183: 0.2492958718 | BU183: 132 | BV183: 48396.9398 | BW183: 1.247219367e-05 | BX183: 0.2428308217 | CB183: 132 | CC183: 43287.9806 | CD183: 1.196241312e-05 | CE183: 0.2618173083 | CI183: 132 | CJ183: 36785.1218 | CK183: 1.235170025e-05 | CL183: 0.2590912314 | CP183: 132 | CQ183: 32640.2013 | CR183: 1.340273093e-05 | CS183: 0.2681534826 | CW183: 132 | CX183: 20610.0653 | CY183: 1.28534702e-05 | CZ183: 0.2490309279
C184: 133 | D184: 63394.3526 | E184: 1.254361335e-05 | F184: 0.2487527788 | J184: 133 | K184: 63097.3619 | L184: 1.139418436e-05 | M184: 0.2288179166 | Q184: 133 | R184: 64758.9828 | S184: 1.170175846e-05 | T184: 0.2343538042 | X184: 133 | Y184: 67510.8863 | Z184: 1.164356266e-05 | AA184: 0.2508939031 | AE184: 133 | AF184: 66476.8804 | AG184: 1.181530094e-05 | AH184: 0.2503036624 | AL184: 133 | AM184: 67134.1277 | AN184: 1.225358517e-05 | AO184: 0.2276509832 | AS184: 133 | AT184: 64443.6205 | AU184: 1.214702989e-05 | AV184: 0.2487312647 | AZ184: 133 | BA184: 61336.6728 | BB184: 1.171414852e-05 | BC184: 0.2582060686 | BG184: 133 | BH184: 54973.4501 | BI184: 1.206894798e-05 | BJ184: 0.2532435262 | BN184: 133 | BO184: 52298.0032 | BP184: 1.180178892e-05 | BQ184: 0.2494462344 | BU184: 133 | BV184: 48560.4034 | BW184: 1.25287236e-05 | BX184: 0.2448741955 | CB184: 133 | CC184: 43404.8087 | CD184: 1.199510016e-05 | CE184: 0.2632167649 | CI184: 133 | CJ184: 36874.0788 | CK184: 1.237874299e-05 | CL184: 0.2601912051 | CP184: 133 | CQ184: 32648.4095 | CR184: 1.340549767e-05 | CS184: 0.2682635062 | CW184: 133 | CX184: 20624.2923 | CY184: 1.285849091e-05 | CZ184: 0.2492138299
C185: 134 | D185: 63427.1731 | E185: 1.255466169e-05 | F185: 0.2491646478 | J185: 134 | K185: 63164.2615 | L185: 1.141547469e-05 | M185: 0.2295808953 | Q185: 134 | R185: 64863.3148 | S185: 1.173545113e-05 | T185: 0.2355764305 | X185: 134 | Y185: 67548.451 | Z185: 1.165430073e-05 | AA185: 0.2513314918 | AE185: 134 | AF185: 66517.3827 | AG185: 1.182727005e-05 | AH185: 0.2507824517 | AL185: 134 | AM185: 67224.9327 | AN185: 1.228726593e-05 | AO185: 0.2287651998 | AS185: 134 | AT185: 65115.7717 | AU185: 1.235712032e-05 | AV185: 0.2569667654 | AZ185: 134 | BA185: 61534.0279 | BB185: 1.176834373e-05 | BC185: 0.2605232692 | BG185: 134 | BH185: 54978.8251 | BI185: 1.207057344e-05 | BJ185: 0.2533084011 | BN185: 134 | BO185: 52371.1276 | BP185: 1.18234644e-05 | BQ185: 0.2503100259 | BU185: 134 | BV185: 48751.3336 | BW185: 1.25943995e-05 | BX185: 0.247272583 | CB185: 134 | CC185: 43561.0329 | CD185: 1.203860262e-05 | CE185: 0.265094091 | CI185: 134 | CJ185: 37094.6434 | CK185: 1.244543156e-05 | CL185: 0.2629288817 | CP185: 134 | CQ185: 32677.4302 | CR185: 1.341527231e-05 | CS185: 0.268652685 | CW185: 134 | CX185: 20758.882 | CY185: 1.290587241e-05 | CZ185: 0.2509476412
C186: 135 | D186: 63748.2824 | E186: 1.266214399e-05 | F186: 0.2532133532 | J186: 135 | K186: 63200.3237 | L186: 1.142693769e-05 | M186: 0.2299927692 | Q186: 135 | R186: 64953.8092 | S186: 1.176460284e-05 | T186: 0.2366397426 | X186: 135 | Y186: 67567.8598 | Z186: 1.16598441e-05 | AA186: 0.2515577416 | AE186: 135 | AF186: 66588.8343 | AG186: 1.184834935e-05 | AH186: 0.2516282824 | AL186: 135 | AM186: 67307.1946 | AN186: 1.231771342e-05 | AO186: 0.2297772264 | AS186: 135 | AT186: 65562.7147 | AU186: 1.249423507e-05 | AV186: 0.2625204145 | AZ186: 135 | BA186: 61690.8078 | BB186: 1.181114462e-05 | BC186: 0.2623716671 | BG186: 135 | BH186: 55150.1603 | BI186: 1.212224094e-05 | BJ186: 0.2553809455 | BN186: 135 | BO186: 52401.8184 | BP186: 1.183254754e-05 | BQ186: 0.2506730369 | BU186: 135 | BV186: 48824.8003 | BW186: 1.261956731e-05 | BX186: 0.2481987769 | CB186: 135 | CC186: 43580.293 | CD186: 1.204394925e-05 | CE186: 0.2653260072 | CI186: 135 | CJ186: 37100.2446 | CK186: 1.24471183e-05 | CL186: 0.2629985958 | CP186: 135 | CQ186: 32923.28 | CR186: 1.349761034e-05 | CS186: 0.2719609657 | CW186: 135 | CX186: 20808.8099 | CY186: 1.29233958e-05 | CZ186: 0.2515924419
C187: 136 | D187: 63767.9241 | E187: 1.266868188e-05 | F187: 0.2534621234 | J187: 136 | K187: 63222.4844 | L187: 1.143397711e-05 | M187: 0.2302460761 | Q187: 136 | R187: 65018.4333 | S187: 1.178537913e-05 | T187: 0.237400691 | X187: 136 | Y187: 67706.2331 | Z187: 1.169927069e-05 | AA187: 0.2531738824 | AE187: 136 | AF187: 66793.7676 | AG187: 1.190855074e-05 | AH187: 0.254062579 | AL187: 136 | AM187: 67649.6844 | AN187: 1.244380065e-05 | AO187: 0.234017541 | AS187: 136 | AT187: 65591.6556 | AU187: 1.250303944e-05 | AV187: 0.2628821363 | AZ187: 136 | BA187: 61737.4891 | BB187: 1.18238449e-05 | BC187: 0.2629233232 | BG187: 136 | BH187: 55254.4393 | BI187: 1.215354679e-05 | BJ187: 0.2566466739 | BN187: 136 | BO187: 52636.9022 | BP187: 1.190183987e-05 | BQ187: 0.2534628317 | BU187: 136 | BV187: 48985.8275 | BW187: 1.267452688e-05 | BX187: 0.2502352992 | CB187: 136 | CC187: 43757.9338 | CD187: 1.209308905e-05 | CE187: 0.2674698733 | CI187: 136 | CJ187: 37279.3591 | CK187: 1.250087645e-05 | CL187: 0.2652328748 | CP187: 136 | CQ187: 33164.2342 | CR187: 1.357748161e-05 | CS187: 0.2752229109 | CW187: 136 | CX187: 20881.0543 | CY187: 1.294869995e-05 | CZ187: 0.2525269993
C188: 137 | D188: 63908.8245 | E188: 1.271545538e-05 | F188: 0.2552504436 | J188: 137 | K188: 63317.1081 | L188: 1.146399379e-05 | M188: 0.231329422 | Q188: 137 | R188: 65293.0557 | S188: 1.187327431e-05 | T188: 0.2406493038 | X188: 137 | Y188: 67746.0496 | Z188: 1.171058469e-05 | AA188: 0.2536399317 | AE188: 137 | AF188: 67339.284 | AG188: 1.206688649e-05 | AH188: 0.2606022049 | AL188: 137 | AM188: 67951.528 | AN188: 1.255398231e-05 | AO188: 0.2377902742 | AS188: 137 | AT188: 65645.3676 | AU188: 1.251935528e-05 | AV188: 0.2635541379 | AZ188: 137 | BA188: 61744.4746 | BB188: 1.182574366e-05 | BC188: 0.2630059253 | BG188: 137 | BH188: 55434.0935 | BI188: 1.220722794e-05 | BJ188: 0.2588349365 | BN188: 137 | BO188: 52811.6939 | BP188: 1.195303166e-05 | BQ188: 0.2555476526 | BU188: 137 | BV188: 49523.1358 | BW188: 1.285581758e-05 | BX188: 0.2570942792 | CB188: 137 | CC188: 44125.5878 | CD188: 1.219377826e-05 | CE188: 0.2719344975 | CI188: 137 | CJ188: 37345.6476 | CK188: 1.25206824e-05 | CL188: 0.2660621959 | CP188: 137 | CQ188: 33427.7704 | CR188: 1.366387676e-05 | CS188: 0.2788124753 | CW188: 137 | CX188: 20968.7619 | CY188: 1.297933723e-05 | CZ188: 0.2536640429
C189: 138 | D189: 63947.1629 | E189: 1.272814361e-05 | F189: 0.2557381771 | J189: 138 | K189: 63397.5298 | L189: 1.148945269e-05 | M189: 0.2322523999 | Q189: 138 | R189: 65400.2589 | S189: 1.190740875e-05 | T189: 0.2419239874 | X189: 138 | Y189: 67886.964 | Z189: 1.175051386e-05 | AA189: 0.2552929371 | AE189: 138 | AF189: 67407.4773 | AG189: 1.208647782e-05 | AH189: 0.261425754 | AL189: 138 | AM189: 68180.9584 | AN189: 1.263711437e-05 | AO189: 0.2406800863 | AS189: 138 | AT189: 66134.5813 | AU189: 1.266647344e-05 | AV189: 0.2697148746 | AZ189: 138 | BA189: 61837.4845 | BB189: 1.185098181e-05 | BC189: 0.2641070108 | BG189: 138 | BH189: 55499.6957 | BI189: 1.222674913e-05 | BJ189: 0.259636398 | BN189: 138 | BO189: 52961.1929 | BP189: 1.199658851e-05 | BQ189: 0.2573378774 | BU189: 138 | BV189: 49573.8097 | BW189: 1.287274368e-05 | BX189: 0.2577461626 | CB189: 138 | CC189: 44262.7665 | CD189: 1.223098979e-05 | CE189: 0.2736097788 | CI189: 138 | CJ189: 37471.9698 | CK189: 1.255829006e-05 | CL189: 0.2676462133 | CP189: 138 | CQ189: 33536.4829 | CR189: 1.369921737e-05 | CS189: 0.280299832 | CW189: 138 | CX189: 21252.8707 | CY189: 1.30779435e-05 | CZ189: 0.2573656175
C190: 139 | D190: 64282.1743 | E190: 1.283829918e-05 | F190: 0.2600207382 | J190: 139 | K190: 63446.9473 | L190: 1.150507243e-05 | M190: 0.232820566 | Q190: 139 | R190: 65530.5563 | S190: 1.194875983e-05 | T190: 0.2434781874 | X190: 139 | Y190: 67948.9003 | Z190: 1.176800815e-05 | AA190: 0.2560212624 | AE190: 139 | AF190: 67457.459 | AG190: 1.210080797e-05 | AH190: 0.2620302149 | AL190: 139 | AM190: 68237.9654 | AN190: 1.265768535e-05 | AO190: 0.2414010767 | AS190: 139 | AT190: 66156.543 | AU190: 1.267301374e-05 | AV190: 0.2699931237 | AZ190: 139 | BA190: 62042.2736 | BB190: 1.190626424e-05 | BC190: 0.2665396301 | BG190: 139 | BH190: 55611.1827 | BI190: 1.225982364e-05 | BJ190: 0.2610013665 | BN190: 139 | BO190: 53008.2443 | BP190: 1.201025306e-05 | BQ190: 0.2579026552 | BU190: 139 | BV190: 49574.1292 | BW190: 1.28728503e-05 | BX190: 0.2577502754 | CB190: 139 | CC190: 44308.2206 | CD190: 1.224327622e-05 | CE190: 0.2741660067 | CI190: 139 | CJ190: 37766.9553 | CK190: 1.26454077e-05 | CL190: 0.2713636004 | CP190: 139 | CQ190: 33547.5241 | CR190: 1.37027968e-05 | CS190: 0.2804511076 | CW190: 139 | CX190: 21527.2181 | CY190: 1.317221495e-05 | CZ190: 0.2609664705
C191: 140 | D191: 64291.6309 | E191: 1.284138966e-05 | F191: 0.2601421595 | J191: 140 | K191: 63643.3129 | L191: 1.156695391e-05 | M191: 0.235085847 | Q191: 140 | R191: 66088.9168 | S191: 1.212420232e-05 | T191: 0.250199018 | X191: 140 | Y191: 67958.2003 | Z191: 1.177063202e-05 | AA191: 0.256130717 | AE191: 140 | AF191: 67478.9542 | AG191: 1.21069632e-05 | AH191: 0.2622903904 | AL191: 140 | AM191: 68833.8449 | AN191: 1.287059812e-05 | AO191: 0.2490071615 | AS191: 140 | AT191: 66188.8375 | AU191: 1.2682621e-05 | AV191: 0.2704025475 | AZ191: 140 | BA191: 62199.4373 | BB191: 1.194841869e-05 | BC191: 0.2684141783 | BG191: 140 | BH191: 56511.8721 | BI191: 1.252220606e-05 | BJ191: 0.2721624788 | BN191: 140 | BO191: 53111.3956 | BP191: 1.204013555e-05 | BQ191: 0.2591430705 | BU191: 140 | BV191: 50121.0829 | BW191: 1.305357532e-05 | BX191: 0.2648407187 | CB191: 140 | CC191: 44388.5465 | CD191: 1.226493515e-05 | CE191: 0.2751503292 | CI191: 140 | CJ191: 37893.6421 | CK191: 1.268251419e-05 | CL191: 0.272967959 | CP191: 140 | CQ191: 33774.4017 | CR191: 1.377594018e-05 | CS191: 0.2835682773 | CW191: 140 | CX191: 21599.4187 | CY191: 1.319686609e-05 | CZ191: 0.2619184026
C192: 141 | D192: 64419.7739 | E192: 1.288316304e-05 | F192: 0.2617903723 | J192: 141 | K192: 64137.7188 | L192: 1.172140099e-05 | M192: 0.2408428787 | Q192: 141 | R192: 66103.0696 | S192: 1.212861112e-05 | T192: 0.2503706406 | X192: 141 | Y192: 68108.4795 | Z192: 1.181292312e-05 | AA192: 0.2579027785 | AE192: 141 | AF192: 67554.419 | AG192: 1.212853635e-05 | AH192: 0.2632048543 | AL192: 141 | AM192: 69199.2319 | AN192: 1.299916021e-05 | AO192: 0.2537334459 | AS192: 141 | AT192: 66234.065 | AU192: 1.269605524e-05 | AV192: 0.2709764546 | AZ192: 141 | BA192: 62285.4645 | BB192: 1.197139158e-05 | BC192: 0.269443056 | BG192: 141 | BH192: 56512.6792 | BI192: 1.25224372e-05 | BJ192: 0.2721725855 | BN192: 141 | BO192: 53147.31 | BP192: 1.205051564e-05 | BQ192: 0.2595756712 | BU192: 141 | BV192: 50316.0134 | BW192: 1.311708847e-05 | BX192: 0.2673914568 | CB192: 141 | CC192: 44705.3671 | CD192: 1.234968714e-05 | CE192: 0.2790495676 | CI192: 141 | CJ192: 37920.0563 | CK192: 1.269022725e-05 | CL192: 0.2733030594 | CP192: 141 | CQ192: 34004.935 | CR192: 1.384945392e-05 | CS192: 0.2867525798 | CW192: 141 | CX192: 21647.1734 | CY192: 1.321313394e-05 | CZ192: 0.2625490036
C193: 142 | D193: 64553.5439 | E193: 1.292656102e-05 | F193: 0.2635166581 | J193: 142 | K193: 64293.2785 | L193: 1.176957869e-05 | M193: 0.2426700063 | Q193: 142 | R193: 66247.2489 | S193: 1.217341441e-05 | T193: 0.2521225675 | X193: 142 | Y193: 68199.9739 | Z193: 1.183857044e-05 | AA193: 0.2589847687 | AE193: 142 | AF193: 67621.6429 | AG193: 1.214770561e-05 | AH193: 0.2640208264 | AL193: 142 | AM193: 69252.1368 | AN193: 1.301764374e-05 | AO193: 0.2544216543 | AS193: 142 | AT193: 66374.3382 | AU193: 1.273756868e-05 | AV193: 0.2727602852 | AZ193: 142 | BA193: 62288.2946 | BB193: 1.19721461e-05 | BC193: 0.2694769373 | BG193: 142 | BH193: 56757.8918 | BI193: 1.259231846e-05 | BJ193: 0.2752518268 | BN193: 142 | BO193: 53496.1578 | BP193: 1.215067999e-05 | BQ193: 0.2637969732 | BU193: 142 | BV193: 50452.3281 | BW193: 1.316121444e-05 | BX193: 0.269182519 | CB193: 142 | CC193: 44902.8919 | CD193: 1.240197193e-05 | CE193: 0.2814941079 | CI193: 142 | CJ193: 38115.5095 | CK193: 1.274704422e-05 | CL193: 0.2757889648 | CP193: 142 | CQ193: 34022.33 | CR193: 1.38549674e-05 | CS193: 0.286993539 | CW193: 142 | CX193: 21729.2699 | CY193: 1.324103142e-05 | CZ193: 0.2636349014
C194: 143 | D194: 64589.997 | E194: 1.293834967e-05 | F194: 0.2639880862 | J194: 143 | K194: 64299.5825 | L194: 1.177152674e-05 | M194: 0.2427442078 | Q194: 143 | R194: 66258.8493 | S194: 1.217701038e-05 | T194: 0.2522638049 | X194: 143 | Y194: 68463.7482 | Z194: 1.191207609e-05 | AA194: 0.2621171881 | AE194: 143 | AF194: 67849.978 | AG194: 1.221247413e-05 | AH194: 0.2668019785 | AL194: 143 | AM194: 69908.835 | AN194: 1.324419137e-05 | AO194: 0.2630450008 | AS194: 143 | AT194: 66602.6925 | AU194: 1.280464825e-05 | AV194: 0.2756766347 | AZ194: 143 | BA194: 62374.8397 | BB194: 1.19951818e-05 | BC194: 0.2705140652 | BG194: 143 | BH194: 56777.8344 | BI194: 1.259797148e-05 | BJ194: 0.2755030068 | BN194: 143 | BO194: 53507.1245 | BP194: 1.215380916e-05 | BQ194: 0.2639302433 | BU194: 143 | BV194: 50631.9867 | BW194: 1.321900165e-05 | BX194: 0.2715522417 | CB194: 143 | CC194: 45201.755 | CD194: 1.248025194e-05 | CE194: 0.2852123223 | CI194: 143 | CJ194: 38265.5083 | CK194: 1.279033808e-05 | CL194: 0.2777042566 | CP194: 143 | CQ194: 34035.7713 | CR194: 1.385922447e-05 | CS194: 0.2871797963 | CW194: 143 | CX194: 21922.5775 | CY194: 1.330637085e-05 | CZ194: 0.2662008166
C195: 144 | D195: 64678.5191 | E195: 1.296690944e-05 | F195: 0.2651346809 | J195: 144 | K195: 64387.4812 | L195: 1.179865343e-05 | M195: 0.2437801024 | Q195: 144 | R195: 66388.4418 | S195: 1.22170921e-05 | T195: 0.253844453 | X195: 144 | Y195: 68604.5851 | Z195: 1.195105422e-05 | AA195: 0.2637975949 | AE195: 144 | AF195: 67891.6314 | AG195: 1.222423164e-05 | AH195: 0.2673109145 | AL195: 144 | AM195: 70034.1656 | AN195: 1.328680114e-05 | AO195: 0.2647075756 | AS195: 144 | AT195: 66719.9213 | AU195: 1.283883951e-05 | AV195: 0.277179714 | AZ195: 144 | BA195: 62590.6747 | BB195: 1.20523072e-05 | BC195: 0.2731092185 | BG195: 144 | BH195: 56859.585 | BI195: 1.262109673e-05 | BJ195: 0.2765338443 | BN195: 144 | BO195: 53606.2928 | BP195: 1.218204985e-05 | BQ195: 0.265136917 | BU195: 144 | BV195: 50929.7472 | BW195: 1.331383161e-05 | BX195: 0.2755024861 | CB195: 144 | CC195: 45349.6826 | CD195: 1.251862197e-05 | CE195: 0.2870613371 | CI195: 144 | CJ195: 38387.2014 | CK195: 1.282526157e-05 | CL195: 0.2792628793 | CP195: 144 | CQ195: 34067.9348 | CR195: 1.386939965e-05 | CS195: 0.2876257212 | CW195: 144 | CX195: 21925.7886 | CY195: 1.330745205e-05 | CZ195: 0.2662435464
C196: 145 | D196: 64741.0217 | E196: 1.298701652e-05 | F196: 0.265945775 | J196: 145 | K196: 64450.7076 | L196: 1.181812461e-05 | M196: 0.2445267045 | Q196: 145 | R196: 66556.5799 | S196: 1.226884564e-05 | T196: 0.2559029665 | X196: 145 | Y196: 68902.9657 | Z196: 1.203300149e-05 | AA196: 0.267375805 | AE196: 145 | AF196: 68147.8827 | AG196: 1.229616513e-05 | AH196: 0.270452621 | AL196: 145 | AM196: 70045.6897 | AN196: 1.329070871e-05 | AO196: 0.2648607165 | AS196: 145 | AT196: 66743.9863 | AU196: 1.284583757e-05 | AV196: 0.2774887649 | AZ196: 145 | BA196: 62641.2487 | BB196: 1.206562523e-05 | BC196: 0.2737190888 | BG196: 145 | BH196: 56884.7189 | BI196: 1.262819089e-05 | BJ196: 0.2768511508 | BN196: 145 | BO196: 53646.3895 | BP196: 1.219343996e-05 | BQ196: 0.2656256054 | BU196: 145 | BV196: 51113.8974 | BW196: 1.337187644e-05 | BX196: 0.2779595825 | CB196: 145 | CC196: 45677.1789 | CD196: 1.260266447e-05 | CE196: 0.2911749356 | CI196: 145 | CJ196: 38419.5321 | CK196: 1.283450936e-05 | CL196: 0.2796776785 | CP196: 145 | CQ196: 34255.614 | CR196: 1.392844717e-05 | CS196: 0.2902342688 | CW196: 145 | CX196: 21946.366 | CY196: 1.331437732e-05 | CZ196: 0.2665174505
C197: 146 | D197: 64785.3104 | E197: 1.300123491e-05 | F197: 0.2665212681 | J197: 146 | K197: 64955.641 | L197: 1.197234877e-05 | M197: 0.2505331034 | Q197: 146 | R197: 66687.0064 | S197: 1.230879378e-05 | T197: 0.2575057562 | X197: 146 | Y197: 68997.8645 | Z197: 1.205888112e-05 | AA197: 0.2685189511 | AE197: 146 | AF197: 68524.9606 | AG197: 1.24007423e-05 | AH197: 0.2751089984 | AL197: 146 | AM197: 70204.2196 | AN197: 1.334428308e-05 | AO197: 0.2669719423 | AS197: 146 | AT197: 66826.9026 | AU197: 1.286989487e-05 | AV197: 0.2785548921 | AZ197: 146 | BA197: 62712.7448 | BB197: 1.208440867e-05 | BC197: 0.2745824057 | BG197: 146 | BH197: 57071.9082 | BI197: 1.268079295e-05 | BJ197: 0.2792199427 | BN197: 146 | BO197: 53785.5971 | BP197: 1.223285577e-05 | BQ197: 0.2673257707 | BU197: 146 | BV197: 51459.6327 | BW197: 1.347957551e-05 | BX197: 0.2826013785 | CB197: 146 | CC197: 45689.0054 | CD197: 1.260567578e-05 | CE197: 0.2913239988 | CI197: 146 | CJ197: 38701.6921 | CK197: 1.291466726e-05 | CL197: 0.2833103957 | CP197: 146 | CQ197: 34558.5977 | CR197: 1.402257812e-05 | CS197: 0.2944686589 | CW197: 146 | CX197: 22205.9332 | CY197: 1.340124351e-05 | CZ197: 0.2699847197
C198: 147 | D198: 64844.4767 | E198: 1.302019144e-05 | F198: 0.267291064 | J198: 147 | K198: 64978.9939 | L198: 1.197942539e-05 | M198: 0.2508127751 | Q198: 147 | R198: 66690.9816 | S198: 1.23100086e-05 | T198: 0.2575546885 | X198: 147 | Y198: 69042.3805 | Z198: 1.207099005e-05 | AA198: 0.2690560338 | AE198: 147 | AF198: 68573.3159 | AG198: 1.241404084e-05 | AH198: 0.2757089616 | AL198: 147 | AM198: 70217.5665 | AN198: 1.334877822e-05 | AO198: 0.2671500771 | AS198: 147 | AT198: 67559.7087 | AU198: 1.307873522e-05 | AV198: 0.2880629691 | AZ198: 147 | BA198: 62834.2561 | BB198: 1.211621256e-05 | BC198: 0.2760527317 | BG198: 147 | BH198: 57174.9673 | BI198: 1.270957656e-05 | BJ198: 0.2805282981 | BN198: 147 | BO198: 53862.1505 | BP198: 1.225444576e-05 | BQ198: 0.2682630642 | BU198: 147 | BV198: 51506.6731 | BW198: 1.34940977e-05 | BX198: 0.2832358048 | CB198: 147 | CC198: 45750.8127 | CD198: 1.262138632e-05 | CE198: 0.2921036074 | CI198: 147 | CJ198: 38777.8284 | CK198: 1.293612542e-05 | CL198: 0.284294488 | CP198: 147 | CQ198: 34629.955 | CR198: 1.404452946e-05 | CS198: 0.2954700559 | CW198: 147 | CX198: 22585.0106 | CY198: 1.352643383e-05 | CZ198: 0.2750886203
C199: 148 | D199: 64931.5257 | E199: 1.304800162e-05 | F199: 0.2684256698 | J199: 148 | K199: 65020.5518 | L199: 1.199200612e-05 | M199: 0.2513108763 | Q199: 148 | R199: 66703.2615 | S199: 1.231376029e-05 | T199: 0.2577058772 | X199: 148 | Y199: 69258.1474 | Z199: 1.212939841e-05 | AA199: 0.2716668637 | AE199: 148 | AF199: 68885.1823 | AG199: 1.249918333e-05 | AH199: 0.2795937887 | AL199: 148 | AM199: 70301.4743 | AN199: 1.337698253e-05 | AO199: 0.2682713276 | AS199: 148 | AT199: 67748.5943 | AU199: 1.313143299e-05 | AV199: 0.2905383383 | AZ199: 148 | BA199: 62986.9689 | BB199: 1.215596737e-05 | BC199: 0.277906071 | BG199: 148 | BH199: 57184.66 | BI199: 1.271227714e-05 | BJ199: 0.2806515013 | BN199: 148 | BO199: 54032.2018 | BP199: 1.230218433e-05 | BQ199: 0.2703510119 | BU199: 148 | BV199: 51694.5155 | BW199: 1.355176897e-05 | BX199: 0.2857759931 | CB199: 148 | CC199: 45821.4096 | CD199: 1.263927523e-05 | CE199: 0.2929952699 | CI199: 148 | CJ199: 38812.2417 | CK199: 1.294580028e-05 | CL199: 0.2847398293 | CP199: 148 | CQ199: 34799.4757 | CR199: 1.40963401e-05 | CS199: 0.2978552926 | CW199: 148 | CX199: 23265.8619 | CY199: 1.374607811e-05 | CZ199: 0.2843732713
C200: 149 | D200: 65073.4362 | E200: 1.309313301e-05 | F200: 0.2702805236 | J200: 149 | K200: 65213.8067 | L200: 1.205029628e-05 | M200: 0.2536340284 | Q200: 149 | R200: 67162.4388 | S200: 1.245290889e-05 | T200: 0.2633921088 | X200: 149 | Y200: 69296.5698 | Z200: 1.213974972e-05 | AA200: 0.2721331032 | AE200: 149 | AF200: 68918.1697 | AG200: 1.250812505e-05 | AH200: 0.2800062518 | AL200: 149 | AM200: 70786.8105 | AN200: 1.353821287e-05 | AO200: 0.27480292 | AS200: 149 | AT200: 67946.9903 | AU200: 1.318626852e-05 | AV200: 0.2931490104 | AZ200: 149 | BA200: 63144.2318 | BB200: 1.219665252e-05 | BC200: 0.2798209563 | BG200: 149 | BH200: 57392.5572 | BI200: 1.276992863e-05 | BJ200: 0.28330035 | BN200: 149 | BO200: 54075.0659 | BP200: 1.231416921e-05 | BQ200: 0.2708785909 | BU200: 149 | BV200: 51723.1925 | BW200: 1.356052812e-05 | BX200: 0.2861647428 | CB200: 149 | CC200: 46406.3219 | CD200: 1.278515756e-05 | CE200: 0.3004310063 | CI200: 149 | CJ200: 38830.0784 | CK200: 1.295080891e-05 | CL200: 0.2849707843 | CP200: 149 | CQ200: 34824.1146 | CR200: 1.410383056e-05 | CS200: 0.2982027032 | CW200: 149 | CX200: 23357.372 | CY200: 1.377507037e-05 | CZ200: 0.2856325038
C201: 150 | D201: 65247.4401 | E201: 1.3148118e-05 | F201: 0.2725635693 | J201: 150 | K201: 65271.1268 | L201: 1.206751703e-05 | M201: 0.2543252463 | Q201: 150 | R201: 67929.471 | S201: 1.268018953e-05 | T201: 0.2730314813 | X201: 150 | Y201: 69305.2448 | Z201: 1.214208474e-05 | AA201: 0.2722384256 | AE201: 150 | AF201: 69046.5176 | AG201: 1.254279727e-05 | AH201: 0.2816138705 | AL201: 150 | AM201: 70915.1856 | AN201: 1.358030223e-05 | AO201: 0.2765435936 | AS201: 150 | AT201: 67958.5735 | AU201: 1.318945355e-05 | AV201: 0.2933017681 | AZ201: 150 | BA201: 63285.7088 | BB201: 1.223303047e-05 | BC201: 0.2815490779 | BG201: 150 | BH201: 57442.4135 | BI201: 1.278367611e-05 | BJ201: 0.2839373542 | BN201: 150 | BO201: 54345.3656 | BP201: 1.238928999e-05 | BQ201: 0.2742172775 | BU201: 150 | BV201: 52033.6797 | BW201: 1.365458447e-05 | BX201: 0.290389752 | CB201: 150 | CC201: 46560.8147 | CD201: 1.282298069e-05 | CE201: 0.3024091467 | CI201: 150 | CJ201: 38849.9518 | CK201: 1.295638467e-05 | CL201: 0.2852282163 | CP201: 150 | CQ201: 34874.5369 | CR201: 1.411912765e-05 | CS201: 0.2989142366 | CW201: 150 | CX201: 23400.9796 | CY201: 1.378884092e-05 | CZ201: 0.286233502
C202: 151 | D202: 65522.63 | E202: 1.323426802e-05 | F202: 0.2761936753 | J202: 151 | K202: 65440.8562 | L202: 1.211832283e-05 | M202: 0.2563777743 | Q202: 151 | R202: 67990.3035 | S202: 1.269792641e-05 | T202: 0.2738033886 | X202: 151 | Y202: 69435.8948 | Z202: 1.217715749e-05 | AA202: 0.2738270821 | AE202: 151 | AF202: 69211.7634 | AG202: 1.258715718e-05 | AH202: 0.2836901845 | AL202: 151 | AM202: 71043.6748 | AN202: 1.362218971e-05 | AO202: 0.2782912094 | AS202: 151 | AT202: 68117.8042 | AU202: 1.323305089e-05 | AV202: 0.2954054096 | AZ202: 151 | BA202: 63289.9892 | BB202: 1.223412777e-05 | BC202: 0.2816014425 | BG202: 151 | BH202: 57658.1484 | BI202: 1.284281055e-05 | BJ202: 0.2867016283 | BN202: 151 | BO202: 54354.9224 | BP202: 1.239193144e-05 | BQ202: 0.2743356921 | BU202: 151 | BV202: 52299.1272 | BW202: 1.373384549e-05 | BX202: 0.2940248709 | CB202: 151 | CC202: 46656.3888 | CD202: 1.284622796e-05 | CE202: 0.3036358033 | CI202: 151 | CJ202: 38928.3872 | CK202: 1.297834143e-05 | CL202: 0.2862453171 | CP202: 151 | CQ202: 35056.5035 | CR202: 1.417397483e-05 | CS202: 0.301488445 | CW202: 151 | CX202: 23504.4975 | CY202: 1.382141236e-05 | CZ202: 0.2876625811
C203: 152 | D203: 65541.0687 | E203: 1.324000437e-05 | F203: 0.2764377509 | J203: 152 | K203: 65500.7008 | L203: 1.213616925e-05 | M203: 0.2571035247 | Q203: 152 | R203: 68245.637 | S203: 1.277189499e-05 | T203: 0.2770550545 | X203: 152 | Y203: 69524.8682 | Z203: 1.220094077e-05 | AA203: 0.2749115838 | AE203: 152 | AF203: 69250.1381 | AG203: 1.259741326e-05 | AH203: 0.2841734098 | AL203: 152 | AM203: 71065.9304 | AN203: 1.362942049e-05 | AO203: 0.2785944599 | AS203: 152 | AT203: 68185.737 | AU203: 1.325154449e-05 | AV203: 0.2963049963 | AZ203: 152 | BA203: 63353.8192 | BB203: 1.22504675e-05 | BC203: 0.2823828686 | BG203: 152 | BH203: 57666.4658 | BI203: 1.284507884e-05 | BJ203: 0.2868084566 | BN203: 152 | BO203: 54388.0662 | BP203: 1.240108446e-05 | BQ203: 0.2747465595 | BU203: 152 | BV203: 52352.5499 | BW203: 1.374966659e-05 | BX203: 0.2947589928 | CB203: 152 | CC203: 46699.7586 | CD203: 1.285673874e-05 | CE203: 0.3041931697 | CI203: 152 | CJ203: 39135.4622 | CK203: 1.303592696e-05 | CL203: 0.2889387791 | CP203: 152 | CQ203: 35232.9587 | CR203: 1.422661994e-05 | CS203: 0.3039941692 | CW203: 152 | CX203: 23554.3472 | CY203: 1.383703789e-05 | CZ203: 0.288351964
C204: 153 | D204: 65631.1464 | E204: 1.326796208e-05 | F204: 0.2776316401 | J204: 153 | K204: 65531.2758 | L204: 1.214527347e-05 | M204: 0.2574747272 | Q204: 153 | R204: 68267.2466 | S204: 1.27781193e-05 | T204: 0.2773311173 | X204: 153 | Y204: 69577.6035 | Z204: 1.22149982e-05 | AA204: 0.2755553749 | AE204: 153 | AF204: 69396.9542 | AG204: 1.26364916e-05 | AH204: 0.2860257846 | AL204: 153 | AM204: 71132.5016 | AN204: 1.36510057e-05 | AO204: 0.2795025056 | AS204: 153 | AT204: 68219.508 | AU204: 1.326071426e-05 | AV204: 0.2967526691 | AZ204: 153 | BA204: 63383.6796 | BB204: 1.225809638e-05 | BC204: 0.2827487864 | BG204: 153 | BH204: 57741.4036 | BI204: 1.286547661e-05 | BJ204: 0.2877718032 | BN204: 153 | BO204: 54448.2219 | BP204: 1.241766621e-05 | BQ204: 0.2754930544 | BU204: 153 | BV204: 52491.7991 | BW204: 1.379069689e-05 | BX204: 0.2966764831 | CB204: 153 | CC204: 46737.2335 | CD204: 1.286580148e-05 | CE204: 0.3046751446 | CI204: 153 | CJ204: 39157.0758 | CK204: 1.304190529e-05 | CL204: 0.289220597 | CP204: 153 | CQ204: 35366.1432 | CR204: 1.426599809e-05 | CS204: 0.3058915602 | CW204: 153 | CX204: 23932.9658 | CY204: 1.395443538e-05 | CZ204: 0.2936132203
C205: 154 | D205: 65695.263 | E205: 1.328779522e-05 | F205: 0.2784829728 | J205: 154 | K205: 65642.9776 | L205: 1.217845559e-05 | M205: 0.2588332306 | Q205: 154 | R205: 68510.8071 | S205: 1.284787968e-05 | T205: 0.2804518726 | X205: 154 | Y205: 69643.1925 | Z205: 1.22324411e-05 | AA205: 0.2763571167 | AE205: 154 | AF205: 69574.0841 | AG205: 1.26832976e-05 | AH205: 0.288268236 | AL205: 154 | AM205: 71173.189 | AN205: 1.3664166e-05 | AO205: 0.2800581974 | AS205: 154 | AT205: 68451.0012 | AU205: 1.332314121e-05 | AV205: 0.2998296746 | AZ205: 154 | BA205: 63797.7337 | BB205: 1.236287934e-05 | BC205: 0.2878460592 | BG205: 154 | BH205: 57823.7906 | BI205: 1.288782055e-05 | BJ205: 0.2888326723 | BN205: 154 | BO205: 54505.1583 | BP205: 1.243332369e-05 | BQ205: 0.2762005175 | BU205: 154 | BV205: 52583.0734 | BW205: 1.381742658e-05 | BX205: 0.2979364402 | CB205: 154 | CC205: 46837.1309 | CD205: 1.288987197e-05 | CE205: 0.305961608 | CI205: 154 | CJ205: 39618.5713 | CK205: 1.316807496e-05 | CL205: 0.2952686005 | CP205: 154 | CQ205: 35594.1682 | CR205: 1.4332694e-05 | CS205: 0.309152186 | CW205: 154 | CX205: 24007.6811 | CY205: 1.397733072e-05 | CZ205: 0.294656686
C206: 155 | D206: 65878.7493 | E206: 1.334424206e-05 | F206: 0.2809262869 | J206: 155 | K206: 65696.674 | L206: 1.21943622e-05 | M206: 0.259487597 | Q206: 155 | R206: 69026.9404 | S206: 1.299326586e-05 | T206: 0.2871207554 | X206: 155 | Y206: 69670.1788 | Z206: 1.223960469e-05 | AA206: 0.2766873217 | AE206: 155 | AF206: 69856.8099 | AG206: 1.27572214e-05 | AH206: 0.2918646045 | AL206: 155 | AM206: 71322.0739 | AN206: 1.371211212e-05 | AO206: 0.2820961587 | AS206: 155 | AT206: 68728.8792 | AU206: 1.339707207e-05 | AV206: 0.3035421799 | AZ206: 155 | BA206: 63885.4108 | BB206: 1.238482425e-05 | BC206: 0.2889309633 | BG206: 155 | BH206: 57840.7712 | BI206: 1.289241516e-05 | BJ206: 0.2890515542 | BN206: 155 | BO206: 54765.6563 | BP206: 1.250449789e-05 | BQ206: 0.2794486604 | BU206: 155 | BV206: 52591.585 | BW206: 1.381991252e-05 | BX206: 0.2980540592 | CB206: 155 | CC206: 46866.9153 | CD206: 1.289702365e-05 | CE206: 0.3063456317 | CI206: 155 | CJ206: 39795.1452 | CK206: 1.321558776e-05 | CL206: 0.2975979399 | CP206: 155 | CQ206: 35599.023 | CR206: 1.433410397e-05 | CS206: 0.3092217718 | CW206: 155 | CX206: 24035.4987 | CY206: 1.398583181e-05 | CZ206: 0.2950456201
C207: 156 | D207: 66199.1131 | E207: 1.34416732e-05 | F207: 0.2852169442 | J207: 156 | K207: 65882.2327 | L207: 1.22491057e-05 | M207: 0.2617554515 | Q207: 156 | R207: 69169.7704 | S207: 1.303289647e-05 | T207: 0.288979417 | X207: 156 | Y207: 69738.5993 | Z207: 1.225773239e-05 | AA207: 0.277525382 | AE207: 156 | AF207: 70027.3345 | AG207: 1.280133327e-05 | AH207: 0.2940437908 | AL207: 156 | AM207: 71422.9721 | AN207: 1.374441513e-05 | AO207: 0.2834813171 | AS207: 156 | AT207: 68735.8487 | AU207: 1.339891207e-05 | AV207: 0.3036355572 | AZ207: 156 | BA207: 64054.7808 | BB207: 1.242697127e-05 | BC207: 0.2910321548 | BG207: 156 | BH207: 57869.3902 | BI207: 1.290015061e-05 | BJ207: 0.289420633 | BN207: 156 | BO207: 54776.515 | BP207: 1.25074481e-05 | BQ207: 0.279584459 | BU207: 156 | BV207: 52592.468 | BW207: 1.382017035e-05 | BX207: 0.2980662622 | CB207: 156 | CC207: 47007.4958 | CD207: 1.293062367e-05 | CE207: 0.3081610665 | CI207: 156 | CJ207: 39994.1203 | CK207: 1.32686123e-05 | CL207: 0.3002327972 | CP207: 156 | CQ207: 35606.6474 | CR207: 1.433631748e-05 | CS207: 0.3093310692 | CW207: 156 | CX207: 24045.3451 | CY207: 1.398883786e-05 | CZ207: 0.295183345
C208: 157 | D208: 66259.2953 | E208: 1.345981399e-05 | F208: 0.2860264398 | J208: 157 | K208: 66086.355 | L208: 1.230891643e-05 | M208: 0.2642618788 | Q208: 157 | R208: 69200.0446 | S208: 1.304126237e-05 | T208: 0.2893741042 | X208: 157 | Y208: 69750.3067 | Z208: 1.226082921e-05 | AA208: 0.2776689063 | AE208: 157 | AF208: 70047.6237 | AG208: 1.280655766e-05 | AH208: 0.2943035726 | AL208: 157 | AM208: 71633.4406 | AN208: 1.381129718e-05 | AO208: 0.2863811337 | AS208: 157 | AT208: 68779.6468 | AU208: 1.341045896e-05 | AV208: 0.3042226571 | AZ208: 157 | BA208: 64106.7019 | BB208: 1.243982644e-05 | BC208: 0.2916777107 | BG208: 157 | BH208: 58006.5305 | BI208: 1.293707357e-05 | BJ208: 0.291192298 | BN208: 157 | BO208: 54876.9906 | BP208: 1.253468249e-05 | BQ208: 0.2808425216 | BU208: 157 | BV208: 52611.3382 | BW208: 1.382567732e-05 | BX208: 0.2983271036 | CB208: 157 | CC208: 47101.3834 | CD208: 1.295291987e-05 | CE208: 0.3093761393 | CI208: 157 | CJ208: 40180.2033 | CK208: 1.331769936e-05 | CL208: 0.3027064351 | CP208: 157 | CQ208: 35621.3065 | CR208: 1.434057037e-05 | CS208: 0.3095412579 | CW208: 157 | CX208: 24244.3197 | CY208: 1.404924284e-05 | CZ208: 0.2979727887
C209: 158 | D209: 66401.7679 | E209: 1.350255196e-05 | F209: 0.2879471425 | J209: 158 | K209: 66467.3383 | L209: 1.241937171e-05 | M209: 0.2689724606 | Q209: 158 | R209: 69347.2681 | S209: 1.308177378e-05 | T209: 0.2912970701 | X209: 158 | Y209: 69802.504 | Z209: 1.227461849e-05 | AA209: 0.2783092485 | AE209: 158 | AF209: 70194.6291 | AG209: 1.284425668e-05 | AH209: 0.2961889801 | AL209: 158 | AM209: 71776.9595 | AN209: 1.385651087e-05 | AO209: 0.2883665643 | AS209: 158 | AT209: 68889.7439 | AU209: 1.343936154e-05 | AV209: 0.3057007024 | AZ209: 158 | BA209: 64179.1137 | BB209: 1.245770347e-05 | BC209: 0.2925791485 | BG209: 158 | BH209: 58156.287 | BI209: 1.297711729e-05 | BJ209: 0.2931327109 | BN209: 158 | BO209: 55252.2985 | BP209: 1.263537721e-05 | BQ209: 0.2855658341 | BU209: 158 | BV209: 52623.6876 | BW209: 1.382927825e-05 | BX209: 0.2984978647 | CB209: 158 | CC209: 47107.8798 | CD209: 1.295445834e-05 | CE209: 0.3094602916 | CI209: 158 | CJ209: 40184.3461 | CK209: 1.331878662e-05 | CL209: 0.3027616099 | CP209: 158 | CQ209: 35695.1791 | CR209: 1.436194377e-05 | CS209: 0.3106014231 | CW209: 158 | CX209: 24318.3283 | CY209: 1.407154344e-05 | CZ209: 0.2990133793
C210: 159 | D210: 66410.2275 | E210: 1.350508037e-05 | F210: 0.2880613794 | J210: 159 | K210: 66529.9563 | L210: 1.243737599e-05 | M210: 0.2697507007 | Q210: 159 | R210: 69405.4144 | S210: 1.309769477e-05 | T210: 0.2920581899 | X210: 159 | Y210: 69908.6187 | Z210: 1.230256107e-05 | AA210: 0.2796132496 | AE210: 159 | AF210: 70237.0414 | AG210: 1.285508249e-05 | AH210: 0.2967339642 | AL210: 159 | AM210: 72002.8151 | AN210: 1.392700651e-05 | AO210: 0.291504111 | AS210: 159 | AT210: 69296.277 | AU210: 1.354453522e-05 | AV210: 0.3111857092 | AZ210: 159 | BA210: 64331.0987 | BB210: 1.249502922e-05 | BC210: 0.2944753724 | BG210: 159 | BH210: 58166.497 | BI210: 1.297983679e-05 | BJ210: 0.2932652212 | BN210: 159 | BO210: 55389.831 | BP210: 1.267186137e-05 | BQ210: 0.2873061206 | BU210: 159 | BV210: 52661.4528 | BW210: 1.384027511e-05 | BX210: 0.2990203378 | CB210: 159 | CC210: 47140.9763 | CD210: 1.296228757e-05 | CE210: 0.3098891684 | CI210: 159 | CJ210: 40380.4248 | CK210: 1.336996637e-05 | CL210: 0.3053781669 | CP210: 159 | CQ210: 35727.1459 | CR210: 1.43711623e-05 | CS210: 0.3110606759 | CW210: 159 | CX210: 24747.88 | CY210: 1.419915555e-05 | CZ210: 0.3050853548
C211: 160 | D211: 66441.2433 | E211: 1.351434149e-05 | F211: 0.2884803939 | J211: 160 | K211: 66564.4084 | L211: 1.24472635e-05 | M211: 0.2701793648 | Q211: 160 | R211: 69497.1287 | S211: 1.312271522e-05 | T211: 0.293260584 | X211: 160 | Y211: 69931.2868 | Z211: 1.230851434e-05 | AA211: 0.2798921927 | AE211: 160 | AF211: 70238.2844 | AG211: 1.285539943e-05 | AH211: 0.2967499433 | AL211: 160 | AM211: 72089.5695 | AN211: 1.395386843e-05 | AO211: 0.2927135062 | AS211: 160 | AT211: 69432.6503 | AU211: 1.357926172e-05 | AV211: 0.3130351932 | AZ211: 160 | BA211: 64480.0275 | BB211: 1.253134403e-05 | BC211: 0.2963389495 | BG211: 160 | BH211: 58400.8255 | BI211: 1.304187691e-05 | BJ211: 0.2963140498 | BN211: 160 | BO211: 55392.4079 | BP211: 1.267254281e-05 | BQ211: 0.2873387756 | BU211: 160 | BV211: 52687.201 | BW211: 1.384775975e-05 | BX211: 0.2993767964 | CB211: 160 | CC211: 47243.0396 | CD211: 1.298634026e-05 | CE211: 0.3112133709 | CI211: 160 | CJ211: 40521.2301 | CK211: 1.340637738e-05 | CL211: 0.3072632958 | CP211: 160 | CQ211: 35816.9619 | CR211: 1.43969647e-05 | CS211: 0.312352596 | CW211: 160 | CX211: 24913.4092 | CY211: 1.424748682e-05 | CZ211: 0.3074397364
C212: 161 | D212: 66510.1723 | E212: 1.353487297e-05 | F212: 0.289412632 | J212: 161 | K212: 66593.1675 | L212: 1.245550714e-05 | M212: 0.2705374555 | Q212: 161 | R212: 69870.5326 | S212: 1.322340716e-05 | T212: 0.2981795156 | X212: 161 | Y212: 70078.7096 | Z212: 1.234709498e-05 | AA212: 0.2817095951 | AE212: 161 | AF212: 70538.6827 | AG212: 1.293141411e-05 | AH212: 0.3006231297 | AL212: 161 | AM212: 72211.72 | AN212: 1.399148388e-05 | AO212: 0.294420278 | AS212: 161 | AT212: 69779.7751 | AU212: 1.366637196e-05 | AV212: 0.3177640644 | AZ212: 161 | BA212: 64828.2421 | BB212: 1.261523069e-05 | BC212: 0.3007171936 | BG212: 161 | BH212: 58512.2023 | BI212: 1.30711105e-05 | BJ212: 0.2977682418 | BN212: 161 | BO212: 55512.2415 | BP212: 1.270414318e-05 | BQ212: 0.2888592672 | BU212: 161 | BV212: 52825.8642 | BW212: 1.388788529e-05 | BX212: 0.3012997566 | CB212: 161 | CC212: 47398.7554 | CD212: 1.302277002e-05 | CE212: 0.3132383898 | CI212: 161 | CJ212: 40923.0094 | CK212: 1.350867704e-05 | CL212: 0.3126703315 | CP212: 161 | CQ212: 35854.7783 | CR212: 1.440778495e-05 | CS212: 0.3128972421 | CW212: 161 | CX212: 24951.8592 | CY212: 1.425864512e-05 | CZ212: 0.3079877668
C213: 162 | D213: 66511.2813 | E213: 1.353520273e-05 | F213: 0.2894276423 | J213: 162 | K213: 66907.3796 | L213: 1.254497351e-05 | M213: 0.2744652112 | Q213: 162 | R213: 69961.2074 | S213: 1.324756945e-05 | T213: 0.2993796418 | X213: 162 | Y213: 70086.4101 | Z213: 1.234910366e-05 | AA213: 0.2818046817 | AE213: 162 | AF213: 70690.6877 | AG213: 1.296943381e-05 | AH213: 0.3025916627 | AL213: 162 | AM213: 72300.9796 | AN213: 1.4018817e-05 | AO213: 0.2956703731 | AS213: 162 | AT213: 69840.7962 | AU213: 1.368149244e-05 | AV213: 0.3185984631 | AZ213: 162 | BA213: 65007.9736 | BB213: 1.26579595e-05 | BC213: 0.3029883937 | BG213: 162 | BH213: 58621.771 | BI213: 1.309970783e-05 | BJ213: 0.2992019946 | BN213: 162 | BO213: 55526.488 | BP213: 1.270788847e-05 | BQ213: 0.2890402834 | BU213: 162 | BV213: 52991.9888 | BW213: 1.393554987e-05 | BX213: 0.3036108413 | CB213: 162 | CC213: 47531.7344 | CD213: 1.305362301e-05 | CE213: 0.3149721988 | CI213: 162 | CJ213: 40946.9849 | CK213: 1.351470584e-05 | CL213: 0.312994281 | CP213: 162 | CQ213: 35870.1196 | CR213: 1.441216709e-05 | CS213: 0.3131183099 | CW213: 162 | CX213: 25079.8304 | CY213: 1.429559566e-05 | CZ213: 0.3098148302
C214: 163 | D214: 66541.549 | E214: 1.35441959e-05 | F214: 0.2898374579 | J214: 163 | K214: 67019.0189 | L214: 1.257649193e-05 | M214: 0.275867484 | Q214: 163 | R214: 69983.8396 | S214: 1.325358247e-05 | T214: 0.2996795315 | X214: 163 | Y214: 70114.8524 | Z214: 1.235651719e-05 | AA214: 0.282156024 | AE214: 163 | AF214: 70708.8465 | AG214: 1.29739555e-05 | AH214: 0.3028272132 | AL214: 163 | AM214: 72410.2444 | AN214: 1.405209775e-05 | AO214: 0.2972039563 | AS214: 163 | AT214: 69892.1868 | AU214: 1.369418143e-05 | AV214: 0.3193018894 | AZ214: 163 | BA214: 65125.4919 | BB214: 1.268568511e-05 | BC214: 0.3044775663 | BG214: 163 | BH214: 58642.4787 | BI214: 1.31050944e-05 | BJ214: 0.2994733152 | BN214: 163 | BO214: 55727.7738 | BP214: 1.276054034e-05 | BQ214: 0.2916035083 | BU214: 163 | BV214: 53153.5779 | BW214: 1.398148173e-05 | BX214: 0.3058663911 | CB214: 163 | CC214: 47591.5234 | CD214: 1.306741702e-05 | CE214: 0.3157530745 | CI214: 163 | CJ214: 40963.7741 | CK214: 1.351892246e-05 | CL214: 0.3132212175 | CP214: 163 | CQ214: 35935.6354 | CR214: 1.443083301e-05 | CS214: 0.3140631464 | CW214: 163 | CX214: 25109.9092 | CY214: 1.430423867e-05 | CZ214: 0.3102449545
C215: 164 | D215: 66638.3805 | E215: 1.357287591e-05 | F215: 0.2911503524 | J215: 164 | K215: 67146.0723 | L215: 1.261218762e-05 | M215: 0.2774676396 | Q215: 164 | R215: 69986.4483 | S215: 1.32542751e-05 | T215: 0.299714107 | X215: 164 | Y215: 70212.116 | Z215: 1.238180152e-05 | AA215: 0.2833590939 | AE215: 164 | AF215: 70728.5129 | AG215: 1.297884772e-05 | AH215: 0.3030824123 | AL215: 164 | AM215: 72417.6844 | AN215: 1.40543567e-05 | AO215: 0.2973085124 | AS215: 164 | AT215: 69922.263 | AU215: 1.370158842e-05 | AV215: 0.3197138698 | AZ215: 164 | BA215: 65217.205 | BB215: 1.270720462e-05 | BC215: 0.3056419975 | BG215: 164 | BH215: 58765.6118 | BI215: 1.313700447e-05 | BJ215: 0.3010889528 | BN215: 164 | BO215: 55790.7582 | BP215: 1.277691341e-05 | BQ215: 0.2924077391 | BU215: 164 | BV215: 53206.9441 | BW215: 1.399655677e-05 | BX215: 0.3066129321 | CB215: 164 | CC215: 47707.8488 | CD215: 1.309411528e-05 | CE215: 0.3172747016 | CI215: 164 | CJ215: 41254.5156 | CK215: 1.359126719e-05 | CL215: 0.3171622772 | CP215: 164 | CQ215: 36169.5337 | CR215: 1.449682985e-05 | CS215: 0.3174462316 | CW215: 164 | CX215: 25624.2342 | CY215: 1.44495153e-05 | CZ215: 0.3176395467
C216: 165 | D216: 66691.1502 | E216: 1.358844702e-05 | F216: 0.291867 | J216: 165 | K216: 67470.032 | L216: 1.270234909e-05 | M216: 0.2815681179 | Q216: 165 | R216: 70100.2308 | S216: 1.328439255e-05 | T216: 0.3012239267 | X216: 165 | Y216: 70251.9016 | Z216: 1.239211377e-05 | AA216: 0.2838519165 | AE216: 165 | AF216: 70852.2258 | AG216: 1.300950558e-05 | AH216: 0.3046899616 | AL216: 165 | AM216: 72456.2141 | AN216: 1.406604049e-05 | AO216: 0.2978502477 | AS216: 165 | AT216: 69929.8668 | AU216: 1.370345879e-05 | AV216: 0.319818061 | AZ216: 165 | BA216: 65639.1343 | BB216: 1.280485435e-05 | BC216: 0.3110242187 | BG216: 165 | BH216: 58845.7981 | BI216: 1.315767397e-05 | BJ216: 0.3021431899 | BN216: 165 | BO216: 55820.9003 | BP216: 1.278473161e-05 | BQ216: 0.29279298 | BU216: 165 | BV216: 53269.2249 | BW216: 1.401409039e-05 | BX216: 0.3074851952 | CB216: 165 | CC216: 47830.5206 | CD216: 1.312206947e-05 | CE216: 0.318882697 | CI216: 165 | CJ216: 41356.0672 | CK216: 1.361623252e-05 | CL216: 0.3185437611 | CP216: 165 | CQ216: 36234.1316 | CR216: 1.451487843e-05 | CS216: 0.3183832798 | CW216: 165 | CX216: 25772.261 | CY216: 1.449043279e-05 | CZ216: 0.3197814956
C217: 166 | D217: 66704.5245 | E217: 1.359238689e-05 | F217: 0.2920487623 | J217: 166 | K217: 67535.8159 | L217: 1.272050509e-05 | M217: 0.2824043255 | Q217: 166 | R217: 70112.1938 | S217: 1.328754851e-05 | T217: 0.3013828667 | X217: 166 | Y217: 70282.6912 | Z217: 1.240008217e-05 | AA217: 0.2842335874 | AE217: 166 | AF217: 70883.5651 | AG217: 1.301723974e-05 | AH217: 0.3050977917 | AL217: 166 | AM217: 72484.0149 | AN217: 1.407445549e-05 | AO217: 0.2982414118 | AS217: 166 | AT217: 69933.0461 | AU217: 1.370424056e-05 | AV217: 0.3198616297 | AZ217: 166 | BA217: 65656.9675 | BB217: 1.280893211e-05 | BC217: 0.3112526065 | BG217: 166 | BH217: 58902.7338 | BI217: 1.317229678e-05 | BJ217: 0.3028927477 | BN217: 166 | BO217: 55973.4797 | BP217: 1.282413363e-05 | BQ217: 0.2947466763 | BU217: 166 | BV217: 53276.6826 | BW217: 1.40161856e-05 | BX217: 0.3075897159 | CB217: 166 | CC217: 47913.2743 | CD217: 1.314081007e-05 | CE217: 0.3199693729 | CI217: 166 | CJ217: 41365.4591 | CK217: 1.36185334e-05 | CL217: 0.3186716542 | CP217: 166 | CQ217: 36289.1472 | CR217: 1.453018835e-05 | CS217: 0.3191822459 | CW217: 166 | CX217: 25847.7372 | CY217: 1.451113939e-05 | CZ217: 0.3208759605
C218: 167 | D218: 66791.4968 | E218: 1.36179424e-05 | F218: 0.2932320356 | J218: 167 | K218: 67584.3224 | L218: 1.273385925e-05 | M218: 0.2830216766 | Q218: 167 | R218: 70269.2625 | S218: 1.332879712e-05 | T218: 0.3034731687 | X218: 167 | Y218: 70292.4647 | Z218: 1.240260936e-05 | AA218: 0.2843547919 | AE218: 167 | AF218: 70965.4521 | AG218: 1.303738672e-05 | AH218: 0.3061645599 | AL218: 167 | AM218: 72511.9624 | AN218: 1.408290189e-05 | AO218: 0.2986348758 | AS218: 167 | AT218: 70066.4238 | AU218: 1.373689372e-05 | AV218: 0.3216916505 | AZ218: 167 | BA218: 65767.5972 | BB218: 1.283413806e-05 | BC218: 0.3126710506 | BG218: 167 | BH218: 58908.0284 | BI218: 1.317365433e-05 | BJ218: 0.3029624934 | BN218: 167 | BO218: 56191.1233 | BP218: 1.287983063e-05 | BQ218: 0.2975438389 | BU218: 167 | BV218: 53478.4158 | BW218: 1.40725088e-05 | BX218: 0.3104229384 | CB218: 167 | CC218: 48438.4582 | CD218: 1.32575117e-05 | CE218: 0.3269015297 | CI218: 167 | CJ218: 41616.075 | CK218: 1.367942596e-05 | CL218: 0.3220923259 | CP218: 167 | CQ218: 36311.8699 | CR218: 1.453649516e-05 | CS218: 0.3195124827 | CW218: 167 | CX218: 25950.8499 | CY218: 1.453925587e-05 | CZ218: 0.3223736946
C219: 168 | D219: 66830.4293 | E219: 1.362934537e-05 | F219: 0.2937624382 | J219: 168 | K219: 67959.2626 | L219: 1.283611372e-05 | M219: 0.287815336 | Q219: 168 | R219: 70388.3123 | S219: 1.33598273e-05 | T219: 0.3050618084 | X219: 168 | Y219: 70530.2953 | Z219: 1.246377457e-05 | AA219: 0.2873117981 | AE219: 168 | AF219: 70969.8165 | AG219: 1.3038458e-05 | AH219: 0.3062214626 | AL219: 168 | AM219: 72518.243 | AN219: 1.408479824e-05 | AO219: 0.2987233308 | AS219: 168 | AT219: 70272.4692 | AU219: 1.378678193e-05 | AV219: 0.3245272255 | AZ219: 168 | BA219: 65981.3871 | BB219: 1.288240186e-05 | BC219: 0.3154200293 | BG219: 168 | BH219: 59142.9736 | BI219: 1.323350459e-05 | BJ219: 0.306064626 | BN219: 168 | BO219: 56496.0558 | BP219: 1.295684545e-05 | BQ219: 0.3014830905 | BU219: 168 | BV219: 53522.5085 | BW219: 1.408472812e-05 | BX219: 0.3110437028 | CB219: 168 | CC219: 48454.8851 | CD219: 1.326109895e-05 | CE219: 0.327119339 | CI219: 168 | CJ219: 41659.3548 | CK219: 1.368984255e-05 | CL219: 0.3226845942 | CP219: 168 | CQ219: 36353.4244 | CR219: 1.454800379e-05 | CS219: 0.3201167787 | CW219: 168 | CX219: 26232.4186 | CY219: 1.461501065e-05 | CZ219: 0.3264781943
C220: 169 | D220: 66993.485 | E220: 1.367685391e-05 | F220: 0.2959886594 | J220: 169 | K220: 68234.3581 | L220: 1.291002535e-05 | M220: 0.2913566814 | Q220: 169 | R220: 70530.3998 | S220: 1.339659532e-05 | T220: 0.3069626885 | X220: 169 | Y220: 70763.3934 | Z220: 1.252309604e-05 | AA220: 0.2902240063 | AE220: 169 | AF220: 70970.4053 | AG220: 1.303860251e-05 | AH220: 0.3062291397 | AL220: 169 | AM220: 72705.4269 | AN220: 1.414101172e-05 | AO220: 0.3013650486 | AS220: 169 | AT220: 70287.7735 | AU220: 1.379046035e-05 | AV220: 0.3247382507 | AZ220: 169 | BA220: 66002.76 | BB220: 1.28871943e-05 | BC220: 0.3156954149 | BG220: 169 | BH220: 59210.3496 | BI220: 1.325052613e-05 | BJ220: 0.3069568204 | BN220: 169 | BO220: 56540.3913 | BP220: 1.296794245e-05 | BQ220: 0.3020577848 | BU220: 169 | BV220: 53680.7513 | BW220: 1.412830962e-05 | BX220: 0.3132759635 | CB220: 169 | CC220: 48604.192 | CD220: 1.329352645e-05 | CE220: 0.3291017374 | CI220: 169 | CJ220: 41879.6313 | CK220: 1.374240125e-05 | CL220: 0.3257059477 | CP220: 169 | CQ220: 36369.5964 | CR220: 1.455247389e-05 | CS220: 0.3203520852 | CW220: 169 | CX220: 26347.863 | CY220: 1.464563304e-05 | CZ220: 0.3281671855
C221: 170 | D221: 67013.5945 | E221: 1.368268508e-05 | F221: 0.2962637527 | J221: 170 | K221: 68387.8573 | L221: 1.295084843e-05 | M221: 0.293341497 | Q221: 170 | R221: 70544.8584 | S221: 1.340032039e-05 | T221: 0.3071564114 | X221: 170 | Y221: 70780.3105 | Z221: 1.252737684e-05 | AA221: 0.290435897 | AE221: 170 | AF221: 71108.6331 | AG221: 1.307239825e-05 | AH221: 0.3080337757 | AL221: 170 | AM221: 72720.5187 | AN221: 1.414551816e-05 | AO221: 0.3015784959 | AS221: 170 | AT221: 70390.537 | AU221: 1.381506207e-05 | AV221: 0.3261566722 | AZ221: 170 | BA221: 66198.7033 | BB221: 1.293085206e-05 | BC221: 0.3182248597 | BG221: 170 | BH221: 59280.2701 | BI221: 1.326812303e-05 | BJ221: 0.3078839194 | BN221: 170 | BO221: 56598.8058 | BP221: 1.298252401e-05 | BQ221: 0.3028157268 | BU221: 170 | BV221: 53768.9746 | BW221: 1.41524211e-05 | BX221: 0.3145234742 | CB221: 170 | CC221: 49241.312 | CD221: 1.342825045e-05 | CE221: 0.3376145433 | CI221: 170 | CJ221: 41969.3969 | CK221: 1.37635987e-05 | CL221: 0.3269404949 | CP221: 170 | CQ221: 36393.0936 | CR221: 1.455895997e-05 | CS221: 0.3206941038 | CW221: 170 | CX221: 26355.6787 | CY221: 1.464769693e-05 | CZ221: 0.3282816595
C222: 171 | D222: 67027.8475 | E222: 1.368681429e-05 | F222: 0.2964588015 | J222: 171 | K222: 68388.9424 | L222: 1.295113593e-05 | M222: 0.2933555501 | Q222: 171 | R222: 70676.8758 | S222: 1.343419194e-05 | T222: 0.3089277255 | X222: 171 | Y222: 71347.7323 | Z222: 1.266900179e-05 | AA222: 0.2975845655 | AE222: 171 | AF222: 71372.7617 | AG222: 1.313625592e-05 | AH222: 0.3114950242 | AL222: 171 | AM222: 72910.1926 | AN222: 1.420182333e-05 | AO222: 0.3042668811 | AS222: 171 | AT222: 70814.5481 | AU222: 1.391475278e-05 | AV222: 0.3320356509 | AZ222: 171 | BA222: 66211.8817 | BB222: 1.293377021e-05 | BC222: 0.3183952869 | BG222: 171 | BH222: 59379.8726 | BI222: 1.329307068e-05 | BJ222: 0.3092067012 | BN222: 171 | BO222: 56660.6432 | BP222: 1.299791105e-05 | BQ222: 0.3036190083 | BU222: 171 | BV222: 54000.1716 | BW222: 1.421496861e-05 | BX222: 0.3178027198 | CB222: 171 | CC222: 49419.2526 | CD222: 1.346480211e-05 | CE222: 0.3400072333 | CI222: 171 | CJ222: 42008.4621 | CK222: 1.377278342e-05 | CL222: 0.3274783521 | CP222: 171 | CQ222: 36398.4764 | CR222: 1.456044435e-05 | CS222: 0.3207724758 | CW222: 171 | CX222: 26370.774 | CY222: 1.465167981e-05 | CZ222: 0.3285028009
C223: 172 | D223: 67194.3471 | E223: 1.373481923e-05 | F223: 0.2987416529 | J223: 172 | K223: 68436.3038 | L223: 1.296366974e-05 | M223: 0.293969231 | Q223: 172 | R223: 70763.8243 | S223: 1.345636066e-05 | T223: 0.3100967729 | X223: 172 | Y223: 71401.0583 | Z223: 1.268211292e-05 | AA223: 0.2982605024 | AE223: 172 | AF223: 71485.8733 | AG223: 1.316331017e-05 | AH223: 0.3129824189 | AL223: 172 | AM223: 73184.0324 | AN223: 1.42820157e-05 | AO223: 0.3081669153 | AS223: 172 | AT223: 70980.1436 | AU223: 1.395288086e-05 | AV223: 0.3343430346 | AZ223: 172 | BA223: 66225.1621 | BB223: 1.293670862e-05 | BC223: 0.318567072 | BG223: 172 | BH223: 59408.3095 | BI223: 1.330016748e-05 | BJ223: 0.3095848158 | BN223: 172 | BO223: 56959.8751 | BP223: 1.307165086e-05 | BQ223: 0.3075194605 | BU223: 172 | BV223: 54351.6601 | BW223: 1.430826074e-05 | BX223: 0.3228155775 | CB223: 172 | CC223: 49429.9347 | CD223: 1.346698121e-05 | CE223: 0.3401510773 | CI223: 172 | CJ223: 42099.8628 | CK223: 1.379417713e-05 | CL223: 0.3287381729 | CP223: 172 | CQ223: 36590.3717 | CR223: 1.461300354e-05 | CS223: 0.3235716107 | CW223: 172 | CX223: 26770.8834 | CY223: 1.475563025e-05 | CZ223: 0.334385976
C224: 173 | D224: 67222.8642 | E224: 1.374299826e-05 | F224: 0.2991334468 | J224: 173 | K224: 68484.7321 | L224: 1.29764558e-05 | M224: 0.2945973492 | Q224: 173 | R224: 70782.3956 | S224: 1.346108122e-05 | T224: 0.3103467189 | X224: 173 | Y224: 71501.2327 | Z224: 1.270664857e-05 | AA224: 0.2995321554 | AE224: 173 | AF224: 71498.7261 | AG224: 1.316637313e-05 | AH224: 0.313151624 | AL224: 173 | AM224: 73251.7098 | AN224: 1.430163204e-05 | AO224: 0.3091341492 | AS224: 173 | AT224: 71227.0087 | AU224: 1.400886738e-05 | AV224: 0.3377944456 | AZ224: 173 | BA224: 66291.6126 | BB224: 1.295137638e-05 | BC224: 0.3194272104 | BG224: 173 | BH224: 59458.3073 | BI224: 1.331261713e-05 | BJ224: 0.3102501063 | BN224: 173 | BO224: 57184.0243 | BP224: 1.312609743e-05 | BQ224: 0.3104555754 | BU224: 173 | BV224: 54379.7764 | BW224: 1.431562836e-05 | BX224: 0.3232179764 | CB224: 173 | CC224: 49610.1822 | CD224: 1.350349041e-05 | CE224: 0.3425817648 | CI224: 173 | CJ224: 42181.3175 | CK224: 1.381312931e-05 | CL224: 0.3298625461 | CP224: 173 | CQ224: 36725.5218 | CR224: 1.464959867e-05 | CS224: 0.3255490365 | CW224: 173 | CX224: 26779.6774 | CY224: 1.475787965e-05 | CZ224: 0.3345157469
C225: 174 | D225: 67513.4132 | E225: 1.38256052e-05 | F225: 0.303138494 | J225: 174 | K225: 68507.2889 | L225: 1.298240085e-05 | M225: 0.2948901236 | Q225: 174 | R225: 70877.9851 | S225: 1.348529793e-05 | T225: 0.3116346154 | X225: 174 | Y225: 71711.7828 | Z225: 1.275781514e-05 | AA225: 0.3022129378 | AE225: 174 | AF225: 71518.0833 | AG225: 1.317098184e-05 | AH225: 0.3134065327 | AL225: 174 | AM225: 73356.8476 | AN225: 1.433194527e-05 | AO225: 0.3106393866 | AS225: 174 | AT225: 71657.3937 | AU225: 1.41039921e-05 | AV225: 0.3438442362 | AZ225: 174 | BA225: 66487.646 | BB225: 1.299430506e-05 | BC225: 0.3219703289 | BG225: 174 | BH225: 59500.4335 | BI225: 1.332307899e-05 | BJ225: 0.3108111367 | BN225: 174 | BO225: 57251.9709 | BP225: 1.314246631e-05 | BQ225: 0.3113480055 | BU225: 174 | BV225: 54479.5758 | BW225: 1.434166503e-05 | BX225: 0.3246479683 | CB225: 174 | CC225: 49886.7682 | CD225: 1.355854881e-05 | CE225: 0.3463242824 | CI225: 174 | CJ225: 42305.7495 | CK225: 1.384187332e-05 | CL225: 0.3315831323 | CP225: 174 | CQ225: 36822.148 | CR225: 1.467554682e-05 | CS225: 0.3269658266 | CW225: 174 | CX225: 27010.1488 | CY225: 1.481628273e-05 | CZ225: 0.3379237665
C226: 175 | D226: 67576.3123 | E226: 1.384331249e-05 | F226: 0.3040086694 | J226: 175 | K226: 68540.498 | L226: 1.299114132e-05 | M226: 0.2953214026 | Q226: 175 | R226: 70935.2083 | S226: 1.349972988e-05 | T226: 0.3124067005 | X226: 175 | Y226: 71805.3494 | Z226: 1.278037598e-05 | AA226: 0.3034076995 | AE226: 175 | AF226: 71661.7954 | AG226: 1.320503478e-05 | AH226: 0.3153018125 | AL226: 175 | AM226: 73396.6793 | AN226: 1.434337806e-05 | AO226: 0.3112104802 | AS226: 175 | AT226: 71751.8638 | AU226: 1.412444397e-05 | AV226: 0.3451776091 | AZ226: 175 | BA226: 66606.6975 | BB226: 1.302012437e-05 | BC226: 0.3235188592 | BG226: 175 | BH226: 59513.5954 | BI226: 1.332634247e-05 | BJ226: 0.3109865153 | BN226: 175 | BO226: 57312.3413 | BP226: 1.31569567e-05 | BQ226: 0.3121418591 | BU226: 175 | BV226: 55243.8778 | BW226: 1.453501035e-05 | BX226: 0.3356839075 | CB226: 175 | CC226: 50122.1744 | CD226: 1.360447943e-05 | CE226: 0.349521472 | CI226: 175 | CJ226: 42358.1058 | CK226: 1.385389228e-05 | CL226: 0.3323081564 | CP226: 175 | CQ226: 36886.0937 | CR226: 1.469261936e-05 | CS226: 0.327904811 | CW226: 175 | CX226: 27434.3423 | CY226: 1.492097721e-05 | CZ226: 0.344231072
C227: 176 | D227: 67667.9015 | E227: 1.386898345e-05 | F227: 0.3052777439 | J227: 176 | K227: 68542.7015 | L227: 1.299172076e-05 | M227: 0.2953500292 | Q227: 176 | R227: 70949.7134 | S227: 1.350338037e-05 | T227: 0.3126025419 | X227: 176 | Y227: 71844.0181 | Z227: 1.278966772e-05 | AA227: 0.3039020797 | AE227: 176 | AF227: 71754.2573 | AG227: 1.3226791e-05 | AH227: 0.3165237819 | AL227: 176 | AM227: 73434.3784 | AN227: 1.435417257e-05 | AO227: 0.3117514162 | AS227: 176 | AT227: 71806.3552 | AU227: 1.413617004e-05 | AV227: 0.3459475895 | AZ227: 176 | BA227: 66637.7307 | BB227: 1.302682327e-05 | BC227: 0.3239230193 | BG227: 176 | BH227: 59557.5501 | BI227: 1.333722298e-05 | BJ227: 0.3115725099 | BN227: 176 | BO227: 57536.4179 | BP227: 1.321029842e-05 | BQ227: 0.3150960146 | BU227: 176 | BV227: 55278.5808 | BW227: 1.454353032e-05 | BX227: 0.3361884639 | CB227: 176 | CC227: 50222.7628 | CD227: 1.362384197e-05 | CE227: 0.3508908999 | CI227: 176 | CJ227: 42502.457 | CK227: 1.388679683e-05 | CL227: 0.3343103614 | CP227: 176 | CQ227: 36949.8104 | CR227: 1.470955154e-05 | CS227: 0.3288415161 | CW227: 176 | CX227: 27444.7224 | CY227: 1.492349306e-05 | CZ227: 0.3443859663
C228: 177 | D228: 67810.505 | E228: 1.390868387e-05 | F228: 0.3072583441 | J228: 177 | K228: 68658.302 | L228: 1.302203019e-05 | M228: 0.2968536322 | Q228: 177 | R228: 70986.8085 | S228: 1.351270176e-05 | T228: 0.3131036241 | X228: 177 | Y228: 71914.4136 | Z228: 1.280653471e-05 | AA228: 0.3048030088 | AE228: 177 | AF228: 72029.7284 | AG228: 1.329089188e-05 | AH228: 0.3201762343 | AL228: 177 | AM228: 73476.6047 | AN228: 1.436623309e-05 | AO228: 0.3123577945 | AS228: 177 | AT228: 71940.8853 | AU228: 1.416489684e-05 | AV228: 0.3478512657 | AZ228: 177 | BA228: 66686.3595 | BB228: 1.303729416e-05 | BC228: 0.3245567528 | BG228: 177 | BH228: 59596.3844 | BI228: 1.334681285e-05 | BJ228: 0.3120906379 | BN228: 177 | BO228: 57555.3972 | BP228: 1.321478425e-05 | BQ228: 0.3153467794 | BU228: 177 | BV228: 55386.6011 | BW228: 1.456990398e-05 | BX228: 0.3377608868 | CB228: 177 | CC228: 50229.0147 | CD228: 1.362504018e-05 | CE228: 0.3509760786 | CI228: 177 | CJ228: 42719.3948 | CK228: 1.393559958e-05 | CL228: 0.3373282403 | CP228: 177 | CQ228: 37026.8023 | CR228: 1.472990553e-05 | CS228: 0.3299748167 | CW228: 177 | CX228: 27887.895 | CY228: 1.502882096e-05 | CZ228: 0.3510231398
C229: 178 | D229: 68174.1304 | E229: 1.40084115e-05 | F229: 0.3123340926 | J229: 178 | K229: 68866.3146 | L229: 1.307612416e-05 | M229: 0.2995680147 | Q229: 178 | R229: 71183.6209 | S229: 1.356181115e-05 | T229: 0.3157679336 | X229: 178 | Y229: 71917.9927 | Z229: 1.28073906e-05 | AA229: 0.3048488462 | AE229: 178 | AF229: 72153.4863 | AG229: 1.331933653e-05 | AH229: 0.3218228495 | AL229: 178 | AM229: 73559.1258 | AN229: 1.43897097e-05 | AO229: 0.3135442814 | AS229: 178 | AT229: 72234.2621 | AU229: 1.422643358e-05 | AV229: 0.3520159819 | AZ229: 178 | BA229: 66839.6394 | BB229: 1.307008826e-05 | BC229: 0.3265576254 | BG229: 178 | BH229: 59681.63 | BI229: 1.336778728e-05 | BJ229: 0.3132292897 | BN229: 178 | BO229: 58053.223 | BP229: 1.333062174e-05 | BQ229: 0.3219544201 | BU229: 178 | BV229: 55441.4514 | BW229: 1.458321072e-05 | BX229: 0.3385604156 | CB229: 178 | CC229: 50284.1834 | CD229: 1.363558693e-05 | CE229: 0.3517280455 | CI229: 178 | CJ229: 42863.3757 | CK229: 1.39675563e-05 | CL229: 0.3393370052 | CP229: 178 | CQ229: 37041.1714 | CR229: 1.473369134e-05 | CS229: 0.3301864994 | CW229: 178 | CX229: 27942.5097 | CY229: 1.504151657e-05 | CZ229: 0.3518442814
C230: 179 | D230: 68263.346 | E230: 1.403254472e-05 | F230: 0.313584939 | J230: 179 | K230: 69553.9042 | L230: 1.325075751e-05 | M230: 0.3086194319 | Q230: 179 | R230: 71435.0841 | S230: 1.362370016e-05 | T230: 0.3191860317 | X230: 179 | Y230: 72465.6539 | Z230: 1.293642028e-05 | AA230: 0.311898466 | AE230: 179 | AF230: 72305.8652 | AG230: 1.335405519e-05 | AH230: 0.3238550849 | AL230: 179 | AM230: 73928.5301 | AN230: 1.449328041e-05 | AO230: 0.3188791088 | AS230: 179 | AT230: 72351.3564 | AU230: 1.425056595e-05 | AV230: 0.3536832315 | AZ230: 179 | BA230: 67142.2353 | BB230: 1.313388073e-05 | BC230: 0.3305222641 | BG230: 179 | BH230: 59919.8975 | BI230: 1.342585095e-05 | BJ230: 0.3164213328 | BN230: 179 | BO230: 58114.3675 | BP230: 1.334460381e-05 | BQ230: 0.3227699421 | BU230: 179 | BV230: 55581.7411 | BW230: 1.461698249e-05 | BX230: 0.3406086632 | CB230: 179 | CC230: 50348.0962 | CD230: 1.364774539e-05 | CE230: 0.3525999229 | CI230: 179 | CJ230: 42893.7486 | CK230: 1.39742531e-05 | CL230: 0.3397613421 | CP230: 179 | CQ230: 37137.4836 | CR230: 1.475896158e-05 | CS230: 0.331606752 | CW230: 179 | CX230: 28090.883 | CY230: 1.507568829e-05 | CZ230: 0.3540785817
C231: 180 | D231: 68409.1595 | E231: 1.407169976e-05 | F231: 0.3156339324 | J231: 180 | K231: 69569.6377 | L231: 1.32546768e-05 | M231: 0.3088279436 | Q231: 180 | R231: 71462.1077 | S231: 1.363029328e-05 | T231: 0.3195542823 | X231: 180 | Y231: 72528.2946 | Z231: 1.295093001e-05 | AA231: 0.3127092672 | AE231: 180 | AF231: 72448.8399 | AG231: 1.338632321e-05 | AH231: 0.3257666872 | AL231: 180 | AM231: 74333.1426 | AN231: 1.460381047e-05 | AO231: 0.3247657361 | AS231: 180 | AT231: 72469.6711 | AU231: 1.427469937e-05 | AV231: 0.3553707131 | AZ231: 180 | BA231: 67208.5924 | BB231: 1.314770012e-05 | BC231: 0.3313942492 | BG231: 180 | BH231: 59960.3557 | BI231: 1.343562748e-05 | BJ231: 0.3169647164 | BN231: 180 | BO231: 58274.0351 | BP231: 1.338085849e-05 | BQ231: 0.3249035422 | BU231: 180 | BV231: 55639.2664 | BW231: 1.463072079e-05 | BX231: 0.341449905 | CB231: 180 | CC231: 50416.587 | CD231: 1.366070314e-05 | CE231: 0.3535351121 | CI231: 180 | CJ231: 42934.4168 | CK231: 1.398319551e-05 | CL231: 0.3403298318 | CP231: 180 | CQ231: 37160.2219 | CR231: 1.476490088e-05 | CS231: 0.3319424132 | CW231: 180 | CX231: 28166.7815 | CY231: 1.509298737e-05 | CZ231: 0.3552234611
C232: 181 | D232: 68534.5382 | E232: 1.41050792e-05 | F232: 0.3174003192 | J232: 181 | K232: 69737.2537 | L232: 1.329621346e-05 | M232: 0.3110531262 | Q232: 181 | R232: 71769.6188 | S232: 1.370451849e-05 | T232: 0.3237571991 | X232: 181 | Y232: 72560.7371 | Z232: 1.295842447e-05 | AA232: 0.3131295493 | AE232: 181 | AF232: 72565.3737 | AG232: 1.341240143e-05 | AH232: 0.3273281678 | AL232: 181 | AM232: 74404.797 | AN232: 1.462306129e-05 | AO232: 0.3258128537 | AS232: 181 | AT232: 72537.877 | AU232: 1.428849682e-05 | AV232: 0.3563448028 | AZ232: 181 | BA232: 67284.4194 | BB232: 1.316341627e-05 | BC232: 0.3323917962 | BG232: 181 | BH232: 60184.1478 | BI232: 1.348926695e-05 | BJ232: 0.3199775196 | BN232: 181 | BO232: 58571.5452 | BP232: 1.34474107e-05 | BQ232: 0.3288944153 | BU232: 181 | BV232: 55759.3004 | BW232: 1.465918087e-05 | BX232: 0.3432077998 | CB232: 181 | CC232: 50435.0536 | CD232: 1.366418412e-05 | CE232: 0.3537874109 | CI232: 181 | CJ232: 42996.9774 | CK232: 1.399689717e-05 | CL232: 0.3412050578 | CP232: 181 | CQ232: 37343.1672 | CR232: 1.481231259e-05 | CS232: 0.3346479295 | CW232: 181 | CX232: 28191.6972 | CY232: 1.509863943e-05 | CZ232: 0.3555995839
C233: 182 | D233: 68606.0748 | E233: 1.412400395e-05 | F233: 0.318410026 | J233: 182 | K233: 69960.1809 | L233: 1.335083534e-05 | M233: 0.3140233154 | Q233: 182 | R233: 72360.6448 | S233: 1.384296659e-05 | T233: 0.3318981152 | X233: 182 | Y233: 72723.9493 | Z233: 1.2995916e-05 | AA233: 0.3152475866 | AE233: 182 | AF233: 72929.2872 | AG233: 1.349253776e-05 | AH233: 0.3322237632 | AL233: 182 | AM233: 74458.2968 | AN233: 1.463737047e-05 | AO233: 0.3265955676 | AS233: 182 | AT233: 73139.2623 | AU233: 1.440646849e-05 | AV233: 0.3649735014 | AZ233: 182 | BA233: 67340.3031 | BB233: 1.317494724e-05 | BC233: 0.333127739 | BG233: 182 | BH233: 60244.3347 | BI233: 1.350356511e-05 | BJ233: 0.3207898273 | BN233: 182 | BO233: 58597.9683 | BP233: 1.345325786e-05 | BQ233: 0.3292498148 | BU233: 182 | BV233: 55792.0838 | BW233: 1.466690505e-05 | BX233: 0.3436885043 | CB233: 182 | CC233: 50473.0771 | CD233: 1.367133456e-05 | CE233: 0.3543071071 | CI233: 182 | CJ233: 43089.3645 | CK233: 1.40170098e-05 | CL233: 0.3424991207 | CP233: 182 | CQ233: 37400.9032 | CR233: 1.482713647e-05 | CS233: 0.3355035614 | CW233: 182 | CX233: 28260.3336 | CY233: 1.511414064e-05 | CZ233: 0.3566364327
C234: 183 | D234: 68661.227 | E234: 1.413853423e-05 | F234: 0.3191893969 | J234: 183 | K234: 70146.4011 | L234: 1.339591244e-05 | M234: 0.3165137156 | Q234: 183 | R234: 72494.5103 | S234: 1.387353935e-05 | T234: 0.3337532604 | X234: 183 | Y234: 72784.2893 | Z234: 1.300968681e-05 | AA234: 0.3160321759 | AE234: 183 | AF234: 72931.5718 | AG234: 1.349303456e-05 | AH234: 0.3322545888 | AL234: 183 | AM234: 74514.011 | AN234: 1.465221337e-05 | AO234: 0.3274114907 | AS234: 183 | AT234: 73239.6434 | AU234: 1.442550809e-05 | AV234: 0.3664205958 | AZ234: 183 | BA234: 67344.0084 | BB234: 1.317571023e-05 | BC234: 0.3331765575 | BG234: 183 | BH234: 60495.4759 | BI234: 1.356263614e-05 | BJ234: 0.3241885665 | BN234: 183 | BO234: 58816.0421 | BP234: 1.350111488e-05 | BQ234: 0.3321888491 | BU234: 183 | BV234: 55950.338 | BW234: 1.470389577e-05 | BX234: 0.346012537 | CB234: 183 | CC234: 50605.7044 | CD234: 1.369609557e-05 | CE234: 0.3561219443 | CI234: 183 | CJ234: 43089.9328 | CK234: 1.401713307e-05 | CL234: 0.3425070866 | CP234: 183 | CQ234: 37411.1918 | CR234: 1.482977107e-05 | CS234: 0.3356561255 | CW234: 183 | CX234: 28490.6327 | CY234: 1.516541138e-05 | CZ234: 0.3601231314
C235: 184 | D235: 68673.6292 | E235: 1.414179446e-05 | F235: 0.319364766 | J235: 184 | K235: 70172.1708 | L235: 1.340211048e-05 | M235: 0.3168590041 | Q235: 184 | R235: 72515.1886 | S235: 1.387823571e-05 | T235: 0.3340401902 | X235: 184 | Y235: 72872.4069 | Z235: 1.302970926e-05 | AA235: 0.3171794412 | AE235: 184 | AF235: 73043.1844 | AG235: 1.351720914e-05 | AH235: 0.3337619323 | AL235: 184 | AM235: 74551.0572 | AN235: 1.466204973e-05 | AO235: 0.3279544818 | AS235: 184 | AT235: 73363.0978 | AU235: 1.44486653e-05 | AV235: 0.3682029206 | AZ235: 184 | BA235: 67348.0864 | BB235: 1.317654975e-05 | BC235: 0.3332302898 | BG235: 184 | BH235: 60977.866 | BI235: 1.367338247e-05 | BJ235: 0.3307579044 | BN235: 184 | BO235: 58903.9695 | BP235: 1.35202075e-05 | BQ235: 0.3333768073 | BU235: 184 | BV235: 56231.6313 | BW235: 1.476842536e-05 | BX235: 0.3501577571 | CB235: 184 | CC235: 50628.5998 | CD235: 1.370034165e-05 | CE235: 0.3564355706 | CI235: 184 | CJ235: 43239.8597 | CK235: 1.404946075e-05 | CL235: 0.3446110602 | CP235: 184 | CQ235: 37512.8317 | CR235: 1.485568333e-05 | CS235: 0.3371647405 | CW235: 184 | CX235: 28551.9809 | CY235: 1.517887537e-05 | CZ235: 0.3610539155
C236: 185 | D236: 68740.7076 | E236: 1.415938164e-05 | F236: 0.3203139652 | J236: 185 | K236: 70205.3761 | L236: 1.341008253e-05 | M236: 0.3173041576 | Q236: 185 | R236: 72566.4563 | S236: 1.3889849e-05 | T236: 0.3347519933 | X236: 185 | Y236: 72958.8896 | Z236: 1.304925842e-05 | AA236: 0.3183071317 | AE236: 185 | AF236: 73106.9438 | AG236: 1.3530934e-05 | AH236: 0.3346242193 | AL236: 185 | AM236: 74593.572 | AN236: 1.467330535e-05 | AO236: 0.3285780753 | AS236: 185 | AT236: 73469.3452 | AU236: 1.446836527e-05 | AV236: 0.3697391021 | AZ236: 185 | BA236: 67502.4447 | BB236: 1.320815385e-05 | BC236: 0.3352666431 | BG236: 185 | BH236: 61095.5177 | BI236: 1.369984153e-05 | BJ236: 0.3323681597 | BN236: 185 | BO236: 58946.659 | BP236: 1.352943472e-05 | BQ236: 0.3339541752 | BU236: 185 | BV236: 56291.6884 | BW236: 1.478199849e-05 | BX236: 0.3510451138 | CB236: 185 | CC236: 50800.3303 | CD236: 1.373192215e-05 | CE236: 0.3587910555 | CI236: 185 | CJ236: 43346.7461 | CK236: 1.407227235e-05 | CL236: 0.3461139773 | CP236: 185 | CQ236: 37741.8547 | CR236: 1.491330266e-05 | CS236: 0.3405736522 | CW236: 185 | CX236: 28594.1525 | CY236: 1.518808316e-05 | CZ236: 0.3616942273
C237: 186 | D237: 68857.643 | E237: 1.418985391e-05 | F237: 0.3219714822 | J237: 186 | K237: 70238.465 | L237: 1.34180105e-05 | M237: 0.3177480137 | Q237: 186 | R237: 72666.9141 | S237: 1.391247891e-05 | T237: 0.3361484751 | X237: 186 | Y237: 72974.3456 | Z237: 1.305274154e-05 | AA237: 0.318508848 | AE237: 186 | AF237: 73325.7124 | AG237: 1.357755289e-05 | AH237: 0.3375894756 | AL237: 186 | AM237: 74737.7584 | AN237: 1.471121628e-05 | AO237: 0.3306965044 | AS237: 186 | AT237: 73612.7556 | AU237: 1.449461725e-05 | AV237: 0.3718159032 | AZ237: 186 | BA237: 67550.471 | BB237: 1.321791807e-05 | BC237: 0.3359012165 | BG237: 186 | BH237: 61123.5255 | BI237: 1.370610806e-05 | BJ237: 0.3327519499 | BN237: 186 | BO237: 58990.0239 | BP237: 1.353877944e-05 | BQ237: 0.3345410805 | BU237: 186 | BV237: 56324.1098 | BW237: 1.47892958e-05 | BX237: 0.3515244853 | CB237: 186 | CC237: 50882.3592 | CD237: 1.374683938e-05 | CE237: 0.3599180826 | CI237: 186 | CJ237: 43350.1703 | CK237: 1.407299988e-05 | CL237: 0.3461621648 | CP237: 186 | CQ237: 37743.6566 | CR237: 1.491375175e-05 | CS237: 0.3406005249 | CW237: 186 | CX237: 28635.2691 | CY237: 1.519702324e-05 | CZ237: 0.3623188935
C238: 187 | D238: 68989.4867 | E238: 1.422392439e-05 | F238: 0.3238445743 | J238: 187 | K238: 70384.6253 | L238: 1.345283651e-05 | M238: 0.3197117431 | Q238: 187 | R238: 72683.3791 | S238: 1.391617198e-05 | T238: 0.3363775744 | X238: 187 | Y238: 73169.5196 | Z238: 1.309644541e-05 | AA238: 0.3210606772 | AE238: 187 | AF238: 73426.0573 | AG238: 1.359868915e-05 | AH238: 0.3389529756 | AL238: 187 | AM238: 74747.8558 | AN238: 1.471385598e-05 | AO238: 0.3308450627 | AS238: 187 | AT238: 73635.0762 | AU238: 1.449866803e-05 | AV238: 0.372139477 | AZ238: 187 | BA238: 67606.6426 | BB238: 1.322929661e-05 | BC238: 0.3366440079 | BG238: 187 | BH238: 61141.7777 | BI238: 1.371018515e-05 | BJ238: 0.3330021538 | BN238: 187 | BO238: 59002.2788 | BP238: 1.354141504e-05 | BQ238: 0.3347070131 | BU238: 187 | BV238: 56366.9458 | BW238: 1.479890481e-05 | BX238: 0.3521582055 | CB238: 187 | CC238: 50913.0241 | CD238: 1.375238797e-05 | CE238: 0.3603397131 | CI238: 187 | CJ238: 43412.3782 | CK238: 1.408618178e-05 | CL238: 0.347038027 | CP238: 187 | CQ238: 37868.1894 | CR238: 1.494462747e-05 | CS238: 0.342459702 | CW238: 187 | CX238: 28983.9014 | CY238: 1.527133437e-05 | CZ238: 0.3676300982
C239: 188 | D239: 69167.861 | E239: 1.426953091e-05 | F239: 0.3263858328 | J239: 188 | K239: 70387.2259 | L239: 1.34534533e-05 | M239: 0.3197467293 | Q239: 188 | R239: 72754.1595 | S239: 1.39319965e-05 | T239: 0.3373631272 | X239: 188 | Y239: 73247.4605 | Z239: 1.311375232e-05 | AA239: 0.3220821009 | AE239: 188 | AF239: 73522.5557 | AG239: 1.361886766e-05 | AH239: 0.3402662021 | AL239: 188 | AM239: 74752.4297 | AN239: 1.471505105e-05 | AO239: 0.3309123652 | AS239: 188 | AT239: 73679.3937 | AU239: 1.450668274e-05 | AV239: 0.3727821995 | AZ239: 188 | BA239: 67667.8653 | BB239: 1.324164699e-05 | BC239: 0.3374543195 | BG239: 188 | BH239: 61212.3378 | BI239: 1.372589675e-05 | BJ239: 0.3339701006 | BN239: 188 | BO239: 59307.6998 | BP239: 1.360635388e-05 | BQ239: 0.3388527991 | BU239: 188 | BV239: 56680.3129 | BW239: 1.486807096e-05 | BX239: 0.3568065846 | CB239: 188 | CC239: 50916.4385 | CD239: 1.375300484e-05 | CE239: 0.3603866703 | CI239: 188 | CJ239: 43544.4148 | CK239: 1.411393797e-05 | CL239: 0.3488997543 | CP239: 188 | CQ239: 37928.5371 | CR239: 1.495947454e-05 | CS239: 0.3433620242 | CW239: 188 | CX239: 29102.4404 | CY239: 1.52959879e-05 | CZ239: 0.3694418112
C240: 189 | D240: 69182.3495 | E240: 1.427321049e-05 | F240: 0.3265926036 | J240: 189 | K240: 70411.0065 | L240: 1.345908867e-05 | M240: 0.3200667276 | Q240: 189 | R240: 72915.3527 | S240: 1.396772214e-05 | T240: 0.3396117555 | X240: 189 | Y240: 73509.3439 | Z240: 1.317128777e-05 | AA240: 0.3255239295 | AE240: 189 | AF240: 73546.109 | AG240: 1.362377077e-05 | AH240: 0.3405870291 | AL240: 189 | AM240: 74904.7851 | AN240: 1.475462334e-05 | AO240: 0.333157303 | AS240: 189 | AT240: 73842.1929 | AU240: 1.453580257e-05 | AV240: 0.375146253 | AZ240: 189 | BA240: 67713.96 | BB240: 1.325091017e-05 | BC240: 0.3380649028 | BG240: 189 | BH240: 61507.7884 | BI240: 1.379081939e-05 | BJ240: 0.3380350503 | BN240: 189 | BO240: 59631.0102 | BP240: 1.367351421e-05 | BQ240: 0.3432627758 | BU240: 189 | BV240: 56713.9368 | BW240: 1.487537367e-05 | BX240: 0.35730663 | CB240: 189 | CC240: 50945.9131 | CD240: 1.375832206e-05 | CE240: 0.360792113 | CI240: 189 | CJ240: 43567.647 | CK240: 1.411879034e-05 | CL240: 0.3492277085 | CP240: 189 | CQ240: 37944.1037 | CR240: 1.496329208e-05 | CS240: 0.3435949221 | CW240: 189 | CX240: 29102.7886 | CY240: 1.529605985e-05 | CZ240: 0.3694471373
C241: 190 | D241: 69212.21 | E241: 1.428078221e-05 | F241: 0.3270189219 | J241: 190 | K241: 70525.6055 | L241: 1.348612729e-05 | M241: 0.3216106768 | Q241: 190 | R241: 72933.9669 | S241: 1.397181954e-05 | T241: 0.3398717916 | X241: 190 | Y241: 73666.6639 | Z241: 1.320538968e-05 | AA241: 0.3275987236 | AE241: 190 | AF241: 73657.97 | AG241: 1.364693839e-05 | AH241: 0.3421122953 | AL241: 190 | AM241: 74941.8551 | AN241: 1.476418248e-05 | AO241: 0.3337044342 | AS241: 190 | AT241: 73895.5605 | AU241: 1.454523788e-05 | AV241: 0.3759222459 | AZ241: 190 | BA241: 68151.8823 | BB241: 1.333738189e-05 | BC241: 0.3438868075 | BG241: 190 | BH241: 61568.7699 | BI241: 1.380404425e-05 | BJ241: 0.3388764386 | BN241: 190 | BO241: 59653.2587 | BP241: 1.367807531e-05 | BQ241: 0.3435670417 | BU241: 190 | BV241: 56727.6817 | BW241: 1.487835223e-05 | BX241: 0.357511111 | CB241: 190 | CC241: 51042.1602 | CD241: 1.377558684e-05 | CE241: 0.3621171437 | CI241: 190 | CJ241: 43589.0597 | CK241: 1.412325433e-05 | CL241: 0.3495300777 | CP241: 190 | CQ241: 37975.2245 | CR241: 1.497090905e-05 | CS241: 0.3440607103 | CW241: 190 | CX241: 29124.7251 | CY241: 1.530058763e-05 | CZ241: 0.369782729
C242: 191 | D242: 69299.9655 | E242: 1.430294198e-05 | F242: 0.3282731124 | J242: 191 | K242: 70526.9815 | L242: 1.348645075e-05 | M242: 0.321629234 | Q242: 191 | R242: 72978.959 | S242: 1.398169917e-05 | T242: 0.3405006355 | X242: 191 | Y242: 73722.775 | Z242: 1.321746825e-05 | AA242: 0.3283400316 | AE242: 191 | AF242: 73663.457 | AG242: 1.364806976e-05 | AH242: 0.3421871792 | AL242: 191 | AM242: 74997.1052 | AN242: 1.477837906e-05 | AO242: 0.3345205492 | AS242: 191 | AT242: 73906.3202 | AU242: 1.454713354e-05 | AV242: 0.3760787585 | AZ242: 191 | BA242: 68187.1631 | BB242: 1.33442266e-05 | BC242: 0.3443574818 | BG242: 191 | BH242: 61657.346 | BI242: 1.382314577e-05 | BJ242: 0.340099994 | BN242: 191 | BO242: 59817.1066 | BP242: 1.371142314e-05 | BQ242: 0.3458109035 | BU242: 191 | BV242: 56778.1343 | BW242: 1.488925226e-05 | BX242: 0.3582620377 | CB242: 191 | CC242: 51175.4545 | CD242: 1.379924784e-05 | CE242: 0.3639549311 | CI242: 191 | CJ242: 43758.8532 | CK242: 1.415836743e-05 | CL242: 0.3519311026 | CP242: 191 | CQ242: 38019.3106 | CR242: 1.49816649e-05 | CS242: 0.3447209565 | CW242: 191 | CX242: 29152.2624 | CY242: 1.53062562e-05 | CZ242: 0.3702041439
... 309 more rows

Sheet 02 Year EXP Sim(E)
A42: Iterations | B42: 500 | D42: EXP Elec Price Forecast | K42: EXP Elec Price Forecast | R42: EXP Elec Price Forecast | Y42: EXP Elec Price Forecast | AF42: EXP Elec Price Forecast | AM42: EXP Elec Price Forecast | AT42: EXP Elec Price Forecast | BA42: EXP Elec Price Forecast | BH42: EXP Elec Price Forecast | BO42: EXP Elec Price Forecast | BV42: EXP Elec Price Forecast | CC42: EXP Elec Price Forecast | CJ42: EXP Elec Price Forecast | CQ42: EXP Elec Price Forecast | CX42: EXP Elec Price Forecast
D43: Option 2: Invest when future pice/baseline Ratio = 1.1 | K43: Option 2: Invest when future pice/baseline Ratio = 1.2 | R43: Option 2: Invest when future pice/baseline Ratio = 1.3 | Y43: Option 2: Invest when future pice/baseline Ratio = 1.4 | AF43: Option 2: Invest when future pice/baseline Ratio = 1.5 | AM43: Option 2: Invest when future pice/baseline Ratio = 1.6 | AT43: Option 2: Invest when future pice/baseline Ratio = 1.7 | BA43: Option 2: Invest when future pice/baseline Ratio = 1.8 | BH43: Option 2: Invest when future pice/baseline Ratio = 1.9 | BO43: Option 2: Invest when future pice/baseline Ratio = 2.0 | BV43: Option 2: Invest when future pice/baseline Ratio = 2.1 | CC43: Option 2: Invest when future pice/baseline Ratio = 2.2 | CJ43: Option 2: Invest when future pice/baseline Ratio = 2.3 | CQ43: Option 2: Invest when future pice/baseline Ratio = 2.4 | CX43: Option 2: Invest when future pice/baseline Ratio = 2.5
D45: Year | E45: f(x) | F45: F(x) | G45: BIN Limits | H45: Frequency | K45: Year | L45: f(x) | M45: F(x) | N45: BIN Limits | O45: Frequency | R45: Year | S45: f(x) | T45: F(x) | U45: BIN Limits | V45: Frequency | Y45: Year | Z45: f(x) | AA45: F(x) | AB45: BIN Limits | AC45: Frequency | AF45: Year | AG45: f(x) | AH45: F(x) | AI45: BIN Limits | AJ45: Frequency | AM45: Year | AN45: f(x) | AO45: F(x) | AP45: BIN Limits | AQ45: Frequency | AT45: Year | AU45: f(x) | AV45: F(x) | AW45: BIN Limits | AX45: Frequency | BA45: Year | BB45: f(x) | BC45: F(x) | BD45: BIN Limits | BE45: Frequency | BH45: Year | BI45: f(x) | BJ45: F(x) | BK45: BIN Limits | BL45: Frequency | BO45: Year | BP45: f(x) | BQ45: F(x) | BR45: BIN Limits | BS45: Frequency | BV45: Year | BW45: f(x) | BX45: F(x) | BY45: BIN Limits | BZ45: Frequency | CC45: Year | CD45: f(x) | CE45: F(x) | CF45: BIN Limits | CG45: Frequency | CJ45: Year | CK45: f(x) | CL45: F(x) | CM45: BIN Limits | CN45: Frequency | CQ45: Year | CR45: f(x) | CS45: F(x) | CT45: BIN Limits | CU45: Frequency | CX45: Year | CY45: f(x) | CZ45: F(x) | DA45: BIN Limits | DB45: Frequency
C46: Av | D46: =AVERAGE(D52:D5051) -> 1.5 | G46: 1 | H46: =FREQUENCY(D52:D551, G46:G55) -> 312 | J46: Av | K46: =AVERAGE(K52:K5051) -> 1.986 | N46: 1 | O46: =FREQUENCY(K52:K551, N46:N55) -> 193 | Q46: Av | R46: =AVERAGE(R52:R5051) -> 2.69 | U46: 1 | V46: =FREQUENCY(R52:R551, U46:U55) -> 108 | X46: Av | Y46: =AVERAGE(Y52:Y5051) -> 4.128 | AB46: 1 | AC46: =FREQUENCY(Y52:Y551, AB46:AB55) -> 27 | AE46: Av | AF46: =AVERAGE(AF52:AF5051) -> 5.738 | AI46: =AF49 -> 1 | AJ46: =FREQUENCY(AF52:AF551, AI46:AI55) -> 6 | AL46: Av | AM46: =AVERAGE(AM52:AM5051) -> 7.666 | AP46: =AM49 -> 2 | AQ46: =FREQUENCY(AM52:AM551, AP46:AP55) -> 1 | AS46: Av | AT46: =AVERAGE(AT52:AT5051) -> 9.374 | AW46: =AT49 -> 4 | AX46: =FREQUENCY(AT52:AT551, AW46:AW55) -> 1 | AZ46: Av | BA46: =AVERAGE(BA52:BA5051) -> 11.084 | BD46: =BA49 -> 6 | BE46: =FREQUENCY(BA52:BA551, BD46:BD55) -> 1 | BG46: Av | BH46: =AVERAGE(BH52:BH5051) -> 12.766 | BK46: =BH49 -> 8 | BL46: =FREQUENCY(BH52:BH551, BK46:BK55) -> 4 | BN46: Av | BO46: =AVERAGE(BO52:BO5051) -> 14.192 | BR46: =BO49+BS59 -> 11 | BS46: =FREQUENCY(BO52:BO551, BR46:BR55) -> 23 | BU46: Av | BV46: =AVERAGE(BV52:BV5051) -> 15.656 | BY46: =BV49+BZ59 -> 12 | BZ46: =FREQUENCY(BV52:BV551, BY46:BY55) -> 7 | CB46: Av | CC46: =AVERAGE(CC52:CC5051) -> 17.1 | CF46: =CC49+CG59 -> 15 | CG46: =FREQUENCY(CC52:CC551, CF46:CF55) -> 50 | CI46: Av | CJ46: =AVERAGE(CJ52:CJ5051) -> 18.414 | CM46: =CJ49+CN59 -> 15 | CN46: =FREQUENCY(CJ52:CJ551, CM46:CM55) -> 6 | CP46: Av | CQ46: =AVERAGE(CQ52:CQ5051) -> 19.662 | CT46: =CQ49+CU59 -> 17 | CU46: =FREQUENCY(CQ52:CQ551, CT46:CT55) -> 22 | CW46: Av | CX46: =AVERAGE(CX52:CX5051) -> 20.816 | DA46: =CX49+DB59 -> 17 | DB46: =FREQUENCY(CX52:CX551, DA46:DA55) -> 4 | DL46: ratio | DM46: Av. Year
